Workbook

Sheet Summary
A1: 2024 Hackers Golf League
A2: Standings
E4: Best 10 | L4: Average per round | T4: Best | W4: Worst | Z4: Difference
A5: Position | B5: Name | C5: Matches Used | D5: Matches Played | E5: Points | F5: Average | G5: Previous | I5: Eagle | J5: Birdie | K5: Par | L5: Bogey | M5: D Bogey | N5: Other | O5: Avg over | P5: Rounded | T5: Front | U5: Back | V5: Total | W5: Front | X5: Back | Y5: Total
A6: T1 | B6: =INDIRECT(CONCATENATE(S6,"!A1")) -> Mark Rusnak | C6: =MIN(10,D6) -> 10 | D6: =IFERROR(INDIRECT(CONCATENATE(S6,"!e44")),0) -> 15 | E6: =IFERROR(INDIRECT(CONCATENATE(S6,"!D44")),0) -> 63.5 | F6: =IFERROR(E6/C6,0) -> 6.35 | G6: 1 | I6: =IFERROR(INDIRECT(CONCATENATE(S6,"!C47"))/D6,0) -> 0 | J6: =IFERROR(INDIRECT(CONCATENATE(S6,"!C48"))/D6,0) -> 0.4 | K6: =IFERROR(INDIRECT(CONCATENATE(S6,"!C49"))/D6,0) -> 3.866666667 | L6: =IFERROR(INDIRECT(CONCATENATE(S6,"!C50"))/D6,0) -> 3.666666667 | M6: =IFERROR(INDIRECT(CONCATENATE(S6,"!C51"))/D6,0) -> 0.8666666667 | N6: =IFERROR(INDIRECT(CONCATENATE(S6,"!C52"))/D6,0) -> 0.2 | O6: =L6+(M6*2)+(N6*3)-J6 -> 5.6 | P6: =ROUND(O6,0) -> 6 | Q6: =B6 -> Mark Rusnak | R6: =FIND(" ",Q6) -> 5 | S6: Rusnak | T6: =INDIRECT(CONCATENATE(S6,"!k38")) -> 33 | U6: =INDIRECT(CONCATENATE(S6,"!k49")) -> 35 | V6: =SUM(T6:U6) -> 68 | W6: =INDIRECT(CONCATENATE(S6,"!l38")) -> 47 | X6: =INDIRECT(CONCATENATE(S6,"!l49")) -> 54 | Y6: =SUM(W6:X6) -> 101 | Z6: =+Y6-V6 -> 33
A7: T1 | B7: Andy Linton | C7: 10 | D7: 15 | E7: 63.5 | F7: 6.35 | G7: 2 | I7: =IFERROR(INDIRECT(CONCATENATE(S7,"!C47"))/D7,0) -> 0 | J7: =IFERROR(INDIRECT(CONCATENATE(S7,"!C48"))/D7,0) -> 0.06666666667 | K7: =IFERROR(INDIRECT(CONCATENATE(S7,"!C49"))/D7,0) -> 3.666666667 | L7: =IFERROR(INDIRECT(CONCATENATE(S7,"!C50"))/D7,0) -> 4 | M7: =IFERROR(INDIRECT(CONCATENATE(S7,"!C51"))/D7,0) -> 1.066666667 | N7: =IFERROR(INDIRECT(CONCATENATE(S7,"!C52"))/D7,0) -> 0.2 | O7: 6.666666667 | P7: 7 | Q7: Andy Linton | R7: 5 | S7: Linton | T7: 35 | U7: 37 | V7: 72 | W7: 50 | X7: 54 | Y7: 104 | Z7: 32
A8: T1 | B8: Tom Mohsinger | C8: 10 | D8: 13 | E8: 63.5 | F8: 6.35 | G8: 3 | I8: =IFERROR(INDIRECT(CONCATENATE(S8,"!C47"))/D8,0) -> 0 | J8: =IFERROR(INDIRECT(CONCATENATE(S8,"!C48"))/D8,0) -> 0.07692307692 | K8: =IFERROR(INDIRECT(CONCATENATE(S8,"!C49"))/D8,0) -> 0.2307692308 | L8: =IFERROR(INDIRECT(CONCATENATE(S8,"!C50"))/D8,0) -> 3.153846154 | M8: =IFERROR(INDIRECT(CONCATENATE(S8,"!C51"))/D8,0) -> 3.230769231 | N8: =IFERROR(INDIRECT(CONCATENATE(S8,"!C52"))/D8,0) -> 2.307692308 | O8: 16.46153846 | P8: 16 | Q8: Tom Mohsinger | R8: 4 | S8: Mohsinger_T | T8: 43 | U8: 44 | V8: 87 | W8: 64 | X8: 64 | Y8: 128 | Z8: 41
A9: 4 | B9: Dan Fusco | C9: 10 | D9: 15 | E9: 61.5 | F9: 6.15 | G9: 4 | I9: =IFERROR(INDIRECT(CONCATENATE(S9,"!C47"))/D9,0) -> 0 | J9: =IFERROR(INDIRECT(CONCATENATE(S9,"!C48"))/D9,0) -> 0.3333333333 | K9: =IFERROR(INDIRECT(CONCATENATE(S9,"!C49"))/D9,0) -> 2.6 | L9: =IFERROR(INDIRECT(CONCATENATE(S9,"!C50"))/D9,0) -> 4 | M9: =IFERROR(INDIRECT(CONCATENATE(S9,"!C51"))/D9,0) -> 1.733333333 | N9: =IFERROR(INDIRECT(CONCATENATE(S9,"!C52"))/D9,0) -> 0.3333333333 | O9: 8.133333333 | P9: 8 | Q9: Dan Fusco | R9: 4 | S9: Fusco_d | T9: 35 | U9: 37 | V9: 72 | W9: 54 | X9: 56 | Y9: 110 | Z9: 38
A10: 5 | B10: Marty Reed | C10: 10 | D10: 11 | E10: 60.5 | F10: 6.05 | G10: T5 | I10: =IFERROR(INDIRECT(CONCATENATE(S10,"!C47"))/D10,0) -> 0 | J10: =IFERROR(INDIRECT(CONCATENATE(S10,"!C48"))/D10,0) -> 0.2727272727 | K10: =IFERROR(INDIRECT(CONCATENATE(S10,"!C49"))/D10,0) -> 3.454545455 | L10: =IFERROR(INDIRECT(CONCATENATE(S10,"!C50"))/D10,0) -> 3.818181818 | M10: =IFERROR(INDIRECT(CONCATENATE(S10,"!C51"))/D10,0) -> 1.181818182 | N10: =IFERROR(INDIRECT(CONCATENATE(S10,"!C52"))/D10,0) -> 0.2727272727 | O10: 6.727272727 | P10: 7 | Q10: Marty Reed | R10: 6 | S10: Reed | T10: 37 | U10: 33 | V10: 70 | W10: 50 | X10: 54 | Y10: 104 | Z10: 34
A11: 6 | B11: Tim Hobbs | C11: 10 | D11: 12 | E11: 55.5 | F11: 5.55 | G11: T5 | I11: =IFERROR(INDIRECT(CONCATENATE(S11,"!C47"))/D11,0) -> 0 | J11: =IFERROR(INDIRECT(CONCATENATE(S11,"!C48"))/D11,0) -> 0 | K11: =IFERROR(INDIRECT(CONCATENATE(S11,"!C49"))/D11,0) -> 1.333333333 | L11: =IFERROR(INDIRECT(CONCATENATE(S11,"!C50"))/D11,0) -> 3.166666667 | M11: =IFERROR(INDIRECT(CONCATENATE(S11,"!C51"))/D11,0) -> 2.833333333 | N11: =IFERROR(INDIRECT(CONCATENATE(S11,"!C52"))/D11,0) -> 1.666666667 | O11: 13.83333333 | P11: 14 | Q11: Tim Hobbs | R11: 4 | S11: Hobbs | T11: 37 | U11: 40 | V11: 77 | W11: 63 | X11: 63 | Y11: 126 | Z11: 49
A12: 7 | B12: Bette Mohsinger | C12: 10 | D12: 12 | E12: 54.5 | F12: 5.45 | G12: 7 | I12: =IFERROR(INDIRECT(CONCATENATE(S12,"!C47"))/D12,0) -> 0 | J12: =IFERROR(INDIRECT(CONCATENATE(S12,"!C48"))/D12,0) -> 0.08333333333 | K12: =IFERROR(INDIRECT(CONCATENATE(S12,"!C49"))/D12,0) -> 1.166666667 | L12: =IFERROR(INDIRECT(CONCATENATE(S12,"!C50"))/D12,0) -> 2.416666667 | M12: =IFERROR(INDIRECT(CONCATENATE(S12,"!C51"))/D12,0) -> 2.916666667 | N12: =IFERROR(INDIRECT(CONCATENATE(S12,"!C52"))/D12,0) -> 2.416666667 | O12: 15.41666667 | P12: 15 | Q12: Bette Mohsinger | R12: 6 | S12: Mohsinger_B | T12: 39 | U12: 46 | V12: 85 | W12: 66 | X12: 64 | Y12: 130 | Z12: 45
A13: 8 | B13: Dan Palmerino | C13: 10 | D13: 13 | E13: 57 | F13: 5.7 | G13: 8 | I13: =IFERROR(INDIRECT(CONCATENATE(S13,"!C47"))/D13,0) -> 0 | J13: =IFERROR(INDIRECT(CONCATENATE(S13,"!C48"))/D13,0) -> 0.07692307692 | K13: =IFERROR(INDIRECT(CONCATENATE(S13,"!C49"))/D13,0) -> 1.769230769 | L13: =IFERROR(INDIRECT(CONCATENATE(S13,"!C50"))/D13,0) -> 4.076923077 | M13: =IFERROR(INDIRECT(CONCATENATE(S13,"!C51"))/D13,0) -> 2.538461538 | N13: =IFERROR(INDIRECT(CONCATENATE(S13,"!C52"))/D13,0) -> 0.5384615385 | O13: 10.69230769 | P13: 11 | Q13: Dan Palmerino | R13: 4 | S13: Palmerino | T13: 36 | U13: 41 | V13: 77 | W13: 56 | X13: 57 | Y13: 113 | Z13: 36
A14: 9 | B14: Dave Taylor | C14: 10 | D14: 15 | E14: 56 | F14: 5.6 | G14: 9 | I14: =IFERROR(INDIRECT(CONCATENATE(S14,"!C47"))/D14,0) -> 0 | J14: =IFERROR(INDIRECT(CONCATENATE(S14,"!C48"))/D14,0) -> 0 | K14: =IFERROR(INDIRECT(CONCATENATE(S14,"!C49"))/D14,0) -> 0.6 | L14: =IFERROR(INDIRECT(CONCATENATE(S14,"!C50"))/D14,0) -> 3.933333333 | M14: =IFERROR(INDIRECT(CONCATENATE(S14,"!C51"))/D14,0) -> 3.066666667 | N14: =IFERROR(INDIRECT(CONCATENATE(S14,"!C52"))/D14,0) -> 1.4 | O14: 14.26666667 | P14: 14 | Q14: Dave Taylor | R14: 5 | S14: Taylor | T14: 43 | U14: 41 | V14: 84 | W14: 62 | X14: 66 | Y14: 128 | Z14: 44
A15: 10 | B15: Jim Daviero | C15: 10 | D15: 12 | E15: 55 | F15: 5.5 | G15: 10 | I15: =IFERROR(INDIRECT(CONCATENATE(S15,"!C47"))/D15,0) -> 0 | J15: =IFERROR(INDIRECT(CONCATENATE(S15,"!C48"))/D15,0) -> 0.08333333333 | K15: =IFERROR(INDIRECT(CONCATENATE(S15,"!C49"))/D15,0) -> 1.833333333 | L15: =IFERROR(INDIRECT(CONCATENATE(S15,"!C50"))/D15,0) -> 5.083333333 | M15: =IFERROR(INDIRECT(CONCATENATE(S15,"!C51"))/D15,0) -> 1.666666667 | N15: =IFERROR(INDIRECT(CONCATENATE(S15,"!C52"))/D15,0) -> 0.3333333333 | O15: 9.333333333 | P15: 9 | Q15: Jim Daviero | R15: 4 | S15: Daviero | T15: 39 | U15: 37 | V15: 76 | W15: 57 | X15: 52 | Y15: 109 | Z15: 33
A16: 11 | B16: Gloria Poston | C16: 10 | D16: 10 | E16: 52 | F16: 5.2 | G16: T11 | I16: =IFERROR(INDIRECT(CONCATENATE(S16,"!C47"))/D16,0) -> 0 | J16: =IFERROR(INDIRECT(CONCATENATE(S16,"!C48"))/D16,0) -> 0 | K16: =IFERROR(INDIRECT(CONCATENATE(S16,"!C49"))/D16,0) -> 1.5 | L16: =IFERROR(INDIRECT(CONCATENATE(S16,"!C50"))/D16,0) -> 3.9 | M16: =IFERROR(INDIRECT(CONCATENATE(S16,"!C51"))/D16,0) -> 2.3 | N16: =IFERROR(INDIRECT(CONCATENATE(S16,"!C52"))/D16,0) -> 1.3 | O16: 12.4 | P16: 12 | Q16: Gloria Poston | R16: 7 | S16: poston | T16: 41 | U16: 39 | V16: 80 | W16: 59 | X16: 61 | Y16: 120 | Z16: 40
A17: 12 | B17: Brian McLaughlin | C17: 10 | D17: 12 | E17: 53.5 | F17: 5.35 | G17: T11 | I17: =IFERROR(INDIRECT(CONCATENATE(S17,"!C47"))/D17,0) -> 0 | J17: =IFERROR(INDIRECT(CONCATENATE(S17,"!C48"))/D17,0) -> 0 | K17: =IFERROR(INDIRECT(CONCATENATE(S17,"!C49"))/D17,0) -> 0.25 | L17: =IFERROR(INDIRECT(CONCATENATE(S17,"!C50"))/D17,0) -> 3.833333333 | M17: =IFERROR(INDIRECT(CONCATENATE(S17,"!C51"))/D17,0) -> 3.25 | N17: =IFERROR(INDIRECT(CONCATENATE(S17,"!C52"))/D17,0) -> 1.666666667 | O17: 15.33333333 | P17: 15 | Q17: Brian McLaughlin | R17: 6 | S17: McLaughlin | T17: 44 | U17: 43 | V17: 87 | W17: 67 | X17: 61 | Y17: 128 | Z17: 41
A18: 13 | B18: Bob Templeton | C18: 10 | D18: 14 | E18: 49 | F18: 4.9 | G18: 13 | I18: =IFERROR(INDIRECT(CONCATENATE(S18,"!C47"))/D18,0) -> 0 | J18: =IFERROR(INDIRECT(CONCATENATE(S18,"!C48"))/D18,0) -> 0 | K18: =IFERROR(INDIRECT(CONCATENATE(S18,"!C49"))/D18,0) -> 0.2857142857 | L18: =IFERROR(INDIRECT(CONCATENATE(S18,"!C50"))/D18,0) -> 1.214285714 | M18: =IFERROR(INDIRECT(CONCATENATE(S18,"!C51"))/D18,0) -> 2.714285714 | N18: =IFERROR(INDIRECT(CONCATENATE(S18,"!C52"))/D18,0) -> 4.785714286 | O18: 21 | P18: 21 | Q18: Bob Templeton | R18: 4 | S18: Templeton | T18: 46 | U18: 43 | V18: 89 | W18: 76 | X18: 75 | Y18: 151 | Z18: 62
A19: 14 | B19: Pete Michalski | C19: 10 | D19: 13 | E19: 48.5 | F19: 4.85 | G19: 14 | I19: =IFERROR(INDIRECT(CONCATENATE(S19,"!C47"))/D19,0) -> 0 | J19: =IFERROR(INDIRECT(CONCATENATE(S19,"!C48"))/D19,0) -> 0 | K19: =IFERROR(INDIRECT(CONCATENATE(S19,"!C49"))/D19,0) -> 0.07692307692 | L19: =IFERROR(INDIRECT(CONCATENATE(S19,"!C50"))/D19,0) -> 1.538461538 | M19: =IFERROR(INDIRECT(CONCATENATE(S19,"!C51"))/D19,0) -> 2.230769231 | N19: =IFERROR(INDIRECT(CONCATENATE(S19,"!C52"))/D19,0) -> 5.153846154 | O19: 21.46153846 | P19: 21 | Q19: Pete Michalski | R19: 5 | S19: Michalski_P | T19: 46 | U19: 47 | V19: 93 | W19: 75 | X19: 78 | Y19: 153 | Z19: 60
A20: 15 | B20: Sue Michalski | C20: 10 | D20: 13 | E20: 47.5 | F20: 4.75 | G20: 15 | I20: =IFERROR(INDIRECT(CONCATENATE(S20,"!C47"))/D20,0) -> 0 | J20: =IFERROR(INDIRECT(CONCATENATE(S20,"!C48"))/D20,0) -> 0 | K20: =IFERROR(INDIRECT(CONCATENATE(S20,"!C49"))/D20,0) -> 0.1538461538 | L20: =IFERROR(INDIRECT(CONCATENATE(S20,"!C50"))/D20,0) -> 0.5384615385 | M20: =IFERROR(INDIRECT(CONCATENATE(S20,"!C51"))/D20,0) -> 2.230769231 | N20: =IFERROR(INDIRECT(CONCATENATE(S20,"!C52"))/D20,0) -> 6.076923077 | O20: 23.23076923 | P20: 23 | Q20: Sue Michalski | R20: 4 | S20: Michalski_S | T20: 48 | U20: 54 | V20: 102 | W20: 74 | X20: 77 | Y20: 151 | Z20: 49
A21: 16 | B21: Matt Nichols | C21: 9 | D21: 9 | E21: 40.5 | F21: 4.5 | G21: 16 | I21: =IFERROR(INDIRECT(CONCATENATE(S21,"!C47"))/D21,0) -> 0 | J21: =IFERROR(INDIRECT(CONCATENATE(S21,"!C48"))/D21,0) -> 0 | K21: =IFERROR(INDIRECT(CONCATENATE(S21,"!C49"))/D21,0) -> 1.444444444 | L21: =IFERROR(INDIRECT(CONCATENATE(S21,"!C50"))/D21,0) -> 2.888888889 | M21: =IFERROR(INDIRECT(CONCATENATE(S21,"!C51"))/D21,0) -> 2.444444444 | N21: =IFERROR(INDIRECT(CONCATENATE(S21,"!C52"))/D21,0) -> 2.222222222 | O21: 14.44444444 | P21: 14 | Q21: Matt Nichols | R21: 5 | S21: Nichols | T21: 39 | U21: 42 | V21: 81 | W21: 69 | X21: 62 | Y21: 131 | Z21: 50
I23: =AVERAGE(I6:I21) -> 0 | J23: 0.08707750583 | K23: 1.514508755 | L23: 3.201815546 | M23: 2.266957348 | N23: 1.929640845 | O23: =L23+(M23*2)+(N23*3)-J23 -> 13.43757527 | P23: =ROUND(O23,0) -> 13
E28: =SUM(E6:E25) -> 881.5
B31: Good Lists and Bad Lists
I32: Eagles
T34: Andy Linton | U34: Bette Mohsinger | V34: Bob Templeton | W34: Brian McLaughlin | X34: Dan Fusco | Y34: Dan Palmerino | Z34: Dave Taylor | AA34: Gloria Poston | AB34: Jim Daviero | AC34: Mark Rusnak | AD34: Marty Reed | AE34: Matt Nichols | AF34: Pete Michalski | AG34: Sue Michalski | AH34: Tim Hobbs | AI34: Tom Mohsinger | AL34: Mark Rusnak | AM34: 89
I35: Birdies | T35: =SUM(T36:T141) -> 74 | U35: =SUM(U36:U141) -> 46 | V35: 32 | W35: 26 | X35: 70 | Y35: 53 | Z35: 31 | AA35: 45 | AB35: 64 | AC35: 89 | AD35: 78 | AE35: 42 | AF35: 30 | AG35: 31 | AH35: 40 | AI35: 36 | AL35: Marty Reed | AM35: 78
B36: Mark Rusnak | I36: 0.4 | R36: 1 | S36: 16 | T36: =IF($B36=T$34,$S36,0) -> 0 | U36: =IF($B36=U$34,$S36,0) -> 0 | V36: =IF($B36=V$34,$S36,0) -> 0 | W36: 0 | X36: 0 | Y36: 0 | Z36: 0 | AA36: 0 | AB36: 0 | AC36: 16 | AD36: 0 | AE36: 0 | AF36: 0 | AG36: 0 | AH36: 0 | AI36: 0 | AL36: Andy Linton | AM36: 74
B37: Dan Fusco | I37: 0.3333333333 | R37: =_xlfn.IFS(I37=I36,2,I37<>I36,1) -> 1 | S37: =_xlfn.IFS(I37=0,0,I37=I36,S36,S36-R36,S36-R36) -> 15 | T37: =IF($B37=T$34,$S37,0) -> 0 | U37: 0 | V37: 0 | W37: 0 | X37: 15 | Y37: 0 | Z37: 0 | AA37: 0 | AB37: 0 | AC37: 0 | AD37: 0 | AE37: 0 | AF37: 0 | AG37: 0 | AH37: 0 | AI37: 0 | AL37: Dan Fusco | AM37: 70
B38: Marty Reed | I38: 0.2727272727 | R38: =_xlfn.IFS(I38=I37,1+R37,I38<>I37,1) -> 1 | S38: =_xlfn.IFS(I38=0,0,I38=I37,S37,S37-R37,S37-R37) -> 14 | T38: 0 | U38: 0 | V38: 0 | W38: 0 | X38: 0 | Y38: 0 | Z38: 0 | AA38: 0 | AB38: 0 | AC38: 0 | AD38: 14 | AE38: 0 | AF38: 0 | AG38: 0 | AH38: 0 | AI38: 0 | AL38: Jim Daviero | AM38: 64
B39: Bette Mohsinger | I39: 0.08333333333 | R39: =_xlfn.IFS(I39=I38,1+R38,I39<>I38,1) -> 1 | S39: =_xlfn.IFS(I39=0,0,I39=I38,S38,S38-R38,S38-R38) -> 13 | T39: 0 | U39: 13 | V39: 0 | W39: 0 | X39: 0 | Y39: 0 | Z39: 0 | AA39: 0 | AB39: 0 | AC39: 0 | AD39: 0 | AE39: 0 | AF39: 0 | AG39: 0 | AH39: 0 | AI39: 0 | AL39: Dan Palmerino | AM39: 53
B40: Jim Daviero | I40: 0.08333333333 | R40: =_xlfn.IFS(I40=I39,1+R39,I40<>I39,1) -> 2 | S40: =_xlfn.IFS(I40=0,0,I40=I39,S39,S39-R39,S39-R39) -> 13 | T40: 0 | U40: 0 | V40: 0 | W40: 0 | X40: 0 | Y40: 0 | Z40: 0 | AA40: 0 | AB40: 13 | AC40: 0 | AD40: 0 | AE40: 0 | AF40: 0 | AG40: 0 | AH40: 0 | AI40: 0 | AL40: Bette Mohsinger | AM40: 46
B41: Tom Mohsinger | I41: 0.07692307692 | R41: =_xlfn.IFS(I41=I40,1+R40,I41<>I40,1) -> 1 | S41: =_xlfn.IFS(I41=0,0,I41=I40,S40,S40-R40,S40-R40) -> 11 | T41: 0 | U41: 0 | V41: 0 | W41: 0 | X41: 0 | Y41: 0 | Z41: 0 | AA41: 0 | AB41: 0 | AC41: 0 | AD41: 0 | AE41: 0 | AF41: 0 | AG41: 0 | AH41: 0 | AI41: 11 | AL41: Gloria Poston | AM41: 45
B42: Dan Palmerino | I42: 0.07692307692 | R42: =_xlfn.IFS(I42=I41,1+R41,I42<>I41,1) -> 2 | S42: =_xlfn.IFS(I42=0,0,I42=I41,S41,S41-R41,S41-R41) -> 11 | T42: 0 | U42: 0 | V42: 0 | W42: 0 | X42: 0 | Y42: 11 | Z42: 0 | AA42: 0 | AB42: 0 | AC42: 0 | AD42: 0 | AE42: 0 | AF42: 0 | AG42: 0 | AH42: 0 | AI42: 0 | AL42: Matt Nichols | AM42: 42
B43: Andy Linton | I43: 0.06666666667 | R43: =_xlfn.IFS(I43=I42,1+R42,I43<>I42,1) -> 1 | S43: =_xlfn.IFS(I43=0,0,I43=I42,S42,S42-R42,S42-R42) -> 9 | T43: 9 | U43: 0 | V43: 0 | W43: 0 | X43: 0 | Y43: 0 | Z43: 0 | AA43: 0 | AB43: 0 | AC43: 0 | AD43: 0 | AE43: 0 | AF43: 0 | AG43: 0 | AH43: 0 | AI43: 0 | AL43: Tim Hobbs | AM43: 40
B44: Tim Hobbs | I44: 0 | R44: =_xlfn.IFS(I44=I43,1+R43,I44<>I43,1) -> 1 | S44: =_xlfn.IFS(I44=0,0,I44=I43,S43,S43-R43,S43-R43) -> 0 | T44: 0 | U44: 0 | V44: 0 | W44: 0 | X44: 0 | Y44: 0 | Z44: 0 | AA44: 0 | AB44: 0 | AC44: 0 | AD44: 0 | AE44: 0 | AF44: 0 | AG44: 0 | AH44: 0 | AI44: 0 | AL44: Tom Mohsinger | AM44: 36
B45: Dave Taylor | I45: 0 | R45: =_xlfn.IFS(I45=I44,1+R44,I45<>I44,1) -> 2 | S45: =_xlfn.IFS(I45=0,0,I45=I44,S44,S44-R44,S44-R44) -> 0 | T45: 0 | U45: 0 | V45: 0 | W45: 0 | X45: 0 | Y45: 0 | Z45: 0 | AA45: 0 | AB45: 0 | AC45: 0 | AD45: 0 | AE45: 0 | AF45: 0 | AG45: 0 | AH45: 0 | AI45: 0 | AL45: Bob Templeton | AM45: 32
B46: Gloria Poston | I46: 0 | R46: =_xlfn.IFS(I46=I45,1+R45,I46<>I45,1) -> 3 | S46: =_xlfn.IFS(I46=0,0,I46=I45,S45,S45-R45,S45-R45) -> 0 | T46: 0 | U46: 0 | V46: 0 | W46: 0 | X46: 0 | Y46: 0 | Z46: 0 | AA46: 0 | AB46: 0 | AC46: 0 | AD46: 0 | AE46: 0 | AF46: 0 | AG46: 0 | AH46: 0 | AI46: 0 | AL46: Dave Taylor | AM46: 31
B47: Brian McLaughlin | I47: 0 | R47: =_xlfn.IFS(I47=I46,1+R46,I47<>I46,1) -> 4 | S47: =_xlfn.IFS(I47=0,0,I47=I46,S46,S46-R46,S46-R46) -> 0 | T47: 0 | U47: 0 | V47: 0 | W47: 0 | X47: 0 | Y47: 0 | Z47: 0 | AA47: 0 | AB47: 0 | AC47: 0 | AD47: 0 | AE47: 0 | AF47: 0 | AG47: 0 | AH47: 0 | AI47: 0 | AL47: Sue Michalski | AM47: 31
B48: Bob Templeton | I48: 0 | R48: =_xlfn.IFS(I48=I47,1+R47,I48<>I47,1) -> 5 | S48: =_xlfn.IFS(I48=0,0,I48=I47,S47,S47-R47,S47-R47) -> 0 | T48: 0 | U48: 0 | V48: 0 | W48: 0 | X48: 0 | Y48: 0 | Z48: 0 | AA48: 0 | AB48: 0 | AC48: 0 | AD48: 0 | AE48: 0 | AF48: 0 | AG48: 0 | AH48: 0 | AI48: 0 | AL48: Pete Michalski | AM48: 30
B49: Pete Michalski | I49: 0 | R49: =_xlfn.IFS(I49=I48,1+R48,I49<>I48,1) -> 6 | S49: =_xlfn.IFS(I49=0,0,I49=I48,S48,S48-R48,S48-R48) -> 0 | T49: 0 | U49: 0 | V49: 0 | W49: 0 | X49: 0 | Y49: 0 | Z49: 0 | AA49: 0 | AB49: 0 | AC49: 0 | AD49: 0 | AE49: 0 | AF49: 0 | AG49: 0 | AH49: 0 | AI49: 0 | AL49: Brian McLaughlin | AM49: 26
B50: Sue Michalski | I50: 0 | R50: =_xlfn.IFS(I50=I49,1+R49,I50<>I49,1) -> 7 | S50: =_xlfn.IFS(I50=0,0,I50=I49,S49,S49-R49,S49-R49) -> 0 | T50: 0 | U50: 0 | V50: 0 | W50: 0 | X50: 0 | Y50: 0 | Z50: 0 | AA50: 0 | AB50: 0 | AC50: 0 | AD50: 0 | AE50: 0 | AF50: 0 | AG50: 0 | AH50: 0 | AI50: 0
B51: Matt Nichols | I51: 0 | R51: =_xlfn.IFS(I51=I50,1+R50,I51<>I50,1) -> 8 | S51: =_xlfn.IFS(I51=0,0,I51=I50,S50,S50-R50,S50-R50) -> 0 | T51: 0 | U51: 0 | V51: 0 | W51: 0 | X51: 0 | Y51: 0 | Z51: 0 | AA51: 0 | AB51: 0 | AC51: 0 | AD51: 0 | AE51: 0 | AF51: 0 | AG51: 0 | AH51: 0 | AI51: 0
I53: Pars
B54: Mark Rusnak | I54: 3.866666667 | R54: 1 | S54: 16 | T54: =IF($B54=T$34,$S54,0) -> 0 | U54: =IF($B54=U$34,$S54,0) -> 0 | V54: =IF($B54=V$34,$S54,0) -> 0 | W54: 0 | X54: 0 | Y54: 0 | Z54: 0 | AA54: 0 | AB54: 0 | AC54: 16 | AD54: 0 | AE54: 0 | AF54: 0 | AG54: 0 | AH54: 0 | AI54: 0
B55: Andy Linton | I55: 3.666666667 | R55: =_xlfn.IFS(I55=I54,2,I55<>I54,1) -> 1 | S55: =_xlfn.IFS(I55=0,0,I55=I54,S54,S54-R54,S54-R54) -> 15 | T55: =IF($B55=T$34,$S55,0) -> 15 | U55: 0 | V55: 0 | W55: 0 | X55: 0 | Y55: 0 | Z55: 0 | AA55: 0 | AB55: 0 | AC55: 0 | AD55: 0 | AE55: 0 | AF55: 0 | AG55: 0 | AH55: 0 | AI55: 0
B56: Marty Reed | I56: 3.454545455 | R56: =_xlfn.IFS(I56=I55,1+R55,I56<>I55,1) -> 1 | S56: =_xlfn.IFS(I56=0,0,I56=I55,S55,S55-R55,S55-R55) -> 14 | T56: 0 | U56: 0 | V56: 0 | W56: 0 | X56: 0 | Y56: 0 | Z56: 0 | AA56: 0 | AB56: 0 | AC56: 0 | AD56: 14 | AE56: 0 | AF56: 0 | AG56: 0 | AH56: 0 | AI56: 0
B57: Dan Fusco | I57: 2.6 | R57: =_xlfn.IFS(I57=I56,1+R56,I57<>I56,1) -> 1 | S57: =_xlfn.IFS(I57=0,0,I57=I56,S56,S56-R56,S56-R56) -> 13 | T57: 0 | U57: 0 | V57: 0 | W57: 0 | X57: 13 | Y57: 0 | Z57: 0 | AA57: 0 | AB57: 0 | AC57: 0 | AD57: 0 | AE57: 0 | AF57: 0 | AG57: 0 | AH57: 0 | AI57: 0
B58: Jim Daviero | I58: 1.833333333 | R58: =_xlfn.IFS(I58=I57,1+R57,I58<>I57,1) -> 1 | S58: =_xlfn.IFS(I58=0,0,I58=I57,S57,S57-R57,S57-R57) -> 12 | T58: 0 | U58: 0 | V58: 0 | W58: 0 | X58: 0 | Y58: 0 | Z58: 0 | AA58: 0 | AB58: 12 | AC58: 0 | AD58: 0 | AE58: 0 | AF58: 0 | AG58: 0 | AH58: 0 | AI58: 0
B59: Dan Palmerino | I59: 1.769230769 | R59: =_xlfn.IFS(I59=I58,1+R58,I59<>I58,1) -> 1 | S59: =_xlfn.IFS(I59=0,0,I59=I58,S58,S58-R58,S58-R58) -> 11 | T59: 0 | U59: 0 | V59: 0 | W59: 0 | X59: 0 | Y59: 11 | Z59: 0 | AA59: 0 | AB59: 0 | AC59: 0 | AD59: 0 | AE59: 0 | AF59: 0 | AG59: 0 | AH59: 0 | AI59: 0
B60: Gloria Poston | I60: 1.5 | R60: =_xlfn.IFS(I60=I59,1+R59,I60<>I59,1) -> 1 | S60: =_xlfn.IFS(I60=0,0,I60=I59,S59,S59-R59,S59-R59) -> 10 | T60: 0 | U60: 0 | V60: 0 | W60: 0 | X60: 0 | Y60: 0 | Z60: 0 | AA60: 10 | AB60: 0 | AC60: 0 | AD60: 0 | AE60: 0 | AF60: 0 | AG60: 0 | AH60: 0 | AI60: 0
B61: Matt Nichols | I61: 1.444444444 | R61: =_xlfn.IFS(I61=I60,1+R60,I61<>I60,1) -> 1 | S61: =_xlfn.IFS(I61=0,0,I61=I60,S60,S60-R60,S60-R60) -> 9 | T61: 0 | U61: 0 | V61: 0 | W61: 0 | X61: 0 | Y61: 0 | Z61: 0 | AA61: 0 | AB61: 0 | AC61: 0 | AD61: 0 | AE61: 9 | AF61: 0 | AG61: 0 | AH61: 0 | AI61: 0
B62: Tim Hobbs | I62: 1.333333333 | R62: =_xlfn.IFS(I62=I61,1+R61,I62<>I61,1) -> 1 | S62: =_xlfn.IFS(I62=0,0,I62=I61,S61,S61-R61,S61-R61) -> 8 | T62: 0 | U62: 0 | V62: 0 | W62: 0 | X62: 0 | Y62: 0 | Z62: 0 | AA62: 0 | AB62: 0 | AC62: 0 | AD62: 0 | AE62: 0 | AF62: 0 | AG62: 0 | AH62: 8 | AI62: 0
B63: Bette Mohsinger | I63: 1.166666667 | R63: =_xlfn.IFS(I63=I62,1+R62,I63<>I62,1) -> 1 | S63: =_xlfn.IFS(I63=0,0,I63=I62,S62,S62-R62,S62-R62) -> 7 | T63: 0 | U63: 7 | V63: 0 | W63: 0 | X63: 0 | Y63: 0 | Z63: 0 | AA63: 0 | AB63: 0 | AC63: 0 | AD63: 0 | AE63: 0 | AF63: 0 | AG63: 0 | AH63: 0 | AI63: 0
B64: Dave Taylor | I64: 0.6 | R64: =_xlfn.IFS(I64=I63,1+R63,I64<>I63,1) -> 1 | S64: =_xlfn.IFS(I64=0,0,I64=I63,S63,S63-R63,S63-R63) -> 6 | T64: 0 | U64: 0 | V64: 0 | W64: 0 | X64: 0 | Y64: 0 | Z64: 6 | AA64: 0 | AB64: 0 | AC64: 0 | AD64: 0 | AE64: 0 | AF64: 0 | AG64: 0 | AH64: 0 | AI64: 0
B65: Bob Templeton | I65: 0.2857142857 | R65: =_xlfn.IFS(I65=I64,1+R64,I65<>I64,1) -> 1 | S65: =_xlfn.IFS(I65=0,0,I65=I64,S64,S64-R64,S64-R64) -> 5 | T65: 0 | U65: 0 | V65: 5 | W65: 0 | X65: 0 | Y65: 0 | Z65: 0 | AA65: 0 | AB65: 0 | AC65: 0 | AD65: 0 | AE65: 0 | AF65: 0 | AG65: 0 | AH65: 0 | AI65: 0
B66: Brian McLaughlin | I66: 0.25 | R66: =_xlfn.IFS(I66=I65,1+R65,I66<>I65,1) -> 1 | S66: =_xlfn.IFS(I66=0,0,I66=I65,S65,S65-R65,S65-R65) -> 4 | T66: 0 | U66: 0 | V66: 0 | W66: 4 | X66: 0 | Y66: 0 | Z66: 0 | AA66: 0 | AB66: 0 | AC66: 0 | AD66: 0 | AE66: 0 | AF66: 0 | AG66: 0 | AH66: 0 | AI66: 0
B67: Tom Mohsinger | I67: 0.2307692308 | R67: =_xlfn.IFS(I67=I66,1+R66,I67<>I66,1) -> 1 | S67: =_xlfn.IFS(I67=0,0,I67=I66,S66,S66-R66,S66-R66) -> 3 | T67: 0 | U67: 0 | V67: 0 | W67: 0 | X67: 0 | Y67: 0 | Z67: 0 | AA67: 0 | AB67: 0 | AC67: 0 | AD67: 0 | AE67: 0 | AF67: 0 | AG67: 0 | AH67: 0 | AI67: 3
B68: Sue Michalski | I68: 0.1538461538 | R68: =_xlfn.IFS(I68=I67,1+R67,I68<>I67,1) -> 1 | S68: =_xlfn.IFS(I68=0,0,I68=I67,S67,S67-R67,S67-R67) -> 2 | T68: 0 | U68: 0 | V68: 0 | W68: 0 | X68: 0 | Y68: 0 | Z68: 0 | AA68: 0 | AB68: 0 | AC68: 0 | AD68: 0 | AE68: 0 | AF68: 0 | AG68: 2 | AH68: 0 | AI68: 0
B69: Pete Michalski | I69: 0.07692307692 | R69: =_xlfn.IFS(I69=I68,1+R68,I69<>I68,1) -> 1 | S69: =_xlfn.IFS(I69=0,0,I69=I68,S68,S68-R68,S68-R68) -> 1 | T69: 0 | U69: 0 | V69: 0 | W69: 0 | X69: 0 | Y69: 0 | Z69: 0 | AA69: 0 | AB69: 0 | AC69: 0 | AD69: 0 | AE69: 0 | AF69: 1 | AG69: 0 | AH69: 0 | AI69: 0
I71: Bogeys
B72: Sue Michalski | I72: 0.5384615385 | R72: 1 | S72: 16 | T72: =IF($B72=T$34,$S72,0) -> 0 | U72: =IF($B72=U$34,$S72,0) -> 0 | V72: =IF($B72=V$34,$S72,0) -> 0 | W72: 0 | X72: 0 | Y72: 0 | Z72: 0 | AA72: 0 | AB72: 0 | AC72: 0 | AD72: 0 | AE72: 0 | AF72: 0 | AG72: 16 | AH72: 0 | AI72: 0
B73: Bob Templeton | I73: 1.214285714 | R73: =_xlfn.IFS(I73=I72,2,I73<>I72,1) -> 1 | S73: =_xlfn.IFS(I73=0,0,I73=I72,S72,S72-R72,S72-R72) -> 15 | T73: =IF($B73=T$34,$S73,0) -> 0 | U73: 0 | V73: 15 | W73: 0 | X73: 0 | Y73: 0 | Z73: 0 | AA73: 0 | AB73: 0 | AC73: 0 | AD73: 0 | AE73: 0 | AF73: 0 | AG73: 0 | AH73: 0 | AI73: 0
B74: Pete Michalski | I74: 1.538461538 | R74: =_xlfn.IFS(I74=I73,1+R73,I74<>I73,1) -> 1 | S74: =_xlfn.IFS(I74=0,0,I74=I73,S73,S73-R73,S73-R73) -> 14 | T74: 0 | U74: 0 | V74: 0 | W74: 0 | X74: 0 | Y74: 0 | Z74: 0 | AA74: 0 | AB74: 0 | AC74: 0 | AD74: 0 | AE74: 0 | AF74: 14 | AG74: 0 | AH74: 0 | AI74: 0
B75: Bette Mohsinger | I75: 2.416666667 | R75: =_xlfn.IFS(I75=I74,1+R74,I75<>I74,1) -> 1 | S75: =_xlfn.IFS(I75=0,0,I75=I74,S74,S74-R74,S74-R74) -> 13 | T75: 0 | U75: 13 | V75: 0 | W75: 0 | X75: 0 | Y75: 0 | Z75: 0 | AA75: 0 | AB75: 0 | AC75: 0 | AD75: 0 | AE75: 0 | AF75: 0 | AG75: 0 | AH75: 0 | AI75: 0
B76: Matt Nichols | I76: 2.888888889 | R76: =_xlfn.IFS(I76=I75,1+R75,I76<>I75,1) -> 1 | S76: =_xlfn.IFS(I76=0,0,I76=I75,S75,S75-R75,S75-R75) -> 12 | T76: 0 | U76: 0 | V76: 0 | W76: 0 | X76: 0 | Y76: 0 | Z76: 0 | AA76: 0 | AB76: 0 | AC76: 0 | AD76: 0 | AE76: 12 | AF76: 0 | AG76: 0 | AH76: 0 | AI76: 0
B77: Tom Mohsinger | I77: 3.153846154 | R77: =_xlfn.IFS(I77=I76,1+R76,I77<>I76,1) -> 1 | S77: =_xlfn.IFS(I77=0,0,I77=I76,S76,S76-R76,S76-R76) -> 11 | T77: 0 | U77: 0 | V77: 0 | W77: 0 | X77: 0 | Y77: 0 | Z77: 0 | AA77: 0 | AB77: 0 | AC77: 0 | AD77: 0 | AE77: 0 | AF77: 0 | AG77: 0 | AH77: 0 | AI77: 11
B78: Tim Hobbs | I78: 3.166666667 | R78: =_xlfn.IFS(I78=I77,1+R77,I78<>I77,1) -> 1 | S78: =_xlfn.IFS(I78=0,0,I78=I77,S77,S77-R77,S77-R77) -> 10 | T78: 0 | U78: 0 | V78: 0 | W78: 0 | X78: 0 | Y78: 0 | Z78: 0 | AA78: 0 | AB78: 0 | AC78: 0 | AD78: 0 | AE78: 0 | AF78: 0 | AG78: 0 | AH78: 10 | AI78: 0
B79: Mark Rusnak | I79: 3.666666667 | R79: =_xlfn.IFS(I79=I78,1+R78,I79<>I78,1) -> 1 | S79: =_xlfn.IFS(I79=0,0,I79=I78,S78,S78-R78,S78-R78) -> 9 | T79: 0 | U79: 0 | V79: 0 | W79: 0 | X79: 0 | Y79: 0 | Z79: 0 | AA79: 0 | AB79: 0 | AC79: 9 | AD79: 0 | AE79: 0 | AF79: 0 | AG79: 0 | AH79: 0 | AI79: 0
B80: Marty Reed | I80: 3.818181818 | R80: =_xlfn.IFS(I80=I79,1+R79,I80<>I79,1) -> 1 | S80: =_xlfn.IFS(I80=0,0,I80=I79,S79,S79-R79,S79-R79) -> 8 | T80: 0 | U80: 0 | V80: 0 | W80: 0 | X80: 0 | Y80: 0 | Z80: 0 | AA80: 0 | AB80: 0 | AC80: 0 | AD80: 8 | AE80: 0 | AF80: 0 | AG80: 0 | AH80: 0 | AI80: 0
B81: Brian McLaughlin | I81: 3.833333333 | R81: =_xlfn.IFS(I81=I80,1+R80,I81<>I80,1) -> 1 | S81: =_xlfn.IFS(I81=0,0,I81=I80,S80,S80-R80,S80-R80) -> 7 | T81: 0 | U81: 0 | V81: 0 | W81: 7 | X81: 0 | Y81: 0 | Z81: 0 | AA81: 0 | AB81: 0 | AC81: 0 | AD81: 0 | AE81: 0 | AF81: 0 | AG81: 0 | AH81: 0 | AI81: 0
B82: Gloria Poston | I82: 3.9 | R82: =_xlfn.IFS(I82=I81,1+R81,I82<>I81,1) -> 1 | S82: =_xlfn.IFS(I82=0,0,I82=I81,S81,S81-R81,S81-R81) -> 6 | T82: 0 | U82: 0 | V82: 0 | W82: 0 | X82: 0 | Y82: 0 | Z82: 0 | AA82: 6 | AB82: 0 | AC82: 0 | AD82: 0 | AE82: 0 | AF82: 0 | AG82: 0 | AH82: 0 | AI82: 0
B83: Dave Taylor | I83: 3.933333333 | R83: =_xlfn.IFS(I83=I82,1+R82,I83<>I82,1) -> 1 | S83: =_xlfn.IFS(I83=0,0,I83=I82,S82,S82-R82,S82-R82) -> 5 | T83: 0 | U83: 0 | V83: 0 | W83: 0 | X83: 0 | Y83: 0 | Z83: 5 | AA83: 0 | AB83: 0 | AC83: 0 | AD83: 0 | AE83: 0 | AF83: 0 | AG83: 0 | AH83: 0 | AI83: 0
B84: Andy Linton | I84: 4 | R84: =_xlfn.IFS(I84=I83,1+R83,I84<>I83,1) -> 1 | S84: =_xlfn.IFS(I84=0,0,I84=I83,S83,S83-R83,S83-R83) -> 4 | T84: 4 | U84: 0 | V84: 0 | W84: 0 | X84: 0 | Y84: 0 | Z84: 0 | AA84: 0 | AB84: 0 | AC84: 0 | AD84: 0 | AE84: 0 | AF84: 0 | AG84: 0 | AH84: 0 | AI84: 0
B85: Dan Fusco | I85: 4 | R85: =_xlfn.IFS(I85=I84,1+R84,I85<>I84,1) -> 2 | S85: =_xlfn.IFS(I85=0,0,I85=I84,S84,S84-R84,S84-R84) -> 4 | T85: 0 | U85: 0 | V85: 0 | W85: 0 | X85: 4 | Y85: 0 | Z85: 0 | AA85: 0 | AB85: 0 | AC85: 0 | AD85: 0 | AE85: 0 | AF85: 0 | AG85: 0 | AH85: 0 | AI85: 0
B86: Dan Palmerino | I86: 4.076923077 | R86: =_xlfn.IFS(I86=I85,1+R85,I86<>I85,1) -> 1 | S86: =_xlfn.IFS(I86=0,0,I86=I85,S85,S85-R85,S85-R85) -> 2 | T86: 0 | U86: 0 | V86: 0 | W86: 0 | X86: 0 | Y86: 2 | Z86: 0 | AA86: 0 | AB86: 0 | AC86: 0 | AD86: 0 | AE86: 0 | AF86: 0 | AG86: 0 | AH86: 0 | AI86: 0
B87: Jim Daviero | I87: 5.083333333 | R87: =_xlfn.IFS(I87=I86,1+R86,I87<>I86,1) -> 1 | S87: =_xlfn.IFS(I87=0,0,I87=I86,S86,S86-R86,S86-R86) -> 1 | T87: 0 | U87: 0 | V87: 0 | W87: 0 | X87: 0 | Y87: 0 | Z87: 0 | AA87: 0 | AB87: 1 | AC87: 0 | AD87: 0 | AE87: 0 | AF87: 0 | AG87: 0 | AH87: 0 | AI87: 0
I89: Dbl Bogeys
B90: Mark Rusnak | I90: 0.8666666667 | R90: 1 | S90: 16 | T90: =IF($B90=T$34,$S90,0) -> 0 | U90: 0 | V90: =IF($B90=V$34,$S90,0) -> 0 | W90: 0 | X90: 0 | Y90: 0 | Z90: 0 | AA90: 0 | AB90: 0 | AC90: 16 | AD90: 0 | AE90: 0 | AF90: 0 | AG90: 0 | AH90: 0 | AI90: 0
B91: Andy Linton | I91: 1.066666667 | R91: =_xlfn.IFS(I91=I90,2,I91<>I90,1) -> 1 | S91: =_xlfn.IFS(I91=0,0,I91=I90,S90,S90-R90,S90-R90) -> 15 | T91: 15 | U91: 0 | V91: 0 | W91: 0 | X91: 0 | Y91: 0 | Z91: 0 | AA91: 0 | AB91: 0 | AC91: 0 | AD91: 0 | AE91: 0 | AF91: 0 | AG91: 0 | AH91: 0 | AI91: 0
B92: Marty Reed | I92: 1.181818182 | R92: =_xlfn.IFS(I92=I91,1+R91,I92<>I91,1) -> 1 | S92: =_xlfn.IFS(I92=0,0,I92=I91,S91,S91-R91,S91-R91) -> 14 | T92: 0 | U92: 0 | V92: 0 | W92: 0 | X92: 0 | Y92: 0 | Z92: 0 | AA92: 0 | AB92: 0 | AC92: 0 | AD92: 14 | AE92: 0 | AF92: 0 | AG92: 0 | AH92: 0 | AI92: 0
B93: Jim Daviero | I93: 1.666666667 | R93: =_xlfn.IFS(I93=I92,1+R92,I93<>I92,1) -> 1 | S93: =_xlfn.IFS(I93=0,0,I93=I92,S92,S92-R92,S92-R92) -> 13 | T93: 0 | U93: 0 | V93: 0 | W93: 0 | X93: 0 | Y93: 0 | Z93: 0 | AA93: 0 | AB93: 13 | AC93: 0 | AD93: 0 | AE93: 0 | AF93: 0 | AG93: 0 | AH93: 0 | AI93: 0
B94: Dan Fusco | I94: 1.733333333 | R94: =_xlfn.IFS(I94=I93,1+R93,I94<>I93,1) -> 1 | S94: =_xlfn.IFS(I94=0,0,I94=I93,S93,S93-R93,S93-R93) -> 12 | T94: 0 | U94: 0 | V94: 0 | W94: 0 | X94: 12 | Y94: 0 | Z94: 0 | AA94: 0 | AB94: 0 | AC94: 0 | AD94: 0 | AE94: 0 | AF94: 0 | AG94: 0 | AH94: 0 | AI94: 0
B95: Pete Michalski | I95: 2.230769231 | R95: =_xlfn.IFS(I95=I94,1+R94,I95<>I94,1) -> 1 | S95: =_xlfn.IFS(I95=0,0,I95=I94,S94,S94-R94,S94-R94) -> 11 | T95: 0 | U95: 0 | V95: 0 | W95: 0 | X95: 0 | Y95: 0 | Z95: 0 | AA95: 0 | AB95: 0 | AC95: 0 | AD95: 0 | AE95: 0 | AF95: 11 | AG95: 0 | AH95: 0 | AI95: 0
B96: Sue Michalski | I96: 2.230769231 | R96: =_xlfn.IFS(I96=I95,1+R95,I96<>I95,1) -> 2 | S96: =_xlfn.IFS(I96=0,0,I96=I95,S95,S95-R95,S95-R95) -> 11 | T96: 0 | U96: 0 | V96: 0 | W96: 0 | X96: 0 | Y96: 0 | Z96: 0 | AA96: 0 | AB96: 0 | AC96: 0 | AD96: 0 | AE96: 0 | AF96: 0 | AG96: 11 | AH96: 0 | AI96: 0
B97: Gloria Poston | I97: 2.3 | R97: =_xlfn.IFS(I97=I96,1+R96,I97<>I96,1) -> 1 | S97: =_xlfn.IFS(I97=0,0,I97=I96,S96,S96-R96,S96-R96) -> 9 | T97: 0 | U97: 0 | V97: 0 | W97: 0 | X97: 0 | Y97: 0 | Z97: 0 | AA97: 9 | AB97: 0 | AC97: 0 | AD97: 0 | AE97: 0 | AF97: 0 | AG97: 0 | AH97: 0 | AI97: 0
B98: Matt Nichols | I98: 2.444444444 | R98: =_xlfn.IFS(I98=I97,1+R97,I98<>I97,1) -> 1 | S98: =_xlfn.IFS(I98=0,0,I98=I97,S97,S97-R97,S97-R97) -> 8 | T98: 0 | U98: 0 | V98: 0 | W98: 0 | X98: 0 | Y98: 0 | Z98: 0 | AA98: 0 | AB98: 0 | AC98: 0 | AD98: 0 | AE98: 8 | AF98: 0 | AG98: 0 | AH98: 0 | AI98: 0
B99: Dan Palmerino | I99: 2.538461538 | R99: =_xlfn.IFS(I99=I98,1+R98,I99<>I98,1) -> 1 | S99: =_xlfn.IFS(I99=0,0,I99=I98,S98,S98-R98,S98-R98) -> 7 | T99: 0 | U99: 0 | V99: 0 | W99: 0 | X99: 0 | Y99: 7 | Z99: 0 | AA99: 0 | AB99: 0 | AC99: 0 | AD99: 0 | AE99: 0 | AF99: 0 | AG99: 0 | AH99: 0 | AI99: 0
B100: Bob Templeton | I100: 2.714285714 | R100: =_xlfn.IFS(I100=I99,1+R99,I100<>I99,1) -> 1 | S100: =_xlfn.IFS(I100=0,0,I100=I99,S99,S99-R99,S99-R99) -> 6 | T100: 0 | U100: 0 | V100: 6 | W100: 0 | X100: 0 | Y100: 0 | Z100: 0 | AA100: 0 | AB100: 0 | AC100: 0 | AD100: 0 | AE100: 0 | AF100: 0 | AG100: 0 | AH100: 0 | AI100: 0
B101: Tim Hobbs | I101: 2.833333333 | R101: =_xlfn.IFS(I101=I100,1+R100,I101<>I100,1) -> 1 | S101: =_xlfn.IFS(I101=0,0,I101=I100,S100,S100-R100,S100-R100) -> 5 | T101: 0 | U101: 0 | V101: 0 | W101: 0 | X101: 0 | Y101: 0 | Z101: 0 | AA101: 0 | AB101: 0 | AC101: 0 | AD101: 0 | AE101: 0 | AF101: 0 | AG101: 0 | AH101: 5 | AI101: 0
B102: Bette Mohsinger | I102: 2.916666667 | R102: =_xlfn.IFS(I102=I101,1+R101,I102<>I101,1) -> 1 | S102: =_xlfn.IFS(I102=0,0,I102=I101,S101,S101-R101,S101-R101) -> 4 | T102: 0 | U102: 4 | V102: 0 | W102: 0 | X102: 0 | Y102: 0 | Z102: 0 | AA102: 0 | AB102: 0 | AC102: 0 | AD102: 0 | AE102: 0 | AF102: 0 | AG102: 0 | AH102: 0 | AI102: 0
B103: Dave Taylor | I103: 3.066666667 | R103: =_xlfn.IFS(I103=I102,1+R102,I103<>I102,1) -> 1 | S103: =_xlfn.IFS(I103=0,0,I103=I102,S102,S102-R102,S102-R102) -> 3 | T103: 0 | U103: 0 | V103: 0 | W103: 0 | X103: 0 | Y103: 0 | Z103: 3 | AA103: 0 | AB103: 0 | AC103: 0 | AD103: 0 | AE103: 0 | AF103: 0 | AG103: 0 | AH103: 0 | AI103: 0
B104: Tom Mohsinger | I104: 3.230769231 | R104: =_xlfn.IFS(I104=I103,1+R103,I104<>I103,1) -> 1 | S104: =_xlfn.IFS(I104=0,0,I104=I103,S103,S103-R103,S103-R103) -> 2 | T104: 0 | U104: 0 | V104: 0 | W104: 0 | X104: 0 | Y104: 0 | Z104: 0 | AA104: 0 | AB104: 0 | AC104: 0 | AD104: 0 | AE104: 0 | AF104: 0 | AG104: 0 | AH104: 0 | AI104: 2
B105: Brian McLaughlin | I105: 3.25 | R105: =_xlfn.IFS(I105=I104,1+R104,I105<>I104,1) -> 1 | S105: =_xlfn.IFS(I105=0,0,I105=I104,S104,S104-R104,S104-R104) -> 1 | T105: 0 | U105: 0 | V105: 0 | W105: 1 | X105: 0 | Y105: 0 | Z105: 0 | AA105: 0 | AB105: 0 | AC105: 0 | AD105: 0 | AE105: 0 | AF105: 0 | AG105: 0 | AH105: 0 | AI105: 0
I107: Others
B108: Mark Rusnak | I108: 0.2 | R108: 1 | S108: 16 | T108: =IF($B108=T$34,$S108,0) -> 0 | U108: =IF($B108=U$34,$S108,0) -> 0 | V108: =IF($B108=V$34,$S108,0) -> 0 | W108: 0 | X108: 0 | Y108: 0 | Z108: 0 | AA108: 0 | AB108: 0 | AC108: 16 | AD108: 0 | AE108: 0 | AF108: 0 | AG108: 0 | AH108: 0 | AI108: 0
B109: Andy Linton | I109: 0.2 | R109: =_xlfn.IFS(I109=I108,2,I109<>I108,1) -> 2 | S109: =_xlfn.IFS(I109=0,0,I109=I108,S108,S108-R108,S108-R108) -> 16 | T109: =IF($B109=T$34,$S109,0) -> 16 | U109: 0 | V109: 0 | W109: 0 | X109: 0 | Y109: 0 | Z109: 0 | AA109: 0 | AB109: 0 | AC109: 0 | AD109: 0 | AE109: 0 | AF109: 0 | AG109: 0 | AH109: 0 | AI109: 0
B110: Marty Reed | I110: 0.2727272727 | R110: =_xlfn.IFS(I110=I109,1+R109,I110<>I109,1) -> 1 | S110: =_xlfn.IFS(I110=0,0,I110=I109,S109,S109-R109,S109-R109) -> 14 | T110: 0 | U110: 0 | V110: 0 | W110: 0 | X110: 0 | Y110: 0 | Z110: 0 | AA110: 0 | AB110: 0 | AC110: 0 | AD110: 14 | AE110: 0 | AF110: 0 | AG110: 0 | AH110: 0 | AI110: 0
B111: Dan Fusco | I111: 0.3333333333 | R111: =_xlfn.IFS(I111=I110,1+R110,I111<>I110,1) -> 1 | S111: =_xlfn.IFS(I111=0,0,I111=I110,S110,S110-R110,S110-R110) -> 13 | T111: 0 | U111: 0 | V111: 0 | W111: 0 | X111: 13 | Y111: 0 | Z111: 0 | AA111: 0 | AB111: 0 | AC111: 0 | AD111: 0 | AE111: 0 | AF111: 0 | AG111: 0 | AH111: 0 | AI111: 0
B112: Jim Daviero | I112: 0.3333333333 | R112: =_xlfn.IFS(I112=I111,1+R111,I112<>I111,1) -> 2 | S112: =_xlfn.IFS(I112=0,0,I112=I111,S111,S111-R111,S111-R111) -> 13 | T112: 0 | U112: 0 | V112: 0 | W112: 0 | X112: 0 | Y112: 0 | Z112: 0 | AA112: 0 | AB112: 13 | AC112: 0 | AD112: 0 | AE112: 0 | AF112: 0 | AG112: 0 | AH112: 0 | AI112: 0
B113: Dan Palmerino | I113: 0.5384615385 | R113: =_xlfn.IFS(I113=I112,1+R112,I113<>I112,1) -> 1 | S113: =_xlfn.IFS(I113=0,0,I113=I112,S112,S112-R112,S112-R112) -> 11 | T113: 0 | U113: 0 | V113: 0 | W113: 0 | X113: 0 | Y113: 11 | Z113: 0 | AA113: 0 | AB113: 0 | AC113: 0 | AD113: 0 | AE113: 0 | AF113: 0 | AG113: 0 | AH113: 0 | AI113: 0
B114: Gloria Poston | I114: 1.3 | R114: =_xlfn.IFS(I114=I113,1+R113,I114<>I113,1) -> 1 | S114: =_xlfn.IFS(I114=0,0,I114=I113,S113,S113-R113,S113-R113) -> 10 | T114: 0 | U114: 0 | V114: 0 | W114: 0 | X114: 0 | Y114: 0 | Z114: 0 | AA114: 10 | AB114: 0 | AC114: 0 | AD114: 0 | AE114: 0 | AF114: 0 | AG114: 0 | AH114: 0 | AI114: 0
B115: Dave Taylor | I115: 1.4 | R115: =_xlfn.IFS(I115=I114,1+R114,I115<>I114,1) -> 1 | S115: =_xlfn.IFS(I115=0,0,I115=I114,S114,S114-R114,S114-R114) -> 9 | T115: 0 | U115: 0 | V115: 0 | W115: 0 | X115: 0 | Y115: 0 | Z115: 9 | AA115: 0 | AB115: 0 | AC115: 0 | AD115: 0 | AE115: 0 | AF115: 0 | AG115: 0 | AH115: 0 | AI115: 0
B116: Tim Hobbs | I116: 1.666666667 | R116: =_xlfn.IFS(I116=I115,1+R115,I116<>I115,1) -> 1 | S116: =_xlfn.IFS(I116=0,0,I116=I115,S115,S115-R115,S115-R115) -> 8 | T116: 0 | U116: 0 | V116: 0 | W116: 0 | X116: 0 | Y116: 0 | Z116: 0 | AA116: 0 | AB116: 0 | AC116: 0 | AD116: 0 | AE116: 0 | AF116: 0 | AG116: 0 | AH116: 8 | AI116: 0
B117: Brian McLaughlin | I117: 1.666666667 | R117: =_xlfn.IFS(I117=I116,1+R116,I117<>I116,1) -> 2 | S117: =_xlfn.IFS(I117=0,0,I117=I116,S116,S116-R116,S116-R116) -> 8 | T117: 0 | U117: 0 | V117: 0 | W117: 8 | X117: 0 | Y117: 0 | Z117: 0 | AA117: 0 | AB117: 0 | AC117: 0 | AD117: 0 | AE117: 0 | AF117: 0 | AG117: 0 | AH117: 0 | AI117: 0
B118: Matt Nichols | I118: 2.222222222 | R118: =_xlfn.IFS(I118=I117,1+R117,I118<>I117,1) -> 1 | S118: =_xlfn.IFS(I118=0,0,I118=I117,S117,S117-R117,S117-R117) -> 6 | T118: 0 | U118: 0 | V118: 0 | W118: 0 | X118: 0 | Y118: 0 | Z118: 0 | AA118: 0 | AB118: 0 | AC118: 0 | AD118: 0 | AE118: 6 | AF118: 0 | AG118: 0 | AH118: 0 | AI118: 0
B119: Tom Mohsinger | I119: 2.307692308 | R119: =_xlfn.IFS(I119=I118,1+R118,I119<>I118,1) -> 1 | S119: =_xlfn.IFS(I119=0,0,I119=I118,S118,S118-R118,S118-R118) -> 5 | T119: 0 | U119: 0 | V119: 0 | W119: 0 | X119: 0 | Y119: 0 | Z119: 0 | AA119: 0 | AB119: 0 | AC119: 0 | AD119: 0 | AE119: 0 | AF119: 0 | AG119: 0 | AH119: 0 | AI119: 5
B120: Bette Mohsinger | I120: 2.416666667 | R120: =_xlfn.IFS(I120=I119,1+R119,I120<>I119,1) -> 1 | S120: =_xlfn.IFS(I120=0,0,I120=I119,S119,S119-R119,S119-R119) -> 4 | T120: 0 | U120: 4 | V120: 0 | W120: 0 | X120: 0 | Y120: 0 | Z120: 0 | AA120: 0 | AB120: 0 | AC120: 0 | AD120: 0 | AE120: 0 | AF120: 0 | AG120: 0 | AH120: 0 | AI120: 0
B121: Bob Templeton | I121: 4.785714286 | R121: =_xlfn.IFS(I121=I120,1+R120,I121<>I120,1) -> 1 | S121: =_xlfn.IFS(I121=0,0,I121=I120,S120,S120-R120,S120-R120) -> 3 | T121: 0 | U121: 0 | V121: 3 | W121: 0 | X121: 0 | Y121: 0 | Z121: 0 | AA121: 0 | AB121: 0 | AC121: 0 | AD121: 0 | AE121: 0 | AF121: 0 | AG121: 0 | AH121: 0 | AI121: 0
B122: Pete Michalski | I122: 5.153846154 | R122: =_xlfn.IFS(I122=I121,1+R121,I122<>I121,1) -> 1 | S122: =_xlfn.IFS(I122=0,0,I122=I121,S121,S121-R121,S121-R121) -> 2 | T122: 0 | U122: 0 | V122: 0 | W122: 0 | X122: 0 | Y122: 0 | Z122: 0 | AA122: 0 | AB122: 0 | AC122: 0 | AD122: 0 | AE122: 0 | AF122: 2 | AG122: 0 | AH122: 0 | AI122: 0
B123: Sue Michalski | I123: 6.076923077 | R123: =_xlfn.IFS(I123=I122,1+R122,I123<>I122,1) -> 1 | S123: =_xlfn.IFS(I123=0,0,I123=I122,S122,S122-R122,S122-R122) -> 1 | T123: 0 | U123: 0 | V123: 0 | W123: 0 | X123: 0 | Y123: 0 | Z123: 0 | AA123: 0 | AB123: 0 | AC123: 0 | AD123: 0 | AE123: 0 | AF123: 0 | AG123: 1 | AH123: 0 | AI123: 0
I125: Avg over Par | K125: Rounded
B126: Mark Rusnak | I126: 5.6 | K126: =ROUND(I126,0) -> 6 | R126: 1 | S126: 16 | T126: =IF($B126=T$34,$S126,0) -> 0 | U126: 0 | V126: 0 | W126: 0 | X126: 0 | Y126: 0 | Z126: 0 | AA126: 0 | AB126: 0 | AC126: 16 | AD126: 0 | AE126: 0 | AF126: 0 | AG126: 0 | AH126: 0 | AI126: 0
B127: Andy Linton | I127: 6.666666667 | K127: 7 | R127: =_xlfn.IFS(I127=I126,2,I127<>I126,1) -> 1 | S127: =_xlfn.IFS(I127=0,0,I127=I126,S126,S126-R126,S126-R126) -> 15 | T127: 15 | U127: 0 | V127: 0 | W127: 0 | X127: 0 | Y127: 0 | Z127: 0 | AA127: 0 | AB127: 0 | AC127: 0 | AD127: 0 | AE127: 0 | AF127: 0 | AG127: 0 | AH127: 0 | AI127: 0
B128: Marty Reed | I128: 6.727272727 | K128: 7 | R128: =_xlfn.IFS(I128=I127,1+R127,I128<>I127,1) -> 1 | S128: =_xlfn.IFS(I128=0,0,I128=I127,S127,S127-1,S127-1) -> 14 | T128: 0 | U128: 0 | V128: 0 | W128: 0 | X128: 0 | Y128: 0 | Z128: 0 | AA128: 0 | AB128: 0 | AC128: 0 | AD128: 14 | AE128: 0 | AF128: 0 | AG128: 0 | AH128: 0 | AI128: 0
B129: Dan Fusco | I129: 8.133333333 | K129: 8 | R129: =_xlfn.IFS(I129=I128,1+R128,I129<>I128,1) -> 1 | S129: =_xlfn.IFS(I129=0,0,I129=I128,S128,S128-1,S128-1) -> 13 | T129: 0 | U129: 0 | V129: 0 | W129: 0 | X129: 13 | Y129: 0 | Z129: 0 | AA129: 0 | AB129: 0 | AC129: 0 | AD129: 0 | AE129: 0 | AF129: 0 | AG129: 0 | AH129: 0 | AI129: 0
B130: Jim Daviero | I130: 9.333333333 | K130: 9 | R130: =_xlfn.IFS(I130=I129,1+R129,I130<>I129,1) -> 1 | S130: =_xlfn.IFS(I130=0,0,I130=I129,S129,S129-1,S129-1) -> 12 | T130: 0 | U130: 0 | V130: 0 | W130: 0 | X130: 0 | Y130: 0 | Z130: 0 | AA130: 0 | AB130: 12 | AC130: 0 | AD130: 0 | AE130: 0 | AF130: 0 | AG130: 0 | AH130: 0 | AI130: 0
B131: Dan Palmerino | I131: 10.69230769 | K131: 11 | R131: =_xlfn.IFS(I131=I130,1+R130,I131<>I130,1) -> 1 | S131: =_xlfn.IFS(I131=0,0,I131=I130,S130,S130-1,S130-1) -> 11 | T131: 0 | U131: 0 | V131: 0 | W131: 0 | X131: 0 | Y131: 11 | Z131: 0 | AA131: 0 | AB131: 0 | AC131: 0 | AD131: 0 | AE131: 0 | AF131: 0 | AG131: 0 | AH131: 0 | AI131: 0
B132: Gloria Poston | I132: 12.4 | K132: 12 | R132: =_xlfn.IFS(I132=I131,1+R131,I132<>I131,1) -> 1 | S132: =_xlfn.IFS(I132=0,0,I132=I131,S131,S131-1,S131-1) -> 10 | T132: 0 | U132: 0 | V132: 0 | W132: 0 | X132: 0 | Y132: 0 | Z132: 0 | AA132: 10 | AB132: 0 | AC132: 0 | AD132: 0 | AE132: 0 | AF132: 0 | AG132: 0 | AH132: 0 | AI132: 0
B133: Tim Hobbs | I133: 13.83333333 | K133: 14 | R133: =_xlfn.IFS(I133=I132,1+R132,I133<>I132,1) -> 1 | S133: =_xlfn.IFS(I133=0,0,I133=I132,S132,S132-1,S132-1) -> 9 | T133: 0 | U133: 0 | V133: 0 | W133: 0 | X133: 0 | Y133: 0 | Z133: 0 | AA133: 0 | AB133: 0 | AC133: 0 | AD133: 0 | AE133: 0 | AF133: 0 | AG133: 0 | AH133: 9 | AI133: 0
B134: Dave Taylor | I134: 14.26666667 | K134: 14 | R134: =_xlfn.IFS(I134=I133,1+R133,I134<>I133,1) -> 1 | S134: =_xlfn.IFS(I134=0,0,I134=I133,S133,S133-1,S133-1) -> 8 | T134: 0 | U134: 0 | V134: 0 | W134: 0 | X134: 0 | Y134: 0 | Z134: 8 | AA134: 0 | AB134: 0 | AC134: 0 | AD134: 0 | AE134: 0 | AF134: 0 | AG134: 0 | AH134: 0 | AI134: 0
B135: Matt Nichols | I135: 14.44444444 | K135: 14 | R135: =_xlfn.IFS(I135=I134,1+R134,I135<>I134,1) -> 1 | S135: =_xlfn.IFS(I135=0,0,I135=I134,S134,S134-1,S134-1) -> 7 | T135: 0 | U135: 0 | V135: 0 | W135: 0 | X135: 0 | Y135: 0 | Z135: 0 | AA135: 0 | AB135: 0 | AC135: 0 | AD135: 0 | AE135: 7 | AF135: 0 | AG135: 0 | AH135: 0 | AI135: 0
B136: Brian McLaughlin | I136: 15.33333333 | K136: 15 | R136: =_xlfn.IFS(I136=I135,1+R135,I136<>I135,1) -> 1 | S136: =_xlfn.IFS(I136=0,0,I136=I135,S135,S135-1,S135-1) -> 6 | T136: =IF($B136=T$34,$S136,0) -> 0 | U136: 0 | V136: 0 | W136: 6 | X136: 0 | Y136: 0 | Z136: 0 | AA136: 0 | AB136: 0 | AC136: 0 | AD136: 0 | AE136: 0 | AF136: 0 | AG136: 0 | AH136: 0 | AI136: 0
B137: Bette Mohsinger | I137: 15.41666667 | K137: 15 | R137: =_xlfn.IFS(I137=I136,1+R136,I137<>I136,1) -> 1 | S137: =_xlfn.IFS(I137=0,0,I137=I136,S136,S136-1,S136-1) -> 5 | T137: 0 | U137: 5 | V137: 0 | W137: 0 | X137: 0 | Y137: 0 | Z137: 0 | AA137: 0 | AB137: 0 | AC137: 0 | AD137: 0 | AE137: 0 | AF137: 0 | AG137: 0 | AH137: 0 | AI137: 0
B138: Tom Mohsinger | I138: 16.46153846 | K138: 16 | R138: =_xlfn.IFS(I138=I137,1+R137,I138<>I137,1) -> 1 | S138: =_xlfn.IFS(I138=0,0,I138=I137,S137,S137-1,S137-1) -> 4 | T138: 0 | U138: 0 | V138: 0 | W138: 0 | X138: 0 | Y138: 0 | Z138: 0 | AA138: 0 | AB138: 0 | AC138: 0 | AD138: 0 | AE138: 0 | AF138: 0 | AG138: 0 | AH138: 0 | AI138: 4
B139: Bob Templeton | I139: 21 | K139: 21 | R139: =_xlfn.IFS(I139=I138,1+R138,I139<>I138,1) -> 1 | S139: =_xlfn.IFS(I139=0,0,I139=I138,S138,S138-1,S138-1) -> 3 | T139: 0 | U139: 0 | V139: 3 | W139: 0 | X139: 0 | Y139: 0 | Z139: 0 | AA139: 0 | AB139: 0 | AC139: 0 | AD139: 0 | AE139: 0 | AF139: 0 | AG139: 0 | AH139: 0 | AI139: 0
B140: Pete Michalski | I140: 21.46153846 | K140: 21 | R140: =_xlfn.IFS(I140=I139,1+R139,I140<>I139,1) -> 1 | S140: =_xlfn.IFS(I140=0,0,I140=I139,S139,S139-1,S139-1) -> 2 | T140: 0 | U140: 0 | V140: 0 | W140: 0 | X140: 0 | Y140: 0 | Z140: 0 | AA140: 0 | AB140: 0 | AC140: 0 | AD140: 0 | AE140: 0 | AF140: 2 | AG140: 0 | AH140: 0 | AI140: 0
B141: Sue Michalski | I141: 23.23076923 | K141: 23 | R141: =_xlfn.IFS(I141=I140,1+R140,I141<>I140,1) -> 1 | S141: =_xlfn.IFS(I141=0,0,I141=I140,S140,S140-1,S140-1) -> 1 | T141: 0 | U141: 0 | V141: 0 | W141: 0 | X141: 0 | Y141: 0 | Z141: 0 | AA141: 0 | AB141: 0 | AC141: 0 | AD141: 0 | AE141: 0 | AF141: 0 | AG141: 1 | AH141: 0 | AI141: 0

Sheet Sum of Scores
A1: Summary of Scores | G1: d16 | K1: j16 | O1: p16 | S1: v16 | W1: ab16 | AA1: ah16 | AE1: an16 | AI1: at16 | AM1: az16 | AQ1: bf16 | AU1: bl16 | AY1: br16 | BC1: bx16 | BG1: cd16 | BK1: cj16 | CA1: Lows | CD1: Highs | CG1: Handicaps
BO2: Bonus | BQ2: Match | BS2: Total | CG2: Start | CH2: Finish
B3: Current Week | G3: Week #1 | I3: Week #1 | K3: Week #2 | M3: Week #2 | O3: Week #3 | Q3: Week #3 | S3: Week #4 | U3: Week #4 | W3: Week #5 | Y3: Week #5 | AA3: Week #6 | AC3: Week #6 | AE3: Week #7 | AG3: Week #7 | AI3: Week #8 | AK3: Week #8 | AM3: Week #9 | AO3: Week #9 | AQ3: Week #10 | AS3: Week #10 | AU3: Week #11 | AW3: Week #11 | AY3: Week #12 | BA3: Week #12 | BC3: Week #13 | BE3: Week #13 | BG3: Week #14 | BI3: Week #14 | BK3: Week #15 | BM3: Week #15 | BO3: Points | BQ3: Points | BS3: Points | BT3: Matches | BU3: Average | CG3: (accounts for up to 3 missed weeks at the start) | CH3: (accounts for up to 5 missed weeks at the end)
B4: Gross | C4: Handicap | D4: Net | E4: Cup | G4: Gross | H4: Handicap | I4: Net | K4: Gross | L4: Handicap | M4: Net | O4: Gross | P4: Handicap | Q4: Net | S4: Gross | T4: Handicap | U4: Net | W4: Gross | X4: Handicap | Y4: Net | AA4: Gross | AB4: Handicap | AC4: Net | AE4: Gross | AF4: Handicap | AG4: Net | AI4: Gross | AJ4: Handicap | AK4: Net | AM4: Gross | AN4: Handicap | AO4: Net | AQ4: Gross | AR4: Handicap | AS4: Net | AU4: Gross | AV4: Handicap | AW4: Net | AY4: Gross | AZ4: Handicap | BA4: Net | BC4: Gross | BD4: Handicap | BE4: Net | BG4: Gross | BH4: Handicap | BI4: Net | BK4: Gross | BL4: Handicap | BM4: Net
A5: =INDIRECT(CONCATENATE(BY5,"!A1")) -> Mark Rusnak | B5: 38 | C5: 2 | D5: 36 | E5: 3000 | F5: 3000 | G5: 39 | H5: 6 | I5: 33 | K5: 47 | L5: 5 | M5: 42 | O5: 39 | P5: 5 | Q5: 34 | S5: 46 | T5: 5 | U5: 41 | W5: 43 | X5: 5 | Y5: 38 | AA5: 46 | AB5: 5 | AC5: 41 | AE5: 41 | AF5: 6 | AG5: 35 | AI5: 43 | AJ5: 6 | AK5: 37 | AM5: 37 | AN5: 6 | AO5: 31 | AQ5: 47 | AR5: 5 | AS5: 42 | AU5: 38 | AV5: 5 | AW5: 33 | AY5: 42 | AZ5: 4 | BA5: 38 | BC5: 37 | BD5: 4 | BE5: 33 | BG5: 41 | BH5: 3 | BI5: 38 | BK5: 38 | BL5: 2 | BM5: 36 | BO5: =J5+N5+R5+V5+Z5+AD5+AH5+AL5+AP5+AT5+AX5+BB5+BF5+BJ5+BN5 -> 0 | BQ5: =INDIRECT(CONCATENATE(BY5,"!C44")) -> 83.5 | BS5: =BO5+BQ5 -> 83.5 | BT5: =INDIRECT(CONCATENATE(BY5,"!e44")) -> 15 | BU5: =(BO5+BQ5)/BT5 -> 5.566666667 | BV5: =A5 -> Mark Rusnak | BW5: =FIND(" ",BV5) -> 5 | BX5: =MID(BV5,BW5,99) -> Rusnak | BY5: rusnak | CA5: =MIN(G5,K5,O5,S5,W5,AA5,AE5,AI5,AM5,AQ5,AU5,AY5,BC5,BG5,BK5) -> 37 | CB5: =MIN(H5,L5,P5,T5,X5,AB5,AF5,AJ5,AN5,AR5,AV5,AZ5,BD5,BH5,BL5) -> 2 | CC5: =MIN(I5,M5,Q5,U5,Y5,AC5,AG5,AK5,AO5,AS5,AW5,BA5,BE5,BI5,BM5) -> 31 | CD5: =MAX(G5,K5,O5,S5,W5,AA5,AE5,AI5,AM5,AQ5,AU5,AY5,BC5,BG5,BK5) -> 47 | CE5: =MAX(H5,L5,P5,T5,X5,AB5,AF5,AJ5,AN5,AR5,AV5,AZ5,BD5,BH5,BL5) -> 6 | CF5: =MAX(I5,M5,Q5,U5,Y5,AC5,AG5,AK5,AO5,AS5,AW5,BA5,BE5,BI5,BM5) -> 42 | CG5: =IF(H5="",IF(L5="",IF(P5="",IF(T5="",X5,T5),P5),L5),H5) -> 6 | CH5: =IF(BL5="",IF(BH5="",IF(BD5="",IF(AZ5="",IF(AV5="",AR5,AV5),AZ5),BD5),BH5),BL5) -> 2 | CI5: =CG5-CH5 -> 4
A6: =INDIRECT(CONCATENATE(BY6,"!A1")) -> Andy Linton | B6: 42 | C6: 4 | D6: 38 | E6: 2000 | F6: 2500 | H6: 4 | I6: 44 | K6: 48 | L6: 4 | M6: 44 | O6: 41 | P6: 6 | Q6: 35 | S6: 46 | T6: 6 | U6: 40 | W6: 43 | X6: 7 | Y6: 36 | AA6: 41 | AB6: 8 | AC6: 33 | AE6: 41 | AF6: 7 | AG6: 34 | AI6: 42 | AJ6: 6 | AK6: 36 | AM6: 38 | AN6: 5 | AO6: 33 | AQ6: 44 | AR6: 5 | AS6: 39 | AU6: 41 | AV6: 5 | AW6: 36 | AY6: 43 | AZ6: 4 | BA6: 39 | BC6: 40 | BD6: 5 | BE6: 35 | BG6: 42 | BH6: 4 | BI6: 38 | BK6: 42 | BL6: 4 | BM6: 38 | BO6: 0 | BQ6: =INDIRECT(CONCATENATE(BY6,"!C44")) -> 78 | BS6: 78 | BT6: =INDIRECT(CONCATENATE(BY6,"!e44")) -> 15 | BU6: 5.2 | BV6: Andy Linton | BW6: 5 | BX6: Linton | BY6: linton | CA6: 38 | CB6: 4 | CC6: 33 | CD6: 48 | CE6: 8 | CF6: 44 | CG6: 4 | CH6: 4 | CI6: 0
A7: =INDIRECT(CONCATENATE(BY7,"!A1")) -> Brian McLaughlin | B7: 50 | C7: 12 | D7: 38 | E7: 2000 | F7: 2000 | G7: 54 | H7: 12 | I7: 42 | K7: 51 | L7: 14 | M7: 37 | O7: 54 | P7: 13 | Q7: 41 | W7: 56 | X7: 13 | Y7: 43 | AA7: 58 | AB7: 15 | AC7: 43 | AE7: 51 | AF7: 16 | AG7: 35 | AI7: 52 | AJ7: 16 | AK7: 36 | AM7: 48 | AN7: 16 | AO7: 32 | AQ7: 47 | AR7: 15 | AS7: 32 | AU7: 55 | AV7: 14 | AW7: 41 | BG7: 47 | BH7: 14 | BI7: 33 | BK7: 50 | BL7: 12 | BM7: 38 | BO7: 0 | BQ7: =INDIRECT(CONCATENATE(BY7,"!C44")) -> 58 | BS7: 58 | BT7: =INDIRECT(CONCATENATE(BY7,"!e44")) -> 12 | BU7: 4.833333333 | BV7: Brian McLaughlin | BW7: 6 | BX7: McLaughlin | BY7: mclaughlin | CA7: 47 | CB7: 12 | CC7: 32 | CD7: 58 | CE7: 16 | CF7: 43 | CG7: 12 | CH7: 12 | CI7: 0
A8: =INDIRECT(CONCATENATE(BY8,"!A1")) -> Jim Daviero | B8: 46 | C8: 8 | D8: 38 | E8: 2000 | F8: 1500 | G8: 45 | H8: 5 | I8: 40 | O8: 46 | P8: 7 | Q8: 39 | S8: 47 | T8: 7 | U8: 40 | W8: 47 | X8: 8 | Y8: 39 | AA8: 44 | AB8: 9 | AC8: 35 | AE8: 44 | AF8: 10 | AG8: 34 | AI8: 43 | AJ8: 9 | AK8: 34 | AM8: 46 | AN8: 8 | AO8: 38 | AQ8: 45 | AR8: 8 | AS8: 37 | AY8: 45 | AZ8: 8 | BA8: 37 | BG8: 47 | BH8: 8 | BI8: 39 | BK8: 46 | BL8: 8 | BM8: 38 | BO8: 0 | BQ8: =INDIRECT(CONCATENATE(BY8,"!C44")) -> 61 | BS8: 61 | BT8: =INDIRECT(CONCATENATE(BY8,"!e44")) -> 12 | BU8: 5.083333333 | BV8: Jim Daviero | BW8: 4 | BX8: Daviero | BY8: daviero | CA8: 43 | CB8: 5 | CC8: 34 | CD8: 47 | CE8: 10 | CF8: 40 | CG8: 5 | CH8: 8 | CI8: -3
A9: =INDIRECT(CONCATENATE(BY9,"!A1")) -> Dan Palmerino | B9: 47 | C9: 8 | D9: 39 | E9: 1000 | F9: 1000 | G9: 48 | H9: 8 | I9: 40 | K9: 47 | L9: 8 | M9: 39 | S9: 51 | T9: 9 | U9: 42 | W9: 44 | X9: 9 | Y9: 35 | AA9: 50 | AB9: 10 | AC9: 40 | AE9: 45 | AF9: 10 | AG9: 35 | AI9: 50 | AJ9: 10 | AK9: 40 | AM9: 42 | AN9: 11 | AO9: 31 | AU9: 45 | AV9: 9 | AW9: 36 | AY9: 46 | AZ9: 8 | BA9: 38 | BC9: 44 | BD9: 9 | BE9: 35 | BG9: 48 | BH9: 8 | BI9: 40 | BK9: 47 | BL9: 8 | BM9: 39 | BO9: 0 | BQ9: =INDIRECT(CONCATENATE(BY9,"!C44")) -> 67.5 | BS9: 67.5 | BT9: =INDIRECT(CONCATENATE(BY9,"!e44")) -> 13 | BU9: 5.192307692 | BV9: Dan Palmerino | BW9: 4 | BX9: Palmerino | BY9: palmerino | CA9: 42 | CB9: 8 | CC9: 31 | CD9: 51 | CE9: 11 | CF9: 42 | CG9: 8 | CH9: 8 | CI9: 0
A10: =INDIRECT(CONCATENATE(BY10,"!A1")) -> Dave Taylor | B10: 53 | C10: 13 | D10: 40 | E10: 850 | F10: 900 | G10: 54 | H10: 11 | I10: 43 | K10: 50 | L10: 11 | M10: 39 | O10: 54 | P10: 11 | Q10: 43 | S10: 53 | T10: 12 | U10: 41 | W10: 46 | X10: 13 | Y10: 33 | AA10: 54 | AB10: 13 | AC10: 41 | AE10: 46 | AF10: 13 | AG10: 33 | AI10: 52 | AJ10: 12 | AK10: 40 | AM10: 51 | AN10: 12 | AO10: 39 | AQ10: 53 | AR10: 12 | AS10: 41 | AU10: 47 | AV10: 13 | AW10: 34 | AY10: 49 | AZ10: 13 | BA10: 36 | BC10: 49 | BD10: 12 | BE10: 37 | BG10: 53 | BH10: 13 | BI10: 40 | BK10: 53 | BL10: 13 | BM10: 40 | BO10: 0 | BQ10: =INDIRECT(CONCATENATE(BY10,"!C44")) -> 71.5 | BS10: 71.5 | BT10: =INDIRECT(CONCATENATE(BY10,"!e44")) -> 15 | BU10: 4.766666667 | BV10: Dave Taylor | BW10: 5 | BX10: Taylor | BY10: taylor | CA10: 46 | CB10: 11 | CC10: 33 | CD10: 54 | CE10: 13 | CF10: 43 | CG10: 11 | CH10: 13 | CI10: -2
A11: =INDIRECT(CONCATENATE(BY11,"!A1")) -> Tom Mohsinger | B11: 53 | C11: 13 | D11: 40 | E11: 850 | F11: 800 | G11: 53 | H11: 16 | I11: 37 | K11: 55 | L11: 15 | M11: 40 | O11: 54 | P11: 15 | Q11: 39 | S11: 56 | T11: 16 | U11: 40 | AE11: 59 | AF11: 16 | AG11: 43 | AI11: 53 | AJ11: 17 | AK11: 36 | AM11: 47 | AN11: 17 | AO11: 30 | AQ11: 49 | AR11: 16 | AS11: 33 | AU11: 51 | AV11: 15 | AW11: 36 | AY11: 51 | AZ11: 14 | BA11: 37 | BC11: 49 | BD11: 14 | BE11: 35 | BG11: 57 | BH11: 13 | BI11: 44 | BK11: 53 | BL11: 13 | BM11: 40 | BO11: 0 | BQ11: =INDIRECT(CONCATENATE(BY11,"!C44")) -> 74 | BS11: 74 | BT11: =INDIRECT(CONCATENATE(BY11,"!e44")) -> 13 | BU11: 5.692307692 | BV11: Tom Mohsinger | BW11: 4 | BX11: Mohsinger | BY11: mohsinger_t | CA11: 47 | CB11: 13 | CC11: 30 | CD11: 59 | CE11: 17 | CF11: 44 | CG11: 16 | CH11: 13 | CI11: 3
A12: =INDIRECT(CONCATENATE(BY12,"!A1")) -> Dan Fusco | B12: 48 | C12: 7 | D12: 41 | E12: 700 | F12: 700 | G12: 43 | H12: 8 | I12: 35 | K12: 47 | L12: 8 | M12: 39 | O12: 45 | P12: 10 | Q12: 35 | S12: 46 | T12: 9 | U12: 37 | W12: 43 | X12: 9 | Y12: 34 | AA12: 44 | AB12: 8 | AC12: 36 | AE12: 40 | AF12: 8 | AG12: 32 | AI12: 45 | AJ12: 7 | AK12: 38 | AM12: 41 | AN12: 7 | AO12: 34 | AQ12: 46 | AR12: 6 | AS12: 40 | AU12: 45 | AV12: 6 | AW12: 39 | AY12: 44 | AZ12: 7 | BA12: 37 | BC12: 42 | BD12: 7 | BE12: 35 | BG12: 45 | BH12: 7 | BI12: 38 | BK12: 48 | BL12: 7 | BM12: 41 | BO12: 0 | BQ12: =INDIRECT(CONCATENATE(BY12,"!C44")) -> 78.5 | BS12: 78.5 | BT12: =INDIRECT(CONCATENATE(BY12,"!e44")) -> 15 | BU12: 5.233333333 | BV12: Dan Fusco | BW12: 4 | BX12: Fusco | BY12: fusco_d | CA12: 40 | CB12: 6 | CC12: 32 | CD12: 48 | CE12: 10 | CF12: 41 | CG12: 8 | CH12: 7 | CI12: 1
A13: =INDIRECT(CONCATENATE(BY13,"!A1")) -> Marty Reed | B13: 47 | C13: 5 | D13: 42 | E13: 600 | F13: 600 | S13: 41 | T13: 8 | U13: 33 | W13: 44 | X13: 8 | Y13: 36 | AA13: 42 | AB13: 8 | AC13: 34 | AE13: 42 | AF13: 7 | AG13: 35 | AI13: 45 | AJ13: 6 | AK13: 39 | AM13: 43 | AN13: 6 | AO13: 37 | AQ13: 43 | AR13: 6 | AS13: 37 | AU13: 45 | AV13: 7 | AW13: 38 | AY13: 40 | AZ13: 7 | BA13: 33 | BC13: 38 | BD13: 6 | BE13: 32 | BK13: 47 | BL13: 5 | BM13: 42 | BO13: 0 | BQ13: =INDIRECT(CONCATENATE(BY13,"!C44")) -> 63.5 | BS13: 63.5 | BT13: =INDIRECT(CONCATENATE(BY13,"!e44")) -> 11 | BU13: 5.772727273 | BV13: Marty Reed | BW13: 6 | BX13: Reed | BY13: reed | CA13: 38 | CB13: 5 | CC13: 32 | CD13: 47 | CE13: 8 | CF13: 42 | CG13: =IF(H13="",IF(L13="",IF(P13="",IF(T13="",X13,T13),P13),L13),H13) -> 8 | CH13: 5 | CI13: 3
A14: =INDIRECT(CONCATENATE(BY14,"!A1")) -> Bob Templeton | B14: 65 | C14: 20 | D14: 45 | E14: 500 | F14: 500 | G14: 64 | H14: 19 | I14: 45 | K14: 55 | L14: 21 | M14: 34 | O14: 61 | P14: 20 | Q14: 41 | S14: 63 | T14: 19 | U14: 44 | W14: 65 | X14: 20 | Y14: 45 | AA14: 57 | AB14: 20 | AC14: 37 | AE14: 57 | AF14: 20 | AG14: 37 | AI14: 58 | AJ14: 20 | AK14: 38 | AM14: 50 | AN14: 21 | AO14: 29 | AQ14: 65 | AR14: 19 | AS14: 46 | AU14: 62 | AV14: 19 | AW14: 43 | AY14: 62 | AZ14: 19 | BA14: 43 | BC14: 61 | BD14: 19 | BE14: 42 | BK14: 65 | BL14: 20 | BM14: 45 | BO14: 0 | BQ14: =INDIRECT(CONCATENATE(BY14,"!C44")) -> 60.5 | BS14: 60.5 | BT14: =INDIRECT(CONCATENATE(BY14,"!e44")) -> 14 | BU14: 4.321428571 | BV14: Bob Templeton | BW14: 4 | BX14: Templeton | BY14: templeton | CA14: 50 | CB14: 19 | CC14: 29 | CD14: 65 | CE14: 21 | CF14: 46 | CG14: =IF(H14="",IF(L14="",IF(P14="",IF(T14="",X14,T14),P14),L14),H14) -> 19 | CH14: 20 | CI14: -1
A15: =INDIRECT(CONCATENATE(BY15,"!A1")) -> Pete Michalski | B15: 65 | C15: 19 | D15: 46 | E15: 450 | F15: 450 | G15: 60 | H15: 21 | I15: 39 | K15: 60 | L15: 20 | M15: 40 | O15: 67 | P15: 21 | Q15: 46 | S15: 70 | T15: 21 | U15: 49 | AA15: 65 | AB15: 21 | AC15: 44 | AE15: 65 | AF15: 22 | AG15: 43 | AI15: 64 | AJ15: 21 | AK15: 43 | AM15: 57 | AN15: 22 | AO15: 35 | AQ15: 59 | AR15: 22 | AS15: 37 | AU15: 56 | AV15: 21 | AW15: 35 | AY15: 55 | AZ15: 20 | BA15: 35 | BG15: 56 | BH15: 19 | BI15: 37 | BK15: 65 | BL15: 19 | BM15: 46 | BO15: 0 | BQ15: =INDIRECT(CONCATENATE(BY15,"!C44")) -> 56 | BS15: 56 | BT15: =INDIRECT(CONCATENATE(BY15,"!e44")) -> 13 | BU15: 4.307692308 | BV15: Pete Michalski | BW15: 5 | BX15: Michalski | BY15: michalski_p | CA15: 55 | CB15: 19 | CC15: 35 | CD15: 70 | CE15: 22 | CF15: 49 | CG15: 21 | CH15: 19 | CI15: 2
A16: =INDIRECT(CONCATENATE(BY16,"!A1")) -> Sue Michalski | B16: 70 | C16: 21 | D16: 49 | E16: 400 | F16: 400 | G16: 58 | H16: 24 | I16: 34 | K16: 64 | L16: 23 | M16: 41 | O16: 65 | P16: 23 | Q16: 42 | S16: 67 | T16: 23 | U16: 44 | AA16: 63 | AB16: 24 | AC16: 39 | AE16: 58 | AF16: 23 | AG16: 35 | AI16: 66 | AJ16: 23 | AK16: 43 | AM16: 63 | AN16: 24 | AO16: 39 | AQ16: 67 | AR16: 23 | AS16: 44 | AU16: 57 | AV16: 24 | AW16: 33 | AY16: 61 | AZ16: 22 | BA16: 39 | BG16: 64 | BH16: 21 | BI16: 43 | BK16: 70 | BL16: 21 | BM16: 49 | BO16: 0 | BQ16: =INDIRECT(CONCATENATE(BY16,"!C44")) -> 54.5 | BS16: 54.5 | BT16: =INDIRECT(CONCATENATE(BY16,"!e44")) -> 13 | BU16: 4.192307692 | BV16: Sue Michalski | BW16: 4 | BX16: Michalski | BY16: michalski_s | CA16: 57 | CB16: 21 | CC16: 33 | CD16: 70 | CE16: 24 | CF16: 49 | CG16: 24 | CH16: 21 | CI16: 3
A17: =INDIRECT(CONCATENATE(BY17,"!A1")) -> Bette Mohsinger | F17: 350 | G17: 53 | H17: 13 | I17: 40 | K17: 56 | L17: 13 | M17: 43 | O17: 55 | P17: 14 | Q17: 41 | S17: 59 | T17: 15 | U17: 44 | W17: 51 | X17: 16 | Y17: 35 | AA17: 49 | AB17: 15 | AC17: 34 | AE17: 47 | AF17: 15 | AG17: 32 | AI17: 56 | AJ17: 14 | AK17: 42 | AM17: 48 | AN17: 14 | AO17: 34 | AQ17: 54 | AR17: 13 | AS17: 41 | AU17: 46 | AV17: 13 | AW17: 33 | BC17: 49 | BD17: 12 | BE17: 37 | BO17: 0 | BQ17: =INDIRECT(CONCATENATE(BY17,"!C44")) -> 60.5 | BS17: 60.5 | BT17: =INDIRECT(CONCATENATE(BY17,"!e44")) -> 12 | BU17: 5.041666667 | BV17: Bette Mohsinger | BW17: 6 | BX17: Mohsinger | BY17: mohsinger_b | CA17: 46 | CB17: 12 | CC17: 32 | CD17: 59 | CE17: 16 | CF17: 44 | CG17: 13 | CH17: 12 | CI17: 1
A18: =INDIRECT(CONCATENATE(BY18,"!A1")) -> Gloria Poston | F18: 300 | G18: 47 | H18: 11 | I18: 36 | K18: 49 | L18: 11 | M18: 38 | W18: 46 | X18: 11 | Y18: 35 | AA18: 47 | AB18: 10 | AC18: 37 | AE18: 47 | AF18: 11 | AG18: 36 | AI18: 50 | AJ18: 11 | AK18: 39 | AQ18: 46 | AR18: 11 | AS18: 35 | AU18: 52 | AV18: 11 | AW18: 41 | AY18: 53 | AZ18: 11 | BA18: 42 | BG18: 49 | BH18: 12 | BI18: 37 | BO18: 0 | BQ18: =INDIRECT(CONCATENATE(BY18,"!C44")) -> 52 | BS18: 52 | BT18: =INDIRECT(CONCATENATE(BY18,"!e44")) -> 10 | BU18: 5.2 | BV18: Gloria Poston | BW18: 7 | BX18: Poston | BY18: poston | CA18: 46 | CB18: 10 | CC18: 35 | CD18: 53 | CE18: 12 | CF18: 42 | CG18: 11 | CH18: 12 | CI18: -1
A19: =INDIRECT(CONCATENATE(BY19,"!A1")) -> Matt Nichols | F19: 250 | G19: 52 | H19: 12 | I19: 40 | K19: 53 | L19: 13 | M19: 40 | O19: 51 | P19: 13 | Q19: 38 | S19: 49 | T19: 14 | U19: 35 | W19: 49 | X19: 13 | Y19: 36 | AA19: 50 | AB19: 14 | AC19: 36 | AE19: 52 | AF19: 13 | AG19: 39 | AM19: 55 | AN19: 13 | AO19: 42 | AQ19: 51 | AR19: 13 | AS19: 38 | BO19: 0 | BQ19: =INDIRECT(CONCATENATE(BY19,"!C44")) -> 40.5 | BS19: 40.5 | BT19: =INDIRECT(CONCATENATE(BY19,"!e44")) -> 9 | BU19: 4.5 | BV19: Matt Nichols | BW19: 5 | BX19: Nichols | BY19: nichols | CA19: 49 | CB19: 12 | CC19: 35 | CD19: 55 | CE19: 14 | CF19: 42 | CG19: 12 | CH19: =IF(BL19="",IF(BH19="",IF(BD19="",IF(AZ19="",IF(AV19="",AR19,AV19),AZ19),BD19),BH19),BL19) -> 13 | CI19: -1
A20: =INDIRECT(CONCATENATE(BY20,"!A1")) -> Tim Hobbs | F20: 200 | G20: 52 | H20: 14 | I20: 38 | K20: 51 | L20: 14 | M20: 37 | O20: 52 | P20: 14 | Q20: 38 | S20: 51 | T20: 14 | U20: 37 | W20: 48 | X20: 14 | Y20: 34 | AA20: 51 | AB20: 13 | AC20: 38 | AE20: 49 | AF20: 14 | AG20: 35 | AI20: 55 | AJ20: 13 | AK20: 42 | AM20: 49 | AN20: 13 | AO20: 36 | AQ20: 48 | AR20: 13 | AS20: 35 | AU20: 53 | AV20: 12 | AW20: 41 | BC20: 43 | BD20: 13 | BE20: 30 | BO20: 0 | BQ20: =INDIRECT(CONCATENATE(BY20,"!C44")) -> 59.5 | BS20: 59.5 | BT20: =INDIRECT(CONCATENATE(BY20,"!e44")) -> 12 | BU20: 4.958333333 | BV20: Tim Hobbs | BW20: 4 | BX20: Hobbs | BY20: hobbs | CA20: 43 | CB20: 12 | CC20: 30 | CD20: 55 | CE20: 14 | CF20: 42 | CG20: 14 | CH20: =IF(BL20="",IF(BH20="",IF(BD20="",IF(AZ20="",IF(AV20="",AR20,AV20),AZ20),BD20),BH20),BL20) -> 13 | CI20: 1
A22: SUBS
A24: =INDIRECT(CONCATENATE(BY24,"!A1")) -> Paul Archambault | W24: 49 | X24: 11 | Y24: 38 | AY24: 52 | AZ24: 11 | BA24: 41 | BC24: 47 | BD24: 12 | BE24: 35 | BQ24: =INDIRECT(CONCATENATE(BY24,"!C44")) -> 13 | BS24: =BO24+BQ24 -> 13 | BT24: =INDIRECT(CONCATENATE(BY24,"!e44")) -> 3 | BU24: =(BO24+BQ24)/BT24 -> 4.333333333 | BV24: =A24 -> Paul Archambault | BW24: =FIND(" ",BV24) -> 5 | BX24: =MID(BV24,BW24,99) -> Archambault | BY24: archambault
A25: =INDIRECT(CONCATENATE(BY25,"!A1")) -> Jill Daviero | B25: 63 | C25: 25 | D25: 38 | BK25: 63 | BL25: 25 | BM25: 38 | BQ25: =INDIRECT(CONCATENATE(BY25,"!C44")) -> 4 | BS25: 4 | BT25: =INDIRECT(CONCATENATE(BY25,"!e44")) -> 1 | BU25: 4 | BV25: Jill Daviero | BW25: 5 | BX25: Daviero | BY25: daviero_j
A26: =INDIRECT(CONCATENATE(BY26,"!A1")) -> Jeane Henderson | BQ26: =INDIRECT(CONCATENATE(BY26,"!C44")) -> 0 | BS26: 0 | BT26: =INDIRECT(CONCATENATE(BY26,"!e44")) -> 0 | BV26: Jeane Henderson | BW26: 6 | BX26: Henderson | BY26: henderson
A27: =INDIRECT(CONCATENATE(BY27,"!A1")) -> Ev Kauffman | G27: 44 | H27: 17 | I27: 27 | K27: 57 | L27: 14 | M27: 43 | AY27: 52 | AZ27: 14 | BA27: 38 | BQ27: =INDIRECT(CONCATENATE(BY27,"!C44")) -> 16 | BS27: 16 | BT27: =INDIRECT(CONCATENATE(BY27,"!e44")) -> 3 | BU27: 5.333333333 | BV27: Ev Kauffman | BW27: 3 | BX27: Kauffman | BY27: kauffman
A28: =INDIRECT(CONCATENATE(BY28,"!A1")) -> Glenn Kreig | K28: 58 | L28: 11 | M28: 47 | S28: 50 | T28: 11 | U28: 39 | AU28: 50 | AV28: 13 | AW28: 37 | BG28: 56 | BH28: 12 | BI28: 44 | BQ28: =INDIRECT(CONCATENATE(BY28,"!C44")) -> 17.5 | BS28: 17.5 | BT28: =INDIRECT(CONCATENATE(BY28,"!e44")) -> 4 | BU28: 4.375 | BV28: Glenn Kreig | BW28: 6 | BX28: Kreig | BY28: kreig
A29: =INDIRECT(CONCATENATE(BY29,"!A1")) -> Lisa Palmerino | B29: 55 | C29: 18 | D29: 37 | W29: 57 | X29: 19 | Y29: 38 | BK29: 55 | BL29: 18 | BM29: 37 | BQ29: =INDIRECT(CONCATENATE(BY29,"!C44")) -> 10 | BS29: 10 | BT29: =INDIRECT(CONCATENATE(BY29,"!e44")) -> 2 | BU29: 5 | BV29: Lisa Palmerino | BW29: 5 | BX29: Palmerino | BY29: palmerino_l
A30: =INDIRECT(CONCATENATE(BY30,"!A1")) -> Dan Richardson | B30: 52 | C30: 10 | D30: 42 | O30: 49 | P30: 12 | Q30: 37 | S30: 52 | T30: 12 | U30: 40 | W30: 52 | X30: 12 | Y30: 40 | AA30: 44 | AB30: 13 | AC30: 31 | AI30: 54 | AJ30: 12 | AK30: 42 | AM30: 48 | AN30: 13 | AO30: 35 | AQ30: 48 | AR30: 12 | AS30: 36 | AU30: 45 | AV30: 12 | AW30: 33 | AY30: 47 | AZ30: 10 | BA30: 37 | BC30: 45 | BD30: 10 | BE30: 35 | BG30: 48 | BH30: 10 | BI30: 38 | BK30: 52 | BL30: 10 | BM30: 42 | BQ30: =INDIRECT(CONCATENATE(BY30,"!C44")) -> 62.5 | BS30: 62.5 | BT30: =INDIRECT(CONCATENATE(BY30,"!e44")) -> 12 | BU30: 5.208333333 | BV30: Dan Richardson | BW30: 4 | BX30: Richardson | BY30: richardson
A31: =INDIRECT(CONCATENATE(BY31,"!A1")) -> Bob Riley | O31: 49 | P31: 5 | Q31: 44 | BQ31: =INDIRECT(CONCATENATE(BY31,"!C44")) -> 5 | BS31: 5 | BT31: =INDIRECT(CONCATENATE(BY31,"!e44")) -> 1 | BU31: 5 | BV31: Bob Riley | BW31: 4 | BX31: Riley | BY31: riley
A34: AVERAGE | B34: =AVERAGE(B5:B31) -> 52.93333333 | D34: =AVERAGE(D5:D31) -> 40.6 | G34: =AVERAGE(G5:G29) -> 51.06666667 | I34: =AVERAGE(I5:I29) -> 38.3125 | K34: =AVERAGE(K5:K31) -> 53 | M34: =AVERAGE(M5:M29) -> 40.1875 | O34: =AVERAGE(O5:O29) -> 52.61538462 | Q34: =AVERAGE(Q5:Q29) -> 39.38461538 | S34: =AVERAGE(S5:S29) -> 53 | U34: =AVERAGE(U5:U29) -> 40.4 | W34: =AVERAGE(W5:W29) -> 48.73333333 | Y34: =AVERAGE(Y5:Y29) -> 37 | AA34: =AVERAGE(AA5:AA29) -> 50.73333333 | AC34: =AVERAGE(AC5:AC29) -> 37.86666667 | AE34: =AVERAGE(AE5:AE29) -> 49 | AG34: =AVERAGE(AG5:AG29) -> 35.8125 | AI34: =AVERAGE(AI5:AI29) -> 51.6 | AK34: =AVERAGE(AK5:AK29) -> 38.86666667 | AM34: =AVERAGE(AM5:AM29) -> 47.66666667 | AO34: =AVERAGE(AO5:AO29) -> 34.66666667 | AQ34: =AVERAGE(AQ5:AQ29) -> 50.93333333 | AS34: =AVERAGE(AS5:AS29) -> 38.46666667 | AU34: =AVERAGE(AU5:AU29) -> 49.53333333 | AW34: =AVERAGE(AW5:AW29) -> 37.06666667 | AY34: =AVERAGE(AY5:AY29) -> 49.64285714 | BA34: =AVERAGE(BA5:BA29) -> 38.07142857 | BC34: =AVERAGE(BC5:BC29) -> 45.36363636 | BE34: =AVERAGE(BE5:BE29) -> 35.09090909 | BG34: =AVERAGE(BG5:BG29) -> 50.41666667 | BI34: =AVERAGE(BI5:BI29) -> 39.25 | BK34: =AVERAGE(BK5:BK31) -> 52.93333333 | BM34: =AVERAGE(BM5:BM31) -> 40.6
A36: Average | B36: =AVERAGE(B5:B33) -> 52.93333333 | C36: =AVERAGE(C5:C33) -> 12.33333333 | D36: =AVERAGE(D5:D33) -> 40.6 | G36: =AVERAGE(G5:G33) -> 51.06666667 | H36: =AVERAGE(H5:H33) -> 12.5625 | I36: =AVERAGE(I5:I33) -> 38.3125 | K36: =AVERAGE(K5:K33) -> 53 | L36: =AVERAGE(L5:L33) -> 12.8125 | M36: =AVERAGE(M5:M33) -> 40.1875 | O36: =AVERAGE(O5:O33) -> 52.13333333 | P36: =AVERAGE(P5:P33) -> 12.6 | Q36: =AVERAGE(Q5:Q33) -> 39.53333333 | S36: =AVERAGE(S5:S33) -> 52.9375 | T36: =AVERAGE(T5:T33) -> 12.5625 | U36: =AVERAGE(U5:U33) -> 40.375 | W36: =AVERAGE(W5:W33) -> 48.9375 | X36: =AVERAGE(X5:X33) -> 11.75 | Y36: =AVERAGE(Y5:Y33) -> 37.1875 | AA36: =AVERAGE(AA5:AA33) -> 50.3125 | AB36: =AVERAGE(AB5:AB33) -> 12.875 | AC36: =AVERAGE(AC5:AC33) -> 37.4375 | AE36: =AVERAGE(AE5:AE33) -> 49 | AF36: =AVERAGE(AF5:AF33) -> 13.1875 | AG36: =AVERAGE(AG5:AG33) -> 35.8125 | AI36: =AVERAGE(AI5:AI33) -> 51.75 | AJ36: =AVERAGE(AJ5:AJ33) -> 12.6875 | AK36: =AVERAGE(AK5:AK33) -> 39.0625 | AM36: =AVERAGE(AM5:AM33) -> 47.6875 | AN36: =AVERAGE(AN5:AN33) -> 13 | AO36: =AVERAGE(AO5:AO33) -> 34.6875 | AQ36: =AVERAGE(AQ5:AQ33) -> 50.75 | AR36: =AVERAGE(AR5:AR33) -> 12.4375 | AS36: =AVERAGE(AS5:AS33) -> 38.3125 | AU36: =AVERAGE(AU5:AU33) -> 49.25 | AV36: =AVERAGE(AV5:AV33) -> 12.4375 | AW36: =AVERAGE(AW5:AW33) -> 36.8125 | AY36: =AVERAGE(AY5:AY33) -> 49.46666667 | AZ36: =AVERAGE(AZ5:AZ33) -> 11.46666667 | BA36: =AVERAGE(BA5:BA33) -> 38 | BC36: =AVERAGE(BC5:BC33) -> 45.33333333 | BD36: =AVERAGE(BD5:BD33) -> 10.25 | BE36: =AVERAGE(BE5:BE33) -> 35.08333333 | BG36: =AVERAGE(BG5:BG33) -> 50.23076923 | BH36: =AVERAGE(BH5:BH33) -> 11.07692308 | BI36: =AVERAGE(BI5:BI33) -> 39.15384615 | BK36: =AVERAGE(BK5:BK33) -> 52.93333333 | BL36: =AVERAGE(BL5:BL33) -> 12.33333333 | BM36: =AVERAGE(BM5:BM33) -> 40.6

Sheet Hacker_Cup_Standings
B1: Week | C1: Points Back | D1: Playoffs
A2: Previous | B2: Player | D2: =SUM(E3:I3)-MIN(F3:I3) | E2: Start | F2: 1 | G2: 2 | H2: 3 | I2: 4
A3: 1 | B3: Mark Rusnak | C3: =+D3-$D$3 -> 0 | D3: =SUM(E3:I3)-MIN(F3:I3) -> 8500 | E3: 2500 | F3: 750 | G3: 2000 | H3: 1000 | I3: 3000
A4: 3 | B4: Marty Reed | C4: -1950 | D4: 6550 | E4: 450 | F4: 3000 | G4: 2500 | H4: 0 | I4: 600
A5: 2 | B5: Dan Fusco | C5: -2316.666667 | D5: 6183.333333 | E5: 3000 | F5: 1133.333333 | G5: 1050 | H5: 1000 | I5: 0
A6: 5 | B6: Andy Linton | C6: -2450 | D6: 6050 | E6: 2000 | F6: 550 | G6: 1050 | H6: 1000 | I6: 2000
A7: 8 | B7: Brian McLaughlin | C7: -2700 | D7: 5800 | E7: 800 | F7: 0 | G7: 0 | H7: 3000 | I7: 2000
A8: 4 | B8: Pete Michalski | C8: -3100 | D8: 5400 | E8: 200 | F8: 2500 | G8: 0 | H8: 2250 | I8: 450
A9: 6 | B9: Tim Hobbs | C9: -4000 | D9: 4500 | E9: 1500 | F9: 0 | G9: 3000 | H9: 0 | I9: 0
A10: 12 | B10: Jim Daviero | C10: -4066.666667 | D10: 4433.333333 | E10: 500 | F10: 1133.333333 | G10: 0 | H10: 800 | I10: 2000
A11: 7 | B11: Dave Taylor | C11: -4300 | D11: 4200 | E11: 700 | F11: 2000 | G11: 650 | H11: 650 | I11: 850
A12: 9 | B12: Tom Mohsinger | C12: -4566.666667 | D12: 3933.333333 | E12: 900 | F12: 1133.333333 | G12: 1050 | H12: 450 | I12: 850
A13: 10 | B13: Gloria Poston | C13: -5450 | D13: 3050 | E13: 350 | F13: 450 | G13: 0 | H13: 2250 | I13: 0
A14: 11 | B14: Dan Palmerino | C14: -5450 | D14: 3050 | E14: 250 | F14: 750 | G14: 1050 | H14: 650 | I14: 1000
A15: 14 | B15: Bob Templeton | C15: -6500 | D15: 2000 | E15: 600 | F15: 400 | G15: 500 | H15: 0 | I15: 500
A16: 15 | B16: Sue Michalski | C16: -6650 | D16: 1850 | E16: 400 | F16: 550 | G16: 0 | H16: 500 | I16: 400
A17: 13 | B17: Bette Mohsinger | C17: -6850 | D17: 1650 | E17: 1000 | F17: 0 | G17: 650 | H17: 0 | I17: 0
A18: 16 | B18: Matt Nichols | C18: -8200 | D18: 300 | E18: 300 | F18: 0 | G18: 0 | H18: 0 | I18: 0
A44: Previous | B44: Week | C44: Points Back | D44: Regular Season | E44: 1 | F44: 2 | G44: 3 | H44: 4 | I44: 5 | J44: 6 | K44: 7 | L44: 8 | M44: 9 | N44: 10 | O44: 11
B45: Player
A46: 1 | B46: Dan Fusco | C46: =$D$46-D46 -> 0 | D46: =SUM(E46:O46) -> 15450 | E46: 2000 | F46: 900 | G46: 2250 | H46: 1750 | I46: 2250 | J46: 950 | K46: 2750 | L46: 850 | M46: 750 | N46: 500 | O46: 500
A47: 4 | B47: Mark Rusnak | C47: 1266.666667 | D47: 14183.33333 | E47: 3000 | F47: 400 | G47: 3000 | H47: 650 | I47: 500 | J47: 375 | K47: 658.3333333 | L47: 1000 | M47: 1750 | N47: 350 | O47: 2500
A48: 3 | B48: Andy Linton | C48: 2450 | D48: 13000 | E48: 300 | F48: 300 | G48: 2250 | H48: 900 | I48: 700 | J48: 3000 | K48: 1250 | L48: 2000 | M48: 900 | N48: 600 | O48: 800
A49: 2 | B49: Tim Hobbs | C49: 2766.666667 | D49: 12683.33333 | E49: 900 | F49: 2250 | G49: 1250 | H49: 1750 | I49: 2250 | J49: 600 | K49: 658.3333333 | L49: 375 | M49: 500 | N49: 1750 | O49: 400
A50: 9 | B50: Bette Mohsinger | C50: 3354.166667 | D50: 12095.83333 | E50: 562.5 | F50: 350 | G50: 600 | H50: 400 | I50: 1133.333333 | J50: 2250 | K50: 2750 | L50: 375 | M50: 750 | N50: 425 | O50: 2500
A51: 5 | B51: Tom Mohsinger | C51: 4025 | D51: 11425 | E51: 1000 | F51: 650 | G51: 850 | H51: 900 | I51: 0 | J51: 0 | K51: 225 | L51: 2000 | M51: 2500 | N51: 2500 | O51: 800
A52: 6 | B52: Brian McLaughlin | C52: 4441.666667 | D52: 11008.33333 | E52: 400 | F52: 2250 | G52: 600 | H52: 0 | I52: 400 | J52: 300 | K52: 658.3333333 | L52: 2000 | M52: 1000 | N52: 3000 | O52: 400
A53: 10 | B53: Dave Taylor | C53: 5000 | D53: 10450 | E53: 350 | F53: 900 | G53: 450 | H53: 650 | I53: 3000 | J53: 375 | K53: 2000 | L53: 475 | M53: 325 | N53: 425 | O53: 1500
A54: 8 | B54: Bob Templeton | C54: 5350 | D54: 10100 | E54: 250 | F54: 3000 | G54: 600 | H54: 400 | I54: 350 | J54: 750 | K54: 350 | L54: 850 | M54: 3000 | N54: 250 | O54: 300
A55: 7 | B55: Jim Daviero | C55: 5637.5 | D55: 9812.5 | E55: 562.5 | F55: 0 | G55: 850 | H55: 900 | I55: 450 | J55: 1500 | K55: 1250 | L55: 3000 | M55: 400 | N55: 900 | O55: 0
A56: 11 | B56: Marty Reed | C56: 6241.666667 | D56: 9208.333333 | E56: 0 | F56: 0 | G56: 0 | H56: 3000 | I56: 700 | J56: 2250 | K56: 658.3333333 | L56: 650 | M56: 450 | N56: 900 | O56: 600
A57: 15 | B57: Sue Michalski | C57: 7091.666667 | D57: 8358.333333 | E57: 2500 | F57: 450 | G57: 450 | H57: 400 | I57: 0 | J57: 500 | K57: 658.3333333 | L57: 275 | M57: 325 | N57: 300 | O57: 2500
A58: 12 | B58: Gloria Poston | C58: 7366.666667 | D58: 8083.333333 | E58: 1500 | F58: 1500 | G58: 0 | H58: 0 | I58: 1133.333333 | J58: 750 | K58: 400 | L58: 650 | M58: 0 | N58: 1750 | O58: 400
A59: 13 | B59: Matt Nichols | C59: 7787.5 | D59: 7662.5 | E59: 562.5 | F59: 500 | G59: 1250 | H59: 2500 | I59: 700 | J59: 950 | K59: 300 | L59: 0 | M59: 200 | N59: 700 | O59: 0
A60: 14 | B60: Dan Palmerino | C60: 8220.833333 | D60: 7229.166667 | E60: 562.5 | F60: 900 | G60: 0 | H60: 500 | I60: 1133.333333 | J60: 450 | K60: 658.3333333 | L60: 475 | M60: 1750 | N60: 0 | O60: 800
A61: 16 | B61: Pete Michalski | C61: 10100 | D61: 5350 | E61: 800 | F61: 650 | G61: 350 | H61: 300 | I61: 0 | J61: 250 | K61: 225 | L61: 275 | M61: 600 | N61: 900 | O61: 1000
D76: Playoffs | E76: Seed | F76: 1 | G76: 2 | H76: 3 | I76: 4
B78: Andy Linton | D78: =SUM(E78:I78) -> 0
B79: Bob Bush | D79: 0
B80: Mike Smith | D80: 0
B81: Marty Reed | D81: 0
B82: Randy Gauthier | D82: 0
B83: Tom Mohsinger | D83: 0
B84: Gloria Poston | D84: 0
B85: Steve Fusco | D85: 0
B86: Dan Richardson | D86: 0
B87: Ken Lakich | D87: 0
B88: Todd Templeton | D88: 0
B89: Matt Rielly | D89: 0
B90: George Calder | D90: 0
B91: Bob Templeton | D91: 0
B92: Dave Taylor | D92: 0
B93: Ev Kauffman | D93: 0

Sheet HC History
C1: Season | D1: 2024 | T1: 2023 | AL1: Rounded | AN1: =IF(AO1>0,"CHECK HANDICAPS","") ->  | AO1: =SUM(AO5:AO71) -> 0
C2: Current | D2: 15 | E2: 14 | F2: 13 | G2: 12 | H2: 11 | I2: 10 | J2: 9 | K2: 8 | L2: 7 | M2: 6 | N2: 5 | O2: 4 | P2: 3 | Q2: 2 | R2: 1 | T2: 15 | U2: 14 | V2: 13 | W2: 12 | X2: 11 | Y2: 10 | AJ2: Total | AK2: Handicap | AL2: at .5
A3: PLAYER
A4: =[1]Linton!A1 -> Andy Linton | B4: linton | C4: =MIN(AL5,25) -> 5 | D4: =INDIRECT(CONCATENATE(B4,"!CL22")) -> 6 | E4: =INDIRECT(CONCATENATE(B4,"!CF22")) -> 6 | F4: =INDIRECT(CONCATENATE(B4,"!BZ22")) -> 4 | G4: =INDIRECT(CONCATENATE(B4,"!BT22")) -> 7 | H4: =INDIRECT(CONCATENATE(B4,"!BN22")) -> 5 | I4: =INDIRECT(CONCATENATE(B4,"!BH22")) -> 8 | J4: =INDIRECT(CONCATENATE(B4,"!BB22")) -> 2 | K4: =INDIRECT(CONCATENATE(B4,"!AV22")) -> 6 | L4: =INDIRECT(CONCATENATE(B4,"!AP22")) -> 5 | M4: =INDIRECT(CONCATENATE(B4,"!AJ22")) -> 5 | N4: =INDIRECT(CONCATENATE(B4,"!AD22")) -> 7 | O4: =INDIRECT(CONCATENATE(B4,"!X22")) -> 10 | P4: =INDIRECT(CONCATENATE(B4,"!R22")) -> 5 | Q4: =INDIRECT(CONCATENATE(B4,"!L22")) -> 12 | R4: =INDIRECT(CONCATENATE(B4,"!F22")) -> 12 | T4: 8 | U4: 3 | V4: 7 | W4: 4 | X4: 7 | Y4: 3 | AM4: =COUNT(C4:AI4) -> 22
D5: 6 | E5: 6 | F5: 4 | H5: 5 | AJ5: =SUM(C5:AI5) -> 21 | AK5: =+AJ5/AM5 -> 5.25 | AL5: =ROUND(SUM(AK5),0) -> 5 | AM5: 4 | AN5: =IF(COUNT(D5:R5)<>4,"INCORRECT HCP COUNT","") ->  | AO5: =COUNTIF(AP5:AZ5,TRUE) -> 0 | AP5: =AND(D5>0,D5<>D4) -> FALSE | AQ5: =AND(E5>0,E5<>E4) -> FALSE | AR5: FALSE | AS5: FALSE | AT5: FALSE | AU5: FALSE | AV5: FALSE | AW5: FALSE | AX5: =AND(L5>0,L5<>L4) -> FALSE | AY5: =AND(M5>0,M5<>M4) -> FALSE | AZ5: =AND(N5>0,N5<>N4) -> FALSE
A6: =[1]Mohsinger_B!A1 -> Bette Mohsinger | B6: mohsinger_b | C6: =MIN(AL7,25) -> 12 | F6: =INDIRECT(CONCATENATE(B6,"!BZ22")) -> 13 | H6: =INDIRECT(CONCATENATE(B6,"!BN22")) -> 10 | I6: =INDIRECT(CONCATENATE(B6,"!BH22")) -> 18 | J6: =INDIRECT(CONCATENATE(B6,"!BB22")) -> 12 | K6: =INDIRECT(CONCATENATE(B6,"!AV22")) -> 20 | L6: =INDIRECT(CONCATENATE(B6,"!AP22")) -> 11 | M6: =INDIRECT(CONCATENATE(B6,"!AJ22")) -> 13 | N6: =INDIRECT(CONCATENATE(B6,"!AD22")) -> 14 | O6: =INDIRECT(CONCATENATE(B6,"!X22")) -> 22 | P6: =INDIRECT(CONCATENATE(B6,"!R22")) -> 18 | Q6: =INDIRECT(CONCATENATE(B6,"!L22")) -> 19 | R6: =INDIRECT(CONCATENATE(B6,"!F22")) -> 15 | T6: 12 | U6: 17 | V6: 17 | W6: 10 | X6: 16 | Y6: 15 | AM6: 19
F7: 13 | H7: 10 | J7: 12 | L7: 11 | AJ7: =SUM(C7:AI7) -> 46 | AK7: =+AJ7/AM7 -> 11.5 | AL7: =ROUND(SUM(AK7),0) -> 12 | AM7: 4 | AN7: =IF(COUNT(D7:R7)<>4,"INCORRECT HCP COUNT","") ->  | AO7: =COUNTIF(AP7:AZ7,TRUE) -> 0 | AP7: =AND(D7>0,D7<>D6) -> FALSE | AQ7: =AND(E7>0,E7<>E6) -> FALSE | AR7: =AND(F7>0,F7<>F6) -> FALSE | AS7: =AND(G7>0,G7<>G6) -> FALSE | AT7: =AND(H7>0,H7<>H6) -> FALSE | AU7: =AND(I7>0,I7<>I6) -> FALSE | AV7: =AND(J7>0,J7<>J6) -> FALSE | AW7: =AND(K7>0,K7<>K6) -> FALSE | AX7: =AND(L7>0,L7<>L6) -> FALSE | AY7: =AND(M7>0,M7<>M6) -> FALSE | AZ7: =AND(N7>0,N7<>N6) -> FALSE
A8: =[1]Templeton!A1 -> Bob Templeton | B8: templeton | C8: =MIN(AL9,25) -> 20 | D8: =INDIRECT(CONCATENATE(B8,"!CL22")) -> 24 | F8: =INDIRECT(CONCATENATE(B8,"!BZ22")) -> 21 | G8: =INDIRECT(CONCATENATE(B8,"!BT22")) -> 22 | H8: =INDIRECT(CONCATENATE(B8,"!BN22")) -> 22 | I8: =INDIRECT(CONCATENATE(B8,"!BH22")) -> 22 | J8: =INDIRECT(CONCATENATE(B8,"!BB22")) -> 14 | K8: =INDIRECT(CONCATENATE(B8,"!AV22")) -> 21 | L8: =INDIRECT(CONCATENATE(B8,"!AP22")) -> 20 | M8: =INDIRECT(CONCATENATE(B8,"!AJ22")) -> 19 | N8: =INDIRECT(CONCATENATE(B8,"!AD22")) -> 24 | O8: =INDIRECT(CONCATENATE(B8,"!X22")) -> 22 | P8: =INDIRECT(CONCATENATE(B8,"!R22")) -> 22 | Q8: =INDIRECT(CONCATENATE(B8,"!L22")) -> 18 | R8: =INDIRECT(CONCATENATE(B8,"!F22")) -> 23 | T8: 17 | U8: 23 | V8: 20 | W8: 24 | X8: 23 | Y8: 15 | AM8: 21
F9: 21 | G9: 22 | H9: 22 | J9: 14 | AJ9: =SUM(C9:AI9) -> 79 | AK9: =+AJ9/AM9 -> 19.75 | AL9: =ROUND(SUM(AK9),0) -> 20 | AM9: 4 | AN9: =IF(COUNT(D9:R9)<>4,"INCORRECT HCP COUNT","") ->  | AO9: =COUNTIF(AP9:AZ9,TRUE) -> 0 | AP9: =AND(D9>0,D9<>D8) -> FALSE | AQ9: =AND(E9>0,E9<>E8) -> FALSE | AR9: =AND(F9>0,F9<>F8) -> FALSE | AS9: =AND(G9>0,G9<>G8) -> FALSE | AT9: =AND(H9>0,H9<>H8) -> FALSE | AU9: =AND(I9>0,I9<>I8) -> FALSE | AV9: =AND(J9>0,J9<>J8) -> FALSE | AW9: =AND(K9>0,K9<>K8) -> FALSE | AX9: =AND(L9>0,L9<>L8) -> FALSE | AY9: =AND(M9>0,M9<>M8) -> FALSE | AZ9: =AND(N9>0,N9<>N8) -> FALSE
A10: =[1]McLaughlin!A1 -> Brian McLaughlin | B10: mclaughlin | C10: =MIN(AL11,25) -> 12 | D10: =INDIRECT(CONCATENATE(B10,"!CL22")) -> 14 | E10: =INDIRECT(CONCATENATE(B10,"!CF22")) -> 11 | H10: =INDIRECT(CONCATENATE(B10,"!BN22")) -> 18 | I10: =INDIRECT(CONCATENATE(B10,"!BH22")) -> 11 | J10: =INDIRECT(CONCATENATE(B10,"!BB22")) -> 12 | K10: =INDIRECT(CONCATENATE(B10,"!AV22")) -> 16 | L10: =INDIRECT(CONCATENATE(B10,"!AP22")) -> 15 | M10: =INDIRECT(CONCATENATE(B10,"!AJ22")) -> 20 | N10: =INDIRECT(CONCATENATE(B10,"!AD22")) -> 17 | P10: =INDIRECT(CONCATENATE(B10,"!R22")) -> 18 | Q10: =INDIRECT(CONCATENATE(B10,"!L22")) -> 15 | R10: =INDIRECT(CONCATENATE(B10,"!F22")) -> 17 | T10: 15 | U10: 14 | V10: 9 | W10: 19 | X10: 19 | Y10: 2 | AM10: 19
D11: 14 | E11: 11 | I11: 11 | J11: 12 | AJ11: =SUM(C11:AI11) -> 48 | AK11: =+AJ11/AM11 -> 12 | AL11: =ROUND(SUM(AK11),0) -> 12 | AM11: 4 | AN11: =IF(COUNT(D11:R11)<>4,"INCORRECT HCP COUNT","") ->  | AO11: =COUNTIF(AP11:AZ11,TRUE) -> 0 | AP11: =AND(D11>0,D11<>D10) -> FALSE | AQ11: =AND(E11>0,E11<>E10) -> FALSE | AR11: =AND(F11>0,F11<>F10) -> FALSE | AS11: =AND(G11>0,G11<>G10) -> FALSE | AT11: =AND(H11>0,H11<>H10) -> FALSE | AU11: =AND(I11>0,I11<>I10) -> FALSE | AV11: =AND(J11>0,J11<>J10) -> FALSE | AW11: =AND(K11>0,K11<>K10) -> FALSE | AX11: =AND(L11>0,L11<>L10) -> FALSE | AY11: =AND(M11>0,M11<>M10) -> FALSE | AZ11: =AND(N11>0,N11<>N10) -> FALSE
A12: =[1]Fusco_D!A1 -> Dan Fusco | B12: fusco_d | C12: =MIN(AL13,25) -> 8 | D12: =INDIRECT(CONCATENATE(B12,"!CL22")) -> 11 | E12: =INDIRECT(CONCATENATE(B12,"!CF22")) -> 9 | F12: =INDIRECT(CONCATENATE(B12,"!BZ22")) -> 6 | G12: =INDIRECT(CONCATENATE(B12,"!BT22")) -> 8 | H12: =INDIRECT(CONCATENATE(B12,"!BN22")) -> 9 | I12: =INDIRECT(CONCATENATE(B12,"!BH22")) -> 10 | J12: =INDIRECT(CONCATENATE(B12,"!BB22")) -> 5 | K12: =INDIRECT(CONCATENATE(B12,"!AV22")) -> 9 | L12: =INDIRECT(CONCATENATE(B12,"!AP22")) -> 4 | M12: =INDIRECT(CONCATENATE(B12,"!AJ22")) -> 8 | N12: =INDIRECT(CONCATENATE(B12,"!AD22")) -> 7 | O12: =INDIRECT(CONCATENATE(B12,"!X22")) -> 10 | P12: =INDIRECT(CONCATENATE(B12,"!R22")) -> 8 | Q12: =INDIRECT(CONCATENATE(B12,"!L22")) -> 11 | R12: =INDIRECT(CONCATENATE(B12,"!F22")) -> 7 | T12: 14 | U12: 10 | V12: 11 | W12: 10 | X12: 5 | Y12: 8 | AM12: 22
E13: 9 | F13: 6 | G13: 8 | H13: 9 | AJ13: =SUM(C13:AI13) -> 32 | AK13: =+AJ13/AM13 -> 8 | AL13: =ROUND(SUM(AK13),0) -> 8 | AM13: 4 | AN13: =IF(COUNT(D13:R13)<>4,"INCORRECT HCP COUNT","") ->  | AO13: =COUNTIF(AP13:AZ13,TRUE) -> 0 | AP13: =AND(D13>0,D13<>D12) -> FALSE | AQ13: =AND(E13>0,E13<>E12) -> FALSE | AR13: =AND(F13>0,F13<>F12) -> FALSE | AS13: =AND(G13>0,G13<>G12) -> FALSE | AT13: =AND(H13>0,H13<>H12) -> FALSE | AU13: =AND(I13>0,I13<>I12) -> FALSE | AV13: =AND(J13>0,J13<>J12) -> FALSE | AW13: =AND(K13>0,K13<>K12) -> FALSE | AX13: =AND(L13>0,L13<>L12) -> FALSE | AY13: =AND(M13>0,M13<>M12) -> FALSE | AZ13: =AND(N13>0,N13<>N12) -> FALSE
A14: =[1]Palmerino!A1 -> Dan Palmerino | B14: palmerino | C14: =MIN(AL15,25) -> 8 | D14: =INDIRECT(CONCATENATE(B14,"!CL22")) -> 11 | E14: =INDIRECT(CONCATENATE(B14,"!CF22")) -> 12 | F14: =INDIRECT(CONCATENATE(B14,"!BZ22")) -> 8 | G14: =INDIRECT(CONCATENATE(B14,"!BT22")) -> 10 | H14: =INDIRECT(CONCATENATE(B14,"!BN22")) -> 9 | J14: =INDIRECT(CONCATENATE(B14,"!BB22")) -> 6 | K14: =INDIRECT(CONCATENATE(B14,"!AV22")) -> 14 | L14: =INDIRECT(CONCATENATE(B14,"!AP22")) -> 9 | M14: =INDIRECT(CONCATENATE(B14,"!AJ22")) -> 14 | N14: =INDIRECT(CONCATENATE(B14,"!AD22")) -> 8 | O14: =INDIRECT(CONCATENATE(B14,"!X22")) -> 15 | Q14: =INDIRECT(CONCATENATE(B14,"!L22")) -> 11 | R14: =INDIRECT(CONCATENATE(B14,"!F22")) -> 12 | T14: 9 | U14: 10 | V14: 7 | W14: 8 | X14: 8 | Y14: 12 | AM14: 20
F15: 8 | G15: 10 | H15: 9 | J15: 6 | AJ15: =SUM(C15:AI15) -> 33 | AK15: =+AJ15/AM15 -> 8.25 | AL15: =ROUND(SUM(AK15),0) -> 8 | AM15: 4 | AN15: =IF(COUNT(D15:R15)<>4,"INCORRECT HCP COUNT","") ->  | AO15: =COUNTIF(AP15:AZ15,TRUE) -> 0 | AP15: =AND(D15>0,D15<>D14) -> FALSE | AQ15: =AND(E15>0,E15<>E14) -> FALSE | AR15: =AND(F15>0,F15<>F14) -> FALSE | AS15: =AND(G15>0,G15<>G14) -> FALSE | AT15: =AND(H15>0,H15<>H14) -> FALSE | AU15: =AND(I15>0,I15<>I14) -> FALSE | AV15: =AND(J15>0,J15<>J14) -> FALSE | AW15: =AND(K15>0,K15<>K14) -> FALSE | AX15: =AND(L15>0,L15<>L14) -> FALSE | AY15: =AND(M15>0,M15<>M14) -> FALSE | AZ15: =AND(N15>0,N15<>N14) -> FALSE
A16: =[1]Taylor!A1 -> Dave Taylor | B16: taylor | C16: =MIN(AL17,25) -> 13 | D16: =INDIRECT(CONCATENATE(B16,"!CL22")) -> 16 | E16: =INDIRECT(CONCATENATE(B16,"!CF22")) -> 17 | F16: =INDIRECT(CONCATENATE(B16,"!BZ22")) -> 13 | G16: =INDIRECT(CONCATENATE(B16,"!BT22")) -> 13 | H16: =INDIRECT(CONCATENATE(B16,"!BN22")) -> 11 | I16: =INDIRECT(CONCATENATE(B16,"!BH22")) -> 17 | J16: =INDIRECT(CONCATENATE(B16,"!BB22")) -> 15 | K16: =INDIRECT(CONCATENATE(B16,"!AV22")) -> 15 | L16: =INDIRECT(CONCATENATE(B16,"!AP22")) -> 10 | M16: =INDIRECT(CONCATENATE(B16,"!AJ22")) -> 15 | N16: =INDIRECT(CONCATENATE(B16,"!AD22")) -> 10 | O16: =INDIRECT(CONCATENATE(B16,"!X22")) -> 14 | P16: =INDIRECT(CONCATENATE(B16,"!R22")) -> 17 | Q16: =INDIRECT(CONCATENATE(B16,"!L22")) -> 14 | R16: =INDIRECT(CONCATENATE(B16,"!F22")) -> 17 | T16: 12 | U16: 10 | V16: 12 | W16: 8 | X16: 13 | Y16: 13 | AM16: 22
D17: 16 | F17: 13 | G17: 13 | H17: 11 | AJ17: =SUM(C17:AI17) -> 53 | AK17: =+AJ17/AM17 -> 13.25 | AL17: =ROUND(SUM(AK17),0) -> 13 | AM17: 4 | AN17: =IF(COUNT(D17:R17)<>4,"INCORRECT HCP COUNT","") ->  | AO17: =COUNTIF(AP17:AZ17,TRUE) -> 0 | AP17: =AND(D17>0,D17<>D16) -> FALSE | AQ17: =AND(E17>0,E17<>E16) -> FALSE | AR17: =AND(F17>0,F17<>F16) -> FALSE | AS17: =AND(G17>0,G17<>G16) -> FALSE | AT17: =AND(H17>0,H17<>H16) -> FALSE | AU17: =AND(I17>0,I17<>I16) -> FALSE | AV17: =AND(J17>0,J17<>J16) -> FALSE | AW17: =AND(K17>0,K17<>K16) -> FALSE | AX17: =AND(L17>0,L17<>L16) -> FALSE | AY17: =AND(M17>0,M17<>M16) -> FALSE | AZ17: =AND(N17>0,N17<>N16) -> FALSE
A18: =[1]Poston!A1 -> Gloria Poston | B18: poston | C18: =MIN(AL19,25) -> 12 | E18: =INDIRECT(CONCATENATE(B18,"!CF22")) -> 12 | G18: =INDIRECT(CONCATENATE(B18,"!BT22")) -> 17 | H18: =INDIRECT(CONCATENATE(B18,"!BN22")) -> 15 | I18: =INDIRECT(CONCATENATE(B18,"!BH22")) -> 10 | K18: =INDIRECT(CONCATENATE(B18,"!AV22")) -> 14 | L18: =INDIRECT(CONCATENATE(B18,"!AP22")) -> 11 | M18: =INDIRECT(CONCATENATE(B18,"!AJ22")) -> 11 | N18: =INDIRECT(CONCATENATE(B18,"!AD22")) -> 10 | Q18: =INDIRECT(CONCATENATE(B18,"!L22")) -> 13 | R18: =INDIRECT(CONCATENATE(B18,"!F22")) -> 11 | T18: 12 | U18: 13 | V18: 6 | W18: 13 | X18: 13 | Y18: 15 | AM18: 17
E19: 12 | I19: 10 | K19: 14 | L19: 11 | AJ19: =SUM(C19:AI19) -> 47 | AK19: =+AJ19/AM19 -> 11.75 | AL19: =ROUND(SUM(AK19),0) -> 12 | AM19: 4 | AN19: =IF(COUNT(D19:R19)<>4,"INCORRECT HCP COUNT","") ->  | AO19: =COUNTIF(AP19:AZ19,TRUE) -> 0 | AP19: =AND(D19>0,D19<>D18) -> FALSE | AQ19: =AND(E19>0,E19<>E18) -> FALSE | AR19: =AND(F19>0,F19<>F18) -> FALSE | AS19: =AND(G19>0,G19<>G18) -> FALSE | AT19: =AND(H19>0,H19<>H18) -> FALSE | AU19: =AND(I19>0,I19<>I18) -> FALSE | AV19: =AND(J19>0,J19<>J18) -> FALSE | AW19: =AND(K19>0,K19<>K18) -> FALSE | AX19: =AND(L19>0,L19<>L18) -> FALSE | AY19: =AND(M19>0,M19<>M18) -> FALSE | AZ19: =AND(N19>0,N19<>N18) -> FALSE
A20: =[1]Daviero!A1 -> Jim Daviero | B20: daviero | C20: =MIN(AL21,25) -> 9 | D20: =INDIRECT(CONCATENATE(B20,"!CL22")) -> 10 | E20: =INDIRECT(CONCATENATE(B20,"!CF22")) -> 11 | G20: =INDIRECT(CONCATENATE(B20,"!BT22")) -> 9 | I20: =INDIRECT(CONCATENATE(B20,"!BH22")) -> 9 | J20: =INDIRECT(CONCATENATE(B20,"!BB22")) -> 9 | K20: =INDIRECT(CONCATENATE(B20,"!AV22")) -> 7 | L20: =INDIRECT(CONCATENATE(B20,"!AP22")) -> 8 | M20: =INDIRECT(CONCATENATE(B20,"!AJ22")) -> 8 | N20: =INDIRECT(CONCATENATE(B20,"!AD22")) -> 11 | O20: =INDIRECT(CONCATENATE(B20,"!X22")) -> 11 | P20: =INDIRECT(CONCATENATE(B20,"!R22")) -> 10 | R20: =INDIRECT(CONCATENATE(B20,"!F22")) -> 9 | T20: 12 | U20: 5 | V20: 9 | W20: 6 | X20: 7 | Y20: 2 | AM20: 19
G21: 9 | I21: 9 | J21: 9 | K21: 7 | AJ21: =SUM(C21:AI21) -> 34 | AK21: =+AJ21/AM21 -> 8.5 | AL21: =ROUND(SUM(AK21),0) -> 9 | AM21: 4 | AN21: =IF(COUNT(D21:R21)<>4,"INCORRECT HCP COUNT","") ->  | AO21: =COUNTIF(AP21:AZ21,TRUE) -> 0 | AP21: =AND(D21>0,D21<>D20) -> FALSE | AQ21: =AND(E21>0,E21<>E20) -> FALSE | AR21: =AND(F21>0,F21<>F20) -> FALSE | AS21: =AND(G21>0,G21<>G20) -> FALSE | AT21: =AND(H21>0,H21<>H20) -> FALSE | AU21: =AND(I21>0,I21<>I20) -> FALSE | AV21: =AND(J21>0,J21<>J20) -> FALSE | AW21: =AND(K21>0,K21<>K20) -> FALSE | AX21: =AND(L21>0,L21<>L20) -> FALSE | AY21: =AND(M21>0,M21<>M20) -> FALSE | AZ21: =AND(N21>0,N21<>N20) -> FALSE
A22: =[1]Rusnak!A1 -> Mark Rusnak | B22: rusnak | C22: =MIN(AL23,25) -> 3 | D22: =INDIRECT(CONCATENATE(B22,"!CL22")) -> 2 | E22: =INDIRECT(CONCATENATE(B22,"!CF22")) -> 5 | F22: =INDIRECT(CONCATENATE(B22,"!BZ22")) -> 1 | G22: =INDIRECT(CONCATENATE(B22,"!BT22")) -> 6 | H22: =INDIRECT(CONCATENATE(B22,"!BN22")) -> 2 | I22: =INDIRECT(CONCATENATE(B22,"!BH22")) -> 11 | J22: =INDIRECT(CONCATENATE(B22,"!BB22")) -> 1 | K22: =INDIRECT(CONCATENATE(B22,"!AV22")) -> 7 | L22: =INDIRECT(CONCATENATE(B22,"!AP22")) -> 5 | M22: =INDIRECT(CONCATENATE(B22,"!AJ22")) -> 10 | N22: =INDIRECT(CONCATENATE(B22,"!AD22")) -> 7 | O22: =INDIRECT(CONCATENATE(B22,"!X22")) -> 10 | P22: =INDIRECT(CONCATENATE(B22,"!R22")) -> 3 | Q22: =INDIRECT(CONCATENATE(B22,"!L22")) -> 11 | R22: =INDIRECT(CONCATENATE(B22,"!F22")) -> 3 | T22: 6 | U22: 7 | V22: 6 | W22: 6 | X22: 7 | Y22: 4 | AM22: 22
D23: 2 | E23: 5 | F23: 1 | H23: 2 | AJ23: =SUM(C23:AI23) -> 10 | AK23: =+AJ23/AM23 -> 2.5 | AL23: =ROUND(SUM(AK23),0) -> 3 | AM23: 4 | AN23: =IF(COUNT(D23:R23)<>4,"INCORRECT HCP COUNT","") ->  | AO23: =COUNTIF(AP23:AZ23,TRUE) -> 0 | AP23: =AND(D23>0,D23<>D22) -> FALSE | AQ23: =AND(E23>0,E23<>E22) -> FALSE | AR23: =AND(F23>0,F23<>F22) -> FALSE | AS23: =AND(G23>0,G23<>G22) -> FALSE | AT23: =AND(H23>0,H23<>H22) -> FALSE | AU23: =AND(I23>0,I23<>I22) -> FALSE | AV23: =AND(J23>0,J23<>J22) -> FALSE | AW23: =AND(K23>0,K23<>K22) -> FALSE | AX23: =AND(L23>0,L23<>L22) -> FALSE | AY23: =AND(M23>0,M23<>M22) -> FALSE | AZ23: =AND(N23>0,N23<>N22) -> FALSE
A24: =[1]Reed!A1 -> Marty Reed | B24: reed | C24: =MIN(AL25,25) -> 5 | D24: =INDIRECT(CONCATENATE(B24,"!CL22")) -> 11 | F24: =INDIRECT(CONCATENATE(B24,"!BZ22")) -> 2 | G24: =INDIRECT(CONCATENATE(B24,"!BT22")) -> 4 | H24: =INDIRECT(CONCATENATE(B24,"!BN22")) -> 9 | I24: =INDIRECT(CONCATENATE(B24,"!BH22")) -> 7 | J24: =INDIRECT(CONCATENATE(B24,"!BB22")) -> 7 | K24: =INDIRECT(CONCATENATE(B24,"!AV22")) -> 9 | L24: =INDIRECT(CONCATENATE(B24,"!AP22")) -> 6 | M24: =INDIRECT(CONCATENATE(B24,"!AJ22")) -> 6 | N24: =INDIRECT(CONCATENATE(B24,"!AD22")) -> 8 | O24: =INDIRECT(CONCATENATE(B24,"!X22")) -> 5 | T24: 10 | U24: 10 | V24: 10 | W24: 11 | X24: 8 | Y24: 5 | AM24: 18
F25: 2 | G25: 4 | I25: 7 | J25: 7 | AJ25: =SUM(C25:AI25) -> 20 | AK25: =+AJ25/AM25 -> 5 | AL25: =ROUND(SUM(AK25),0) -> 5 | AM25: 4 | AN25: =IF(COUNT(D25:R25)<>4,"INCORRECT HCP COUNT","") ->  | AO25: =COUNTIF(AP25:AZ25,TRUE) -> 0 | AP25: =AND(D25>0,D25<>D24) -> FALSE | AQ25: =AND(E25>0,E25<>E24) -> FALSE | AR25: =AND(F25>0,F25<>F24) -> FALSE | AS25: =AND(G25>0,G25<>G24) -> FALSE | AT25: =AND(H25>0,H25<>H24) -> FALSE | AU25: =AND(I25>0,I25<>I24) -> FALSE | AV25: =AND(J25>0,J25<>J24) -> FALSE | AW25: =AND(K25>0,K25<>K24) -> FALSE | AX25: =AND(L25>0,L25<>L24) -> FALSE | AY25: =AND(M25>0,M25<>M24) -> FALSE | AZ25: =AND(N25>0,N25<>N24) -> FALSE
A26: =[1]Nichols!A1 -> Matt Nichols | B26: nichols | C26: =MIN(AL27,25) -> 13 | I26: =INDIRECT(CONCATENATE(B26,"!BH22")) -> 14 | J26: =INDIRECT(CONCATENATE(B26,"!BB22")) -> 16 | L26: =INDIRECT(CONCATENATE(B26,"!AP22")) -> 15 | M26: =INDIRECT(CONCATENATE(B26,"!AJ22")) -> 13 | N26: =INDIRECT(CONCATENATE(B26,"!AD22")) -> 13 | O26: =INDIRECT(CONCATENATE(B26,"!X22")) -> 13 | P26: =INDIRECT(CONCATENATE(B26,"!R22")) -> 14 | Q26: =INDIRECT(CONCATENATE(B26,"!L22")) -> 17 | R26: =INDIRECT(CONCATENATE(B26,"!F22")) -> 15 | T26: 15 | U26: 10 | V26: 15 | W26: 12 | X26: 15 | Y26: 10 | AM26: 16
I27: 14 | M27: 13 | N27: 13 | O27: 13 | AJ27: =SUM(C27:AI27) -> 53 | AK27: =+AJ27/AM27 -> 13.25 | AL27: =ROUND(SUM(AK27),0) -> 13 | AM27: 4 | AN27: =IF(COUNT(D27:R27)<>4,"INCORRECT HCP COUNT","") ->  | AO27: =COUNTIF(AP27:AZ27,TRUE) -> 0 | AP27: =AND(D27>0,D27<>D26) -> FALSE | AQ27: =AND(E27>0,E27<>E26) -> FALSE | AR27: =AND(F27>0,F27<>F26) -> FALSE | AS27: =AND(G27>0,G27<>G26) -> FALSE | AT27: =AND(H27>0,H27<>H26) -> FALSE | AU27: =AND(I27>0,I27<>I26) -> FALSE | AV27: =AND(J27>0,J27<>J26) -> FALSE | AW27: =AND(K27>0,K27<>K26) -> FALSE | AX27: =AND(L27>0,L27<>L26) -> FALSE | AY27: =AND(M27>0,M27<>M26) -> FALSE | AZ27: =AND(N27>0,N27<>N26) -> FALSE
A28: =[1]Michalski_P!A1 -> Pete Michalski | B28: michalski_p | C28: =MIN(AL29,25) -> 19 | D28: =INDIRECT(CONCATENATE(B28,"!CL22")) -> 25 | E28: =INDIRECT(CONCATENATE(B28,"!CF22")) -> 19 | G28: =INDIRECT(CONCATENATE(B28,"!BT22")) -> 19 | H28: =INDIRECT(CONCATENATE(B28,"!BN22")) -> 18 | I28: =INDIRECT(CONCATENATE(B28,"!BH22")) -> 20 | J28: =INDIRECT(CONCATENATE(B28,"!BB22")) -> 19 | K28: =INDIRECT(CONCATENATE(B28,"!AV22")) -> 24 | L28: =INDIRECT(CONCATENATE(B28,"!AP22")) -> 21 | M28: =INDIRECT(CONCATENATE(B28,"!AJ22")) -> 23 | O28: =INDIRECT(CONCATENATE(B28,"!X22")) -> 26 | P28: =INDIRECT(CONCATENATE(B28,"!R22")) -> 24 | Q28: =INDIRECT(CONCATENATE(B28,"!L22")) -> 20 | R28: =INDIRECT(CONCATENATE(B28,"!F22")) -> 21 | T28: 23 | U28: 20 | V28: 23 | W28: 21 | X28: 19 | Y28: 25 | AM28: 20
E29: 19 | G29: 19 | H29: 18 | J29: 19 | AJ29: =SUM(C29:AI29) -> 75 | AK29: =+AJ29/AM29 -> 18.75 | AL29: =ROUND(SUM(AK29),0) -> 19 | AM29: 4 | AN29: =IF(COUNT(D29:R29)<>4,"INCORRECT HCP COUNT","") ->  | AO29: =COUNTIF(AP29:AZ29,TRUE) -> 0 | AP29: =AND(D29>0,D29<>D28) -> FALSE | AQ29: =AND(E29>0,E29<>E28) -> FALSE | AR29: =AND(F29>0,F29<>F28) -> FALSE | AS29: =AND(G29>0,G29<>G28) -> FALSE | AT29: =AND(H29>0,H29<>H28) -> FALSE | AU29: =AND(I29>0,I29<>I28) -> FALSE | AV29: =AND(J29>0,J29<>J28) -> FALSE | AW29: =AND(K29>0,K29<>K28) -> FALSE | AX29: =AND(L29>0,L29<>L28) -> FALSE | AY29: =AND(M29>0,M29<>M28) -> FALSE | AZ29: =AND(N29>0,N29<>N28) -> FALSE
A30: =[1]Michalski_S!A1 -> Sue Michalski | B30: michalski_s | C30: =MIN(AL31,25) -> 21 | D30: =INDIRECT(CONCATENATE(B30,"!CL22")) -> 26 | E30: =INDIRECT(CONCATENATE(B30,"!CF22")) -> 22 | G30: =INDIRECT(CONCATENATE(B30,"!BT22")) -> 22 | H30: =INDIRECT(CONCATENATE(B30,"!BN22")) -> 18 | I30: =INDIRECT(CONCATENATE(B30,"!BH22")) -> 25 | J30: =INDIRECT(CONCATENATE(B30,"!BB22")) -> 23 | K30: =INDIRECT(CONCATENATE(B30,"!AV22")) -> 25 | L30: =INDIRECT(CONCATENATE(B30,"!AP22")) -> 22 | M30: =INDIRECT(CONCATENATE(B30,"!AJ22")) -> 24 | O30: =INDIRECT(CONCATENATE(B30,"!X22")) -> 25 | P30: =INDIRECT(CONCATENATE(B30,"!R22")) -> 23 | Q30: =INDIRECT(CONCATENATE(B30,"!L22")) -> 26 | R30: =INDIRECT(CONCATENATE(B30,"!F22")) -> 21 | T30: 25 | U30: 25 | V30: 23 | W30: 22 | X30: 27 | Y30: 25 | AM30: 20
E31: 22 | G31: 22 | H31: 18 | J31: 23 | AJ31: =SUM(C31:AI31) -> 85 | AK31: =+AJ31/AM31 -> 21.25 | AL31: =ROUND(SUM(AK31),0) -> 21 | AM31: 4 | AN31: =IF(COUNT(D31:R31)<>4,"INCORRECT HCP COUNT","") ->  | AO31: =COUNTIF(AP31:AZ31,TRUE) -> 0 | AP31: =AND(D31>0,D31<>D30) -> FALSE | AQ31: =AND(E31>0,E31<>E30) -> FALSE | AR31: =AND(F31>0,F31<>F30) -> FALSE | AS31: =AND(G31>0,G31<>G30) -> FALSE | AT31: =AND(H31>0,H31<>H30) -> FALSE | AU31: =AND(I31>0,I31<>I30) -> FALSE | AV31: =AND(J31>0,J31<>J30) -> FALSE | AW31: =AND(K31>0,K31<>K30) -> FALSE | AX31: =AND(L31>0,L31<>L30) -> FALSE | AY31: =AND(M31>0,M31<>M30) -> FALSE | AZ31: =AND(N31>0,N31<>N30) -> FALSE
A32: =[1]Hobbs!A1 -> Tim Hobbs | B32: hobbs | C32: =MIN(AL33,25) -> 11 | F32: =INDIRECT(CONCATENATE(B32,"!BZ22")) -> 7 | H32: =INDIRECT(CONCATENATE(B32,"!BN22")) -> 17 | I32: =INDIRECT(CONCATENATE(B32,"!BH22")) -> 12 | J32: =INDIRECT(CONCATENATE(B32,"!BB22")) -> 12 | K32: =INDIRECT(CONCATENATE(B32,"!AV22")) -> 19 | L32: =INDIRECT(CONCATENATE(B32,"!AP22")) -> 13 | M32: =INDIRECT(CONCATENATE(B32,"!AJ22")) -> 15 | N32: =INDIRECT(CONCATENATE(B32,"!AD22")) -> 11 | O32: =INDIRECT(CONCATENATE(B32,"!X22")) -> 15 | P32: =INDIRECT(CONCATENATE(B32,"!R22")) -> 14 | Q32: =INDIRECT(CONCATENATE(B32,"!L22")) -> 15 | R32: =INDIRECT(CONCATENATE(B32,"!F22")) -> 16 | T32: 11 | U32: 18 | V32: 17 | W32: 12 | X32: 16 | Y32: 15 | AM32: 19
F33: 7 | I33: 12 | J33: 12 | L33: 13 | AJ33: =SUM(C33:AI33) -> 44 | AK33: =+AJ33/AM33 -> 11 | AL33: =ROUND(SUM(AK33),0) -> 11 | AM33: 4 | AN33: =IF(COUNT(D33:R33)<>4,"INCORRECT HCP COUNT","") ->  | AO33: =COUNTIF(AP33:AZ33,TRUE) -> 0 | AP33: =AND(D33>0,D33<>D32) -> FALSE | AQ33: =AND(E33>0,E33<>E32) -> FALSE | AR33: =AND(F33>0,F33<>F32) -> FALSE | AS33: =AND(G33>0,G33<>G32) -> FALSE | AT33: =AND(H33>0,H33<>H32) -> FALSE | AU33: =AND(I33>0,I33<>I32) -> FALSE | AV33: =AND(J33>0,J33<>J32) -> FALSE | AW33: =AND(K33>0,K33<>K32) -> FALSE | AX33: =AND(L33>0,L33<>L32) -> FALSE | AY33: =AND(M33>0,M33<>M32) -> FALSE | AZ33: =AND(N33>0,N33<>N32) -> FALSE
A34: =[1]Mohsinger_T!A1 -> Tom Mohsinger | B34: mohsinger_t | C34: =MIN(AL35,25) -> 14 | D34: =INDIRECT(CONCATENATE(B34,"!CL22")) -> 17 | E34: =INDIRECT(CONCATENATE(B34,"!CF22")) -> 20 | F34: =INDIRECT(CONCATENATE(B34,"!BZ22")) -> 13 | G34: =INDIRECT(CONCATENATE(B34,"!BT22")) -> 15 | H34: =INDIRECT(CONCATENATE(B34,"!BN22")) -> 15 | I34: =INDIRECT(CONCATENATE(B34,"!BH22")) -> 13 | J34: =INDIRECT(CONCATENATE(B34,"!BB22")) -> 11 | K34: =INDIRECT(CONCATENATE(B34,"!AV22")) -> 16 | L34: =INDIRECT(CONCATENATE(B34,"!AP22")) -> 22 | O34: =INDIRECT(CONCATENATE(B34,"!X22")) -> 20 | P34: =INDIRECT(CONCATENATE(B34,"!R22")) -> 18 | Q34: =INDIRECT(CONCATENATE(B34,"!L22")) -> 17 | R34: =INDIRECT(CONCATENATE(B34,"!F22")) -> 17 | T34: 14 | U34: 17 | V34: 18 | W34: 13 | X34: 22 | Y34: 20 | AM34: 20
F35: 13 | G35: 15 | H35: 15 | I35: 13 | AJ35: =SUM(C35:AI35) -> 56 | AK35: =+AJ35/AM35 -> 14 | AL35: =ROUND(SUM(AK35),0) -> 14 | AM35: 4 | AN35: =IF(COUNT(D35:R35)<>4,"INCORRECT HCP COUNT","") ->  | AO35: =COUNTIF(AP35:AZ35,TRUE) -> 0 | AP35: =AND(D35>0,D35<>D34) -> FALSE | AQ35: =AND(E35>0,E35<>E34) -> FALSE | AR35: =AND(F35>0,F35<>F34) -> FALSE | AS35: =AND(G35>0,G35<>G34) -> FALSE | AT35: =AND(H35>0,H35<>H34) -> FALSE | AU35: =AND(I35>0,I35<>I34) -> FALSE | AV35: =AND(J35>0,J35<>J34) -> FALSE | AW35: =AND(K35>0,K35<>K34) -> FALSE | AX35: =AND(L35>0,L35<>L34) -> FALSE | AY35: =AND(M35>0,M35<>M34) -> FALSE | AZ35: =AND(N35>0,N35<>N34) -> FALSE
AM40: =COUNT(C40:AI40) -> 0
AM41: =COUNT(C41:AI41) -> 0
AM45: 0
AM46: 0
A47: Subs
A50: Bob Riley | B50: riley | C50: =MIN(AL51,25) -> 5 | D50: =IFERROR(INDIRECT(CONCATENATE(B50,"!CL22")),0) -> 0 | E50: =IFERROR(INDIRECT(CONCATENATE(B50,"!CF22")),0) -> 0 | F50: =IFERROR(INDIRECT(CONCATENATE(B50,"!BZ22")),0) -> 0 | G50: =IFERROR(INDIRECT(CONCATENATE(B50,"!BT22")),0) -> 0 | H50: =IFERROR(INDIRECT(CONCATENATE(B50,"!BN22")),0) -> 0 | I50: =IFERROR(INDIRECT(CONCATENATE(B50,"!BH22")),0) -> 0 | J50: =IFERROR(INDIRECT(CONCATENATE(B50,"!BB22")),0) -> 0 | K50: =IFERROR(INDIRECT(CONCATENATE(B50,"!AV22")),0) -> 0 | L50: =IFERROR(INDIRECT(CONCATENATE(B50,"!AP22")),0) -> 0 | M50: =IFERROR(INDIRECT(CONCATENATE(B50,"!AJ22")),0) -> 0 | N50: =IFERROR(INDIRECT(CONCATENATE(B50,"!AD22")),0) -> 0 | P50: =IFERROR(INDIRECT(CONCATENATE(B50,"!R22")),0) -> 13 | T50: 5 | U50: 11 | V50: 5 | W50: 4 | X50: 4 | Y50: 4 | AM50: =COUNT(C50:AI50) -> 19
T51: 5 | V51: 5 | W51: 4 | X51: 4 | AJ51: =SUM(C51:AI51) -> 18 | AK51: =+AJ51/AM51 -> 4.5 | AL51: =ROUND(SUM(AK51),0) -> 5 | AM51: 4 | AN51: Scores are non-league but same course | AO51: =COUNTIF(AP51:AZ51,TRUE) -> 0 | AP51: =AND(D51>0,D51<>D50) -> FALSE | AQ51: =AND(E51>0,E51<>E50) -> FALSE | AR51: =AND(F51>0,F51<>F50) -> FALSE | AS51: =AND(G51>0,G51<>G50) -> FALSE | AT51: =AND(H51>0,H51<>H50) -> FALSE | AU51: =AND(I51>0,I51<>I50) -> FALSE | AV51: =AND(J51>0,J51<>J50) -> FALSE | AW51: =AND(K51>0,K51<>K50) -> FALSE | AX51: =AND(L51>0,L51<>L50) -> FALSE | AY51: =AND(M51>0,M51<>M50) -> FALSE | AZ51: =AND(N51>0,N51<>N50) -> FALSE
A52: Ev Kauffman | B52: kauffman | C52: =MIN(AL53,25) -> 14 | D52: =IFERROR(INDIRECT(CONCATENATE(B52,"!CL22")),0) -> 0 | E52: =IFERROR(INDIRECT(CONCATENATE(B52,"!CF22")),0) -> 0 | F52: =IFERROR(INDIRECT(CONCATENATE(B52,"!BZ22")),0) -> 0 | G52: =IFERROR(INDIRECT(CONCATENATE(B52,"!BT22")),0) -> 16 | Q52: =IFERROR(INDIRECT(CONCATENATE(B52,"!L22")),0) -> 20 | R52: =IFERROR(INDIRECT(CONCATENATE(B52,"!F22")),0) -> 8 | T52: 17 | U52: 16 | V52: 21 | W52: 13 | AM52: 11
G53: 16 | R53: 8 | T53: 17 | U53: 16 | AJ53: =SUM(C53:AI53) -> 57 | AK53: =+AJ53/AM53 -> 14.25 | AL53: =ROUND(SUM(AK53),0) -> 14 | AM53: 4 | AN53: =IF(COUNT(D53:Y53)<>4,"INCORRECT HCP COUNT","") ->  | AO53: 0 | AP53: =AND(D53>0,D53<>D52) -> FALSE | AQ53: =AND(E53>0,E53<>E52) -> FALSE | AR53: =AND(F53>0,F53<>F52) -> FALSE | AS53: =AND(G53>0,G53<>G52) -> FALSE | AT53: =AND(H53>0,H53<>H52) -> FALSE | AU53: =AND(I53>0,I53<>I52) -> FALSE | AV53: =AND(J53>0,J53<>J52) -> FALSE | AW53: =AND(K53>0,K53<>K52) -> FALSE | AX53: =AND(L53>0,L53<>L52) -> FALSE | AY53: =AND(M53>0,M53<>M52) -> FALSE | AZ53: =AND(N53>0,N53<>N52) -> FALSE
A54: Dick Vosko | B54: vosko | C54: =MIN(AL55,25) ->  | D54: =INDIRECT(CONCATENATE(B54,"!CL22")) ->  | E54: =INDIRECT(CONCATENATE(B54,"!CF22")) ->  | F54: =INDIRECT(CONCATENATE(B54,"!BZ22")) ->  | G54: =INDIRECT(CONCATENATE(B54,"!BT22")) ->  | H54: =INDIRECT(CONCATENATE(B54,"!BN22")) ->  | I54: =INDIRECT(CONCATENATE(B54,"!BH22")) ->  | J54: =INDIRECT(CONCATENATE(B54,"!BB22")) ->  | K54: =INDIRECT(CONCATENATE(B54,"!AV22")) ->  | L54: =INDIRECT(CONCATENATE(B54,"!AP22")) ->  | M54: =INDIRECT(CONCATENATE(B54,"!AJ22")) ->  | N54: =INDIRECT(CONCATENATE(B54,"!AD22")) ->  | O54: =INDIRECT(CONCATENATE(B54,"!X22")) ->  | P54: =INDIRECT(CONCATENATE(B54,"!R22")) ->  | Q54: =INDIRECT(CONCATENATE(B54,"!L22")) ->  | R54: =INDIRECT(CONCATENATE(B54,"!F22")) ->  | AM54: 0
AJ55: =SUM(C55:AI55) -> 0 | AK55: =+AJ55/AM55 ->  | AL55: =ROUND(SUM(AK55),0) ->  | AM55: 0 | AN55: =IF(COUNT(D55:Y55)<>4,"INCORRECT HCP COUNT","") -> INCORRECT HCP COUNT | AO55: 0
A56: Dan Richardson | B56: richardson | C56: =MIN(AL57,25) -> 10 | D56: =IFERROR(INDIRECT(CONCATENATE(B56,"!CL22")),0) -> 14 | E56: =IFERROR(INDIRECT(CONCATENATE(B56,"!CF22")),0) -> 12 | F56: =IFERROR(INDIRECT(CONCATENATE(B56,"!BZ22")),0) -> 9 | G56: =IFERROR(INDIRECT(CONCATENATE(B56,"!BT22")),0) -> 11 | H56: =IFERROR(INDIRECT(CONCATENATE(B56,"!BN22")),0) -> 9 | I56: =IFERROR(INDIRECT(CONCATENATE(B56,"!BH22")),0) -> 12 | J56: =IFERROR(INDIRECT(CONCATENATE(B56,"!BB22")),0) -> 12 | K56: =IFERROR(INDIRECT(CONCATENATE(B56,"!AV22")),0) -> 17 | M56: =IFERROR(INDIRECT(CONCATENATE(B56,"!AJ22")),0) -> 8 | N56: =IFERROR(INDIRECT(CONCATENATE(B56,"!AD22")),0) -> 16 | O56: =IFERROR(INDIRECT(CONCATENATE(B56,"!X22")),0) -> 16 | P56: =IFERROR(INDIRECT(CONCATENATE(B56,"!R22")),0) -> 12 | T56: 17 | U56: 11 | V56: 12 | W56: 12 | X56: 15 | Y56: 14 | AM56: 19
E57: 12 | F57: 9 | G57: 11 | H57: 9 | AJ57: =SUM(C57:AI57) -> 41 | AK57: =+AJ57/AM57 -> 10.25 | AL57: =ROUND(SUM(AK57),0) -> 10 | AM57: 4 | AN57: =IF(COUNT(D57:Y57)<>4,"INCORRECT HCP COUNT","") ->  | AO57: 0 | AP57: =AND(D57>0,D57<>D56) -> FALSE | AQ57: =AND(E57>0,E57<>E56) -> FALSE | AR57: =AND(F57>0,F57<>F56) -> FALSE | AS57: =AND(G57>0,G57<>G56) -> FALSE | AT57: =AND(H57>0,H57<>H56) -> FALSE | AU57: =AND(I57>0,I57<>I56) -> FALSE | AV57: =AND(J57>0,J57<>J56) -> FALSE | AW57: =AND(K57>0,K57<>K56) -> FALSE | AX57: =AND(L57>0,L57<>L56) -> FALSE | AY57: =AND(M57>0,M57<>M56) -> FALSE | AZ57: =AND(N57>0,N57<>N56) -> FALSE
A58: Joe Sheridan | B58: sheridan | C58: =MIN(AL59,25) -> 5 | D58: =IFERROR(INDIRECT(CONCATENATE(B58,"!CL22")),0) -> 0 | E58: =IFERROR(INDIRECT(CONCATENATE(B58,"!CF22")),0) -> 0 | F58: =IFERROR(INDIRECT(CONCATENATE(B58,"!BZ22")),0) -> 0 | G58: =IFERROR(INDIRECT(CONCATENATE(B58,"!BT22")),0) -> 0 | I58: 5 | J58: 5 | K58: 2 | L58: 8 | M58: 14 | N58: 11 | O58: 9 | P58: 12 | Q58: 9 | T58: 10 | U58: 9 | V58: 11 | W58: 6 | X58: 9 | Y58: 10 | AM58: 20 | AN58: Scores are non-league but same course
I59: 5 | J59: 5 | K59: 2 | L59: 8 | AJ59: =SUM(C59:AI59) -> 20 | AK59: =+AJ59/AM59 -> 5 | AL59: =ROUND(SUM(AK59),0) -> 5 | AM59: 4 | AN59: =IF(COUNT(D59:Y59)<>4,"INCORRECT HCP COUNT","") ->  | AO59: 0 | AP59: =AND(D59>0,D59<>D58) -> FALSE | AQ59: =AND(E59>0,E59<>E58) -> FALSE | AR59: =AND(F59>0,F59<>F58) -> FALSE | AS59: =AND(G59>0,G59<>G58) -> FALSE | AT59: =AND(H59>0,H59<>H58) -> FALSE | AU59: =AND(I59>0,I59<>I58) -> FALSE | AV59: =AND(J59>0,J59<>J58) -> FALSE | AW59: =AND(K59>0,K59<>K58) -> FALSE | AX59: =AND(L59>0,L59<>L58) -> FALSE | AY59: =AND(M59>0,M59<>M58) -> FALSE | AZ59: =AND(N59>0,N59<>N58) -> FALSE
A60: Bret Scott | B60: scott | C60: =MIN(AL61,25) -> 18 | D60: =IFERROR(INDIRECT(CONCATENATE(B60,"!CL22")),0) -> 0 | E60: =IFERROR(INDIRECT(CONCATENATE(B60,"!CF22")),0) -> 0 | F60: =IFERROR(INDIRECT(CONCATENATE(B60,"!BZ22")),0) -> 0 | G60: =IFERROR(INDIRECT(CONCATENATE(B60,"!BT22")),0) -> 0 | H60: =IFERROR(INDIRECT(CONCATENATE(B60,"!BN22")),0) -> 0 | I60: =IFERROR(INDIRECT(CONCATENATE(B60,"!BH22")),0) -> 0 | J60: =IFERROR(INDIRECT(CONCATENATE(B60,"!BB22")),0) -> 0 | K60: =IFERROR(INDIRECT(CONCATENATE(B60,"!AV22")),0) -> 0 | L60: =IFERROR(INDIRECT(CONCATENATE(B60,"!AP22")),0) -> 0 | M60: =IFERROR(INDIRECT(CONCATENATE(B60,"!AJ22")),0) -> 0 | N60: =IFERROR(INDIRECT(CONCATENATE(B60,"!AD22")),0) -> 0 | T60: 21 | U60: 19 | V60: 13 | W60: 18 | X60: 18 | Y60: 19 | AM60: 18
T61: 21 | U61: 19 | V61: 13 | W61: 18 | AJ61: =SUM(C61:AI61) -> 71 | AK61: =+AJ61/AM61 -> 17.75 | AL61: =ROUND(SUM(AK61),0) -> 18 | AM61: 4 | AN61: =IF(COUNT(D61:Y61)<>4,"INCORRECT HCP COUNT","") ->  | AO61: 0 | AP61: =AND(D61>0,D61<>D60) -> FALSE | AQ61: =AND(E61>0,E61<>E60) -> FALSE | AR61: =AND(F61>0,F61<>F60) -> FALSE | AS61: =AND(G61>0,G61<>G60) -> FALSE | AT61: =AND(H61>0,H61<>H60) -> FALSE | AU61: =AND(I61>0,I61<>I60) -> FALSE | AV61: =AND(J61>0,J61<>J60) -> FALSE | AW61: =AND(K61>0,K61<>K60) -> FALSE | AX61: =AND(L61>0,L61<>L60) -> FALSE | AY61: =AND(M61>0,M61<>M60) -> FALSE | AZ61: =AND(N61>0,N61<>N60) -> FALSE
A62: Mark Roschinsky | B62: roschinsky | C62: =MIN(AL63,25) -> 9 | D62: =IFERROR(INDIRECT(CONCATENATE(B62,"!CL22")),0) -> 0 | E62: =IFERROR(INDIRECT(CONCATENATE(B62,"!CF22")),0) -> 0 | F62: =IFERROR(INDIRECT(CONCATENATE(B62,"!BZ22")),0) -> 0 | G62: =IFERROR(INDIRECT(CONCATENATE(B62,"!BT22")),0) -> 0 | H62: =IFERROR(INDIRECT(CONCATENATE(B62,"!BN22")),0) -> 0 | I62: 9 | J62: 9 | K62: 9 | L62: 9 | M62: 8 | N62: 15 | O62: 8 | P62: 4 | T62: 8 | U62: 11 | V62: 9 | W62: 5 | X62: 11 | Y62: 5 | AN62: Scores are non-league but same course
B63: (scores from Monday League) | I63: 9 | J63: 9 | K63: 9 | M63: 8 | AJ63: =SUM(C63:AI63) -> 35 | AK63: =+AJ63/AM63 -> 8.75 | AL63: =ROUND(SUM(AK63),0) -> 9 | AM63: 4 | AN63: =IF(COUNT(D63:Y63)<>4,"INCORRECT HCP COUNT","") ->  | AO63: 0 | AP63: =AND(D63>0,D63<>D62) -> FALSE | AQ63: =AND(E63>0,E63<>E62) -> FALSE | AR63: =AND(F63>0,F63<>F62) -> FALSE | AS63: =AND(G63>0,G63<>G62) -> FALSE | AT63: =AND(H63>0,H63<>H62) -> FALSE | AU63: =AND(I63>0,I63<>I62) -> FALSE | AV63: =AND(J63>0,J63<>J62) -> FALSE | AW63: =AND(K63>0,K63<>K62) -> FALSE | AX63: =AND(L63>0,L63<>L62) -> FALSE | AY63: =AND(M63>0,M63<>M62) -> FALSE | AZ63: =AND(N63>0,N63<>N62) -> FALSE
A64: Paul Archambault | B64: archambault | C64: =MIN(AL65,25) -> 11 | D64: =IFERROR(INDIRECT(CONCATENATE(B64,"!CL22")),0) -> 0 | E64: =IFERROR(INDIRECT(CONCATENATE(B64,"!CF22")),0) -> 0 | F64: =IFERROR(INDIRECT(CONCATENATE(B64,"!BZ22")),0) -> 11 | G64: =IFERROR(INDIRECT(CONCATENATE(B64,"!BT22")),0) -> 15 | N64: =IFERROR(INDIRECT(CONCATENATE(B64,"!AD22")),0) -> 12 | T64: 14 | U64: 8 | V64: 11 | W64: 11 | X64: 11 | Y64: 11 | AM64: 12
F65: 11 | N65: 12 | T65: 14 | U65: 8 | AJ65: =SUM(C65:AI65) -> 45 | AK65: =+AJ65/AM65 -> 11.25 | AL65: =ROUND(SUM(AK65),0) -> 11 | AM65: 4 | AN65: =IF(COUNT(D65:Y65)<>4,"INCORRECT HCP COUNT","") ->  | AO65: 0 | AP65: =AND(D65>0,D65<>D64) -> FALSE | AQ65: =AND(E65>0,E65<>E64) -> FALSE | AR65: =AND(F65>0,F65<>F64) -> FALSE | AS65: =AND(G65>0,G65<>G64) -> FALSE | AT65: =AND(H65>0,H65<>H64) -> FALSE | AU65: =AND(I65>0,I65<>I64) -> FALSE | AV65: =AND(J65>0,J65<>J64) -> FALSE | AW65: =AND(K65>0,K65<>K64) -> FALSE | AX65: =AND(L65>0,L65<>L64) -> FALSE | AY65: =AND(M65>0,M65<>M64) -> FALSE | AZ65: =AND(N65>0,N65<>N64) -> FALSE
A66: Lisa Palmerino | B66: palmerino_l | C66: =MIN(AL67,25) -> 18 | D66: =IFERROR(INDIRECT(CONCATENATE(B66,"!CL22")),0) -> 16 | E66: =IFERROR(INDIRECT(CONCATENATE(B66,"!CF22")),0) -> 0 | F66: =IFERROR(INDIRECT(CONCATENATE(B66,"!BZ22")),0) -> 0 | G66: =IFERROR(INDIRECT(CONCATENATE(B66,"!BT22")),0) -> 0 | H66: =IFERROR(INDIRECT(CONCATENATE(B66,"!BN22")),0) -> 0 | I66: =IFERROR(INDIRECT(CONCATENATE(B66,"!BH22")),0) -> 0 | J66: =IFERROR(INDIRECT(CONCATENATE(B66,"!BB22")),0) -> 0 | K66: =IFERROR(INDIRECT(CONCATENATE(B66,"!AV22")),0) -> 0 | L66: =IFERROR(INDIRECT(CONCATENATE(B66,"!AP22")),0) -> 0 | M66: =IFERROR(INDIRECT(CONCATENATE(B66,"!AJ22")),0) -> 0 | N66: =IFERROR(INDIRECT(CONCATENATE(B66,"!AD22")),0) -> 18 | T66: 18 | U66: 20 | V66: 18 | W66: 19 | X66: 19 | Y66: 19
D67: 16 | N67: 18 | T67: 18 | V67: 18 | AJ67: =SUM(C67:AI67) -> 70 | AK67: =+AJ67/AM67 -> 17.5 | AL67: =ROUND(SUM(AK67),0) -> 18 | AM67: 4 | AN67: =IF(COUNT(D67:Y67)<>4,"INCORRECT HCP COUNT","") ->  | AO67: 0 | AP67: =AND(D67>0,D67<>D66) -> FALSE | AQ67: =AND(E67>0,E67<>E66) -> FALSE | AR67: =AND(F67>0,F67<>F66) -> FALSE | AS67: =AND(G67>0,G67<>G66) -> FALSE | AT67: =AND(H67>0,H67<>H66) -> FALSE | AU67: =AND(I67>0,I67<>I66) -> FALSE | AV67: =AND(J67>0,J67<>J66) -> FALSE | AW67: =AND(K67>0,K67<>K66) -> FALSE | AX67: =AND(L67>0,L67<>L66) -> FALSE | AY67: =AND(M67>0,M67<>M66) -> FALSE | AZ67: =AND(N67>0,N67<>N66) -> FALSE
A68: Glen Kreig | B68: kreig | C68: =MIN(AL69,25) -> 13 | D68: =IFERROR(INDIRECT(CONCATENATE(B68,"!CL22")),0) -> 0 | E68: =IFERROR(INDIRECT(CONCATENATE(B68,"!CF22")),0) -> 17 | H68: =IFERROR(INDIRECT(CONCATENATE(B68,"!BN22")),0) -> 13 | O68: =IFERROR(INDIRECT(CONCATENATE(B68,"!X22")),0) -> 14 | Q68: =IFERROR(INDIRECT(CONCATENATE(B68,"!L22")),0) -> 18 | T68: 10 | U68: 15 | V68: 11 | W68: 19 | X68: 9 | Y68: 20
H69: 13 | O69: 14 | T69: 10 | U69: 15 | AJ69: =SUM(C69:AI69) -> 52 | AK69: =+AJ69/AM69 -> 13 | AL69: =ROUND(SUM(AK69),0) -> 13 | AM69: =COUNT(C69:AI69) -> 4 | AN69: =IF(COUNT(D69:Y69)<>4,"INCORRECT HCP COUNT","") ->  | AO69: 0 | AP69: =AND(D69>0,D69<>D68) -> FALSE | AQ69: =AND(E69>0,E69<>E68) -> FALSE | AR69: =AND(F69>0,F69<>F68) -> FALSE | AS69: =AND(G69>0,G69<>G68) -> FALSE | AT69: =AND(H69>0,H69<>H68) -> FALSE | AU69: =AND(I69>0,I69<>I68) -> FALSE | AV69: =AND(J69>0,J69<>J68) -> FALSE | AW69: =AND(K69>0,K69<>K68) -> FALSE | AX69: =AND(L69>0,L69<>L68) -> FALSE | AY69: =AND(M69>0,M69<>M68) -> FALSE | AZ69: =AND(N69>0,N69<>N68) -> FALSE
A70: Jill Daviero | B70: daviero_j | C70: =MIN(AL71,25) -> 24 | D70: =IFERROR(INDIRECT(CONCATENATE(B70,"!CL22")),0) -> 19 | T70: 25 | U70: 25 | V70: 25 | W70: 25 | AM70: 6
D71: 19 | T71: 25 | U71: 25 | V71: 25 | AJ71: =SUM(C71:AI71) -> 94 | AK71: =+AJ71/AM71 -> 23.5 | AL71: =ROUND(SUM(AK71),0) -> 24 | AM71: 4 | AN71: =IF(COUNT(D71:Y71)<>4,"INCORRECT HCP COUNT","") ->  | AO71: 0 | AP71: =AND(D71>0,D71<>D70) -> FALSE | AQ71: =AND(E71>0,E71<>E70) -> FALSE | AR71: =AND(F71>0,F71<>F70) -> FALSE | AS71: =AND(G71>0,G71<>G70) -> FALSE | AT71: =AND(H71>0,H71<>H70) -> FALSE | AU71: =AND(I71>0,I71<>I70) -> FALSE | AV71: =AND(J71>0,J71<>J70) -> FALSE | AW71: =AND(K71>0,K71<>K70) -> FALSE | AX71: =AND(L71>0,L71<>L70) -> FALSE | AY71: =AND(M71>0,M71<>M70) -> FALSE | AZ71: =AND(N71>0,N71<>N70) -> FALSE
A72: Jeanne Henderson | B72: daviero_j | C72: =MIN(AL73,25) -> 17 | D72: =IFERROR(INDIRECT(CONCATENATE(B72,"!CL22")),0) -> 19 | T72: 16 | U72: 19 | V72: 16 | W72: 17 | AM72: =COUNT(C72:AI72) -> 6
T73: 16 | U73: 19 | V73: 16 | W73: 17 | AJ73: =SUM(C73:AI73) -> 68 | AK73: =+AJ73/AM73 -> 17 | AL73: =ROUND(SUM(AK73),0) -> 17 | AM73: 4 | AN73: =IF(COUNT(D73:Y73)<>4,"INCORRECT HCP COUNT","") ->  | AO73: =COUNTIF(AP73:AZ73,TRUE) -> 0 | AP73: =AND(D73>0,D73<>D72) -> FALSE | AQ73: =AND(E73>0,E73<>E72) -> FALSE | AR73: =AND(F73>0,F73<>F72) -> FALSE | AS73: =AND(G73>0,G73<>G72) -> FALSE | AT73: =AND(H73>0,H73<>H72) -> FALSE | AU73: =AND(I73>0,I73<>I72) -> FALSE | AV73: =AND(J73>0,J73<>J72) -> FALSE | AW73: =AND(K73>0,K73<>K72) -> FALSE | AX73: =AND(L73>0,L73<>L72) -> FALSE | AY73: =AND(M73>0,M73<>M72) -> FALSE | AZ73: =AND(N73>0,N73<>N72) -> FALSE
A76: Handicap lookup
A78: Paul | B78: archambault | C78: =C64 -> 11 | D78: =AK65 -> 11.25
A79: Jim | B79: daviero | C79: =C20 -> 9 | D79: =AK21 -> 8.5
A80: Jill | B80: daviero_j | C80: =C70 -> 24 | D80: =AK71 -> 23.5
B81: empty | C81: 0 | D81: 0
A82: Dan | B82: fusco_d | C82: =C12 -> 8 | D82: =AK13 -> 8
A83: Mike | B83: fusco_m | C83: 11
A84: Steve | B84: fusco_s | C84: =C14 -> 8
A85: Jeanne | B85: henderson | C85: =C72 -> 17 | D85: =AK73 -> 17
A86: Tim | B86: hobbs | C86: =C32 -> 11 | D86: =AK33 -> 11
A87: Ev | B87: kauffman | C87: =C52 -> 14 | D87: =AK53 -> 14.25
A88: Glenn | B88: kreig | C88: =C68 -> 13 | D88: =AK69 -> 13
A89: Andy | B89: linton | C89: =C4 -> 5 | D89: =AK5 -> 5.25
A90: Brian | B90: mclaughlin | C90: =C10 -> 12 | D90: =AK11 -> 12
A91: Pete | B91: michalski_p | C91: =C28 -> 19 | D91: =AK29 -> 18.75
A92: Sue | B92: michalski_s | C92: =C30 -> 21 | D92: =AK31 -> 21.25
A93: Bette | B93: mohsinger_b | C93: =C6 -> 12 | D93: =AK7 -> 11.5
A94: Tom | B94: mohsinger_t | C94: =C34 -> 14 | D94: =AK35 -> 14
A95: Matt | B95: nichols | C95: =C26 -> 13 | D95: =AK27 -> 13.25
A96: Dan | B96: palmerino | C96: =C14 -> 8 | D96: =AK15 -> 8.25
A97: Lisa | B97: palmerino_l | C97: =C66 -> 18 | D97: =AK67 -> 17.5
A98: Gloria | B98: poston | C98: =C18 -> 12 | D98: =AK19 -> 11.75
A99: Marty | B99: reed | C99: =C24 -> 5 | D99: =AK25 -> 5
A100: Dan | B100: richardson | C100: =C56 -> 10 | D100: =AK57 -> 10.25
A101: Bob | B101: riley | C101: =C50 -> 5 | D101: =AK51 -> 4.5
A102: Mark | B102: roschinsky | C102: =C62 -> 9 | D102: =AK63 -> 8.75
A103: Mark | B103: rusnak | C103: =C22 -> 3 | D103: =AK23 -> 2.5
A104: Bret | B104: scott | C104: =C60 -> 18 | D104: =AK61 -> 17.75
A105: Joe | B105: sheridan | C105: =C58 -> 5 | D105: =AK59 -> 5
A106: Dave | B106: taylor | C106: =C16 -> 13 | D106: =AK17 -> 13.25
A107: Bob | B107: templeton | C107: =C8 -> 20 | D107: =AK9 -> 19.75

Sheet Sum of W_T_L
A1: Summary of Wins / Losses / Ties
B3: Week #1 | C3: Week #2 | D3: Week #3 | E3: Week #4 | F3: Week #5 | G3: Week #6 | H3: Week #7 | I3: Week #8 | J3: Week #9 | K3: Week #10 | L3: Week #11 | M3: Week #12 | N3: Week #13 | O3: Week #14 | P3: Week #15 | R3: Wins | S3: Losses | T3: Ties | X3: Previous | Y3: Current
A4: =Mohsinger_T!A1 -> Tom Mohsinger | B4: =Mohsinger_T!F24 -> L | C4: =Mohsinger_T!L24 -> L | D4: =Mohsinger_T!R24 -> W | E4: =Mohsinger_T!X24 -> W | F4: =Mohsinger_T!AD24 -> 0 | G4: =Mohsinger_T!AJ24 -> 0 | H4: =Mohsinger_T!AP24 -> W | I4: =Mohsinger_T!AV24 -> W | J4: =Mohsinger_T!BB24 -> W | K4: =Mohsinger_T!BH24 -> W | L4: =Mohsinger_T!BN24 -> W | M4: =Mohsinger_T!BT24 -> W | N4: =Mohsinger_T!BZ24 -> W | O4: =Mohsinger_T!CF24 -> L | P4: =Mohsinger_T!CL24 -> T | R4: =COUNTIF(B4:P4,"W") -> 9 | S4: =COUNTIF(B4:P4,"L") -> 3 | T4: =COUNTIF(B4:P4,"T") -> 1 | U4: =FIND(" ",A4) -> 4 | V4: =MID(A4,U4,99) -> Mohsinger | W4: =IFERROR((R4+(T4/2))/SUM(R4:T4),0) -> 0.7307692308 | X4: 1 | Y4: 1
A5: =Hobbs!A1 -> Tim Hobbs | B5: =Hobbs!F24 -> L | C5: =Hobbs!L24 -> W | D5: =Hobbs!R24 -> W | E5: =Hobbs!X24 -> W | F5: =Hobbs!AD24 -> W | G5: =Hobbs!AJ24 -> W | H5: =Hobbs!AP24 -> W | I5: =Hobbs!AV24 -> L | J5: =Hobbs!BB24 -> L | K5: =Hobbs!BH24 -> W | L5: =Hobbs!BN24 -> L | M5: =Hobbs!BT24 -> 0 | N5: =Hobbs!BZ24 -> W | O5: =Hobbs!CF24 -> 0 | P5: =Hobbs!CL24 -> 0 | R5: 8 | S5: 4 | T5: 0 | U5: 4 | V5: Hobbs | W5: 0.6666666667 | X5: 3 | Y5: 2
A6: =Linton!A1 -> Andy Linton | B6: =Linton!F24 -> L | C6: =Linton!L24 -> L | D6: =Linton!R24 -> L | E6: =Linton!X24 -> W | F6: =Linton!AD24 -> W | G6: =Linton!AJ24 -> W | H6: =Linton!AP24 -> W | I6: =Linton!AV24 -> W | J6: =Linton!BB24 -> T | K6: =Linton!BH24 -> L | L6: =Linton!BN24 -> L | M6: =Linton!BT24 -> W | N6: =Linton!BZ24 -> W | O6: =Linton!CF24 -> W | P6: =Linton!CL24 -> W | R6: 9 | S6: 5 | T6: 1 | U6: 5 | V6: Linton | W6: 0.6333333333 | X6: T4 | Y6: T3
A7: =Rusnak!A1 -> Mark Rusnak | B7: =Rusnak!F24 -> W | C7: =Rusnak!L24 -> W | D7: =Rusnak!R24 -> W | E7: =Rusnak!X24 -> T | F7: =Rusnak!AD24 -> L | G7: =Rusnak!AJ24 -> W | H7: =Rusnak!AP24 -> W | I7: =Rusnak!AV24 -> T | J7: =Rusnak!BB24 -> L | K7: =Rusnak!BH24 -> W | L7: =Rusnak!BN24 -> W | M7: =Rusnak!BT24 -> T | N7: =Rusnak!BZ24 -> W | O7: =Rusnak!CF24 -> L | P7: =Rusnak!CL24 -> L | R7: 8 | S7: 4 | T7: 3 | U7: 5 | V7: Rusnak | W7: 0.6333333333 | X7: 2 | Y7: T3
A8: =Fusco_D!A1 -> Dan Fusco | B8: =Fusco_D!F24 -> T | C8: =Fusco_D!L24 -> W | D8: =Fusco_D!R24 -> W | E8: =Fusco_D!X24 -> L | F8: =Fusco_D!AD24 -> W | G8: =Fusco_D!AJ24 -> W | H8: =Fusco_D!AP24 -> W | I8: =Fusco_D!AV24 -> W | J8: =Fusco_D!BB24 -> T | K8: =Fusco_D!BH24 -> L | L8: =Fusco_D!BN24 -> L | M8: =Fusco_D!BT24 -> T | N8: =Fusco_D!BZ24 -> L | O8: =Fusco_D!CF24 -> W | P8: =Fusco_D!CL24 -> T | R8: 7 | S8: 4 | T8: 4 | U8: 4 | V8: Fusco | W8: 0.6 | X8: T4 | Y8: 5
A9: Marty Reed | B9: =Reed!F24 -> 0 | C9: =Reed!L24 -> 0 | D9: =Reed!R24 -> 0 | E9: =Reed!X24 -> W | F9: =Reed!AD24 -> T | G9: =Reed!AJ24 -> L | H9: =Reed!AP24 -> L | I9: =Reed!AV24 -> T | J9: =Reed!BB24 -> T | K9: =Reed!BH24 -> L | L9: =Reed!BN24 -> W | M9: =Reed!BT24 -> W | N9: =Reed!BZ24 -> W | O9: =Reed!CF24 -> 0 | P9: =Reed!CL24 -> W | R9: 5 | S9: 3 | T9: 3 | U9: 6 | V9: Reed | W9: 0.5909090909 | X9: 6 | Y9: 6
A10: =Poston!A1 -> Gloria Poston | B10: =Poston!F24 -> W | C10: =Poston!L24 -> L | D10: =Poston!R24 -> 0 | E10: =Poston!X24 -> 0 | F10: =Poston!AD24 -> T | G10: =Poston!AJ24 -> L | H10: =Poston!AP24 -> T | I10: =Poston!AV24 -> W | J10: =Poston!BB24 -> 0 | K10: =Poston!BH24 -> W | L10: =Poston!BN24 -> L | M10: =Poston!BT24 -> L | N10: =Poston!BZ24 -> 0 | O10: =Poston!CF24 -> W | P10: =Poston!CL24 -> 0 | R10: 4 | S10: 4 | T10: 2 | U10: 7 | V10: Poston | W10: 0.5 | X10: 11 | Y10: T7
A11: =Nichols!A1 -> Matt Nichols | B11: =Nichols!F24 -> T | C11: =Nichols!L24 -> W | D11: =Nichols!R24 -> L | E11: =Nichols!X24 -> W | F11: =Nichols!AD24 -> W | G11: =Nichols!AJ24 -> W | H11: =Nichols!AP24 -> L | I11: =Nichols!AV24 -> 0 | J11: =Nichols!BB24 -> L | K11: =Nichols!BH24 -> L | L11: =Nichols!BN24 -> 0 | M11: =Nichols!BT24 -> 0 | N11: =Nichols!BZ24 -> 0 | O11: =Nichols!CF24 -> 0 | P11: =Nichols!CL24 -> 0 | R11: 4 | S11: 4 | T11: 1 | U11: 5 | V11: Nichols | W11: 0.5 | X11: 7 | Y11: T7
A12: =Taylor!A1 -> Dave Taylor | B12: =Taylor!F24 -> W | C12: =Taylor!L24 -> W | D12: =Taylor!R24 -> L | E12: =Taylor!X24 -> W | F12: =Taylor!AD24 -> W | G12: =Taylor!AJ24 -> W | H12: =Taylor!AP24 -> L | I12: =Taylor!AV24 -> L | J12: =Taylor!BB24 -> L | K12: =Taylor!BH24 -> L | L12: =Taylor!BN24 -> L | M12: =Taylor!BT24 -> W | N12: =Taylor!BZ24 -> L | O12: =Taylor!CF24 -> L | P12: =Taylor!CL24 -> W | R12: 7 | S12: 8 | T12: 0 | U12: 5 | V12: Taylor | W12: 0.4666666667 | X12: 8 | Y12: 9
A13: =Mohsinger_B!A1 -> Bette Mohsinger | B13: =Mohsinger_B!F24 -> W | C13: =Mohsinger_B!L24 -> L | D13: =Mohsinger_B!R24 -> L | E13: =Mohsinger_B!X24 -> L | F13: =Mohsinger_B!AD24 -> L | G13: =Mohsinger_B!AJ24 -> W | H13: =Mohsinger_B!AP24 -> W | I13: =Mohsinger_B!AV24 -> L | J13: =Mohsinger_B!BB24 -> T | K13: =Mohsinger_B!BH24 -> W | L13: =Mohsinger_B!BN24 -> W | M13: =Mohsinger_B!BT24 -> 0 | N13: =Mohsinger_B!BZ24 -> L | O13: =Mohsinger_B!CF24 -> 0 | P13: =Mohsinger_B!CL24 -> 0 | R13: 5 | S13: 6 | T13: 1 | U13: 6 | V13: Mohsinger | W13: 0.4583333333 | X13: 9 | Y13: 10
A14: =Daviero!A1 -> Jim Daviero | B14: =Daviero!F24 -> T | C14: =Daviero!L24 -> 0 | D14: =Daviero!R24 -> W | E14: =Daviero!X24 -> L | F14: =Daviero!AD24 -> L | G14: =Daviero!AJ24 -> L | H14: =Daviero!AP24 -> T | I14: =Daviero!AV24 -> W | J14: =Daviero!BB24 -> T | K14: =Daviero!BH24 -> L | L14: =Daviero!BN24 -> 0 | M14: =Daviero!BT24 -> W | N14: =Daviero!BZ24 -> 0 | O14: =Daviero!CF24 -> L | P14: =Daviero!CL24 -> W | R14: 4 | S14: 5 | T14: 3 | U14: 4 | V14: Daviero | W14: 0.4583333333 | X14: 10 | Y14: 11
A15: =McLaughlin!A1 -> Brian McLaughlin | B15: =McLaughlin!F24 -> L | C15: =McLaughlin!L24 -> W | D15: =McLaughlin!R24 -> L | E15: =McLaughlin!X24 -> 0 | F15: =McLaughlin!AD24 -> L | G15: =McLaughlin!AJ24 -> L | H15: =McLaughlin!AP24 -> L | I15: =McLaughlin!AV24 -> W | J15: =McLaughlin!BB24 -> W | K15: =McLaughlin!BH24 -> W | L15: =McLaughlin!BN24 -> L | M15: =McLaughlin!BT24 -> 0 | N15: =McLaughlin!BZ24 -> 0 | O15: =McLaughlin!CF24 -> W | P15: =McLaughlin!CL24 -> L | R15: 5 | S15: 7 | T15: 0 | U15: 6 | V15: McLaughlin | W15: 0.4166666667 | X15: 13 | Y15: 12
A16: =Palmerino!A1 -> Dan Palmerino | B16: =Palmerino!F24 -> T | C16: =Palmerino!L24 -> L | D16: =Palmerino!R24 -> 0 | E16: =Palmerino!X24 -> T | F16: =Palmerino!AD24 -> W | G16: =Palmerino!AJ24 -> L | H16: =Palmerino!AP24 -> L | I16: =Palmerino!AV24 -> L | J16: =Palmerino!BB24 -> W | K16: =Palmerino!BH24 -> 0 | L16: =Palmerino!BN24 -> W | M16: =Palmerino!BT24 -> L | N16: =Palmerino!BZ24 -> L | O16: =Palmerino!CF24 -> L | P16: =Palmerino!CL24 -> W | R16: 4 | S16: 7 | T16: 2 | U16: 4 | V16: Palmerino | W16: 0.3846153846 | X16: 14 | Y16: 13
A17: =Michalski_P!A1 -> Pete Michalski | B17: =Michalski_P!F24 -> T | C17: =Michalski_P!L24 -> L | D17: =Michalski_P!R24 -> L | E17: =Michalski_P!X24 -> L | F17: =Michalski_P!AD24 -> 0 | G17: =Michalski_P!AJ24 -> L | H17: =Michalski_P!AP24 -> L | I17: =Michalski_P!AV24 -> L | J17: =Michalski_P!BB24 -> L | K17: =Michalski_P!BH24 -> W | L17: =Michalski_P!BN24 -> W | M17: =Michalski_P!BT24 -> W | N17: =Michalski_P!BZ24 -> 0 | O17: =Michalski_P!CF24 -> W | P17: =Michalski_P!CL24 -> L | R17: 4 | S17: 8 | T17: 1 | U17: 5 | V17: Michalski | W17: 0.3461538462 | X17: 15 | Y17: T14
A18: =Michalski_S!A1 -> Sue Michalski | B18: =Michalski_S!F24 -> T | C18: =Michalski_S!L24 -> W | D18: =Michalski_S!R24 -> L | E18: =Michalski_S!X24 -> L | F18: =Michalski_S!AD24 -> 0 | G18: =Michalski_S!AJ24 -> L | H18: =Michalski_S!AP24 -> W | I18: =Michalski_S!AV24 -> L | J18: =Michalski_S!BB24 -> W | K18: =Michalski_S!BH24 -> L | L18: =Michalski_S!BN24 -> W | M18: =Michalski_S!BT24 -> L | N18: =Michalski_S!BZ24 -> 0 | O18: =Michalski_S!CF24 -> L | P18: =Michalski_S!CL24 -> L | R18: 4 | S18: 8 | T18: 1 | U18: 4 | V18: Michalski | W18: 0.3461538462 | X18: 12 | Y18: T14
A19: =Templeton!A1 -> Bob Templeton | B19: =Templeton!F24 -> L | C19: =Templeton!L24 -> W | D19: =Templeton!R24 -> W | E19: =Templeton!X24 -> L | F19: =Templeton!AD24 -> L | G19: =Templeton!AJ24 -> L | H19: =Templeton!AP24 -> L | I19: =Templeton!AV24 -> W | J19: =Templeton!BB24 -> W | K19: =Templeton!BH24 -> L | L19: =Templeton!BN24 -> L | M19: =Templeton!BT24 -> L | N19: =Templeton!BZ24 -> L | O19: =Templeton!CF24 -> 0 | P19: =Templeton!CL24 -> L | R19: 4 | S19: 10 | T19: 0 | U19: 4 | V19: Templeton | W19: 0.2857142857 | X19: 16 | Y19: 16
A21: =#REF! ->  | B21: =#REF! ->  | C21: =#REF! ->  | D21: =#REF! ->  | E21: =#REF! ->  | F21: =#REF! ->  | G21: =#REF! ->  | H21: =#REF! ->  | I21: =#REF! ->  | J21: =#REF! ->  | K21: =#REF! ->  | L21: =#REF! ->  | M21: =#REF! ->  | N21: =#REF! ->  | O21: =#REF! ->  | P21: =#REF! ->  | R21: =COUNTIF(B21:P21,"W") -> 0 | S21: =COUNTIF(B21:P21,"L") -> 0 | T21: =COUNTIF(B21:P21,"T") -> 0 | U21: =FIND(" ",A21) ->  | V21: =MID(A21,U21,99) ->  | W21: =(R21+(T21/2))/SUM(R21:T21) -> 
A22: =#REF! ->  | B22: =#REF! ->  | C22: =#REF! ->  | D22: =#REF! ->  | E22: =#REF! ->  | F22: =#REF! ->  | G22: =#REF! ->  | H22: =#REF! ->  | I22: =#REF! ->  | J22: =#REF! ->  | K22: =#REF! ->  | L22: =#REF! ->  | M22: =#REF! ->  | N22: =#REF! ->  | O22: =#REF! ->  | P22: =#REF! ->  | R22: =COUNTIF(B22:P22,"W") -> 0 | S22: =COUNTIF(B22:P22,"L") -> 0 | T22: =COUNTIF(B22:P22,"T") -> 0 | U22: =FIND(" ",A22) ->  | V22: =MID(A22,U22,99) ->  | W22: =(R22+(T22/2))/SUM(R22:T22) -> 
A23: =#REF! ->  | B23: =#REF! ->  | C23: =#REF! ->  | D23: =#REF! ->  | E23: =#REF! ->  | F23: =#REF! ->  | G23: =#REF! ->  | H23: =#REF! ->  | I23: =#REF! ->  | J23: =#REF! ->  | K23: =#REF! ->  | L23: =#REF! ->  | M23: =#REF! ->  | N23: =#REF! ->  | O23: =#REF! ->  | P23: =#REF! ->  | R23: =COUNTIF(B23:P23,"W") -> 0 | S23: =COUNTIF(B23:P23,"L") -> 0 | T23: =COUNTIF(B23:P23,"T") -> 0 | U23: =FIND(" ",A23) -> 
A24: =#REF! ->  | B24: =#REF! ->  | C24: =#REF! ->  | D24: =#REF! ->  | E24: =#REF! ->  | F24: =#REF! ->  | G24: =#REF! ->  | H24: =#REF! ->  | I24: =#REF! ->  | J24: =#REF! ->  | K24: =#REF! ->  | L24: =#REF! ->  | M24: =#REF! ->  | N24: =#REF! ->  | O24: =#REF! ->  | P24: =#REF! ->  | R24: 0 | S24: 0 | T24: 0
A25: =#REF! ->  | B25: =#REF! ->  | C25: =#REF! ->  | D25: =#REF! ->  | E25: =#REF! ->  | F25: =#REF! ->  | G25: =#REF! ->  | H25: =#REF! ->  | I25: =#REF! ->  | J25: =#REF! ->  | K25: =#REF! ->  | L25: =#REF! ->  | M25: =#REF! ->  | N25: =#REF! ->  | O25: =#REF! ->  | P25: =#REF! ->  | R25: 0 | S25: 0 | T25: 0 | U25: 1
A26: =#REF! ->  | B26: =#REF! ->  | C26: =#REF! ->  | D26: =#REF! ->  | E26: =#REF! ->  | F26: =#REF! ->  | G26: =#REF! ->  | H26: =#REF! ->  | I26: =#REF! ->  | J26: =#REF! ->  | K26: =#REF! ->  | L26: =#REF! ->  | M26: =#REF! ->  | N26: =#REF! ->  | O26: =#REF! ->  | P26: =#REF! ->  | R26: 0 | S26: 0 | T26: 0 | U26: 1
A27: =#REF! ->  | B27: =#REF! ->  | C27: =#REF! ->  | D27: =#REF! ->  | E27: =#REF! ->  | F27: =#REF! ->  | G27: =#REF! ->  | H27: =#REF! ->  | I27: =#REF! ->  | J27: =#REF! ->  | K27: =#REF! ->  | L27: =#REF! ->  | M27: =#REF! ->  | N27: =#REF! ->  | O27: =#REF! ->  | P27: =#REF! ->  | R27: 0 | S27: 0 | T27: 0 | U27: 1
A28: =#REF! ->  | B28: =#REF! ->  | C28: =#REF! ->  | D28: =#REF! ->  | E28: =#REF! ->  | F28: =#REF! ->  | G28: =#REF! ->  | H28: =#REF! ->  | I28: =#REF! ->  | J28: =#REF! ->  | K28: =#REF! ->  | L28: =#REF! ->  | M28: =#REF! ->  | N28: =#REF! ->  | O28: =#REF! ->  | P28: =#REF! ->  | R28: 0 | S28: 0 | T28: 0
A29: =#REF! ->  | B29: =#REF! ->  | C29: =#REF! ->  | D29: =#REF! ->  | E29: =#REF! ->  | F29: =#REF! ->  | G29: =#REF! ->  | H29: =#REF! ->  | I29: =#REF! ->  | J29: =#REF! ->  | K29: =#REF! ->  | L29: =#REF! ->  | M29: =#REF! ->  | N29: =#REF! ->  | O29: =#REF! ->  | P29: =#REF! ->  | R29: 0 | S29: 0 | T29: 0

Sheet Daviero
A1: Jim Daviero
C4: Date: | D4: =VLOOKUP(C5,Week,2) -> 2024-04-26 | I4: Date: | J4: =VLOOKUP(I5,Week,2) -> 2024-05-03 | O4: Date: | P4: =VLOOKUP(O5,Week,2) -> 2024-05-10 | U4: Date: | V4: =VLOOKUP(U5,Week,2) -> 2024-05-17 | AA4: Date: | AB4: =VLOOKUP(AA5,Week,2) -> 2024-05-24 | AG4: Date: | AH4: =VLOOKUP(AG5,Week,2) -> 2024-05-31 | AM4: Date: | AN4: =VLOOKUP(AM5,Week,2) -> 2024-06-07 | AS4: Date: | AT4: =VLOOKUP(AS5,Week,2) -> 2024-06-14 | AY4: Date: | AZ4: =VLOOKUP(AY5,Week,2) -> 2024-07-05 | BE4: Date: | BF4: =VLOOKUP(BE5,Week,2) -> 2024-07-12 | BK4: Date: | BL4: =VLOOKUP(BK5,Week,2) -> 2024-07-19 | BQ4: Date: | BR4: =VLOOKUP(BQ5,Week,2) -> 2024-07-26 | BW4: Date: | BX4: =VLOOKUP(BW5,Week,2) -> 2024-08-02 | CC4: Date: | CD4: =VLOOKUP(CC5,Week,2) -> 2024-08-16 | CI4: Date: | CJ4: =VLOOKUP(CI5,Week,2) -> 2024-08-23
B5: Week | C5: 1 | H5: Week | I5: 2 | N5: Week | O5: 3 | T5: Week | U5: 4 | Z5: Week | AA5: 5 | AF5: Week | AG5: 6 | AL5: Week | AM5: 7 | AR5: Week | AS5: 8 | AX5: Week | AY5: 9 | BD5: Week | BE5: 10 | BJ5: Week | BK5: 11 | BP5: Week | BQ5: 12 | BV5: Week | BW5: 13 | CB5: Week | CC5: 14 | CH5: Week | CI5: 15
B6: Hole # | C6: Par | D6: Score | E6: Net | F6: Win Hole | H6: Hole # | I6: Par | J6: Score | K6: Net | L6: Win Hole | N6: Hole # | O6: Par | P6: Score | Q6: Net | R6: Win Hole | T6: Hole # | U6: Par | V6: Score | W6: Net | X6: Win Hole | Z6: Hole # | AA6: Par | AB6: Score | AC6: Net | AD6: Win Hole | AF6: Hole # | AG6: Par | AH6: Score | AI6: Net | AJ6: Win Hole | AL6: Hole # | AM6: Par | AN6: Score | AO6: Net | AP6: Win Hole | AR6: Hole # | AS6: Par | AT6: Score | AU6: Net | AV6: Win Hole | AX6: Hole # | AY6: Par | AZ6: Score | BA6: Net | BB6: Win Hole | BD6: Hole # | BE6: Par | BF6: Score | BG6: Net | BH6: Win Hole | BJ6: Hole # | BK6: Par | BL6: Score | BM6: Net | BN6: Win Hole | BP6: Hole # | BQ6: Par | BR6: Score | BS6: Net | BT6: Win Hole | BV6: Hole # | BW6: Par | BX6: Score | BY6: Net | BZ6: Win Hole | CB6: Hole # | CC6: Par | CD6: Score | CE6: Net | CF6: Win Hole | CH6: Hole # | CI6: Par | CJ6: Score | CK6: Net | CL6: Win Hole
B7: =VLOOKUP(C5,Week,6) -> 1 | C7: =VLOOKUP(B7,Holes,2) -> 4 | D7: 5 | E7: =IF((D7-C7)>3,C7+3,D7) -> 5 | F7: 1 | H7: =VLOOKUP(I5,Week,6) -> 10 | I7: =VLOOKUP(H7,Holes,2) -> 4 | K7: =IF((J7-I7)>3,I7+3,J7) -> 0 | N7: =VLOOKUP(O5,Week,6) -> 1 | O7: =VLOOKUP(N7,Holes,2) -> 4 | P7: 5 | Q7: =IF((P7-O7)>3,O7+3,P7) -> 5 | R7: 0 | T7: =VLOOKUP(U5,Week,6) -> 10 | U7: =VLOOKUP(T7,Holes,2) -> 4 | V7: 5 | W7: =IF((V7-U7)>3,U7+3,V7) -> 5 | X7: 0.5 | Z7: =VLOOKUP(AA5,Week,6) -> 1 | AA7: =VLOOKUP(Z7,Holes,2) -> 4 | AB7: 5 | AC7: =IF((AB7-AA7)>3,AA7+3,AB7) -> 5 | AD7: 0.5 | AF7: =VLOOKUP(AG5,Week,6) -> 10 | AG7: =VLOOKUP(AF7,Holes,2) -> 4 | AH7: 5 | AI7: =IF((AH7-AG7)>3,AG7+3,AH7) -> 5 | AJ7: 0.5 | AL7: =VLOOKUP(AM5,Week,6) -> 1 | AM7: =VLOOKUP(AL7,Holes,2) -> 4 | AN7: 6 | AO7: =IF((AN7-AM7)>3,AM7+3,AN7) -> 6 | AP7: 0 | AR7: =VLOOKUP(AS5,Week,6) -> 10 | AS7: =VLOOKUP(AR7,Holes,2) -> 4 | AT7: 5 | AU7: =IF((AT7-AS7)>3,AS7+3,AT7) -> 5 | AV7: 1 | AX7: =VLOOKUP(AY5,Week,6) -> 1 | AY7: =VLOOKUP(AX7,Holes,2) -> 4 | AZ7: 5 | BA7: =IF((AZ7-AY7)>3,AY7+3,AZ7) -> 5 | BB7: 0 | BD7: =VLOOKUP(BE5,Week,6) -> 10 | BE7: =VLOOKUP(BD7,Holes,2) -> 4 | BF7: 4 | BG7: =IF((BF7-BE7)>3,BE7+3,BF7) -> 4 | BH7: 0.5 | BJ7: =VLOOKUP(BK5,Week,6) -> 1 | BK7: =VLOOKUP(BJ7,Holes,2) -> 4 | BM7: =IF((BL7-BK7)>3,BK7+3,BL7) -> 0 | BP7: =VLOOKUP(BQ5,Week,6) -> 10 | BQ7: =VLOOKUP(BP7,Holes,2) -> 4 | BR7: 5 | BS7: =IF((BR7-BQ7)>3,BQ7+3,BR7) -> 5 | BT7: 1 | BV7: =VLOOKUP(BW5,Week,6) -> 1 | BW7: =VLOOKUP(BV7,Holes,2) -> 4 | BY7: =IF((BX7-BW7)>3,BW7+3,BX7) -> 0 | CB7: =VLOOKUP(CC5,Week,6) -> 1 | CC7: =VLOOKUP(CB7,Holes,2) -> 4 | CD7: 6 | CE7: =IF((CD7-CC7)>3,CC7+3,CD7) -> 6 | CF7: 0 | CH7: =VLOOKUP(CI5,Week,6) -> 10 | CI7: =VLOOKUP(CH7,Holes,2) -> 4 | CJ7: 4 | CK7: =IF((CJ7-CI7)>3,CI7+3,CJ7) -> 4 | CL7: 1
B8: =+B7+1 -> 2 | C8: 4 | D8: 4 | E8: 4 | F8: 0.5 | H8: =+H7+1 -> 11 | I8: 4 | K8: 0 | N8: =+N7+1 -> 2 | O8: 4 | P8: 5 | Q8: 5 | R8: 1 | T8: =+T7+1 -> 11 | U8: 4 | V8: 6 | W8: 6 | X8: 0.5 | Z8: =+Z7+1 -> 2 | AA8: 4 | AB8: 6 | AC8: 6 | AD8: 0 | AF8: =+AF7+1 -> 11 | AG8: 4 | AH8: 5 | AI8: 5 | AJ8: 0 | AL8: =+AL7+1 -> 2 | AM8: 4 | AN8: 5 | AO8: 5 | AP8: 1 | AR8: =+AR7+1 -> 11 | AS8: 4 | AT8: 4 | AU8: 4 | AV8: 1 | AX8: =+AX7+1 -> 2 | AY8: 4 | AZ8: 5 | BA8: 5 | BB8: 1 | BD8: =+BD7+1 -> 11 | BE8: 4 | BF8: 6 | BG8: 6 | BH8: 0 | BJ8: =+BJ7+1 -> 2 | BK8: 4 | BM8: 0 | BP8: =+BP7+1 -> 11 | BQ8: 4 | BR8: 5 | BS8: 5 | BT8: 0.5 | BV8: =+BV7+1 -> 2 | BW8: 4 | BY8: 0 | CB8: =+CB7+1 -> 2 | CC8: 4 | CD8: 7 | CE8: 7 | CF8: 0.5 | CH8: =+CH7+1 -> 11 | CI8: 4 | CJ8: 4 | CK8: 4 | CL8: 1
B9: 3 | C9: 3 | D9: 3 | E9: 3 | F9: 1 | H9: 12 | I9: 4 | K9: 0 | N9: 3 | O9: 3 | P9: 4 | Q9: 4 | R9: 1 | T9: 12 | U9: 4 | V9: 5 | W9: 5 | X9: 0.5 | Z9: 3 | AA9: 3 | AB9: 4 | AC9: 4 | AD9: 0.5 | AF9: 12 | AG9: 4 | AH9: 5 | AI9: 5 | AJ9: 0 | AL9: 3 | AM9: 3 | AN9: 3 | AO9: 3 | AP9: 0.5 | AR9: 12 | AS9: 4 | AT9: 5 | AU9: 5 | AV9: 1 | AX9: 3 | AY9: 3 | AZ9: 3 | BA9: 3 | BB9: 0.5 | BD9: 12 | BE9: 4 | BF9: 6 | BG9: 6 | BH9: 0.5 | BJ9: 3 | BK9: 3 | BM9: 0 | BP9: 12 | BQ9: 4 | BR9: 5 | BS9: 5 | BT9: 1 | BV9: 3 | BW9: 3 | BY9: 0 | CB9: 3 | CC9: 3 | CD9: 4 | CE9: 4 | CF9: 0.5 | CH9: 12 | CI9: 4 | CJ9: 5 | CK9: 5 | CL9: 0.5
B10: 4 | C10: 4 | D10: 5 | E10: 5 | F10: 0.5 | H10: 13 | I10: 5 | K10: 0 | N10: 4 | O10: 4 | P10: 5 | Q10: 5 | R10: 1 | T10: 13 | U10: 5 | V10: 6 | W10: 6 | X10: 0.5 | Z10: 4 | AA10: 4 | AB10: 6 | AC10: 6 | AD10: 0 | AF10: 13 | AG10: 5 | AH10: 6 | AI10: 6 | AJ10: 0 | AL10: 4 | AM10: 4 | AN10: 5 | AO10: 5 | AP10: 1 | AR10: 13 | AS10: 5 | AT10: 6 | AU10: 6 | AV10: 0.5 | AX10: 4 | AY10: 4 | AZ10: 8 | BA10: 7 | BB10: 0 | BD10: 13 | BE10: 5 | BF10: 6 | BG10: 6 | BH10: 1 | BJ10: 4 | BK10: 4 | BM10: 0 | BP10: 13 | BQ10: 5 | BR10: 4 | BS10: 4 | BT10: 1 | BV10: 4 | BW10: 4 | BY10: 0 | CB10: 4 | CC10: 4 | CD10: 5 | CE10: 5 | CF10: 0.5 | CH10: 13 | CI10: 5 | CJ10: 6 | CK10: 6 | CL10: 1
B11: 5 | C11: 5 | D11: 8 | E11: 8 | F11: 0 | H11: 14 | I11: 3 | K11: 0 | N11: 5 | O11: 5 | P11: 5 | Q11: 5 | R11: 1 | T11: 14 | U11: 3 | V11: 4 | W11: 4 | X11: 0.5 | Z11: 5 | AA11: 5 | AB11: 5 | AC11: 5 | AD11: 0.5 | AF11: 14 | AG11: 3 | AH11: 4 | AI11: 4 | AJ11: 0 | AL11: 5 | AM11: 5 | AN11: 6 | AO11: 6 | AP11: 0.5 | AR11: 14 | AS11: 3 | AT11: 3 | AU11: 3 | AV11: 1 | AX11: 5 | AY11: 5 | AZ11: 6 | BA11: 6 | BB11: 0.5 | BD11: 14 | BE11: 3 | BF11: 5 | BG11: 5 | BH11: 0 | BJ11: 5 | BK11: 5 | BM11: 0 | BP11: 14 | BQ11: 3 | BR11: 4 | BS11: 4 | BT11: 1 | BV11: 5 | BW11: 5 | BY11: 0 | CB11: 5 | CC11: 5 | CD11: 6 | CE11: 6 | CF11: 0 | CH11: 14 | CI11: 3 | CJ11: 4 | CK11: 4 | CL11: 1
B12: 6 | C12: 3 | D12: 4 | E12: 4 | F12: 0 | H12: 15 | I12: 4 | K12: 0 | N12: 6 | O12: 3 | P12: 4 | Q12: 4 | R12: 1 | T12: 15 | U12: 4 | V12: 6 | W12: 6 | X12: 0 | Z12: 6 | AA12: 3 | AB12: 6 | AC12: 6 | AD12: 0 | AF12: 15 | AG12: 4 | AH12: 5 | AI12: 5 | AJ12: 1 | AL12: 6 | AM12: 3 | AN12: 3 | AO12: 3 | AP12: 1 | AR12: 15 | AS12: 4 | AT12: 4 | AU12: 4 | AV12: 1 | AX12: 6 | AY12: 3 | AZ12: 4 | BA12: 4 | BB12: 0.5 | BD12: 15 | BE12: 4 | BF12: 4 | BG12: 4 | BH12: 1 | BJ12: 6 | BK12: 3 | BM12: 0 | BP12: 15 | BQ12: 4 | BR12: 5 | BS12: 5 | BT12: 0.5 | BV12: 6 | BW12: 3 | BY12: 0 | CB12: 6 | CC12: 3 | CD12: 3 | CE12: 3 | CF12: 0.5 | CH12: 15 | CI12: 4 | CJ12: 6 | CK12: 6 | CL12: 0
B13: 7 | C13: 4 | D13: 5 | E13: 5 | F13: 0 | H13: 16 | I13: 4 | K13: 0 | N13: 7 | O13: 4 | P13: 6 | Q13: 6 | R13: 0 | T13: 16 | U13: 4 | V13: 4 | W13: 4 | X13: 1 | Z13: 7 | AA13: 4 | AB13: 5 | AC13: 5 | AD13: 0 | AF13: 16 | AG13: 4 | AH13: 5 | AI13: 5 | AJ13: 0.5 | AL13: 7 | AM13: 4 | AN13: 5 | AO13: 5 | AP13: 0.5 | AR13: 16 | AS13: 4 | AT13: 6 | AU13: 6 | AV13: 0 | AX13: 7 | AY13: 4 | AZ13: 4 | BA13: 4 | BB13: 1 | BD13: 16 | BE13: 4 | BF13: 5 | BG13: 5 | BH13: 0 | BJ13: 7 | BK13: 4 | BM13: 0 | BP13: 16 | BQ13: 4 | BR13: 6 | BS13: 6 | BT13: 0 | BV13: 7 | BW13: 4 | BY13: 0 | CB13: 7 | CC13: 4 | CD13: 4 | CE13: 4 | CF13: 1 | CH13: 16 | CI13: 4 | CJ13: 5 | CK13: 5 | CL13: 0
B14: 8 | C14: 4 | D14: 5 | E14: 5 | F14: 0.5 | H14: 17 | I14: 3 | K14: 0 | N14: 8 | O14: 4 | P14: 6 | Q14: 6 | R14: 0.5 | T14: 17 | U14: 3 | V14: 4 | W14: 4 | X14: 0 | Z14: 8 | AA14: 4 | AB14: 5 | AC14: 5 | AD14: 0.5 | AF14: 17 | AG14: 3 | AH14: 4 | AI14: 4 | AJ14: 0.5 | AL14: 8 | AM14: 4 | AN14: 6 | AO14: 6 | AP14: 0 | AR14: 17 | AS14: 3 | AT14: 4 | AU14: 4 | AV14: 1 | AX14: 8 | AY14: 4 | AZ14: 5 | BA14: 5 | BB14: 0 | BD14: 17 | BE14: 3 | BF14: 4 | BG14: 4 | BH14: 0 | BJ14: 8 | BK14: 4 | BM14: 0 | BP14: 17 | BQ14: 3 | BR14: 5 | BS14: 5 | BT14: 0 | BV14: 8 | BW14: 4 | BY14: 0 | CB14: 8 | CC14: 4 | CD14: 6 | CE14: 6 | CF14: 0 | CH14: 17 | CI14: 3 | CJ14: 5 | CK14: 5 | CL14: 1
B15: 9 | C15: 5 | D15: 6 | E15: 6 | F15: 1 | H15: 18 | I15: 5 | K15: 0 | N15: 9 | O15: 5 | P15: 6 | Q15: 6 | R15: 1 | T15: 18 | U15: 5 | V15: 7 | W15: 7 | X15: 0.5 | Z15: 9 | AA15: 5 | AB15: 5 | AC15: 5 | AD15: 0.5 | AF15: 18 | AG15: 5 | AH15: 5 | AI15: 5 | AJ15: 1 | AL15: 9 | AM15: 5 | AN15: 5 | AO15: 5 | AP15: 0 | AR15: 18 | AS15: 5 | AT15: 6 | AU15: 6 | AV15: 0.5 | AX15: 9 | AY15: 5 | AZ15: 6 | BA15: 6 | BB15: 1 | BD15: 18 | BE15: 5 | BF15: 5 | BG15: 5 | BH15: 0.5 | BJ15: 9 | BK15: 5 | BM15: 0 | BP15: 18 | BQ15: 5 | BR15: 6 | BS15: 6 | BT15: 0.5 | BV15: 9 | BW15: 5 | BY15: 0 | CB15: 9 | CC15: 5 | CD15: 6 | CE15: 6 | CF15: 1 | CH15: 18 | CI15: 5 | CJ15: 7 | CK15: 7 | CL15: 0
B16: Total | C16: =SUM(C7:C15) -> 36 | D16: =SUM(D7:D15) -> 45 | E16: =SUM(E7:E15) -> 45 | F16: =SUM(F7:F15) -> 4.5 | H16: Total | I16: =SUM(I7:I15) -> 36 | J16: =SUM(J7:J15) -> 0 | K16: =SUM(K7:K15) -> 0 | L16: =SUM(L7:L15) -> 0 | N16: Total | O16: =SUM(O7:O15) -> 36 | P16: =SUM(P7:P15) -> 46 | Q16: =SUM(Q7:Q15) -> 46 | R16: =SUM(R7:R15) -> 6.5 | T16: Total | U16: =SUM(U7:U15) -> 36 | V16: =SUM(V7:V15) -> 47 | W16: =SUM(W7:W15) -> 47 | X16: =SUM(X7:X15) -> 4 | Z16: Total | AA16: =SUM(AA7:AA15) -> 36 | AB16: =SUM(AB7:AB15) -> 47 | AC16: =SUM(AC7:AC15) -> 47 | AD16: =SUM(AD7:AD15) -> 2.5 | AF16: Total | AG16: =SUM(AG7:AG15) -> 36 | AH16: =SUM(AH7:AH15) -> 44 | AI16: =SUM(AI7:AI15) -> 44 | AJ16: =SUM(AJ7:AJ15) -> 3.5 | AL16: Total | AM16: =SUM(AM7:AM15) -> 36 | AN16: =SUM(AN7:AN15) -> 44 | AO16: =SUM(AO7:AO15) -> 44 | AP16: =SUM(AP7:AP15) -> 4.5 | AR16: Total | AS16: =SUM(AS7:AS15) -> 36 | AT16: =SUM(AT7:AT15) -> 43 | AU16: =SUM(AU7:AU15) -> 43 | AV16: =SUM(AV7:AV15) -> 7 | AX16: Total | AY16: =SUM(AY7:AY15) -> 36 | AZ16: =SUM(AZ7:AZ15) -> 46 | BA16: =SUM(BA7:BA15) -> 45 | BB16: =SUM(BB7:BB15) -> 4.5 | BD16: Total | BE16: =SUM(BE7:BE15) -> 36 | BF16: =SUM(BF7:BF15) -> 45 | BG16: =SUM(BG7:BG15) -> 45 | BH16: =SUM(BH7:BH15) -> 3.5 | BJ16: Total | BK16: =SUM(BK7:BK15) -> 36 | BL16: =SUM(BL7:BL15) -> 0 | BM16: =SUM(BM7:BM15) -> 0 | BN16: =SUM(BN7:BN15) -> 0 | BP16: Total | BQ16: =SUM(BQ7:BQ15) -> 36 | BR16: =SUM(BR7:BR15) -> 45 | BS16: =SUM(BS7:BS15) -> 45 | BT16: =SUM(BT7:BT15) -> 5.5 | BV16: Total | BW16: =SUM(BW7:BW15) -> 36 | BX16: =SUM(BX7:BX15) -> 0 | BY16: =SUM(BY7:BY15) -> 0 | BZ16: =SUM(BZ7:BZ15) -> 0 | CB16: Total | CC16: =SUM(CC7:CC15) -> 36 | CD16: =SUM(CD7:CD15) -> 47 | CE16: =SUM(CE7:CE15) -> 47 | CF16: =SUM(CF7:CF15) -> 4 | CH16: Total | CI16: =SUM(CI7:CI15) -> 36 | CJ16: =SUM(CJ7:CJ15) -> 46 | CK16: =SUM(CK7:CK15) -> 46 | CL16: =SUM(CL7:CL15) -> 5.5
E18: Low Net | F18: 0.5 | K18: Low Net | L18: 0 | Q18: Low Net | R18: 1 | W18: Low Net | X18: 0.5 | AC18: Low Net | AD18: 0 | AI18: Low Net | AJ18: 0 | AO18: Low Net | AP18: 1 | AU18: Low Net | AV18: 1 | BA18: Low Net | BB18: 0 | BG18: Low Net | BH18: 0 | BM18: Low Net | BS18: Low Net | BT18: 1 | BY18: Low Net | CE18: Low Net | CF18: 0 | CK18: Low Net | CL18: 0.5
E20: Total Points | F20: =SUM(F16:F19) -> 5 | K20: Total Points | L20: =SUM(L16:L19) -> 0 | Q20: Total Points | R20: =SUM(R16:R19) -> 7.5 | W20: Total Points | X20: =SUM(X16:X19) -> 4.5 | AC20: Total Points | AD20: =SUM(AD16:AD19) -> 2.5 | AI20: Total Points | AJ20: =SUM(AJ16:AJ19) -> 3.5 | AO20: Total Points | AP20: =SUM(AP16:AP19) -> 5.5 | AU20: Total Points | AV20: =SUM(AV16:AV19) -> 8 | BA20: Total Points | BB20: =SUM(BB16:BB19) -> 4.5 | BG20: Total Points | BH20: =SUM(BH16:BH19) -> 3.5 | BM20: Total Points | BN20: =SUM(BN16:BN19) -> 0 | BS20: Total Points | BT20: =SUM(BT16:BT19) -> 6.5 | BY20: Total Points | BZ20: =SUM(BZ16:BZ19) -> 0 | CE20: Total Points | CF20: =SUM(CF16:CF19) -> 4 | CK20: Total Points | CL20: =SUM(CL16:CL19) -> 6
E22: Handicap | F22: =IF(D16=0,0,E16-C16) -> 9 | K22: Handicap | L22: =IF(J16=0,0,K16-I16) -> 0 | Q22: Handicap | R22: =IF(P16=0,0,Q16-O16) -> 10 | W22: Handicap | X22: =IF(V16=0,0,W16-U16) -> 11 | AC22: Handicap | AD22: =IF(AB16=0,0,AC16-AA16) -> 11 | AI22: Handicap | AJ22: =IF(AH16=0,0,AI16-AG16) -> 8 | AO22: Handicap | AP22: =IF(AN16=0,0,AO16-AM16) -> 8 | AU22: Handicap | AV22: =IF(AT16=0,0,AU16-AS16) -> 7 | BA22: Handicap | BB22: =IF(AZ16=0,0,BA16-AY16) -> 9 | BG22: Handicap | BH22: =IF(BF16=0,0,BG16-BE16) -> 9 | BM22: Handicap | BN22: =IF(BL16=0,0,BM16-BK16) -> 0 | BS22: Handicap | BT22: =IF(BR16=0,0,BS16-BQ16) -> 9 | BY22: Handicap | BZ22: =IF(BX16=0,0,BY16-BW16) -> 0 | CE22: Handicap | CF22: =IF(CD16=0,0,CE16-CC16) -> 11 | CK22: Handicap | CL22: =IF(CJ16=0,0,CK16-CI16) -> 10
F24: =IF(D16<>0,IF(F16>4.5,"W",IF(F16=4.5,"T",IF(F16<4.5,"L"))),0) -> T | L24: =IF(J16<>0,IF(L16>4.5,"W",IF(L16=4.5,"T",IF(L16<4.5,"L"))),0) -> 0 | R24: =IF(P16<>0,IF(R16>4.5,"W",IF(R16=4.5,"T",IF(R16<4.5,"L"))),0) -> W | X24: =IF(V16<>0,IF(X16>4.5,"W",IF(X16=4.5,"T",IF(X16<4.5,"L"))),0) -> L | AD24: =IF(AB16<>0,IF(AD16>4.5,"W",IF(AD16=4.5,"T",IF(AD16<4.5,"L"))),0) -> L | AJ24: =IF(AH16<>0,IF(AJ16>4.5,"W",IF(AJ16=4.5,"T",IF(AJ16<4.5,"L"))),0) -> L | AP24: =IF(AN16<>0,IF(AP16>4.5,"W",IF(AP16=4.5,"T",IF(AP16<4.5,"L"))),0) -> T | AV24: =IF(AT16<>0,IF(AV16>4.5,"W",IF(AV16=4.5,"T",IF(AV16<4.5,"L"))),0) -> W | BB24: =IF(AZ16<>0,IF(BB16>4.5,"W",IF(BB16=4.5,"T",IF(BB16<4.5,"L"))),0) -> T | BH24: =IF(BF16<>0,IF(BH16>4.5,"W",IF(BH16=4.5,"T",IF(BH16<4.5,"L"))),0) -> L | BN24: =IF(BL16<>0,IF(BN16>4.5,"W",IF(BN16=4.5,"T",IF(BN16<4.5,"L"))),0) -> 0 | BT24: =IF(BR16<>0,IF(BT16>4.5,"W",IF(BT16=4.5,"T",IF(BT16<4.5,"L"))),0) -> W | BZ24: =IF(BX16<>0,IF(BZ16>4.5,"W",IF(BZ16=4.5,"T",IF(BZ16<4.5,"L"))),0) -> 0 | CF24: =IF(CD16<>0,IF(CF16>4.5,"W",IF(CF16=4.5,"T",IF(CF16<4.5,"L"))),0) -> L | CL24: =IF(CJ16<>0,IF(CL16>4.5,"W",IF(CL16=4.5,"T",IF(CL16<4.5,"L"))),0) -> W
B26: Summary | D26: =COUNT(D29:D43) -> 10
D27: Adj | F27: Adj | J27: Avg Score
C28: Points | D28: Points | E28: Matches | F28: Matches | I28: Hole # | J28: by Hole | K28: Best | L28: Worst
B29: Week #1 | C29: =F20 -> 5 | D29: =C29 -> 5 | E29: =IF(D16>0,1,0) -> 1 | F29: =E29 -> 1 | I29: 1 | J29: =IFERROR(AVERAGE(D7,P7,AB7,AN7,AZ7,BL7,BX7,CD7),0) -> 5.333333333 | K29: =IFERROR(MIN(D7,P7,AB7,AN7,AZ7,BL7,BX7,CD7),0) -> 5 | L29: =IFERROR(MAX(D7,P7,AB7,AN7,AZ7,BL7,BX7,CD7),0) -> 6
B30: Week #2 | C30: =L20 -> 0 | E30: =IF(J16>0,1,0) -> 0 | F30: 0 | I30: 2 | J30: =IFERROR(AVERAGE(D8,P8,AB8,AN8,AZ8,BL8,BX8,CD8),0) -> 5.333333333 | K30: =IFERROR(MIN(D8,P8,AB8,AN8,AZ8,BL8,BX8,CD8),0) -> 4 | L30: =IFERROR(MAX(D8,P8,AB8,AN8,AZ8,BL8,BX8,CD8),0) -> 7
B31: Week #3 | C31: =R20 -> 7.5 | D31: 7.5 | E31: =IF(P16>0,1,0) -> 1 | F31: 1 | I31: 3 | J31: 3.5 | K31: 3 | L31: 4
B32: Week #4 | C32: =X20 -> 4.5 | D32: 4.5 | E32: =IF(V16>0,1,0) -> 1 | F32: 1 | I32: 4 | J32: 5.666666667 | K32: 5 | L32: 8
B33: Week #5 | C33: =AD20 -> 2.5 | E33: =IF(AB16>0,1,0) -> 1 | F33: 1 | I33: 5 | J33: 6 | K33: 5 | L33: 8
B34: Week #6 | C34: =AJ20 -> 3.5 | E34: =IF(AH16>0,1,0) -> 1 | F34: 1 | I34: 6 | J34: 4 | K34: 3 | L34: 6
B35: Week #7 | C35: =AP20 -> 5.5 | D35: 5.5 | E35: =IF(AN16>0,1,0) -> 1 | F35: 1 | I35: 7 | J35: 4.833333333 | K35: 4 | L35: 6
B36: Week #8 | C36: =AV20 -> 8 | D36: 8 | E36: =IF(AT16>0,1,0) -> 1 | F36: 1 | I36: 8 | J36: 5.5 | K36: 5 | L36: 6
B37: Week #9 | C37: =BB20 -> 4.5 | D37: 4.5 | E37: =IF(AZ16>0,1,0) -> 1 | F37: 1 | I37: 9 | J37: 5.666666667 | K37: 5 | L37: 6
B38: Week #10 | C38: =BH20 -> 3.5 | D38: 3.5 | E38: =IF(BF16>0,1,0) -> 1 | F38: 1 | I38: Front | J38: =SUM(J29:J37) -> 45.83333333 | K38: =SUM(K29:K37) -> 39 | L38: 57
B39: Week #11 | C39: =BN20 -> 0 | E39: =IF(BL16>0,1,0) -> 0 | F39: 0
B40: Week #12 | C40: =BT20 -> 6.5 | D40: 6.5 | E40: =IF(BR16>0,1,0) -> 1 | F40: 1 | I40: 10 | J40: =IFERROR(AVERAGE(J7,V7,AH7,AT7,BF7,BR7,CJ7),0) -> 4.666666667 | K40: =IFERROR(MIN(J7,V7,AH7,AT7,BF7,BR7,CJ7),0) -> 4 | L40: =IFERROR(MAX(J7,V7,AH7,AT7,BF7,BR7,CJ7),0) -> 5
B41: Week #13 | C41: =BZ20 -> 0 | E41: =IF(BX16>0,1,0) -> 0 | F41: 0 | I41: 11 | J41: =IFERROR(AVERAGE(J8,V8,AH8,AT8,BF8,BR8,CJ8),0) -> 5 | K41: =IFERROR(MIN(J8,V8,AH8,AT8,BF8,BR8,CJ8),0) -> 4 | L41: =IFERROR(MAX(J8,V8,AH8,AT8,BF8,BR8,CJ8),0) -> 6
B42: Week #14 | C42: =CF20 -> 4 | D42: 4 | E42: =IF(CD16>0,1,0) -> 1 | F42: 1 | I42: 12 | J42: 5.166666667 | K42: 5 | L42: 6
B43: Week #15 | C43: =CL20 -> 6 | D43: 6 | E43: =IF(CJ16>0,1,0) -> 1 | F43: 1 | I43: 13 | J43: 5.666666667 | K43: 4 | L43: 6
B44: Total | C44: =SUM(C29:C43) -> 61 | D44: =SUM(D29:D43) -> 55 | E44: =SUM(E29:E43) -> 12 | F44: =SUM(F29:F43) -> 12 | I44: 14 | J44: 4 | K44: 3 | L44: 5
I45: 15 | J45: 5 | K45: 4 | L45: 6
B46: Summary | I46: 16 | J46: 5.166666667 | K46: 4 | L46: 6
B47: Eagles | C47: =I57+I68+I79+I90+I101+I112+I123+I134+I145+I156+I167+I178+I189+I200+I211 -> 0 | I47: 17 | J47: 4.333333333 | K47: 4 | L47: 5
B48: Birdies | C48: 1 | I48: 18 | J48: 6 | K48: 5 | L48: 7
B49: Pars | C49: =I59+I70+I81+I92+I103+I114+I125+I136+I147+I158+I169+I180+I191+I202+I213 -> 22 | I49: Back | J49: =SUM(J40:J48) -> 45 | K49: =SUM(K40:K48) -> 37 | L49: 52
B50: bogeys | C50: 61
B51: Double bogeys | C51: 20
B52: Other | C52: 4
B53: Total | C53: =SUM(C47:C52) -> 108
B55: =D4 -> 2024-04-26 | C55: Par | D55: Score
B56: =B7 -> 1 | C56: 4 | D56: 5 | E56: =IF(D56<>0,IF((D56-C56)=-1,"Birdie",IF((D56-C56)=-2,"Eagle",IF((D56-C56)=0,"Par",IF((D56-C56)=1,"bogey",IF((D56-C56)=2,"Double bogey","Other")))))," ") -> bogey | H56: Count
B57: 2 | C57: 4 | D57: 4 | E57: Par | H57: Eagle | I57: =COUNTIF(E56:E64,"Eagle") -> 0
B58: 3 | C58: 3 | D58: 3 | E58: Par | H58: Birdie | I58: =COUNTIF(E56:E64,"Birdie") -> 0
B59: 4 | C59: 4 | D59: 5 | E59: bogey | H59: Par | I59: =COUNTIF(E56:E64,"Par") -> 2
B60: 5 | C60: 5 | D60: 8 | E60: Other | H60: bogey | I60: =COUNTIF(E56:E64,"bogey") -> 6
B61: 6 | C61: 3 | D61: 4 | E61: bogey | H61: Double bogey | I61: =COUNTIF(E56:E64,"Double bogey") -> 0
B62: 7 | C62: 4 | D62: 5 | E62: bogey | H62: Other | I62: =COUNTIF(E56:E64,"Other") -> 1
B63: 8 | C63: 4 | D63: 5 | E63: bogey
B64: 9 | C64: 5 | D64: 6 | E64: bogey
B66: =J4 -> 2024-05-03
B67: =H7 -> 10 | C67: 4 | D67: 0 | E67: =IF(D67<>0,IF((D67-C67)=-1,"Birdie",IF((D67-C67)=-2,"Eagle",IF((D67-C67)=0,"Par",IF((D67-C67)=1,"bogey",IF((D67-C67)=2,"Double bogey","Other")))))," ") ->  | H67: Count
B68: 11 | C68: 4 | D68: 0 | H68: Eagle | I68: =COUNTIF(E67:E75,"Eagle") -> 0
B69: 12 | C69: 4 | D69: 0 | H69: Birdie | I69: =COUNTIF(E67:E75,"Birdie") -> 0
B70: 13 | C70: 5 | D70: 0 | H70: Par | I70: =COUNTIF(E67:E75,"Par") -> 0
B71: 14 | C71: 3 | D71: 0 | H71: bogey | I71: =COUNTIF(E67:E75,"bogey") -> 0
B72: 15 | C72: 4 | D72: 0 | H72: Double bogey | I72: =COUNTIF(E67:E75,"Double bogey") -> 0
B73: 16 | C73: 4 | D73: 0 | H73: Other | I73: =COUNTIF(E67:E75,"Other") -> 0
B74: 17 | C74: 3 | D74: 0
B75: 18 | C75: 5 | D75: 0
B77: =P4 -> 2024-05-10
B78: =N7 -> 1 | C78: 4 | D78: 5 | E78: =IF(D78<>0,IF((D78-C78)=-1,"Birdie",IF((D78-C78)=-2,"Eagle",IF((D78-C78)=0,"Par",IF((D78-C78)=1,"bogey",IF((D78-C78)=2,"Double bogey","Other")))))," ") -> bogey | H78: Count
B79: 2 | C79: 4 | D79: 5 | E79: bogey | H79: Eagle | I79: =COUNTIF(E78:E86,"Eagle") -> 0
B80: 3 | C80: 3 | D80: 4 | E80: bogey | H80: Birdie | I80: =COUNTIF(E78:E86,"Birdie") -> 0
B81: 4 | C81: 4 | D81: 5 | E81: bogey | H81: Par | I81: =COUNTIF(E78:E86,"Par") -> 1
B82: 5 | C82: 5 | D82: 5 | E82: Par | H82: bogey | I82: =COUNTIF(E78:E86,"bogey") -> 6
B83: 6 | C83: 3 | D83: 4 | E83: bogey | H83: Double bogey | I83: =COUNTIF(E78:E86,"Double bogey") -> 2
B84: 7 | C84: 4 | D84: 6 | E84: Double bogey | H84: Other | I84: =COUNTIF(E78:E86,"Other") -> 0
B85: 8 | C85: 4 | D85: 6 | E85: Double bogey
B86: 9 | C86: 5 | D86: 6 | E86: bogey
B88: =V4 -> 2024-05-17
B89: =T7 -> 10 | C89: 4 | D89: 5 | E89: =IF(D89<>0,IF((D89-C89)=-1,"Birdie",IF((D89-C89)=-2,"Eagle",IF((D89-C89)=0,"Par",IF((D89-C89)=1,"bogey",IF((D89-C89)=2,"Double bogey","Other")))))," ") -> bogey | H89: Count
B90: 11 | C90: 4 | D90: 6 | E90: Double bogey | H90: Eagle | I90: =COUNTIF(E89:E97,"Eagle") -> 0
B91: 12 | C91: 4 | D91: 5 | E91: bogey | H91: Birdie | I91: =COUNTIF(E89:E97,"Birdie") -> 0
B92: 13 | C92: 5 | D92: 6 | E92: bogey | H92: Par | I92: =COUNTIF(E89:E97,"Par") -> 1
B93: 14 | C93: 3 | D93: 4 | E93: bogey | H93: bogey | I93: =COUNTIF(E89:E97,"bogey") -> 5
B94: 15 | C94: 4 | D94: 6 | E94: Double bogey | H94: Double bogey | I94: =COUNTIF(E89:E97,"Double bogey") -> 3
B95: 16 | C95: 4 | D95: 4 | E95: Par | H95: Other | I95: =COUNTIF(E89:E97,"Other") -> 0
B96: 17 | C96: 3 | D96: 4 | E96: bogey
B97: 18 | C97: 5 | D97: 7 | E97: Double bogey
B99: =AB4 -> 2024-05-24
B100: =Z7 -> 1 | C100: 4 | D100: 5 | E100: =IF(D100<>0,IF((D100-C100)=-1,"Birdie",IF((D100-C100)=-2,"Eagle",IF((D100-C100)=0,"Par",IF((D100-C100)=1,"bogey",IF((D100-C100)=2,"Double bogey","Other")))))," ") -> bogey | H100: Count
B101: 2 | C101: 4 | D101: 6 | E101: Double bogey | H101: Eagle | I101: =COUNTIF(E100:E108,"Eagle") -> 0
B102: 3 | C102: 3 | D102: 4 | E102: bogey | H102: Birdie | I102: =COUNTIF(E100:E108,"Birdie") -> 0
B103: 4 | C103: 4 | D103: 6 | E103: Double bogey | H103: Par | I103: =COUNTIF(E100:E108,"Par") -> 2
B104: 5 | C104: 5 | D104: 5 | E104: Par | H104: bogey | I104: =COUNTIF(E100:E108,"bogey") -> 4
B105: 6 | C105: 3 | D105: 6 | E105: Other | H105: Double bogey | I105: =COUNTIF(E100:E108,"Double bogey") -> 2
B106: 7 | C106: 4 | D106: 5 | E106: bogey | H106: Other | I106: =COUNTIF(E100:E108,"Other") -> 1
B107: 8 | C107: 4 | D107: 5 | E107: bogey
B108: 9 | C108: 5 | D108: 5 | E108: Par
B110: =AH4 -> 2024-05-31
B111: =AF7 -> 10 | C111: 4 | D111: 5 | E111: =IF(D111<>0,IF((D111-C111)=-1,"Birdie",IF((D111-C111)=-2,"Eagle",IF((D111-C111)=0,"Par",IF((D111-C111)=1,"bogey",IF((D111-C111)=2,"Double bogey","Other")))))," ") -> bogey | H111: Count
B112: 11 | C112: 4 | D112: 5 | E112: bogey | H112: Eagle | I112: =COUNTIF(E111:E119,"Eagle") -> 0
B113: 12 | C113: 4 | D113: 5 | E113: bogey | H113: Birdie | I113: =COUNTIF(E111:E119,"Birdie") -> 0
B114: 13 | C114: 5 | D114: 6 | E114: bogey | H114: Par | I114: =COUNTIF(E111:E119,"Par") -> 1
B115: 14 | C115: 3 | D115: 4 | E115: bogey | H115: bogey | I115: =COUNTIF(E111:E119,"bogey") -> 8
B116: 15 | C116: 4 | D116: 5 | E116: bogey | H116: Double bogey | I116: =COUNTIF(E111:E119,"Double bogey") -> 0
B117: 16 | C117: 4 | D117: 5 | E117: bogey | H117: Other | I117: =COUNTIF(E111:E119,"Other") -> 0
B118: 17 | C118: 3 | D118: 4 | E118: bogey
B119: 18 | C119: 5 | D119: 5 | E119: Par
B121: =AN4 -> 2024-06-07
B122: =AL7 -> 1 | C122: 4 | D122: 6 | E122: =IF(D122<>0,IF((D122-C122)=-1,"Birdie",IF((D122-C122)=-2,"Eagle",IF((D122-C122)=0,"Par",IF((D122-C122)=1,"bogey",IF((D122-C122)=2,"Double bogey","Other")))))," ") -> Double bogey | H122: Count
B123: 2 | C123: 4 | D123: 5 | E123: bogey | H123: Eagle | I123: =COUNTIF(E122:E130,"Eagle") -> 0
B124: 3 | C124: 3 | D124: 3 | E124: Par | H124: Birdie | I124: =COUNTIF(E122:E130,"Birdie") -> 0
B125: 4 | C125: 4 | D125: 5 | E125: bogey | H125: Par | I125: =COUNTIF(E122:E130,"Par") -> 3
B126: 5 | C126: 5 | D126: 6 | E126: bogey | H126: bogey | I126: =COUNTIF(E122:E130,"bogey") -> 4
B127: 6 | C127: 3 | D127: 3 | E127: Par | H127: Double bogey | I127: =COUNTIF(E122:E130,"Double bogey") -> 2
B128: 7 | C128: 4 | D128: 5 | E128: bogey | H128: Other | I128: =COUNTIF(E122:E130,"Other") -> 0
B129: 8 | C129: 4 | D129: 6 | E129: Double bogey
B130: 9 | C130: 5 | D130: 5 | E130: Par
B132: =AT4 -> 2024-06-14
B133: =AR7 -> 10 | C133: 4 | D133: 5 | E133: =IF(D133<>0,IF((D133-C133)=-1,"Birdie",IF((D133-C133)=-2,"Eagle",IF((D133-C133)=0,"Par",IF((D133-C133)=1,"bogey",IF((D133-C133)=2,"Double bogey","Other")))))," ") -> bogey | H133: Count
B134: 11 | C134: 4 | D134: 4 | E134: Par | H134: Eagle | I134: =COUNTIF(E133:E141,"Eagle") -> 0
B135: 12 | C135: 4 | D135: 5 | E135: bogey | H135: Birdie | I135: =COUNTIF(E133:E141,"Birdie") -> 0
B136: 13 | C136: 5 | D136: 6 | E136: bogey | H136: Par | I136: =COUNTIF(E133:E141,"Par") -> 3
B137: 14 | C137: 3 | D137: 3 | E137: Par | H137: bogey | I137: =COUNTIF(E133:E141,"bogey") -> 5
B138: 15 | C138: 4 | D138: 4 | E138: Par | H138: Double bogey | I138: =COUNTIF(E133:E141,"Double bogey") -> 1
B139: 16 | C139: 4 | D139: 6 | E139: Double bogey | H139: Other | I139: =COUNTIF(E133:E141,"Other") -> 0
B140: 17 | C140: 3 | D140: 4 | E140: bogey
B141: 18 | C141: 5 | D141: 6 | E141: bogey
B143: =AZ4 -> 2024-07-05
B144: =AX7 -> 1 | C144: 4 | D144: 5 | E144: =IF(D144<>0,IF((D144-C144)=-1,"Birdie",IF((D144-C144)=-2,"Eagle",IF((D144-C144)=0,"Par",IF((D144-C144)=1,"bogey",IF((D144-C144)=2,"Double bogey","Other")))))," ") -> bogey | H144: Count
B145: 2 | C145: 4 | D145: 5 | E145: bogey | H145: Eagle | I145: =COUNTIF(E144:E152,"Eagle") -> 0
B146: 3 | C146: 3 | D146: 3 | E146: Par | H146: Birdie | I146: =COUNTIF(E144:E152,"Birdie") -> 0
B147: 4 | C147: 4 | D147: 8 | E147: Other | H147: Par | I147: =COUNTIF(E144:E152,"Par") -> 2
B148: 5 | C148: 5 | D148: 6 | E148: bogey | H148: bogey | I148: =COUNTIF(E144:E152,"bogey") -> 6
B149: 6 | C149: 3 | D149: 4 | E149: bogey | H149: Double bogey | I149: =COUNTIF(E144:E152,"Double bogey") -> 0
B150: 7 | C150: 4 | D150: 4 | E150: Par | H150: Other | I150: =COUNTIF(E144:E152,"Other") -> 1
B151: 8 | C151: 4 | D151: 5 | E151: bogey
B152: 9 | C152: 5 | D152: 6 | E152: bogey
B154: =BF4 -> 2024-07-12
B155: =BD7 -> 10 | C155: 4 | D155: 4 | E155: =IF(D155<>0,IF((D155-C155)=-1,"Birdie",IF((D155-C155)=-2,"Eagle",IF((D155-C155)=0,"Par",IF((D155-C155)=1,"bogey",IF((D155-C155)=2,"Double bogey","Other")))))," ") -> Par | H155: Count
B156: 11 | C156: 4 | D156: 6 | E156: Double bogey | H156: Eagle | I156: =COUNTIF(E155:E163,"Eagle") -> 0
B157: 12 | C157: 4 | D157: 6 | E157: Double bogey | H157: Birdie | I157: =COUNTIF(E155:E163,"Birdie") -> 0
B158: 13 | C158: 5 | D158: 6 | E158: bogey | H158: Par | I158: =COUNTIF(E155:E163,"Par") -> 3
B159: 14 | C159: 3 | D159: 5 | E159: Double bogey | H159: bogey | I159: =COUNTIF(E155:E163,"bogey") -> 3
B160: 15 | C160: 4 | D160: 4 | E160: Par | H160: Double bogey | I160: =COUNTIF(E155:E163,"Double bogey") -> 3
B161: 16 | C161: 4 | D161: 5 | E161: bogey | H161: Other | I161: =COUNTIF(E155:E163,"Other") -> 0
B162: 17 | C162: 3 | D162: 4 | E162: bogey
B163: 18 | C163: 5 | D163: 5 | E163: Par
B165: =BL4 -> 2024-07-19
B166: =BJ7 -> 1 | C166: 4 | D166: 0 | E166: =IF(D166<>0,IF((D166-C166)=-1,"Birdie",IF((D166-C166)=-2,"Eagle",IF((D166-C166)=0,"Par",IF((D166-C166)=1,"bogey",IF((D166-C166)=2,"Double bogey","Other")))))," ") ->  | H166: Count
B167: 2 | C167: 4 | D167: 0 | H167: Eagle | I167: =COUNTIF(E166:E174,"Eagle") -> 0
B168: 3 | C168: 3 | D168: 0 | H168: Birdie | I168: =COUNTIF(E166:E174,"Birdie") -> 0
B169: 4 | C169: 4 | D169: 0 | H169: Par | I169: =COUNTIF(E166:E174,"Par") -> 0
B170: 5 | C170: 5 | D170: 0 | H170: bogey | I170: =COUNTIF(E166:E174,"bogey") -> 0
B171: 6 | C171: 3 | D171: 0 | H171: Double bogey | I171: =COUNTIF(E166:E174,"Double bogey") -> 0
B172: 7 | C172: 4 | D172: 0 | H172: Other | I172: =COUNTIF(E166:E174,"Other") -> 0
B173: 8 | C173: 4 | D173: 0
B174: 9 | C174: 5 | D174: 0
B176: =BR4 -> 2024-07-26
B177: =BP7 -> 10 | C177: 4 | D177: 5 | E177: =IF(D177<>0,IF((D177-C177)=-1,"Birdie",IF((D177-C177)=-2,"Eagle",IF((D177-C177)=0,"Par",IF((D177-C177)=1,"bogey",IF((D177-C177)=2,"Double bogey","Other")))))," ") -> bogey | H177: Count
B178: 11 | C178: 4 | D178: 5 | E178: bogey | H178: Eagle | I178: =COUNTIF(E177:E185,"Eagle") -> 0
B179: 12 | C179: 4 | D179: 5 | E179: bogey | H179: Birdie | I179: =COUNTIF(E177:E185,"Birdie") -> 1
B180: 13 | C180: 5 | D180: 4 | E180: Birdie | H180: Par | I180: =COUNTIF(E177:E185,"Par") -> 0
B181: 14 | C181: 3 | D181: 4 | E181: bogey | H181: bogey | I181: =COUNTIF(E177:E185,"bogey") -> 6
B182: 15 | C182: 4 | D182: 5 | E182: bogey | H182: Double bogey | I182: =COUNTIF(E177:E185,"Double bogey") -> 2
B183: 16 | C183: 4 | D183: 6 | E183: Double bogey | H183: Other | I183: =COUNTIF(E177:E185,"Other") -> 0
B184: 17 | C184: 3 | D184: 5 | E184: Double bogey
B185: 18 | C185: 5 | D185: 6 | E185: bogey
B187: =BX4 -> 2024-08-02
B188: =BV7 -> 1 | C188: 4 | D188: 0 | E188: =IF(D188<>0,IF((D188-C188)=-1,"Birdie",IF((D188-C188)=-2,"Eagle",IF((D188-C188)=0,"Par",IF((D188-C188)=1,"bogey",IF((D188-C188)=2,"Double bogey","Other")))))," ") ->  | H188: Count
B189: 2 | C189: 4 | D189: 0 | H189: Eagle | I189: =COUNTIF(E188:E196,"Eagle") -> 0
B190: 3 | C190: 3 | D190: 0 | H190: Birdie | I190: =COUNTIF(E188:E196,"Birdie") -> 0
B191: 4 | C191: 4 | D191: 0 | H191: Par | I191: =COUNTIF(E188:E196,"Par") -> 0
B192: 5 | C192: 5 | D192: 0 | H192: bogey | I192: =COUNTIF(E188:E196,"bogey") -> 0
B193: 6 | C193: 3 | D193: 0 | H193: Double bogey | I193: =COUNTIF(E188:E196,"Double bogey") -> 0
B194: 7 | C194: 4 | D194: 0 | H194: Other | I194: =COUNTIF(E188:E196,"Other") -> 0
B195: 8 | C195: 4 | D195: 0
B196: 9 | C196: 5 | D196: 0
B198: =CD4 -> 2024-08-16
B199: =CB7 -> 1 | C199: 4 | D199: 6 | E199: =IF(D199<>0,IF((D199-C199)=-1,"Birdie",IF((D199-C199)=-2,"Eagle",IF((D199-C199)=0,"Par",IF((D199-C199)=1,"bogey",IF((D199-C199)=2,"Double bogey","Other")))))," ") -> Double bogey | H199: Count
B200: 2 | C200: 4 | D200: 7 | E200: Other | H200: Eagle | I200: =COUNTIF(E199:E207,"Eagle") -> 0
B201: 3 | C201: 3 | D201: 4 | E201: bogey | H201: Birdie | I201: =COUNTIF(E199:E207,"Birdie") -> 0
B202: 4 | C202: 4 | D202: 5 | E202: bogey | H202: Par | I202: =COUNTIF(E199:E207,"Par") -> 2
B203: 5 | C203: 5 | D203: 6 | E203: bogey | H203: bogey | I203: =COUNTIF(E199:E207,"bogey") -> 4
B204: 6 | C204: 3 | D204: 3 | E204: Par | H204: Double bogey | I204: =COUNTIF(E199:E207,"Double bogey") -> 2
B205: 7 | C205: 4 | D205: 4 | E205: Par | H205: Other | I205: =COUNTIF(E199:E207,"Other") -> 1
B206: 8 | C206: 4 | D206: 6 | E206: Double bogey
B207: 9 | C207: 5 | D207: 6 | E207: bogey
B209: =CJ4 -> 2024-08-23
B210: =CH7 -> 10 | C210: 4 | D210: 4 | E210: =IF(D210<>0,IF((D210-C210)=-1,"Birdie",IF((D210-C210)=-2,"Eagle",IF((D210-C210)=0,"Par",IF((D210-C210)=1,"bogey",IF((D210-C210)=2,"Double bogey","Other")))))," ") -> Par | H210: Count
B211: 11 | C211: 4 | D211: 4 | E211: Par | H211: Eagle | I211: =COUNTIF(E210:E218,"Eagle") -> 0
B212: 12 | C212: 4 | D212: 5 | E212: bogey | H212: Birdie | I212: =COUNTIF(E210:E218,"Birdie") -> 0
B213: 13 | C213: 5 | D213: 6 | E213: bogey | H213: Par | I213: =COUNTIF(E210:E218,"Par") -> 2
B214: 14 | C214: 3 | D214: 4 | E214: bogey | H214: bogey | I214: =COUNTIF(E210:E218,"bogey") -> 4
B215: 15 | C215: 4 | D215: 6 | E215: Double bogey | H215: Double bogey | I215: =COUNTIF(E210:E218,"Double bogey") -> 3
B216: 16 | C216: 4 | D216: 5 | E216: bogey | H216: Other | I216: =COUNTIF(E210:E218,"Other") -> 0
B217: 17 | C217: 3 | D217: 5 | E217: Double bogey
B218: 18 | C218: 5 | D218: 7 | E218: Double bogey

Sheet Fusco_D
A1: Dan Fusco
C4: Date: | D4: =VLOOKUP(C5,Week,2) -> 2024-04-26 | I4: Date: | J4: =VLOOKUP(I5,Week,2) -> 2024-05-03 | O4: Date: | P4: =VLOOKUP(O5,Week,2) -> 2024-05-10 | U4: Date: | V4: =VLOOKUP(U5,Week,2) -> 2024-05-17 | AA4: Date: | AB4: =VLOOKUP(AA5,Week,2) -> 2024-05-24 | AG4: Date: | AH4: =VLOOKUP(AG5,Week,2) -> 2024-05-31 | AM4: Date: | AN4: =VLOOKUP(AM5,Week,2) -> 2024-06-07 | AS4: Date: | AT4: =VLOOKUP(AS5,Week,2) -> 2024-06-14 | AY4: Date: | AZ4: =VLOOKUP(AY5,Week,2) -> 2024-07-05 | BE4: Date: | BF4: =VLOOKUP(BE5,Week,2) -> 2024-07-12 | BK4: Date: | BL4: =VLOOKUP(BK5,Week,2) -> 2024-07-19 | BQ4: Date: | BR4: =VLOOKUP(BQ5,Week,2) -> 2024-07-26 | BW4: Date: | BX4: =VLOOKUP(BW5,Week,2) -> 2024-08-02 | CC4: Date: | CD4: =VLOOKUP(CC5,Week,2) -> 2024-08-16 | CI4: Date: | CJ4: =VLOOKUP(CI5,Week,2) -> 2024-08-23
B5: Week | C5: 1 | H5: Week | I5: 2 | N5: Week | O5: 3 | T5: Week | U5: 4 | Z5: Week | AA5: 5 | AF5: Week | AG5: 6 | AL5: Week | AM5: 7 | AR5: Week | AS5: 8 | AX5: Week | AY5: 9 | BD5: Week | BE5: 10 | BJ5: Week | BK5: 11 | BP5: Week | BQ5: 12 | BV5: Week | BW5: 13 | CB5: Week | CC5: 14 | CH5: Week | CI5: 15
B6: Hole # | C6: Par | D6: Score | E6: Net | F6: Win Hole | H6: Hole # | I6: Par | J6: Score | K6: Net | L6: Win Hole | N6: Hole # | O6: Par | P6: Score | Q6: Net | R6: Win Hole | T6: Hole # | U6: Par | V6: Score | W6: Net | X6: Win Hole | Z6: Hole # | AA6: Par | AB6: Score | AC6: Net | AD6: Win Hole | AF6: Hole # | AG6: Par | AH6: Score | AI6: Net | AJ6: Win Hole | AL6: Hole # | AM6: Par | AN6: Score | AO6: Net | AP6: Win Hole | AR6: Hole # | AS6: Par | AT6: Score | AU6: Net | AV6: Win Hole | AX6: Hole # | AY6: Par | AZ6: Score | BA6: Net | BB6: Win Hole | BD6: Hole # | BE6: Par | BF6: Score | BG6: Net | BH6: Win Hole | BJ6: Hole # | BK6: Par | BL6: Score | BM6: Net | BN6: Win Hole | BP6: Hole # | BQ6: Par | BR6: Score | BS6: Net | BT6: Win Hole | BV6: Hole # | BW6: Par | BX6: Score | BY6: Net | BZ6: Win Hole | CB6: Hole # | CC6: Par | CD6: Score | CE6: Net | CF6: Win Hole | CH6: Hole # | CI6: Par | CJ6: Score | CK6: Net | CL6: Win Hole
B7: =VLOOKUP(C5,Week,6) -> 1 | C7: =VLOOKUP(B7,Holes,2) -> 4 | D7: 5 | E7: =IF((D7-C7)>3,C7+3,D7) -> 5 | F7: 0 | H7: =VLOOKUP(I5,Week,6) -> 10 | I7: =VLOOKUP(H7,Holes,2) -> 4 | J7: 6 | K7: =IF((J7-I7)>3,I7+3,J7) -> 6 | L7: 0 | N7: =VLOOKUP(O5,Week,6) -> 1 | O7: =VLOOKUP(N7,Holes,2) -> 4 | P7: 4 | Q7: =IF((P7-O7)>3,O7+3,P7) -> 4 | R7: 1 | T7: =VLOOKUP(U5,Week,6) -> 10 | U7: =VLOOKUP(T7,Holes,2) -> 4 | V7: 4 | W7: =IF((V7-U7)>3,U7+3,V7) -> 4 | X7: 0 | Z7: =VLOOKUP(AA5,Week,6) -> 1 | AA7: =VLOOKUP(Z7,Holes,2) -> 4 | AB7: 5 | AC7: =IF((AB7-AA7)>3,AA7+3,AB7) -> 5 | AD7: 0 | AF7: =VLOOKUP(AG5,Week,6) -> 10 | AG7: =VLOOKUP(AF7,Holes,2) -> 4 | AH7: 5 | AI7: =IF((AH7-AG7)>3,AG7+3,AH7) -> 5 | AJ7: 0.5 | AL7: =VLOOKUP(AM5,Week,6) -> 1 | AM7: =VLOOKUP(AL7,Holes,2) -> 4 | AN7: 4 | AO7: =IF((AN7-AM7)>3,AM7+3,AN7) -> 4 | AP7: 1 | AR7: =VLOOKUP(AS5,Week,6) -> 10 | AS7: =VLOOKUP(AR7,Holes,2) -> 4 | AT7: 6 | AU7: =IF((AT7-AS7)>3,AS7+3,AT7) -> 6 | AV7: 0.5 | AX7: =VLOOKUP(AY5,Week,6) -> 1 | AY7: =VLOOKUP(AX7,Holes,2) -> 4 | AZ7: 5 | BA7: =IF((AZ7-AY7)>3,AY7+3,AZ7) -> 5 | BB7: 0.5 | BD7: =VLOOKUP(BE5,Week,6) -> 10 | BE7: =VLOOKUP(BD7,Holes,2) -> 4 | BF7: 5 | BG7: =IF((BF7-BE7)>3,BE7+3,BF7) -> 5 | BH7: 0.5 | BJ7: =VLOOKUP(BK5,Week,6) -> 1 | BK7: =VLOOKUP(BJ7,Holes,2) -> 4 | BL7: 4 | BM7: =IF((BL7-BK7)>3,BK7+3,BL7) -> 4 | BN7: 1 | BP7: =VLOOKUP(BQ5,Week,6) -> 10 | BQ7: =VLOOKUP(BP7,Holes,2) -> 4 | BR7: 5 | BS7: =IF((BR7-BQ7)>3,BQ7+3,BR7) -> 5 | BT7: 0 | BV7: =VLOOKUP(BW5,Week,6) -> 1 | BW7: =VLOOKUP(BV7,Holes,2) -> 4 | BX7: 4 | BY7: =IF((BX7-BW7)>3,BW7+3,BX7) -> 4 | BZ7: 0.5 | CB7: =VLOOKUP(CC5,Week,6) -> 1 | CC7: =VLOOKUP(CB7,Holes,2) -> 4 | CD7: 4 | CE7: =IF((CD7-CC7)>3,CC7+3,CD7) -> 4 | CF7: 1 | CH7: =VLOOKUP(CI5,Week,6) -> 10 | CI7: =VLOOKUP(CH7,Holes,2) -> 4 | CJ7: 8 | CK7: =IF((CJ7-CI7)>3,CI7+3,CJ7) -> 7 | CL7: 0
B8: =+B7+1 -> 2 | C8: 4 | D8: 5 | E8: 5 | F8: 0 | H8: =+H7+1 -> 11 | I8: 4 | J8: 5 | K8: 5 | L8: 0 | N8: =+N7+1 -> 2 | O8: 4 | P8: 6 | Q8: 6 | R8: 0.5 | T8: =+T7+1 -> 11 | U8: 4 | V8: 5 | W8: 5 | X8: 0.5 | Z8: =+Z7+1 -> 2 | AA8: 4 | AB8: 5 | AC8: 5 | AD8: 0.5 | AF8: =+AF7+1 -> 11 | AG8: 4 | AH8: 5 | AI8: 5 | AJ8: 0.5 | AL8: =+AL7+1 -> 2 | AM8: 4 | AN8: 4 | AO8: 4 | AP8: 0.5 | AR8: =+AR7+1 -> 11 | AS8: 4 | AT8: 5 | AU8: 5 | AV8: 0 | AX8: =+AX7+1 -> 2 | AY8: 4 | AZ8: 5 | BA8: 5 | BB8: 0 | BD8: =+BD7+1 -> 11 | BE8: 4 | BF8: 5 | BG8: 5 | BH8: 0 | BJ8: =+BJ7+1 -> 2 | BK8: 4 | BL8: 5 | BM8: 5 | BN8: 0.5 | BP8: =+BP7+1 -> 11 | BQ8: 4 | BR8: 5 | BS8: 5 | BT8: 0 | BV8: =+BV7+1 -> 2 | BW8: 4 | BX8: 5 | BY8: 5 | BZ8: 0.5 | CB8: =+CB7+1 -> 2 | CC8: 4 | CD8: 6 | CE8: 6 | CF8: 0.5 | CH8: =+CH7+1 -> 11 | CI8: 4 | CJ8: 5 | CK8: 5 | CL8: 1
B9: 3 | C9: 3 | D9: 5 | E9: 5 | F9: 0 | H9: 12 | I9: 4 | J9: 5 | K9: 5 | L9: 0 | N9: 3 | O9: 3 | P9: 4 | Q9: 4 | R9: 0 | T9: 12 | U9: 4 | V9: 6 | W9: 6 | X9: 0.5 | Z9: 3 | AA9: 3 | AB9: 3 | AC9: 3 | AD9: 1 | AF9: 12 | AG9: 4 | AH9: 5 | AI9: 5 | AJ9: 0.5 | AL9: 3 | AM9: 3 | AN9: 3 | AO9: 3 | AP9: 1 | AR9: 12 | AS9: 4 | AT9: 5 | AU9: 5 | AV9: 0.5 | AX9: 3 | AY9: 3 | AZ9: 3 | BA9: 3 | BB9: 0.5 | BD9: 12 | BE9: 4 | BF9: 4 | BG9: 4 | BH9: 1 | BJ9: 3 | BK9: 3 | BL9: 4 | BM9: 4 | BN9: 0 | BP9: 12 | BQ9: 4 | BR9: 5 | BS9: 5 | BT9: 1 | BV9: 3 | BW9: 3 | BX9: 5 | BY9: 5 | BZ9: 0 | CB9: 3 | CC9: 3 | CD9: 4 | CE9: 4 | CF9: 0.5 | CH9: 12 | CI9: 4 | CJ9: 6 | CK9: 6 | CL9: 0
B10: 4 | C10: 4 | D10: 5 | E10: 5 | F10: 0.5 | H10: 13 | I10: 5 | J10: 7 | K10: 7 | L10: 0.5 | N10: 4 | O10: 4 | P10: 5 | Q10: 5 | R10: 0.5 | T10: 13 | U10: 5 | V10: 5 | W10: 5 | X10: 0 | Z10: 4 | AA10: 4 | AB10: 4 | AC10: 4 | AD10: 1 | AF10: 13 | AG10: 5 | AH10: 5 | AI10: 5 | AJ10: 1 | AL10: 4 | AM10: 4 | AN10: 4 | AO10: 4 | AP10: 0.5 | AR10: 13 | AS10: 5 | AT10: 7 | AU10: 7 | AV10: 0 | AX10: 4 | AY10: 4 | AZ10: 5 | BA10: 5 | BB10: 0 | BD10: 13 | BE10: 5 | BF10: 4 | BG10: 4 | BH10: 1 | BJ10: 4 | BK10: 4 | BL10: 5 | BM10: 5 | BN10: 0.5 | BP10: 13 | BQ10: 5 | BR10: 4 | BS10: 4 | BT10: 1 | BV10: 4 | BW10: 4 | BX10: 4 | BY10: 4 | BZ10: 1 | CB10: 4 | CC10: 4 | CD10: 5 | CE10: 5 | CF10: 0.5 | CH10: 13 | CI10: 5 | CJ10: 6 | CK10: 6 | CL10: 0.5
B11: 5 | C11: 5 | D11: 4 | E11: 4 | F11: 1 | H11: 14 | I11: 3 | J11: 4 | K11: 4 | L11: 1 | N11: 5 | O11: 5 | P11: 5 | Q11: 5 | R11: 1 | T11: 14 | U11: 3 | V11: 3 | W11: 3 | X11: 1 | Z11: 5 | AA11: 5 | AB11: 5 | AC11: 5 | AD11: 1 | AF11: 14 | AG11: 3 | AH11: 4 | AI11: 4 | AJ11: 1 | AL11: 5 | AM11: 5 | AN11: 5 | AO11: 5 | AP11: 1 | AR11: 14 | AS11: 3 | AT11: 3 | AU11: 3 | AV11: 1 | AX11: 5 | AY11: 5 | AZ11: 4 | BA11: 4 | BB11: 1 | BD11: 14 | BE11: 3 | BF11: 4 | BG11: 4 | BH11: 0 | BJ11: 5 | BK11: 5 | BL11: 6 | BM11: 6 | BN11: 0 | BP11: 14 | BQ11: 3 | BR11: 5 | BS11: 5 | BT11: 0.5 | BV11: 5 | BW11: 5 | BX11: 6 | BY11: 6 | BZ11: 0.5 | CB11: 5 | CC11: 5 | CD11: 5 | CE11: 5 | CF11: 1 | CH11: 14 | CI11: 3 | CJ11: 3 | CK11: 3 | CL11: 1
B12: 6 | C12: 3 | D12: 4 | E12: 4 | F12: 1 | H12: 15 | I12: 4 | J12: 6 | K12: 6 | L12: 1 | N12: 6 | O12: 3 | P12: 3 | Q12: 3 | R12: 1 | T12: 15 | U12: 4 | V12: 6 | W12: 6 | X12: 0.5 | Z12: 6 | AA12: 3 | AB12: 4 | AC12: 4 | AD12: 1 | AF12: 15 | AG12: 4 | AH12: 5 | AI12: 5 | AJ12: 1 | AL12: 6 | AM12: 3 | AN12: 6 | AO12: 6 | AP12: 0 | AR12: 15 | AS12: 4 | AT12: 5 | AU12: 5 | AV12: 1 | AX12: 6 | AY12: 3 | AZ12: 4 | BA12: 4 | BB12: 0.5 | BD12: 15 | BE12: 4 | BF12: 6 | BG12: 6 | BH12: 0 | BJ12: 6 | BK12: 3 | BL12: 5 | BM12: 5 | BN12: 0 | BP12: 15 | BQ12: 4 | BR12: 5 | BS12: 5 | BT12: 1 | BV12: 6 | BW12: 3 | BX12: 3 | BY12: 3 | BZ12: 0.5 | CB12: 6 | CC12: 3 | CD12: 3 | CE12: 3 | CF12: 0.5 | CH12: 15 | CI12: 4 | CJ12: 5 | CK12: 5 | CL12: 0
B13: 7 | C13: 4 | D13: 3 | E13: 3 | F13: 1 | H13: 16 | I13: 4 | J13: 4 | K13: 4 | L13: 1 | N13: 7 | O13: 4 | P13: 4 | Q13: 4 | R13: 1 | T13: 16 | U13: 4 | V13: 6 | W13: 6 | X13: 0.5 | Z13: 7 | AA13: 4 | AB13: 4 | AC13: 4 | AD13: 1 | AF13: 16 | AG13: 4 | AH13: 5 | AI13: 5 | AJ13: 0.5 | AL13: 7 | AM13: 4 | AN13: 4 | AO13: 4 | AP13: 1 | AR13: 16 | AS13: 4 | AT13: 5 | AU13: 5 | AV13: 0 | AX13: 7 | AY13: 4 | AZ13: 4 | BA13: 4 | BB13: 1 | BD13: 16 | BE13: 4 | BF13: 7 | BG13: 7 | BH13: 0 | BJ13: 7 | BK13: 4 | BL13: 6 | BM13: 6 | BN13: 0 | BP13: 16 | BQ13: 4 | BR13: 4 | BS13: 4 | BT13: 1 | BV13: 7 | BW13: 4 | BX13: 4 | BY13: 4 | BZ13: 0.5 | CB13: 7 | CC13: 4 | CD13: 6 | CE13: 6 | CF13: 0 | CH13: 16 | CI13: 4 | CJ13: 6 | CK13: 6 | CL13: 0.5
B14: 8 | C14: 4 | D14: 6 | E14: 6 | F14: 0.5 | H14: 17 | I14: 3 | J14: 4 | K14: 4 | L14: 0.5 | N14: 8 | O14: 4 | P14: 8 | Q14: 7 | R14: 0 | T14: 17 | U14: 3 | V14: 4 | W14: 4 | X14: 0.5 | Z14: 8 | AA14: 4 | AB14: 7 | AC14: 7 | AD14: 0.5 | AF14: 17 | AG14: 3 | AH14: 3 | AI14: 3 | AJ14: 1 | AL14: 8 | AM14: 4 | AN14: 5 | AO14: 5 | AP14: 0.5 | AR14: 17 | AS14: 3 | AT14: 3 | AU14: 3 | AV14: 1 | AX14: 8 | AY14: 4 | AZ14: 6 | BA14: 6 | BB14: 0 | BD14: 17 | BE14: 3 | BF14: 5 | BG14: 5 | BH14: 1 | BJ14: 8 | BK14: 4 | BL14: 5 | BM14: 5 | BN14: 0 | BP14: 17 | BQ14: 3 | BR14: 5 | BS14: 5 | BT14: 0 | BV14: 8 | BW14: 4 | BX14: 5 | BY14: 5 | BZ14: 0 | CB14: 8 | CC14: 4 | CD14: 5 | CE14: 5 | CF14: 1 | CH14: 17 | CI14: 3 | CJ14: 4 | CK14: 4 | CL14: 0.5
B15: 9 | C15: 5 | D15: 6 | E15: 6 | F15: 0.5 | H15: 18 | I15: 5 | J15: 6 | K15: 6 | L15: 1 | N15: 9 | O15: 5 | P15: 6 | Q15: 6 | R15: 0.5 | T15: 18 | U15: 5 | V15: 7 | W15: 7 | X15: 0 | Z15: 9 | AA15: 5 | AB15: 6 | AC15: 6 | AD15: 0.5 | AF15: 18 | AG15: 5 | AH15: 7 | AI15: 7 | AJ15: 1 | AL15: 9 | AM15: 5 | AN15: 5 | AO15: 5 | AP15: 0 | AR15: 18 | AS15: 5 | AT15: 6 | AU15: 6 | AV15: 1 | AX15: 9 | AY15: 5 | AZ15: 5 | BA15: 5 | BB15: 1 | BD15: 18 | BE15: 5 | BF15: 6 | BG15: 6 | BH15: 0 | BJ15: 9 | BK15: 5 | BL15: 5 | BM15: 5 | BN15: 0 | BP15: 18 | BQ15: 5 | BR15: 6 | BS15: 6 | BT15: 0 | BV15: 9 | BW15: 5 | BX15: 6 | BY15: 6 | BZ15: 0 | CB15: 9 | CC15: 5 | CD15: 7 | CE15: 7 | CF15: 0 | CH15: 18 | CI15: 5 | CJ15: 5 | CK15: 5 | CL15: 1
B16: Total | C16: =SUM(C7:C15) -> 36 | D16: =SUM(D7:D15) -> 43 | E16: =SUM(E7:E15) -> 43 | F16: =SUM(F7:F15) -> 4.5 | H16: Total | I16: =SUM(I7:I15) -> 36 | J16: =SUM(J7:J15) -> 47 | K16: =SUM(K7:K15) -> 47 | L16: =SUM(L7:L15) -> 5 | N16: Total | O16: =SUM(O7:O15) -> 36 | P16: =SUM(P7:P15) -> 45 | Q16: =SUM(Q7:Q15) -> 44 | R16: =SUM(R7:R15) -> 5.5 | T16: Total | U16: =SUM(U7:U15) -> 36 | V16: =SUM(V7:V15) -> 46 | W16: =SUM(W7:W15) -> 46 | X16: =SUM(X7:X15) -> 3.5 | Z16: Total | AA16: =SUM(AA7:AA15) -> 36 | AB16: =SUM(AB7:AB15) -> 43 | AC16: =SUM(AC7:AC15) -> 43 | AD16: =SUM(AD7:AD15) -> 6.5 | AF16: Total | AG16: =SUM(AG7:AG15) -> 36 | AH16: =SUM(AH7:AH15) -> 44 | AI16: =SUM(AI7:AI15) -> 44 | AJ16: =SUM(AJ7:AJ15) -> 7 | AL16: Total | AM16: =SUM(AM7:AM15) -> 36 | AN16: =SUM(AN7:AN15) -> 40 | AO16: =SUM(AO7:AO15) -> 40 | AP16: =SUM(AP7:AP15) -> 5.5 | AR16: Total | AS16: =SUM(AS7:AS15) -> 36 | AT16: =SUM(AT7:AT15) -> 45 | AU16: =SUM(AU7:AU15) -> 45 | AV16: =SUM(AV7:AV15) -> 5 | AX16: Total | AY16: =SUM(AY7:AY15) -> 36 | AZ16: =SUM(AZ7:AZ15) -> 41 | BA16: =SUM(BA7:BA15) -> 41 | BB16: =SUM(BB7:BB15) -> 4.5 | BD16: Total | BE16: =SUM(BE7:BE15) -> 36 | BF16: =SUM(BF7:BF15) -> 46 | BG16: =SUM(BG7:BG15) -> 46 | BH16: =SUM(BH7:BH15) -> 3.5 | BJ16: Total | BK16: =SUM(BK7:BK15) -> 36 | BL16: =SUM(BL7:BL15) -> 45 | BM16: =SUM(BM7:BM15) -> 45 | BN16: =SUM(BN7:BN15) -> 2 | BP16: Total | BQ16: =SUM(BQ7:BQ15) -> 36 | BR16: =SUM(BR7:BR15) -> 44 | BS16: =SUM(BS7:BS15) -> 44 | BT16: =SUM(BT7:BT15) -> 4.5 | BV16: Total | BW16: =SUM(BW7:BW15) -> 36 | BX16: =SUM(BX7:BX15) -> 42 | BY16: =SUM(BY7:BY15) -> 42 | BZ16: =SUM(BZ7:BZ15) -> 3.5 | CB16: Total | CC16: =SUM(CC7:CC15) -> 36 | CD16: =SUM(CD7:CD15) -> 45 | CE16: =SUM(CE7:CE15) -> 45 | CF16: =SUM(CF7:CF15) -> 5 | CH16: Total | CI16: =SUM(CI7:CI15) -> 36 | CJ16: =SUM(CJ7:CJ15) -> 48 | CK16: =SUM(CK7:CK15) -> 47 | CL16: =SUM(CL7:CL15) -> 4.5
E18: Low Net | F18: 0 | K18: Low Net | L18: 1 | Q18: Low Net | R18: 0.5 | W18: Low Net | X18: 0 | AC18: Low Net | AD18: 1 | AI18: Low Net | AJ18: 1 | AO18: Low Net | AP18: 1 | AU18: Low Net | AV18: 1 | BA18: Low Net | BB18: 1 | BG18: Low Net | BH18: 0 | BM18: Low Net | BN18: 0 | BS18: Low Net | BT18: 1 | BY18: Low Net | BZ18: 0 | CE18: Low Net | CF18: 1 | CK18: Low Net | CL18: 0
E20: Total Points | F20: =SUM(F16:F19) -> 4.5 | K20: Total Points | L20: =SUM(L16:L19) -> 6 | Q20: Total Points | R20: =SUM(R16:R19) -> 6 | W20: Total Points | X20: =SUM(X16:X19) -> 3.5 | AC20: Total Points | AD20: =SUM(AD16:AD19) -> 7.5 | AI20: Total Points | AJ20: =SUM(AJ16:AJ19) -> 8 | AO20: Total Points | AP20: =SUM(AP16:AP19) -> 6.5 | AU20: Total Points | AV20: =SUM(AV16:AV19) -> 6 | BA20: Total Points | BB20: =SUM(BB16:BB19) -> 5.5 | BG20: Total Points | BH20: =SUM(BH16:BH19) -> 3.5 | BM20: Total Points | BN20: =SUM(BN16:BN19) -> 2 | BS20: Total Points | BT20: =SUM(BT16:BT19) -> 5.5 | BY20: Total Points | BZ20: =SUM(BZ16:BZ19) -> 3.5 | CE20: Total Points | CF20: =SUM(CF16:CF19) -> 6 | CK20: Total Points | CL20: =SUM(CL16:CL19) -> 4.5
E22: Handicap | F22: =IF(D16=0,0,E16-C16) -> 7 | K22: Handicap | L22: =IF(J16=0,0,K16-I16) -> 11 | Q22: Handicap | R22: =IF(P16=0,0,Q16-O16) -> 8 | W22: Handicap | X22: =IF(V16=0,0,W16-U16) -> 10 | AC22: Handicap | AD22: =IF(AB16=0,0,AC16-AA16) -> 7 | AI22: Handicap | AJ22: =IF(AH16=0,0,AI16-AG16) -> 8 | AO22: Handicap | AP22: =IF(AN16=0,0,AO16-AM16) -> 4 | AU22: Handicap | AV22: =IF(AT16=0,0,AU16-AS16) -> 9 | BA22: Handicap | BB22: =IF(AZ16=0,0,BA16-AY16) -> 5 | BG22: Handicap | BH22: =IF(BF16=0,0,BG16-BE16) -> 10 | BM22: Handicap | BN22: =IF(BL16=0,0,BM16-BK16) -> 9 | BS22: Handicap | BT22: =IF(BR16=0,0,BS16-BQ16) -> 8 | BY22: Handicap | BZ22: =IF(BX16=0,0,BY16-BW16) -> 6 | CE22: Handicap | CF22: =IF(CD16=0,0,CE16-CC16) -> 9 | CK22: Handicap | CL22: =IF(CJ16=0,0,CK16-CI16) -> 11
F24: =IF(D16<>0,IF(F16>4.5,"W",IF(F16=4.5,"T",IF(F16<4.5,"L"))),0) -> T | L24: =IF(J16<>0,IF(L16>4.5,"W",IF(L16=4.5,"T",IF(L16<4.5,"L"))),0) -> W | R24: =IF(P16<>0,IF(R16>4.5,"W",IF(R16=4.5,"T",IF(R16<4.5,"L"))),0) -> W | X24: =IF(V16<>0,IF(X16>4.5,"W",IF(X16=4.5,"T",IF(X16<4.5,"L"))),0) -> L | AD24: =IF(AB16<>0,IF(AD16>4.5,"W",IF(AD16=4.5,"T",IF(AD16<4.5,"L"))),0) -> W | AJ24: =IF(AH16<>0,IF(AJ16>4.5,"W",IF(AJ16=4.5,"T",IF(AJ16<4.5,"L"))),0) -> W | AP24: =IF(AN16<>0,IF(AP16>4.5,"W",IF(AP16=4.5,"T",IF(AP16<4.5,"L"))),0) -> W | AV24: =IF(AT16<>0,IF(AV16>4.5,"W",IF(AV16=4.5,"T",IF(AV16<4.5,"L"))),0) -> W | BB24: =IF(AZ16<>0,IF(BB16>4.5,"W",IF(BB16=4.5,"T",IF(BB16<4.5,"L"))),0) -> T | BH24: =IF(BF16<>0,IF(BH16>4.5,"W",IF(BH16=4.5,"T",IF(BH16<4.5,"L"))),0) -> L | BN24: =IF(BL16<>0,IF(BN16>4.5,"W",IF(BN16=4.5,"T",IF(BN16<4.5,"L"))),0) -> L | BT24: =IF(BR16<>0,IF(BT16>4.5,"W",IF(BT16=4.5,"T",IF(BT16<4.5,"L"))),0) -> T | BZ24: =IF(BX16<>0,IF(BZ16>4.5,"W",IF(BZ16=4.5,"T",IF(BZ16<4.5,"L"))),0) -> L | CF24: =IF(CD16<>0,IF(CF16>4.5,"W",IF(CF16=4.5,"T",IF(CF16<4.5,"L"))),0) -> W | CL24: =IF(CJ16<>0,IF(CL16>4.5,"W",IF(CL16=4.5,"T",IF(CL16<4.5,"L"))),0) -> T
B26: Summary | D26: =COUNT(D29:D43) -> 10
D27: Adj | F27: Adj | J27: Avg Score
C28: Points | D28: Points | E28: Matches | F28: Matches | I28: Hole # | J28: by Hole | K28: Best | L28: Worst
B29: Week #1 | C29: =F20 -> 4.5 | E29: =IF(D16>0,1,0) -> 1 | F29: =E29 -> 1 | I29: 1 | J29: =IFERROR(AVERAGE(D7,P7,AB7,AN7,AZ7,BL7,BX7,CD7),0) -> 4.375 | K29: =IFERROR(MIN(D7,P7,AB7,AN7,AZ7,BL7,BX7,CD7),0) -> 4 | L29: =IFERROR(MAX(D7,P7,AB7,AN7,AZ7,BL7,BX7,CD7),0) -> 5
B30: Week #2 | C30: =L20 -> 6 | D30: =C30 -> 6 | E30: =IF(J16>0,1,0) -> 1 | F30: 1 | I30: 2 | J30: =IFERROR(AVERAGE(D8,P8,AB8,AN8,AZ8,BL8,BX8,CD8),0) -> 5.125 | K30: =IFERROR(MIN(D8,P8,AB8,AN8,AZ8,BL8,BX8,CD8),0) -> 4 | L30: =IFERROR(MAX(D8,P8,AB8,AN8,AZ8,BL8,BX8,CD8),0) -> 6
B31: Week #3 | C31: =R20 -> 6 | D31: 6 | E31: =IF(P16>0,1,0) -> 1 | F31: 1 | I31: 3 | J31: 3.875 | K31: 3 | L31: 5
B32: Week #4 | C32: =X20 -> 3.5 | E32: =IF(V16>0,1,0) -> 1 | F32: 1 | I32: 4 | J32: 4.625 | K32: 4 | L32: 5
B33: Week #5 | C33: =AD20 -> 7.5 | D33: 7.5 | E33: =IF(AB16>0,1,0) -> 1 | F33: 1 | I33: 5 | J33: 5 | K33: 4 | L33: 6
B34: Week #6 | C34: =AJ20 -> 8 | D34: 8 | E34: =IF(AH16>0,1,0) -> 1 | F34: 1 | I34: 6 | J34: 4 | K34: 3 | L34: 6
B35: Week #7 | C35: =AP20 -> 6.5 | D35: 6.5 | E35: =IF(AN16>0,1,0) -> 1 | F35: 1 | I35: 7 | J35: 4.375 | K35: 3 | L35: 6
B36: Week #8 | C36: =AV20 -> 6 | D36: 6 | E36: =IF(AT16>0,1,0) -> 1 | F36: 1 | I36: 8 | J36: 5.875 | K36: 5 | L36: 8
B37: Week #9 | C37: =BB20 -> 5.5 | D37: 5.5 | E37: =IF(AZ16>0,1,0) -> 1 | F37: 1 | I37: 9 | J37: 5.75 | K37: 5 | L37: 7
B38: Week #10 | C38: =BH20 -> 3.5 | E38: =IF(BF16>0,1,0) -> 1 | F38: 1 | I38: Front | J38: =SUM(J29:J37) -> 43 | K38: =SUM(K29:K37) -> 35 | L38: 54
B39: Week #11 | C39: =BN20 -> 2 | E39: 1 | F39: 1
B40: Week #12 | C40: =BT20 -> 5.5 | D40: 5.5 | E40: =IF(BR16>0,1,0) -> 1 | F40: 1 | I40: 10 | J40: =IFERROR(AVERAGE(J7,V7,AH7,AT7,BF7,BR7,CJ7),0) -> 5.571428571 | K40: =IFERROR(MIN(J7,V7,AH7,AT7,BF7,BR7,CJ7),0) -> 4 | L40: =IFERROR(MAX(J7,V7,AH7,AT7,BF7,BR7,CJ7),0) -> 8
B41: Week #13 | C41: =BZ20 -> 3.5 | E41: =IF(BX16>0,1,0) -> 1 | F41: 1 | I41: 11 | J41: =IFERROR(AVERAGE(J8,V8,AH8,AT8,BF8,BR8,CJ8),0) -> 5 | K41: =IFERROR(MIN(J8,V8,AH8,AT8,BF8,BR8,CJ8),0) -> 5 | L41: =IFERROR(MAX(J8,V8,AH8,AT8,BF8,BR8,CJ8),0) -> 5
B42: Week #14 | C42: =CF20 -> 6 | D42: 6 | E42: =IF(CD16>0,1,0) -> 1 | F42: 1 | I42: 12 | J42: 5.142857143 | K42: 4 | L42: 6
B43: Week #15 | C43: =CL20 -> 4.5 | D43: 4.5 | E43: =IF(CJ16>0,1,0) -> 1 | F43: 1 | I43: 13 | J43: 5.428571429 | K43: 4 | L43: 7
B44: Total | C44: =SUM(C29:C43) -> 78.5 | D44: =SUM(D29:D43) -> 61.5 | E44: =SUM(E29:E43) -> 15 | F44: =SUM(F29:F43) -> 15 | I44: 14 | J44: 3.714285714 | K44: 3 | L44: 5
I45: 15 | J45: 5.428571429 | K45: 5 | L45: 6
B46: Summary | I46: 16 | J46: 5.285714286 | K46: 4 | L46: 7
B47: Eagles | C47: =I57+I68+I79+I90+I101+I112+I123+I134+I145+I156+I167+I178+I189+I200+I211 -> 0 | I47: 17 | J47: 4 | K47: 3 | L47: 5
B48: Birdies | C48: 5 | I48: 18 | J48: 6.142857143 | K48: 5 | L48: 7
B49: Pars | C49: =I59+I70+I81+I92+I103+I114+I125+I136+I147+I158+I169+I180+I191+I202+I213 -> 39 | I49: Back | J49: =SUM(J40:J48) -> 45.71428571 | K49: =SUM(K40:K48) -> 37 | L49: 56
B50: bogeys | C50: 60
B51: Double bogeys | C51: 26
B52: Other | C52: 5
B53: Total | C53: =SUM(C47:C52) -> 135
B55: =D4 -> 2024-04-26 | C55: Par | D55: Score
B56: =B7 -> 1 | C56: 4 | D56: 5 | E56: =IF(D56<>0,IF((D56-C56)=-1,"Birdie",IF((D56-C56)=-2,"Eagle",IF((D56-C56)=0,"Par",IF((D56-C56)=1,"bogey",IF((D56-C56)=2,"Double bogey","Other")))))," ") -> bogey | H56: Count
B57: 2 | C57: 4 | D57: 5 | E57: bogey | H57: Eagle | I57: =COUNTIF(E56:E64,"Eagle") -> 0
B58: 3 | C58: 3 | D58: 5 | E58: Double bogey | H58: Birdie | I58: =COUNTIF(E56:E64,"Birdie") -> 2
B59: 4 | C59: 4 | D59: 5 | E59: bogey | H59: Par | I59: =COUNTIF(E56:E64,"Par") -> 0
B60: 5 | C60: 5 | D60: 4 | E60: Birdie | H60: bogey | I60: =COUNTIF(E56:E64,"bogey") -> 5
B61: 6 | C61: 3 | D61: 4 | E61: bogey | H61: Double bogey | I61: =COUNTIF(E56:E64,"Double bogey") -> 2
B62: 7 | C62: 4 | D62: 3 | E62: Birdie | H62: Other | I62: =COUNTIF(E56:E64,"Other") -> 0
B63: 8 | C63: 4 | D63: 6 | E63: Double bogey
B64: 9 | C64: 5 | D64: 6 | E64: bogey
B66: =J4 -> 2024-05-03
B67: =H7 -> 10 | C67: 4 | D67: 6 | E67: =IF(D67<>0,IF((D67-C67)=-1,"Birdie",IF((D67-C67)=-2,"Eagle",IF((D67-C67)=0,"Par",IF((D67-C67)=1,"bogey",IF((D67-C67)=2,"Double bogey","Other")))))," ") -> Double bogey | H67: Count
B68: 11 | C68: 4 | D68: 5 | E68: bogey | H68: Eagle | I68: =COUNTIF(E67:E75,"Eagle") -> 0
B69: 12 | C69: 4 | D69: 5 | E69: bogey | H69: Birdie | I69: =COUNTIF(E67:E75,"Birdie") -> 0
B70: 13 | C70: 5 | D70: 7 | E70: Double bogey | H70: Par | I70: =COUNTIF(E67:E75,"Par") -> 1
B71: 14 | C71: 3 | D71: 4 | E71: bogey | H71: bogey | I71: =COUNTIF(E67:E75,"bogey") -> 5
B72: 15 | C72: 4 | D72: 6 | E72: Double bogey | H72: Double bogey | I72: =COUNTIF(E67:E75,"Double bogey") -> 3
B73: 16 | C73: 4 | D73: 4 | E73: Par | H73: Other | I73: =COUNTIF(E67:E75,"Other") -> 0
B74: 17 | C74: 3 | D74: 4 | E74: bogey
B75: 18 | C75: 5 | D75: 6 | E75: bogey
B77: =P4 -> 2024-05-10
B78: =N7 -> 1 | C78: 4 | D78: 4 | E78: =IF(D78<>0,IF((D78-C78)=-1,"Birdie",IF((D78-C78)=-2,"Eagle",IF((D78-C78)=0,"Par",IF((D78-C78)=1,"bogey",IF((D78-C78)=2,"Double bogey","Other")))))," ") -> Par | H78: Count
B79: 2 | C79: 4 | D79: 6 | E79: Double bogey | H79: Eagle | I79: =COUNTIF(E78:E86,"Eagle") -> 0
B80: 3 | C80: 3 | D80: 4 | E80: bogey | H80: Birdie | I80: =COUNTIF(E78:E86,"Birdie") -> 0
B81: 4 | C81: 4 | D81: 5 | E81: bogey | H81: Par | I81: =COUNTIF(E78:E86,"Par") -> 4
B82: 5 | C82: 5 | D82: 5 | E82: Par | H82: bogey | I82: =COUNTIF(E78:E86,"bogey") -> 3
B83: 6 | C83: 3 | D83: 3 | E83: Par | H83: Double bogey | I83: =COUNTIF(E78:E86,"Double bogey") -> 1
B84: 7 | C84: 4 | D84: 4 | E84: Par | H84: Other | I84: =COUNTIF(E78:E86,"Other") -> 1
B85: 8 | C85: 4 | D85: 8 | E85: Other
B86: 9 | C86: 5 | D86: 6 | E86: bogey
B88: =V4 -> 2024-05-17
B89: =T7 -> 10 | C89: 4 | D89: 4 | E89: =IF(D89<>0,IF((D89-C89)=-1,"Birdie",IF((D89-C89)=-2,"Eagle",IF((D89-C89)=0,"Par",IF((D89-C89)=1,"bogey",IF((D89-C89)=2,"Double bogey","Other")))))," ") -> Par | H89: Count
B90: 11 | C90: 4 | D90: 5 | E90: bogey | H90: Eagle | I90: =COUNTIF(E89:E97,"Eagle") -> 0
B91: 12 | C91: 4 | D91: 6 | E91: Double bogey | H91: Birdie | I91: =COUNTIF(E89:E97,"Birdie") -> 0
B92: 13 | C92: 5 | D92: 5 | E92: Par | H92: Par | I92: =COUNTIF(E89:E97,"Par") -> 3
B93: 14 | C93: 3 | D93: 3 | E93: Par | H93: bogey | I93: =COUNTIF(E89:E97,"bogey") -> 2
B94: 15 | C94: 4 | D94: 6 | E94: Double bogey | H94: Double bogey | I94: =COUNTIF(E89:E97,"Double bogey") -> 4
B95: 16 | C95: 4 | D95: 6 | E95: Double bogey | H95: Other | I95: =COUNTIF(E89:E97,"Other") -> 0
B96: 17 | C96: 3 | D96: 4 | E96: bogey
B97: 18 | C97: 5 | D97: 7 | E97: Double bogey
B99: =AB4 -> 2024-05-24
B100: =Z7 -> 1 | C100: 4 | D100: 5 | E100: =IF(D100<>0,IF((D100-C100)=-1,"Birdie",IF((D100-C100)=-2,"Eagle",IF((D100-C100)=0,"Par",IF((D100-C100)=1,"bogey",IF((D100-C100)=2,"Double bogey","Other")))))," ") -> bogey | H100: Count
B101: 2 | C101: 4 | D101: 5 | E101: bogey | H101: Eagle | I101: =COUNTIF(E100:E108,"Eagle") -> 0
B102: 3 | C102: 3 | D102: 3 | E102: Par | H102: Birdie | I102: =COUNTIF(E100:E108,"Birdie") -> 0
B103: 4 | C103: 4 | D103: 4 | E103: Par | H103: Par | I103: =COUNTIF(E100:E108,"Par") -> 4
B104: 5 | C104: 5 | D104: 5 | E104: Par | H104: bogey | I104: =COUNTIF(E100:E108,"bogey") -> 4
B105: 6 | C105: 3 | D105: 4 | E105: bogey | H105: Double bogey | I105: =COUNTIF(E100:E108,"Double bogey") -> 0
B106: 7 | C106: 4 | D106: 4 | E106: Par | H106: Other | I106: =COUNTIF(E100:E108,"Other") -> 1
B107: 8 | C107: 4 | D107: 7 | E107: Other
B108: 9 | C108: 5 | D108: 6 | E108: bogey
B110: =AH4 -> 2024-05-31
B111: =AF7 -> 10 | C111: 4 | D111: 5 | E111: =IF(D111<>0,IF((D111-C111)=-1,"Birdie",IF((D111-C111)=-2,"Eagle",IF((D111-C111)=0,"Par",IF((D111-C111)=1,"bogey",IF((D111-C111)=2,"Double bogey","Other")))))," ") -> bogey | H111: Count
B112: 11 | C112: 4 | D112: 5 | E112: bogey | H112: Eagle | I112: =COUNTIF(E111:E119,"Eagle") -> 0
B113: 12 | C113: 4 | D113: 5 | E113: bogey | H113: Birdie | I113: =COUNTIF(E111:E119,"Birdie") -> 0
B114: 13 | C114: 5 | D114: 5 | E114: Par | H114: Par | I114: =COUNTIF(E111:E119,"Par") -> 2
B115: 14 | C115: 3 | D115: 4 | E115: bogey | H115: bogey | I115: =COUNTIF(E111:E119,"bogey") -> 6
B116: 15 | C116: 4 | D116: 5 | E116: bogey | H116: Double bogey | I116: =COUNTIF(E111:E119,"Double bogey") -> 1
B117: 16 | C117: 4 | D117: 5 | E117: bogey | H117: Other | I117: =COUNTIF(E111:E119,"Other") -> 0
B118: 17 | C118: 3 | D118: 3 | E118: Par
B119: 18 | C119: 5 | D119: 7 | E119: Double bogey
B121: =AN4 -> 2024-06-07
B122: =AL7 -> 1 | C122: 4 | D122: 4 | E122: =IF(D122<>0,IF((D122-C122)=-1,"Birdie",IF((D122-C122)=-2,"Eagle",IF((D122-C122)=0,"Par",IF((D122-C122)=1,"bogey",IF((D122-C122)=2,"Double bogey","Other")))))," ") -> Par | H122: Count
B123: 2 | C123: 4 | D123: 4 | E123: Par | H123: Eagle | I123: =COUNTIF(E122:E130,"Eagle") -> 0
B124: 3 | C124: 3 | D124: 3 | E124: Par | H124: Birdie | I124: =COUNTIF(E122:E130,"Birdie") -> 0
B125: 4 | C125: 4 | D125: 4 | E125: Par | H125: Par | I125: =COUNTIF(E122:E130,"Par") -> 7
B126: 5 | C126: 5 | D126: 5 | E126: Par | H126: bogey | I126: =COUNTIF(E122:E130,"bogey") -> 1
B127: 6 | C127: 3 | D127: 6 | E127: Other | H127: Double bogey | I127: =COUNTIF(E122:E130,"Double bogey") -> 0
B128: 7 | C128: 4 | D128: 4 | E128: Par | H128: Other | I128: =COUNTIF(E122:E130,"Other") -> 1
B129: 8 | C129: 4 | D129: 5 | E129: bogey
B130: 9 | C130: 5 | D130: 5 | E130: Par
B132: =AT4 -> 2024-06-14
B133: =AR7 -> 10 | C133: 4 | D133: 6 | E133: =IF(D133<>0,IF((D133-C133)=-1,"Birdie",IF((D133-C133)=-2,"Eagle",IF((D133-C133)=0,"Par",IF((D133-C133)=1,"bogey",IF((D133-C133)=2,"Double bogey","Other")))))," ") -> Double bogey | H133: Count
B134: 11 | C134: 4 | D134: 5 | E134: bogey | H134: Eagle | I134: =COUNTIF(E133:E141,"Eagle") -> 0
B135: 12 | C135: 4 | D135: 5 | E135: bogey | H135: Birdie | I135: =COUNTIF(E133:E141,"Birdie") -> 0
B136: 13 | C136: 5 | D136: 7 | E136: Double bogey | H136: Par | I136: =COUNTIF(E133:E141,"Par") -> 2
B137: 14 | C137: 3 | D137: 3 | E137: Par | H137: bogey | I137: =COUNTIF(E133:E141,"bogey") -> 5
B138: 15 | C138: 4 | D138: 5 | E138: bogey | H138: Double bogey | I138: =COUNTIF(E133:E141,"Double bogey") -> 2
B139: 16 | C139: 4 | D139: 5 | E139: bogey | H139: Other | I139: =COUNTIF(E133:E141,"Other") -> 0
B140: 17 | C140: 3 | D140: 3 | E140: Par
B141: 18 | C141: 5 | D141: 6 | E141: bogey
B143: =AZ4 -> 2024-07-05
B144: =AX7 -> 1 | C144: 4 | D144: 5 | E144: =IF(D144<>0,IF((D144-C144)=-1,"Birdie",IF((D144-C144)=-2,"Eagle",IF((D144-C144)=0,"Par",IF((D144-C144)=1,"bogey",IF((D144-C144)=2,"Double bogey","Other")))))," ") -> bogey | H144: Count
B145: 2 | C145: 4 | D145: 5 | E145: bogey | H145: Eagle | I145: =COUNTIF(E144:E152,"Eagle") -> 0
B146: 3 | C146: 3 | D146: 3 | E146: Par | H146: Birdie | I146: =COUNTIF(E144:E152,"Birdie") -> 1
B147: 4 | C147: 4 | D147: 5 | E147: bogey | H147: Par | I147: =COUNTIF(E144:E152,"Par") -> 3
B148: 5 | C148: 5 | D148: 4 | E148: Birdie | H148: bogey | I148: =COUNTIF(E144:E152,"bogey") -> 4
B149: 6 | C149: 3 | D149: 4 | E149: bogey | H149: Double bogey | I149: =COUNTIF(E144:E152,"Double bogey") -> 1
B150: 7 | C150: 4 | D150: 4 | E150: Par | H150: Other | I150: =COUNTIF(E144:E152,"Other") -> 0
B151: 8 | C151: 4 | D151: 6 | E151: Double bogey
B152: 9 | C152: 5 | D152: 5 | E152: Par
B154: =BF4 -> 2024-07-12
B155: =BD7 -> 10 | C155: 4 | D155: 5 | E155: =IF(D155<>0,IF((D155-C155)=-1,"Birdie",IF((D155-C155)=-2,"Eagle",IF((D155-C155)=0,"Par",IF((D155-C155)=1,"bogey",IF((D155-C155)=2,"Double bogey","Other")))))," ") -> bogey | H155: Count
B156: 11 | C156: 4 | D156: 5 | E156: bogey | H156: Eagle | I156: =COUNTIF(E155:E163,"Eagle") -> 0
B157: 12 | C157: 4 | D157: 4 | E157: Par | H157: Birdie | I157: =COUNTIF(E155:E163,"Birdie") -> 1
B158: 13 | C158: 5 | D158: 4 | E158: Birdie | H158: Par | I158: =COUNTIF(E155:E163,"Par") -> 1
B159: 14 | C159: 3 | D159: 4 | E159: bogey | H159: bogey | I159: =COUNTIF(E155:E163,"bogey") -> 4
B160: 15 | C160: 4 | D160: 6 | E160: Double bogey | H160: Double bogey | I160: =COUNTIF(E155:E163,"Double bogey") -> 2
B161: 16 | C161: 4 | D161: 7 | E161: Other | H161: Other | I161: =COUNTIF(E155:E163,"Other") -> 1
B162: 17 | C162: 3 | D162: 5 | E162: Double bogey
B163: 18 | C163: 5 | D163: 6 | E163: bogey
B165: =BL4 -> 2024-07-19
B166: =BJ7 -> 1 | C166: 4 | D166: 4 | E166: =IF(D166<>0,IF((D166-C166)=-1,"Birdie",IF((D166-C166)=-2,"Eagle",IF((D166-C166)=0,"Par",IF((D166-C166)=1,"bogey",IF((D166-C166)=2,"Double bogey","Other")))))," ") -> Par | H166: Count
B167: 2 | C167: 4 | D167: 5 | E167: bogey | H167: Eagle | I167: =COUNTIF(E166:E174,"Eagle") -> 0
B168: 3 | C168: 3 | D168: 4 | E168: bogey | H168: Birdie | I168: =COUNTIF(E166:E174,"Birdie") -> 0
B169: 4 | C169: 4 | D169: 5 | E169: bogey | H169: Par | I169: =COUNTIF(E166:E174,"Par") -> 2
B170: 5 | C170: 5 | D170: 6 | E170: bogey | H170: bogey | I170: =COUNTIF(E166:E174,"bogey") -> 5
B171: 6 | C171: 3 | D171: 5 | E171: Double bogey | H171: Double bogey | I171: =COUNTIF(E166:E174,"Double bogey") -> 2
B172: 7 | C172: 4 | D172: 6 | E172: Double bogey | H172: Other | I172: =COUNTIF(E166:E174,"Other") -> 0
B173: 8 | C173: 4 | D173: 5 | E173: bogey
B174: 9 | C174: 5 | D174: 5 | E174: Par
B176: =BR4 -> 2024-07-26
B177: =BP7 -> 10 | C177: 4 | D177: 5 | E177: =IF(D177<>0,IF((D177-C177)=-1,"Birdie",IF((D177-C177)=-2,"Eagle",IF((D177-C177)=0,"Par",IF((D177-C177)=1,"bogey",IF((D177-C177)=2,"Double bogey","Other")))))," ") -> bogey | H177: Count
B178: 11 | C178: 4 | D178: 5 | E178: bogey | H178: Eagle | I178: =COUNTIF(E177:E185,"Eagle") -> 0
B179: 12 | C179: 4 | D179: 5 | E179: bogey | H179: Birdie | I179: =COUNTIF(E177:E185,"Birdie") -> 1
B180: 13 | C180: 5 | D180: 4 | E180: Birdie | H180: Par | I180: =COUNTIF(E177:E185,"Par") -> 1
B181: 14 | C181: 3 | D181: 5 | E181: Double bogey | H181: bogey | I181: =COUNTIF(E177:E185,"bogey") -> 5
B182: 15 | C182: 4 | D182: 5 | E182: bogey | H182: Double bogey | I182: =COUNTIF(E177:E185,"Double bogey") -> 2
B183: 16 | C183: 4 | D183: 4 | E183: Par | H183: Other | I183: =COUNTIF(E177:E185,"Other") -> 0
B184: 17 | C184: 3 | D184: 5 | E184: Double bogey
B185: 18 | C185: 5 | D185: 6 | E185: bogey
B187: =BX4 -> 2024-08-02
B188: =BV7 -> 1 | C188: 4 | D188: 4 | E188: =IF(D188<>0,IF((D188-C188)=-1,"Birdie",IF((D188-C188)=-2,"Eagle",IF((D188-C188)=0,"Par",IF((D188-C188)=1,"bogey",IF((D188-C188)=2,"Double bogey","Other")))))," ") -> Par | H188: Count
B189: 2 | C189: 4 | D189: 5 | E189: bogey | H189: Eagle | I189: =COUNTIF(E188:E196,"Eagle") -> 0
B190: 3 | C190: 3 | D190: 5 | E190: Double bogey | H190: Birdie | I190: =COUNTIF(E188:E196,"Birdie") -> 0
B191: 4 | C191: 4 | D191: 4 | E191: Par | H191: Par | I191: =COUNTIF(E188:E196,"Par") -> 4
B192: 5 | C192: 5 | D192: 6 | E192: bogey | H192: bogey | I192: =COUNTIF(E188:E196,"bogey") -> 4
B193: 6 | C193: 3 | D193: 3 | E193: Par | H193: Double bogey | I193: =COUNTIF(E188:E196,"Double bogey") -> 1
B194: 7 | C194: 4 | D194: 4 | E194: Par | H194: Other | I194: =COUNTIF(E188:E196,"Other") -> 0
B195: 8 | C195: 4 | D195: 5 | E195: bogey
B196: 9 | C196: 5 | D196: 6 | E196: bogey
B198: =CD4 -> 2024-08-16
B199: =CB7 -> 1 | C199: 4 | D199: 4 | E199: =IF(D199<>0,IF((D199-C199)=-1,"Birdie",IF((D199-C199)=-2,"Eagle",IF((D199-C199)=0,"Par",IF((D199-C199)=1,"bogey",IF((D199-C199)=2,"Double bogey","Other")))))," ") -> Par | H199: Count
B200: 2 | C200: 4 | D200: 6 | E200: Double bogey | H200: Eagle | I200: =COUNTIF(E199:E207,"Eagle") -> 0
B201: 3 | C201: 3 | D201: 4 | E201: bogey | H201: Birdie | I201: =COUNTIF(E199:E207,"Birdie") -> 0
B202: 4 | C202: 4 | D202: 5 | E202: bogey | H202: Par | I202: =COUNTIF(E199:E207,"Par") -> 3
B203: 5 | C203: 5 | D203: 5 | E203: Par | H203: bogey | I203: =COUNTIF(E199:E207,"bogey") -> 3
B204: 6 | C204: 3 | D204: 3 | E204: Par | H204: Double bogey | I204: =COUNTIF(E199:E207,"Double bogey") -> 3
B205: 7 | C205: 4 | D205: 6 | E205: Double bogey | H205: Other | I205: =COUNTIF(E199:E207,"Other") -> 0
B206: 8 | C206: 4 | D206: 5 | E206: bogey
B207: 9 | C207: 5 | D207: 7 | E207: Double bogey
B209: =CJ4 -> 2024-08-23
B210: =CH7 -> 10 | C210: 4 | D210: 8 | E210: =IF(D210<>0,IF((D210-C210)=-1,"Birdie",IF((D210-C210)=-2,"Eagle",IF((D210-C210)=0,"Par",IF((D210-C210)=1,"bogey",IF((D210-C210)=2,"Double bogey","Other")))))," ") -> Other | H210: Count
B211: 11 | C211: 4 | D211: 5 | E211: bogey | H211: Eagle | I211: =COUNTIF(E210:E218,"Eagle") -> 0
B212: 12 | C212: 4 | D212: 6 | E212: Double bogey | H212: Birdie | I212: =COUNTIF(E210:E218,"Birdie") -> 0
B213: 13 | C213: 5 | D213: 6 | E213: bogey | H213: Par | I213: =COUNTIF(E210:E218,"Par") -> 2
B214: 14 | C214: 3 | D214: 3 | E214: Par | H214: bogey | I214: =COUNTIF(E210:E218,"bogey") -> 4
B215: 15 | C215: 4 | D215: 5 | E215: bogey | H215: Double bogey | I215: =COUNTIF(E210:E218,"Double bogey") -> 2
B216: 16 | C216: 4 | D216: 6 | E216: Double bogey | H216: Other | I216: =COUNTIF(E210:E218,"Other") -> 1
B217: 17 | C217: 3 | D217: 4 | E217: bogey
B218: 18 | C218: 5 | D218: 5 | E218: Par

Sheet Hobbs
A1: Tim Hobbs
C4: Date: | D4: =VLOOKUP(C5,Week,2) -> 2024-04-26 | I4: Date: | J4: =VLOOKUP(I5,Week,2) -> 2024-05-03 | O4: Date: | P4: =VLOOKUP(O5,Week,2) -> 2024-05-10 | U4: Date: | V4: =VLOOKUP(U5,Week,2) -> 2024-05-17 | AA4: Date: | AB4: =VLOOKUP(AA5,Week,2) -> 2024-05-24 | AG4: Date: | AH4: =VLOOKUP(AG5,Week,2) -> 2024-05-31 | AM4: Date: | AN4: =VLOOKUP(AM5,Week,2) -> 2024-06-07 | AS4: Date: | AT4: =VLOOKUP(AS5,Week,2) -> 2024-06-14 | AY4: Date: | AZ4: =VLOOKUP(AY5,Week,2) -> 2024-07-05 | BE4: Date: | BF4: =VLOOKUP(BE5,Week,2) -> 2024-07-12 | BK4: Date: | BL4: =VLOOKUP(BK5,Week,2) -> 2024-07-19 | BQ4: Date: | BR4: =VLOOKUP(BQ5,Week,2) -> 2024-07-26 | BW4: Date: | BX4: =VLOOKUP(BW5,Week,2) -> 2024-08-02 | CC4: Date: | CD4: =VLOOKUP(CC5,Week,2) -> 2024-08-16 | CI4: Date: | CJ4: =VLOOKUP(CI5,Week,2) -> 2024-08-23
B5: Week | C5: 1 | H5: Week | I5: 2 | N5: Week | O5: 3 | T5: Week | U5: 4 | Z5: Week | AA5: 5 | AF5: Week | AG5: 6 | AL5: Week | AM5: 7 | AR5: Week | AS5: 8 | AX5: Week | AY5: 9 | BD5: Week | BE5: 10 | BJ5: Week | BK5: 11 | BP5: Week | BQ5: 12 | BV5: Week | BW5: 13 | CB5: Week | CC5: 14 | CH5: Week | CI5: 15
B6: Hole # | C6: Par | D6: Score | E6: Net | F6: Win Hole | H6: Hole # | I6: Par | J6: Score | K6: Net | L6: Win Hole | N6: Hole # | O6: Par | P6: Score | Q6: Net | R6: Win Hole | T6: Hole # | U6: Par | V6: Score | W6: Net | X6: Win Hole | Z6: Hole # | AA6: Par | AB6: Score | AC6: Net | AD6: Win Hole | AF6: Hole # | AG6: Par | AH6: Score | AI6: Net | AJ6: Win Hole | AL6: Hole # | AM6: Par | AN6: Score | AO6: Net | AP6: Win Hole | AR6: Hole # | AS6: Par | AT6: Score | AU6: Net | AV6: Win Hole | AX6: Hole # | AY6: Par | AZ6: Score | BA6: Net | BB6: Win Hole | BD6: Hole # | BE6: Par | BF6: Score | BG6: Net | BH6: Win Hole | BJ6: Hole # | BK6: Par | BL6: Score | BM6: Net | BN6: Win Hole | BP6: Hole # | BQ6: Par | BR6: Score | BS6: Net | BT6: Win Hole | BV6: Hole # | BW6: Par | BX6: Score | BY6: Net | BZ6: Win Hole | CB6: Hole # | CC6: Par | CD6: Score | CE6: Net | CF6: Win Hole | CH6: Hole # | CI6: Par | CJ6: Score | CK6: Net | CL6: Win Hole
B7: =VLOOKUP(C5,Week,6) -> 1 | C7: =VLOOKUP(B7,Holes,2) -> 4 | D7: 5 | E7: =IF((D7-C7)>3,C7+3,D7) -> 5 | F7: 0 | H7: =VLOOKUP(I5,Week,6) -> 10 | I7: =VLOOKUP(H7,Holes,2) -> 4 | J7: 5 | K7: =IF((J7-I7)>3,I7+3,J7) -> 5 | L7: 1 | N7: =VLOOKUP(O5,Week,6) -> 1 | O7: =VLOOKUP(N7,Holes,2) -> 4 | P7: 5 | Q7: =IF((P7-O7)>3,O7+3,P7) -> 5 | R7: 1 | T7: =VLOOKUP(U5,Week,6) -> 10 | U7: =VLOOKUP(T7,Holes,2) -> 4 | V7: 5 | W7: =IF((V7-U7)>3,U7+3,V7) -> 5 | X7: 0.5 | Z7: =VLOOKUP(AA5,Week,6) -> 1 | AA7: =VLOOKUP(Z7,Holes,2) -> 4 | AB7: 5 | AC7: =IF((AB7-AA7)>3,AA7+3,AB7) -> 5 | AD7: 1 | AF7: =VLOOKUP(AG5,Week,6) -> 10 | AG7: =VLOOKUP(AF7,Holes,2) -> 4 | AH7: 5 | AI7: =IF((AH7-AG7)>3,AG7+3,AH7) -> 5 | AJ7: 1 | AL7: =VLOOKUP(AM5,Week,6) -> 1 | AM7: =VLOOKUP(AL7,Holes,2) -> 4 | AN7: 5 | AO7: =IF((AN7-AM7)>3,AM7+3,AN7) -> 5 | AP7: 0 | AR7: =VLOOKUP(AS5,Week,6) -> 10 | AS7: =VLOOKUP(AR7,Holes,2) -> 4 | AT7: 7 | AU7: =IF((AT7-AS7)>3,AS7+3,AT7) -> 7 | AV7: 0 | AX7: =VLOOKUP(AY5,Week,6) -> 1 | AY7: =VLOOKUP(AX7,Holes,2) -> 4 | AZ7: 5 | BA7: =IF((AZ7-AY7)>3,AY7+3,AZ7) -> 5 | BB7: 0.5 | BD7: =VLOOKUP(BE5,Week,6) -> 10 | BE7: =VLOOKUP(BD7,Holes,2) -> 4 | BF7: 6 | BG7: =IF((BF7-BE7)>3,BE7+3,BF7) -> 6 | BH7: 0.5 | BJ7: =VLOOKUP(BK5,Week,6) -> 1 | BK7: =VLOOKUP(BJ7,Holes,2) -> 4 | BL7: 6 | BM7: =IF((BL7-BK7)>3,BK7+3,BL7) -> 6 | BN7: 0 | BP7: =VLOOKUP(BQ5,Week,6) -> 10 | BQ7: =VLOOKUP(BP7,Holes,2) -> 4 | BS7: =IF((BR7-BQ7)>3,BQ7+3,BR7) -> 0 | BV7: =VLOOKUP(BW5,Week,6) -> 1 | BW7: =VLOOKUP(BV7,Holes,2) -> 4 | BX7: 4 | BY7: =IF((BX7-BW7)>3,BW7+3,BX7) -> 4 | BZ7: 0.5 | CB7: =VLOOKUP(CC5,Week,6) -> 1 | CC7: =VLOOKUP(CB7,Holes,2) -> 4 | CE7: =IF((CD7-CC7)>3,CC7+3,CD7) -> 0 | CH7: =VLOOKUP(CI5,Week,6) -> 10 | CI7: =VLOOKUP(CH7,Holes,2) -> 4 | CK7: =IF((CJ7-CI7)>3,CI7+3,CJ7) -> 0
B8: =+B7+1 -> 2 | C8: 4 | D8: 5 | E8: 5 | F8: 0.5 | H8: =+H7+1 -> 11 | I8: 4 | J8: 4 | K8: 4 | L8: 1 | N8: =+N7+1 -> 2 | O8: 4 | P8: 8 | Q8: 7 | R8: 1 | T8: =+T7+1 -> 11 | U8: 4 | V8: 6 | W8: 6 | X8: 1 | Z8: =+Z7+1 -> 2 | AA8: 4 | AB8: 8 | AC8: 7 | AD8: 0 | AF8: =+AF7+1 -> 11 | AG8: 4 | AH8: 6 | AI8: 6 | AJ8: 0 | AL8: =+AL7+1 -> 2 | AM8: 4 | AN8: 6 | AO8: 6 | AP8: 0 | AR8: =+AR7+1 -> 11 | AS8: 4 | AT8: 7 | AU8: 7 | AV8: 0 | AX8: =+AX7+1 -> 2 | AY8: 4 | AZ8: 8 | BA8: 7 | BB8: 0 | BD8: =+BD7+1 -> 11 | BE8: 4 | BF8: 5 | BG8: 5 | BH8: 1 | BJ8: =+BJ7+1 -> 2 | BK8: 4 | BL8: 5 | BM8: 5 | BN8: 1 | BP8: =+BP7+1 -> 11 | BQ8: 4 | BS8: 0 | BV8: =+BV7+1 -> 2 | BW8: 4 | BX8: 6 | BY8: 6 | BZ8: 1 | CB8: =+CB7+1 -> 2 | CC8: 4 | CE8: 0 | CH8: =+CH7+1 -> 11 | CI8: 4 | CK8: 0
B9: 3 | C9: 3 | D9: 4 | E9: 4 | F9: 0.5 | H9: 12 | I9: 4 | J9: 5 | K9: 5 | L9: 0.5 | N9: 3 | O9: 3 | P9: 3 | Q9: 3 | R9: 1 | T9: 12 | U9: 4 | V9: 5 | W9: 5 | X9: 1 | Z9: 3 | AA9: 3 | AB9: 3 | AC9: 3 | AD9: 1 | AF9: 12 | AG9: 4 | AH9: 5 | AI9: 5 | AJ9: 1 | AL9: 3 | AM9: 3 | AN9: 6 | AO9: 6 | AP9: 0 | AR9: 12 | AS9: 4 | AT9: 7 | AU9: 7 | AV9: 0 | AX9: 3 | AY9: 3 | AZ9: 4 | BA9: 4 | BB9: 0.5 | BD9: 12 | BE9: 4 | BF9: 6 | BG9: 6 | BH9: 0 | BJ9: 3 | BK9: 3 | BL9: 5 | BM9: 5 | BN9: 0 | BP9: 12 | BQ9: 4 | BS9: 0 | BV9: 3 | BW9: 3 | BX9: 4 | BY9: 4 | BZ9: 0.5 | CB9: 3 | CC9: 3 | CE9: 0 | CH9: 12 | CI9: 4 | CK9: 0
B10: 4 | C10: 4 | D10: 5 | E10: 5 | F10: 0.5 | H10: 13 | I10: 5 | J10: 7 | K10: 7 | L10: 1 | N10: 4 | O10: 4 | P10: 6 | Q10: 6 | R10: 0 | T10: 13 | U10: 5 | V10: 5 | W10: 5 | X10: 1 | Z10: 4 | AA10: 4 | AB10: 5 | AC10: 5 | AD10: 1 | AF10: 13 | AG10: 5 | AH10: 8 | AI10: 8 | AJ10: 0 | AL10: 4 | AM10: 4 | AN10: 6 | AO10: 6 | AP10: 1 | AR10: 13 | AS10: 5 | AT10: 6 | AU10: 6 | AV10: 0.5 | AX10: 4 | AY10: 4 | AZ10: 5 | BA10: 5 | BB10: 0.5 | BD10: 13 | BE10: 5 | BF10: 7 | BG10: 7 | BH10: 0 | BJ10: 4 | BK10: 4 | BL10: 7 | BM10: 7 | BN10: 0 | BP10: 13 | BQ10: 5 | BS10: 0 | BV10: 4 | BW10: 4 | BX10: 4 | BY10: 4 | BZ10: 0.5 | CB10: 4 | CC10: 4 | CE10: 0 | CH10: 13 | CI10: 5 | CK10: 0
B11: 5 | C11: 5 | D11: 8 | E11: 8 | F11: 0 | H11: 14 | I11: 3 | J11: 5 | K11: 5 | L11: 1 | N11: 5 | O11: 5 | P11: 9 | Q11: 8 | R11: 0 | T11: 14 | U11: 3 | V11: 6 | W11: 6 | X11: 0 | Z11: 5 | AA11: 5 | AB11: 6 | AC11: 6 | AD11: 0.5 | AF11: 14 | AG11: 3 | AH11: 5 | AI11: 5 | AJ11: 1 | AL11: 5 | AM11: 5 | AN11: 7 | AO11: 7 | AP11: 0.5 | AR11: 14 | AS11: 3 | AT11: 4 | AU11: 4 | AV11: 0 | AX11: 5 | AY11: 5 | AZ11: 7 | BA11: 7 | BB11: 0 | BD11: 14 | BE11: 3 | BF11: 3 | BG11: 3 | BH11: 1 | BJ11: 5 | BK11: 5 | BL11: 8 | BM11: 8 | BN11: 0 | BP11: 14 | BQ11: 3 | BS11: 0 | BV11: 5 | BW11: 5 | BX11: 5 | BY11: 5 | BZ11: 1 | CB11: 5 | CC11: 5 | CE11: 0 | CH11: 14 | CI11: 3 | CK11: 0
B12: 6 | C12: 3 | D12: 6 | E12: 6 | F12: 0 | H12: 15 | I12: 4 | J12: 6 | K12: 6 | L12: 0 | N12: 6 | O12: 3 | P12: 5 | Q12: 5 | R12: 0 | T12: 15 | U12: 4 | V12: 6 | W12: 6 | X12: 1 | Z12: 6 | AA12: 3 | AB12: 4 | AC12: 4 | AD12: 0.5 | AF12: 15 | AG12: 4 | AH12: 6 | AI12: 6 | AJ12: 1 | AL12: 6 | AM12: 3 | AN12: 3 | AO12: 3 | AP12: 1 | AR12: 15 | AS12: 4 | AT12: 7 | AU12: 7 | AV12: 0 | AX12: 6 | AY12: 3 | AZ12: 4 | BA12: 4 | BB12: 0.5 | BD12: 15 | BE12: 4 | BF12: 4 | BG12: 4 | BH12: 1 | BJ12: 6 | BK12: 3 | BL12: 3 | BM12: 3 | BN12: 1 | BP12: 15 | BQ12: 4 | BS12: 0 | BV12: 6 | BW12: 3 | BX12: 4 | BY12: 4 | BZ12: 1 | CB12: 6 | CC12: 3 | CE12: 0 | CH12: 15 | CI12: 4 | CK12: 0
B13: 7 | C13: 4 | D13: 6 | E13: 6 | F13: 0 | H13: 16 | I13: 4 | J13: 7 | K13: 7 | L13: 0 | N13: 7 | O13: 4 | P13: 4 | Q13: 4 | R13: 1 | T13: 16 | U13: 4 | V13: 6 | W13: 6 | X13: 0 | Z13: 7 | AA13: 4 | AB13: 6 | AC13: 6 | AD13: 0 | AF13: 16 | AG13: 4 | AH13: 6 | AI13: 6 | AJ13: 0.5 | AL13: 7 | AM13: 4 | AN13: 5 | AO13: 5 | AP13: 0.5 | AR13: 16 | AS13: 4 | AT13: 6 | AU13: 6 | AV13: 1 | AX13: 7 | AY13: 4 | AZ13: 5 | BA13: 5 | BB13: 0 | BD13: 16 | BE13: 4 | BF13: 5 | BG13: 5 | BH13: 1 | BJ13: 7 | BK13: 4 | BL13: 6 | BM13: 6 | BN13: 0.5 | BP13: 16 | BQ13: 4 | BS13: 0 | BV13: 7 | BW13: 4 | BX13: 5 | BY13: 5 | BZ13: 0 | CB13: 7 | CC13: 4 | CE13: 0 | CH13: 16 | CI13: 4 | CK13: 0
B14: 8 | C14: 4 | D14: 5 | E14: 5 | F14: 0.5 | H14: 17 | I14: 3 | J14: 4 | K14: 4 | L14: 1 | N14: 8 | O14: 4 | P14: 6 | Q14: 6 | R14: 1 | T14: 17 | U14: 3 | V14: 5 | W14: 5 | X14: 0 | Z14: 8 | AA14: 4 | AB14: 6 | AC14: 6 | AD14: 0 | AF14: 17 | AG14: 3 | AH14: 5 | AI14: 5 | AJ14: 0 | AL14: 8 | AM14: 4 | AN14: 6 | AO14: 6 | AP14: 1 | AR14: 17 | AS14: 3 | AT14: 5 | AU14: 5 | AV14: 0 | AX14: 8 | AY14: 4 | AZ14: 5 | BA14: 5 | BB14: 0 | BD14: 17 | BE14: 3 | BF14: 6 | BG14: 6 | BH14: 0 | BJ14: 8 | BK14: 4 | BL14: 7 | BM14: 7 | BN14: 0 | BP14: 17 | BQ14: 3 | BS14: 0 | BV14: 8 | BW14: 4 | BX14: 4 | BY14: 4 | BZ14: 1 | CB14: 8 | CC14: 4 | CE14: 0 | CH14: 17 | CI14: 3 | CK14: 0
B15: 9 | C15: 5 | D15: 8 | E15: 8 | F15: 0 | H15: 18 | I15: 5 | J15: 8 | K15: 8 | L15: 0 | N15: 9 | O15: 5 | P15: 6 | Q15: 6 | R15: 0.5 | T15: 18 | U15: 5 | V15: 7 | W15: 7 | X15: 1 | Z15: 9 | AA15: 5 | AB15: 5 | AC15: 5 | AD15: 1 | AF15: 18 | AG15: 5 | AH15: 5 | AI15: 5 | AJ15: 1 | AL15: 9 | AM15: 5 | AN15: 5 | AO15: 5 | AP15: 1 | AR15: 18 | AS15: 5 | AT15: 6 | AU15: 6 | AV15: 0.5 | AX15: 9 | AY15: 5 | AZ15: 6 | BA15: 6 | BB15: 1 | BD15: 18 | BE15: 5 | BF15: 6 | BG15: 6 | BH15: 1 | BJ15: 9 | BK15: 5 | BL15: 6 | BM15: 6 | BN15: 0.5 | BP15: 18 | BQ15: 5 | BS15: 0 | BV15: 9 | BW15: 5 | BX15: 7 | BY15: 7 | BZ15: 0.5 | CB15: 9 | CC15: 5 | CE15: 0 | CH15: 18 | CI15: 5 | CK15: 0
B16: Total | C16: =SUM(C7:C15) -> 36 | D16: =SUM(D7:D15) -> 52 | E16: =SUM(E7:E15) -> 52 | F16: =SUM(F7:F15) -> 2 | H16: Total | I16: =SUM(I7:I15) -> 36 | J16: =SUM(J7:J15) -> 51 | K16: =SUM(K7:K15) -> 51 | L16: =SUM(L7:L15) -> 5.5 | N16: Total | O16: =SUM(O7:O15) -> 36 | P16: =SUM(P7:P15) -> 52 | Q16: =SUM(Q7:Q15) -> 50 | R16: =SUM(R7:R15) -> 5.5 | T16: Total | U16: =SUM(U7:U15) -> 36 | V16: =SUM(V7:V15) -> 51 | W16: =SUM(W7:W15) -> 51 | X16: =SUM(X7:X15) -> 5.5 | Z16: Total | AA16: =SUM(AA7:AA15) -> 36 | AB16: =SUM(AB7:AB15) -> 48 | AC16: =SUM(AC7:AC15) -> 47 | AD16: =SUM(AD7:AD15) -> 5 | AF16: Total | AG16: =SUM(AG7:AG15) -> 36 | AH16: =SUM(AH7:AH15) -> 51 | AI16: =SUM(AI7:AI15) -> 51 | AJ16: =SUM(AJ7:AJ15) -> 5.5 | AL16: Total | AM16: =SUM(AM7:AM15) -> 36 | AN16: =SUM(AN7:AN15) -> 49 | AO16: =SUM(AO7:AO15) -> 49 | AP16: =SUM(AP7:AP15) -> 5 | AR16: Total | AS16: =SUM(AS7:AS15) -> 36 | AT16: =SUM(AT7:AT15) -> 55 | AU16: =SUM(AU7:AU15) -> 55 | AV16: =SUM(AV7:AV15) -> 2 | AX16: Total | AY16: =SUM(AY7:AY15) -> 36 | AZ16: =SUM(AZ7:AZ15) -> 49 | BA16: =SUM(BA7:BA15) -> 48 | BB16: =SUM(BB7:BB15) -> 3 | BD16: Total | BE16: =SUM(BE7:BE15) -> 36 | BF16: =SUM(BF7:BF15) -> 48 | BG16: =SUM(BG7:BG15) -> 48 | BH16: =SUM(BH7:BH15) -> 5.5 | BJ16: Total | BK16: =SUM(BK7:BK15) -> 36 | BL16: =SUM(BL7:BL15) -> 53 | BM16: =SUM(BM7:BM15) -> 53 | BN16: =SUM(BN7:BN15) -> 3 | BP16: Total | BQ16: =SUM(BQ7:BQ15) -> 36 | BR16: =SUM(BR7:BR15) -> 0 | BS16: =SUM(BS7:BS15) -> 0 | BT16: =SUM(BT7:BT15) -> 0 | BV16: Total | BW16: =SUM(BW7:BW15) -> 36 | BX16: =SUM(BX7:BX15) -> 43 | BY16: =SUM(BY7:BY15) -> 43 | BZ16: =SUM(BZ7:BZ15) -> 6 | CB16: Total | CC16: =SUM(CC7:CC15) -> 36 | CD16: =SUM(CD7:CD15) -> 0 | CE16: =SUM(CE7:CE15) -> 0 | CF16: =SUM(CF7:CF15) -> 0 | CH16: Total | CI16: =SUM(CI7:CI15) -> 36 | CJ16: =SUM(CJ7:CJ15) -> 0 | CK16: =SUM(CK7:CK15) -> 0 | CL16: =SUM(CL7:CL15) -> 0
E18: Low Net | F18: 0 | K18: Low Net | L18: 1 | Q18: Low Net | R18: 0.5 | W18: Low Net | X18: 1 | AC18: Low Net | AD18: 1 | AI18: Low Net | AJ18: 0 | AO18: Low Net | AP18: 0.5 | AU18: Low Net | AV18: 0 | BA18: Low Net | BB18: 0 | BG18: Low Net | BH18: 1 | BM18: Low Net | BN18: 0 | BS18: Low Net | BY18: Low Net | BZ18: 1 | CE18: Low Net | CK18: Low Net
E20: Total Points | F20: =SUM(F16:F19) -> 2 | K20: Total Points | L20: =SUM(L16:L19) -> 6.5 | Q20: Total Points | R20: =SUM(R16:R19) -> 6 | W20: Total Points | X20: =SUM(X16:X19) -> 6.5 | AC20: Total Points | AD20: =SUM(AD16:AD19) -> 6 | AI20: Total Points | AJ20: =SUM(AJ16:AJ19) -> 5.5 | AO20: Total Points | AP20: =SUM(AP16:AP19) -> 5.5 | AU20: Total Points | AV20: =SUM(AV16:AV19) -> 2 | BA20: Total Points | BB20: =SUM(BB16:BB19) -> 3 | BG20: Total Points | BH20: =SUM(BH16:BH19) -> 6.5 | BM20: Total Points | BN20: =SUM(BN16:BN19) -> 3 | BS20: Total Points | BT20: =SUM(BT16:BT19) -> 0 | BY20: Total Points | BZ20: =SUM(BZ16:BZ19) -> 7 | CE20: Total Points | CF20: =SUM(CF16:CF19) -> 0 | CK20: Total Points | CL20: =SUM(CL16:CL19) -> 0
E22: Handicap | F22: =IF(D16=0,0,E16-C16) -> 16 | K22: Handicap | L22: =IF(J16=0,0,K16-I16) -> 15 | Q22: Handicap | R22: =IF(P16=0,0,Q16-O16) -> 14 | W22: Handicap | X22: =IF(V16=0,0,W16-U16) -> 15 | AC22: Handicap | AD22: =IF(AB16=0,0,AC16-AA16) -> 11 | AI22: Handicap | AJ22: =IF(AH16=0,0,AI16-AG16) -> 15 | AO22: Handicap | AP22: =IF(AN16=0,0,AO16-AM16) -> 13 | AU22: Handicap | AV22: =IF(AT16=0,0,AU16-AS16) -> 19 | BA22: Handicap | BB22: =IF(AZ16=0,0,BA16-AY16) -> 12 | BG22: Handicap | BH22: =IF(BF16=0,0,BG16-BE16) -> 12 | BM22: Handicap | BN22: =IF(BL16=0,0,BM16-BK16) -> 17 | BS22: Handicap | BT22: =IF(BR16=0,0,BS16-BQ16) -> 0 | BY22: Handicap | BZ22: =IF(BX16=0,0,BY16-BW16) -> 7 | CE22: Handicap | CF22: =IF(CD16=0,0,CE16-CC16) -> 0 | CK22: Handicap | CL22: =IF(CJ16=0,0,CK16-CI16) -> 0
F24: =IF(D16<>0,IF(F16>4.5,"W",IF(F16=4.5,"T",IF(F16<4.5,"L"))),0) -> L | L24: =IF(J16<>0,IF(L16>4.5,"W",IF(L16=4.5,"T",IF(L16<4.5,"L"))),0) -> W | R24: =IF(P16<>0,IF(R16>4.5,"W",IF(R16=4.5,"T",IF(R16<4.5,"L"))),0) -> W | X24: =IF(V16<>0,IF(X16>4.5,"W",IF(X16=4.5,"T",IF(X16<4.5,"L"))),0) -> W | AD24: =IF(AB16<>0,IF(AD16>4.5,"W",IF(AD16=4.5,"T",IF(AD16<4.5,"L"))),0) -> W | AJ24: =IF(AH16<>0,IF(AJ16>4.5,"W",IF(AJ16=4.5,"T",IF(AJ16<4.5,"L"))),0) -> W | AP24: =IF(AN16<>0,IF(AP16>4.5,"W",IF(AP16=4.5,"T",IF(AP16<4.5,"L"))),0) -> W | AV24: =IF(AT16<>0,IF(AV16>4.5,"W",IF(AV16=4.5,"T",IF(AV16<4.5,"L"))),0) -> L | BB24: =IF(AZ16<>0,IF(BB16>4.5,"W",IF(BB16=4.5,"T",IF(BB16<4.5,"L"))),0) -> L | BH24: =IF(BF16<>0,IF(BH16>4.5,"W",IF(BH16=4.5,"T",IF(BH16<4.5,"L"))),0) -> W | BN24: =IF(BL16<>0,IF(BN16>4.5,"W",IF(BN16=4.5,"T",IF(BN16<4.5,"L"))),0) -> L | BT24: =IF(BR16<>0,IF(BT16>4.5,"W",IF(BT16=4.5,"T",IF(BT16<4.5,"L"))),0) -> 0 | BZ24: =IF(BX16<>0,IF(BZ16>4.5,"W",IF(BZ16=4.5,"T",IF(BZ16<4.5,"L"))),0) -> W | CF24: =IF(CD16<>0,IF(CF16>4.5,"W",IF(CF16=4.5,"T",IF(CF16<4.5,"L"))),0) -> 0 | CL24: =IF(CJ16<>0,IF(CL16>4.5,"W",IF(CL16=4.5,"T",IF(CL16<4.5,"L"))),0) -> 0
B26: Summary | D26: =COUNT(D29:D43) -> 11
D27: Adj | F27: Adj | J27: Avg Score
C28: Points | D28: Points | E28: Matches | F28: Matches | I28: Hole # | J28: by Hole | K28: Best | L28: Worst
B29: Week #1 | C29: =F20 -> 2 | E29: 1 | F29: =E29 -> 1 | I29: 1 | J29: =IFERROR(AVERAGE(D7,P7,AB7,AN7,AZ7,BL7,BX7,CD7),0) -> 5 | K29: =IFERROR(MIN(D7,P7,AB7,AN7,AZ7,BL7,BX7,CD7),0) -> 4 | L29: =IFERROR(MAX(D7,P7,AB7,AN7,AZ7,BL7,BX7,CD7),0) -> 6
B30: Week #2 | C30: =L20 -> 6.5 | D30: =C30 -> 6.5 | E30: =IF(J16>0,1,0) -> 1 | F30: 1 | I30: 2 | J30: =IFERROR(AVERAGE(D8,P8,AB8,AN8,AZ8,BL8,BX8,CD8),0) -> 6.571428571 | K30: =IFERROR(MIN(D8,P8,AB8,AN8,AZ8,BL8,BX8,CD8),0) -> 5 | L30: =IFERROR(MAX(D8,P8,AB8,AN8,AZ8,BL8,BX8,CD8),0) -> 8
B31: Week #3 | C31: =R20 -> 6 | D31: 6 | E31: =IF(P16>0,1,0) -> 1 | F31: 1 | I31: 3 | J31: 4.142857143 | K31: 3 | L31: 6
B32: Week #4 | C32: =X20 -> 6.5 | D32: 6.5 | E32: =IF(V16>0,1,0) -> 1 | F32: 1 | I32: 4 | J32: 5.428571429 | K32: 4 | L32: 7
B33: Week #5 | C33: =AD20 -> 6 | D33: 6 | E33: =IF(AB16>0,1,0) -> 1 | F33: 1 | I33: 5 | J33: 7.142857143 | K33: 5 | L33: 9
B34: Week #6 | C34: =AJ20 -> 5.5 | D34: 5.5 | E34: =IF(AH16>0,1,0) -> 1 | F34: 1 | I34: 6 | J34: 4.142857143 | K34: 3 | L34: 6
B35: Week #7 | C35: =AP20 -> 5.5 | D35: 5.5 | E35: =IF(AN16>0,1,0) -> 1 | F35: 1 | I35: 7 | J35: 5.285714286 | K35: 4 | L35: 6
B36: Week #8 | C36: =AV20 -> 2 | E36: =IF(AT16>0,1,0) -> 1 | F36: 1 | I36: 8 | J36: 5.571428571 | K36: 4 | L36: 7
B37: Week #9 | C37: =BB20 -> 3 | D37: 3 | E37: =IF(AZ16>0,1,0) -> 1 | F37: 1 | I37: 9 | J37: 6.142857143 | K37: 5 | L37: 8
B38: Week #10 | C38: =BH20 -> 6.5 | D38: 6.5 | E38: =IF(BF16>0,1,0) -> 1 | F38: 1 | I38: Front | J38: =SUM(J29:J37) -> 49.42857143 | K38: =SUM(K29:K37) -> 37 | L38: 63
B39: Week #11 | C39: =BN20 -> 3 | D39: 3 | E39: =IF(BL16>0,1,0) -> 1 | F39: 1
B40: Week #12 | C40: =BT20 -> 0 | E40: =IF(BR16>0,1,0) -> 0 | F40: 0 | I40: 10 | J40: =IFERROR(AVERAGE(J7,V7,AH7,AT7,BF7,BR7,CJ7),0) -> 5.6 | K40: =IFERROR(MIN(J7,V7,AH7,AT7,BF7,BR7,CJ7),0) -> 5 | L40: =IFERROR(MAX(J7,V7,AH7,AT7,BF7,BR7,CJ7),0) -> 7
B41: Week #13 | C41: =BZ20 -> 7 | D41: 7 | E41: =IF(BX16>0,1,0) -> 1 | F41: 1 | I41: 11 | J41: =IFERROR(AVERAGE(J8,V8,AH8,AT8,BF8,BR8,CJ8),0) -> 5.6 | K41: =IFERROR(MIN(J8,V8,AH8,AT8,BF8,BR8,CJ8),0) -> 4 | L41: =IFERROR(MAX(J8,V8,AH8,AT8,BF8,BR8,CJ8),0) -> 7
B42: Week #14 | C42: =CF20 -> 0 | E42: =IF(CD16>0,1,0) -> 0 | F42: 0 | I42: 12 | J42: 5.6 | K42: 5 | L42: 7
B43: Week #15 | C43: =CL20 -> 0 | D43: 0 | E43: =IF(CJ16>0,1,0) -> 0 | F43: 0 | I43: 13 | J43: 6.6 | K43: 5 | L43: 8
B44: Total | C44: =SUM(C29:C43) -> 59.5 | D44: =SUM(D29:D43) -> 55.5 | E44: =SUM(E29:E43) -> 12 | F44: =SUM(F29:F43) -> 12 | I44: 14 | J44: 4.6 | K44: 3 | L44: 6
I45: 15 | J45: 5.8 | K45: 4 | L45: 7
B46: Summary | I46: 16 | J46: 6 | K46: 5 | L46: 7
B47: Eagles | C47: =I57+I68+I79+I90+I101+I112+I123+I134+I145+I156+I167+I178+I189+I200+I211 -> 0 | I47: 17 | J47: 5 | K47: 4 | L47: 6
B48: Birdies | C48: 0 | I48: 18 | J48: 6.4 | K48: 5 | L48: 8
B49: Pars | C49: =I59+I70+I81+I92+I103+I114+I125+I136+I147+I158+I169+I180+I191+I202+I213 -> 16 | I49: Back | J49: =SUM(J40:J48) -> 51.2 | K49: =SUM(K40:K48) -> 40 | L49: 63
B50: bogeys | C50: 38
B51: Double bogeys | C51: 34
B52: Other | C52: 20
B53: Total | C53: =SUM(C47:C52) -> 108
B55: =D4 -> 2024-04-26 | C55: Par | D55: Score
B56: =B7 -> 1 | C56: 4 | D56: 5 | E56: =IF(D56<>0,IF((D56-C56)=-1,"Birdie",IF((D56-C56)=-2,"Eagle",IF((D56-C56)=0,"Par",IF((D56-C56)=1,"bogey",IF((D56-C56)=2,"Double bogey","Other")))))," ") -> bogey | H56: Count
B57: 2 | C57: 4 | D57: 5 | E57: bogey | H57: Eagle | I57: =COUNTIF(E56:E64,"Eagle") -> 0
B58: 3 | C58: 3 | D58: 4 | E58: bogey | H58: Birdie | I58: =COUNTIF(E56:E64,"Birdie") -> 0
B59: 4 | C59: 4 | D59: 5 | E59: bogey | H59: Par | I59: =COUNTIF(E56:E64,"Par") -> 0
B60: 5 | C60: 5 | D60: 8 | E60: Other | H60: bogey | I60: =COUNTIF(E56:E64,"bogey") -> 5
B61: 6 | C61: 3 | D61: 6 | E61: Other | H61: Double bogey | I61: =COUNTIF(E56:E64,"Double bogey") -> 1
B62: 7 | C62: 4 | D62: 6 | E62: Double bogey | H62: Other | I62: =COUNTIF(E56:E64,"Other") -> 3
B63: 8 | C63: 4 | D63: 5 | E63: bogey
B64: 9 | C64: 5 | D64: 8 | E64: Other
B66: =J4 -> 2024-05-03
B67: =H7 -> 10 | C67: 4 | D67: 5 | E67: =IF(D67<>0,IF((D67-C67)=-1,"Birdie",IF((D67-C67)=-2,"Eagle",IF((D67-C67)=0,"Par",IF((D67-C67)=1,"bogey",IF((D67-C67)=2,"Double bogey","Other")))))," ") -> bogey | H67: Count
B68: 11 | C68: 4 | D68: 4 | E68: Par | H68: Eagle | I68: =COUNTIF(E67:E75,"Eagle") -> 0
B69: 12 | C69: 4 | D69: 5 | E69: bogey | H69: Birdie | I69: =COUNTIF(E67:E75,"Birdie") -> 0
B70: 13 | C70: 5 | D70: 7 | E70: Double bogey | H70: Par | I70: =COUNTIF(E67:E75,"Par") -> 1
B71: 14 | C71: 3 | D71: 5 | E71: Double bogey | H71: bogey | I71: =COUNTIF(E67:E75,"bogey") -> 3
B72: 15 | C72: 4 | D72: 6 | E72: Double bogey | H72: Double bogey | I72: =COUNTIF(E67:E75,"Double bogey") -> 3
B73: 16 | C73: 4 | D73: 7 | E73: Other | H73: Other | I73: =COUNTIF(E67:E75,"Other") -> 2
B74: 17 | C74: 3 | D74: 4 | E74: bogey
B75: 18 | C75: 5 | D75: 8 | E75: Other
B77: =P4 -> 2024-05-10
B78: =N7 -> 1 | C78: 4 | D78: 5 | E78: =IF(D78<>0,IF((D78-C78)=-1,"Birdie",IF((D78-C78)=-2,"Eagle",IF((D78-C78)=0,"Par",IF((D78-C78)=1,"bogey",IF((D78-C78)=2,"Double bogey","Other")))))," ") -> bogey | H78: Count
B79: 2 | C79: 4 | D79: 8 | E79: Other | H79: Eagle | I79: =COUNTIF(E78:E86,"Eagle") -> 0
B80: 3 | C80: 3 | D80: 3 | E80: Par | H80: Birdie | I80: =COUNTIF(E78:E86,"Birdie") -> 0
B81: 4 | C81: 4 | D81: 6 | E81: Double bogey | H81: Par | I81: =COUNTIF(E78:E86,"Par") -> 2
B82: 5 | C82: 5 | D82: 9 | E82: Other | H82: bogey | I82: =COUNTIF(E78:E86,"bogey") -> 2
B83: 6 | C83: 3 | D83: 5 | E83: Double bogey | H83: Double bogey | I83: =COUNTIF(E78:E86,"Double bogey") -> 3
B84: 7 | C84: 4 | D84: 4 | E84: Par | H84: Other | I84: =COUNTIF(E78:E86,"Other") -> 2
B85: 8 | C85: 4 | D85: 6 | E85: Double bogey
B86: 9 | C86: 5 | D86: 6 | E86: bogey
B88: =V4 -> 2024-05-17
B89: =T7 -> 10 | C89: 4 | D89: 5 | E89: =IF(D89<>0,IF((D89-C89)=-1,"Birdie",IF((D89-C89)=-2,"Eagle",IF((D89-C89)=0,"Par",IF((D89-C89)=1,"bogey",IF((D89-C89)=2,"Double bogey","Other")))))," ") -> bogey | H89: Count
B90: 11 | C90: 4 | D90: 6 | E90: Double bogey | H90: Eagle | I90: =COUNTIF(E89:E97,"Eagle") -> 0
B91: 12 | C91: 4 | D91: 5 | E91: bogey | H91: Birdie | I91: =COUNTIF(E89:E97,"Birdie") -> 0
B92: 13 | C92: 5 | D92: 5 | E92: Par | H92: Par | I92: =COUNTIF(E89:E97,"Par") -> 1
B93: 14 | C93: 3 | D93: 6 | E93: Other | H93: bogey | I93: =COUNTIF(E89:E97,"bogey") -> 2
B94: 15 | C94: 4 | D94: 6 | E94: Double bogey | H94: Double bogey | I94: =COUNTIF(E89:E97,"Double bogey") -> 5
B95: 16 | C95: 4 | D95: 6 | E95: Double bogey | H95: Other | I95: =COUNTIF(E89:E97,"Other") -> 1
B96: 17 | C96: 3 | D96: 5 | E96: Double bogey
B97: 18 | C97: 5 | D97: 7 | E97: Double bogey
B99: =AB4 -> 2024-05-24
B100: =Z7 -> 1 | C100: 4 | D100: 5 | E100: =IF(D100<>0,IF((D100-C100)=-1,"Birdie",IF((D100-C100)=-2,"Eagle",IF((D100-C100)=0,"Par",IF((D100-C100)=1,"bogey",IF((D100-C100)=2,"Double bogey","Other")))))," ") -> bogey | H100: Count
B101: 2 | C101: 4 | D101: 8 | E101: Other | H101: Eagle | I101: =COUNTIF(E100:E108,"Eagle") -> 0
B102: 3 | C102: 3 | D102: 3 | E102: Par | H102: Birdie | I102: =COUNTIF(E100:E108,"Birdie") -> 0
B103: 4 | C103: 4 | D103: 5 | E103: bogey | H103: Par | I103: =COUNTIF(E100:E108,"Par") -> 2
B104: 5 | C104: 5 | D104: 6 | E104: bogey | H104: bogey | I104: =COUNTIF(E100:E108,"bogey") -> 4
B105: 6 | C105: 3 | D105: 4 | E105: bogey | H105: Double bogey | I105: =COUNTIF(E100:E108,"Double bogey") -> 2
B106: 7 | C106: 4 | D106: 6 | E106: Double bogey | H106: Other | I106: =COUNTIF(E100:E108,"Other") -> 1
B107: 8 | C107: 4 | D107: 6 | E107: Double bogey
B108: 9 | C108: 5 | D108: 5 | E108: Par
B110: =AH4 -> 2024-05-31
B111: =AF7 -> 10 | C111: 4 | D111: 5 | E111: =IF(D111<>0,IF((D111-C111)=-1,"Birdie",IF((D111-C111)=-2,"Eagle",IF((D111-C111)=0,"Par",IF((D111-C111)=1,"bogey",IF((D111-C111)=2,"Double bogey","Other")))))," ") -> bogey | H111: Count
B112: 11 | C112: 4 | D112: 6 | E112: Double bogey | H112: Eagle | I112: =COUNTIF(E111:E119,"Eagle") -> 0
B113: 12 | C113: 4 | D113: 5 | E113: bogey | H113: Birdie | I113: =COUNTIF(E111:E119,"Birdie") -> 0
B114: 13 | C114: 5 | D114: 8 | E114: Other | H114: Par | I114: =COUNTIF(E111:E119,"Par") -> 1
B115: 14 | C115: 3 | D115: 5 | E115: Double bogey | H115: bogey | I115: =COUNTIF(E111:E119,"bogey") -> 2
B116: 15 | C116: 4 | D116: 6 | E116: Double bogey | H116: Double bogey | I116: =COUNTIF(E111:E119,"Double bogey") -> 5
B117: 16 | C117: 4 | D117: 6 | E117: Double bogey | H117: Other | I117: =COUNTIF(E111:E119,"Other") -> 1
B118: 17 | C118: 3 | D118: 5 | E118: Double bogey
B119: 18 | C119: 5 | D119: 5 | E119: Par
B121: =AN4 -> 2024-06-07
B122: =AL7 -> 1 | C122: 4 | D122: 5 | E122: =IF(D122<>0,IF((D122-C122)=-1,"Birdie",IF((D122-C122)=-2,"Eagle",IF((D122-C122)=0,"Par",IF((D122-C122)=1,"bogey",IF((D122-C122)=2,"Double bogey","Other")))))," ") -> bogey | H122: Count
B123: 2 | C123: 4 | D123: 6 | E123: Double bogey | H123: Eagle | I123: =COUNTIF(E122:E130,"Eagle") -> 0
B124: 3 | C124: 3 | D124: 6 | E124: Other | H124: Birdie | I124: =COUNTIF(E122:E130,"Birdie") -> 0
B125: 4 | C125: 4 | D125: 6 | E125: Double bogey | H125: Par | I125: =COUNTIF(E122:E130,"Par") -> 2
B126: 5 | C126: 5 | D126: 7 | E126: Double bogey | H126: bogey | I126: =COUNTIF(E122:E130,"bogey") -> 2
B127: 6 | C127: 3 | D127: 3 | E127: Par | H127: Double bogey | I127: =COUNTIF(E122:E130,"Double bogey") -> 4
B128: 7 | C128: 4 | D128: 5 | E128: bogey | H128: Other | I128: =COUNTIF(E122:E130,"Other") -> 1
B129: 8 | C129: 4 | D129: 6 | E129: Double bogey
B130: 9 | C130: 5 | D130: 5 | E130: Par
B132: =AT4 -> 2024-06-14
B133: =AR7 -> 10 | C133: 4 | D133: 7 | E133: =IF(D133<>0,IF((D133-C133)=-1,"Birdie",IF((D133-C133)=-2,"Eagle",IF((D133-C133)=0,"Par",IF((D133-C133)=1,"bogey",IF((D133-C133)=2,"Double bogey","Other")))))," ") -> Other | H133: Count
B134: 11 | C134: 4 | D134: 7 | E134: Other | H134: Eagle | I134: =COUNTIF(E133:E141,"Eagle") -> 0
B135: 12 | C135: 4 | D135: 7 | E135: Other | H135: Birdie | I135: =COUNTIF(E133:E141,"Birdie") -> 0
B136: 13 | C136: 5 | D136: 6 | E136: bogey | H136: Par | I136: =COUNTIF(E133:E141,"Par") -> 0
B137: 14 | C137: 3 | D137: 4 | E137: bogey | H137: bogey | I137: =COUNTIF(E133:E141,"bogey") -> 3
B138: 15 | C138: 4 | D138: 7 | E138: Other | H138: Double bogey | I138: =COUNTIF(E133:E141,"Double bogey") -> 2
B139: 16 | C139: 4 | D139: 6 | E139: Double bogey | H139: Other | I139: =COUNTIF(E133:E141,"Other") -> 4
B140: 17 | C140: 3 | D140: 5 | E140: Double bogey
B141: 18 | C141: 5 | D141: 6 | E141: bogey
B143: =AZ4 -> 2024-07-05
B144: =AX7 -> 1 | C144: 4 | D144: 5 | E144: =IF(D144<>0,IF((D144-C144)=-1,"Birdie",IF((D144-C144)=-2,"Eagle",IF((D144-C144)=0,"Par",IF((D144-C144)=1,"bogey",IF((D144-C144)=2,"Double bogey","Other")))))," ") -> bogey | H144: Count
B145: 2 | C145: 4 | D145: 8 | E145: Other | H145: Eagle | I145: =COUNTIF(E144:E152,"Eagle") -> 0
B146: 3 | C146: 3 | D146: 4 | E146: bogey | H146: Birdie | I146: =COUNTIF(E144:E152,"Birdie") -> 0
B147: 4 | C147: 4 | D147: 5 | E147: bogey | H147: Par | I147: =COUNTIF(E144:E152,"Par") -> 0
B148: 5 | C148: 5 | D148: 7 | E148: Double bogey | H148: bogey | I148: =COUNTIF(E144:E152,"bogey") -> 7
B149: 6 | C149: 3 | D149: 4 | E149: bogey | H149: Double bogey | I149: =COUNTIF(E144:E152,"Double bogey") -> 1
B150: 7 | C150: 4 | D150: 5 | E150: bogey | H150: Other | I150: =COUNTIF(E144:E152,"Other") -> 1
B151: 8 | C151: 4 | D151: 5 | E151: bogey
B152: 9 | C152: 5 | D152: 6 | E152: bogey
B154: =BF4 -> 2024-07-12
B155: =BD7 -> 10 | C155: 4 | D155: 6 | E155: =IF(D155<>0,IF((D155-C155)=-1,"Birdie",IF((D155-C155)=-2,"Eagle",IF((D155-C155)=0,"Par",IF((D155-C155)=1,"bogey",IF((D155-C155)=2,"Double bogey","Other")))))," ") -> Double bogey | H155: Count
B156: 11 | C156: 4 | D156: 5 | E156: bogey | H156: Eagle | I156: =COUNTIF(E155:E163,"Eagle") -> 0
B157: 12 | C157: 4 | D157: 6 | E157: Double bogey | H157: Birdie | I157: =COUNTIF(E155:E163,"Birdie") -> 0
B158: 13 | C158: 5 | D158: 7 | E158: Double bogey | H158: Par | I158: =COUNTIF(E155:E163,"Par") -> 2
B159: 14 | C159: 3 | D159: 3 | E159: Par | H159: bogey | I159: =COUNTIF(E155:E163,"bogey") -> 3
B160: 15 | C160: 4 | D160: 4 | E160: Par | H160: Double bogey | I160: =COUNTIF(E155:E163,"Double bogey") -> 3
B161: 16 | C161: 4 | D161: 5 | E161: bogey | H161: Other | I161: =COUNTIF(E155:E163,"Other") -> 1
B162: 17 | C162: 3 | D162: 6 | E162: Other
B163: 18 | C163: 5 | D163: 6 | E163: bogey
B165: =BL4 -> 2024-07-19
B166: =BJ7 -> 1 | C166: 4 | D166: 6 | E166: =IF(D166<>0,IF((D166-C166)=-1,"Birdie",IF((D166-C166)=-2,"Eagle",IF((D166-C166)=0,"Par",IF((D166-C166)=1,"bogey",IF((D166-C166)=2,"Double bogey","Other")))))," ") -> Double bogey | H166: Count
B167: 2 | C167: 4 | D167: 5 | E167: bogey | H167: Eagle | I167: =COUNTIF(E166:E174,"Eagle") -> 0
B168: 3 | C168: 3 | D168: 5 | E168: Double bogey | H168: Birdie | I168: =COUNTIF(E166:E174,"Birdie") -> 0
B169: 4 | C169: 4 | D169: 7 | E169: Other | H169: Par | I169: =COUNTIF(E166:E174,"Par") -> 1
B170: 5 | C170: 5 | D170: 8 | E170: Other | H170: bogey | I170: =COUNTIF(E166:E174,"bogey") -> 2
B171: 6 | C171: 3 | D171: 3 | E171: Par | H171: Double bogey | I171: =COUNTIF(E166:E174,"Double bogey") -> 3
B172: 7 | C172: 4 | D172: 6 | E172: Double bogey | H172: Other | I172: =COUNTIF(E166:E174,"Other") -> 3
B173: 8 | C173: 4 | D173: 7 | E173: Other
B174: 9 | C174: 5 | D174: 6 | E174: bogey
B176: =BR4 -> 2024-07-26
B177: =BP7 -> 10 | C177: 4 | D177: 0 | E177: =IF(D177<>0,IF((D177-C177)=-1,"Birdie",IF((D177-C177)=-2,"Eagle",IF((D177-C177)=0,"Par",IF((D177-C177)=1,"bogey",IF((D177-C177)=2,"Double bogey","Other")))))," ") ->  | H177: Count
B178: 11 | C178: 4 | D178: 0 | H178: Eagle | I178: =COUNTIF(E177:E185,"Eagle") -> 0
B179: 12 | C179: 4 | D179: 0 | H179: Birdie | I179: =COUNTIF(E177:E185,"Birdie") -> 0
B180: 13 | C180: 5 | D180: 0 | H180: Par | I180: =COUNTIF(E177:E185,"Par") -> 0
B181: 14 | C181: 3 | D181: 0 | H181: bogey | I181: =COUNTIF(E177:E185,"bogey") -> 0
B182: 15 | C182: 4 | D182: 0 | H182: Double bogey | I182: =COUNTIF(E177:E185,"Double bogey") -> 0
B183: 16 | C183: 4 | D183: 0 | H183: Other | I183: =COUNTIF(E177:E185,"Other") -> 0
B184: 17 | C184: 3 | D184: 0
B185: 18 | C185: 5 | D185: 0
B187: =BX4 -> 2024-08-02
B188: =BV7 -> 1 | C188: 4 | D188: 4 | E188: =IF(D188<>0,IF((D188-C188)=-1,"Birdie",IF((D188-C188)=-2,"Eagle",IF((D188-C188)=0,"Par",IF((D188-C188)=1,"bogey",IF((D188-C188)=2,"Double bogey","Other")))))," ") -> Par | H188: Count
B189: 2 | C189: 4 | D189: 6 | E189: Double bogey | H189: Eagle | I189: =COUNTIF(E188:E196,"Eagle") -> 0
B190: 3 | C190: 3 | D190: 4 | E190: bogey | H190: Birdie | I190: =COUNTIF(E188:E196,"Birdie") -> 0
B191: 4 | C191: 4 | D191: 4 | E191: Par | H191: Par | I191: =COUNTIF(E188:E196,"Par") -> 4
B192: 5 | C192: 5 | D192: 5 | E192: Par | H192: bogey | I192: =COUNTIF(E188:E196,"bogey") -> 3
B193: 6 | C193: 3 | D193: 4 | E193: bogey | H193: Double bogey | I193: =COUNTIF(E188:E196,"Double bogey") -> 2
B194: 7 | C194: 4 | D194: 5 | E194: bogey | H194: Other | I194: =COUNTIF(E188:E196,"Other") -> 0
B195: 8 | C195: 4 | D195: 4 | E195: Par
B196: 9 | C196: 5 | D196: 7 | E196: Double bogey
B198: =CD4 -> 2024-08-16
B199: =CB7 -> 1 | C199: 4 | D199: 0 | E199: =IF(D199<>0,IF((D199-C199)=-1,"Birdie",IF((D199-C199)=-2,"Eagle",IF((D199-C199)=0,"Par",IF((D199-C199)=1,"bogey",IF((D199-C199)=2,"Double bogey","Other")))))," ") ->  | H199: Count
B200: 2 | C200: 4 | D200: 0 | H200: Eagle | I200: =COUNTIF(E199:E207,"Eagle") -> 0
B201: 3 | C201: 3 | D201: 0 | H201: Birdie | I201: =COUNTIF(E199:E207,"Birdie") -> 0
B202: 4 | C202: 4 | D202: 0 | H202: Par | I202: =COUNTIF(E199:E207,"Par") -> 0
B203: 5 | C203: 5 | D203: 0 | H203: bogey | I203: =COUNTIF(E199:E207,"bogey") -> 0
B204: 6 | C204: 3 | D204: 0 | H204: Double bogey | I204: =COUNTIF(E199:E207,"Double bogey") -> 0
B205: 7 | C205: 4 | D205: 0 | H205: Other | I205: =COUNTIF(E199:E207,"Other") -> 0
B206: 8 | C206: 4 | D206: 0
B207: 9 | C207: 5 | D207: 0
B209: =CJ4 -> 2024-08-23
B210: =CH7 -> 10 | C210: 4 | D210: 0 | E210: =IF(D210<>0,IF((D210-C210)=-1,"Birdie",IF((D210-C210)=-2,"Eagle",IF((D210-C210)=0,"Par",IF((D210-C210)=1,"bogey",IF((D210-C210)=2,"Double bogey","Other")))))," ") ->  | H210: Count
B211: 11 | C211: 4 | D211: 0 | H211: Eagle | I211: =COUNTIF(E210:E218,"Eagle") -> 0
B212: 12 | C212: 4 | D212: 0 | H212: Birdie | I212: =COUNTIF(E210:E218,"Birdie") -> 0
B213: 13 | C213: 5 | D213: 0 | H213: Par | I213: =COUNTIF(E210:E218,"Par") -> 0
B214: 14 | C214: 3 | D214: 0 | H214: bogey | I214: =COUNTIF(E210:E218,"bogey") -> 0
B215: 15 | C215: 4 | D215: 0 | H215: Double bogey | I215: =COUNTIF(E210:E218,"Double bogey") -> 0
B216: 16 | C216: 4 | D216: 0 | H216: Other | I216: =COUNTIF(E210:E218,"Other") -> 0
B217: 17 | C217: 3 | D217: 0
B218: 18 | C218: 5 | D218: 0

Sheet Linton
A1: Andy Linton
C4: Date: | D4: =VLOOKUP(C5,Week,2) -> 2024-04-26 | I4: Date: | J4: =VLOOKUP(I5,Week,2) -> 2024-05-03 | O4: Date: | P4: =VLOOKUP(O5,Week,2) -> 2024-05-10 | U4: Date: | V4: =VLOOKUP(U5,Week,2) -> 2024-05-17 | AA4: Date: | AB4: =VLOOKUP(AA5,Week,2) -> 2024-05-24 | AG4: Date: | AH4: =VLOOKUP(AG5,Week,2) -> 2024-05-31 | AM4: Date: | AN4: =VLOOKUP(AM5,Week,2) -> 2024-06-07 | AS4: Date: | AT4: =VLOOKUP(AS5,Week,2) -> 2024-06-14 | AY4: Date: | AZ4: =VLOOKUP(AY5,Week,2) -> 2024-07-05 | BE4: Date: | BF4: =VLOOKUP(BE5,Week,2) -> 2024-07-12 | BK4: Date: | BL4: =VLOOKUP(BK5,Week,2) -> 2024-07-19 | BQ4: Date: | BR4: =VLOOKUP(BQ5,Week,2) -> 2024-07-26 | BW4: Date: | BX4: =VLOOKUP(BW5,Week,2) -> 2024-08-02 | CC4: Date: | CD4: =VLOOKUP(CC5,Week,2) -> 2024-08-16 | CI4: Date: | CJ4: =VLOOKUP(CI5,Week,2) -> 2024-08-23
B5: Week | C5: 1 | H5: Week | I5: 2 | N5: Week | O5: 3 | T5: Week | U5: 4 | Z5: Week | AA5: 5 | AF5: Week | AG5: 6 | AL5: Week | AM5: 7 | AR5: Week | AS5: 8 | AX5: Week | AY5: 9 | BD5: Week | BE5: 10 | BJ5: Week | BK5: 11 | BP5: Week | BQ5: 12 | BV5: Week | BW5: 13 | CB5: Week | CC5: 14 | CH5: Week | CI5: 15
B6: Hole # | C6: Par | D6: Score | E6: Net | F6: Win Hole | H6: Hole # | I6: Par | J6: Score | K6: Net | L6: Win Hole | N6: Hole # | O6: Par | P6: Score | Q6: Net | R6: Win Hole | T6: Hole # | U6: Par | V6: Score | W6: Net | X6: Win Hole | Z6: Hole # | AA6: Par | AB6: Score | AC6: Net | AD6: Win Hole | AF6: Hole # | AG6: Par | AH6: Score | AI6: Net | AJ6: Win Hole | AL6: Hole # | AM6: Par | AN6: Score | AO6: Net | AP6: Win Hole | AR6: Hole # | AS6: Par | AT6: Score | AU6: Net | AV6: Win Hole | AX6: Hole # | AY6: Par | AZ6: Score | BA6: Net | BB6: Win Hole | BD6: Hole # | BE6: Par | BF6: Score | BG6: Net | BH6: Win Hole | BJ6: Hole # | BK6: Par | BL6: Score | BM6: Net | BN6: Win Hole | BP6: Hole # | BQ6: Par | BR6: Score | BS6: Net | BT6: Win Hole | BV6: Hole # | BW6: Par | BX6: Score | BY6: Net | BZ6: Win Hole | CB6: Hole # | CC6: Par | CD6: Score | CE6: Net | CF6: Win Hole | CH6: Hole # | CI6: Par | CJ6: Score | CK6: Net | CL6: Win Hole
B7: =VLOOKUP(C5,Week,6) -> 1 | C7: =VLOOKUP(B7,Holes,2) -> 4 | D7: 5 | E7: =IF((D7-C7)>3,C7+3,D7) -> 5 | F7: 0 | H7: =VLOOKUP(I5,Week,6) -> 10 | I7: =VLOOKUP(H7,Holes,2) -> 4 | J7: 4 | K7: =IF((J7-I7)>3,I7+3,J7) -> 4 | L7: 1 | N7: =VLOOKUP(O5,Week,6) -> 1 | O7: =VLOOKUP(N7,Holes,2) -> 4 | P7: 5 | Q7: =IF((P7-O7)>3,O7+3,P7) -> 5 | R7: 0 | T7: =VLOOKUP(U5,Week,6) -> 10 | U7: =VLOOKUP(T7,Holes,2) -> 4 | V7: 7 | W7: =IF((V7-U7)>3,U7+3,V7) -> 7 | X7: 0 | Z7: =VLOOKUP(AA5,Week,6) -> 1 | AA7: =VLOOKUP(Z7,Holes,2) -> 4 | AB7: 5 | AC7: =IF((AB7-AA7)>3,AA7+3,AB7) -> 5 | AD7: 0 | AF7: =VLOOKUP(AG5,Week,6) -> 10 | AG7: =VLOOKUP(AF7,Holes,2) -> 4 | AH7: 4 | AI7: =IF((AH7-AG7)>3,AG7+3,AH7) -> 4 | AJ7: 1 | AL7: =VLOOKUP(AM5,Week,6) -> 1 | AM7: =VLOOKUP(AL7,Holes,2) -> 4 | AN7: 6 | AO7: =IF((AN7-AM7)>3,AM7+3,AN7) -> 6 | AP7: 0 | AR7: =VLOOKUP(AS5,Week,6) -> 10 | AS7: =VLOOKUP(AR7,Holes,2) -> 4 | AT7: 4 | AU7: =IF((AT7-AS7)>3,AS7+3,AT7) -> 4 | AV7: 1 | AX7: =VLOOKUP(AY5,Week,6) -> 1 | AY7: =VLOOKUP(AX7,Holes,2) -> 4 | AZ7: 4 | BA7: =IF((AZ7-AY7)>3,AY7+3,AZ7) -> 4 | BB7: 1 | BD7: =VLOOKUP(BE5,Week,6) -> 10 | BE7: =VLOOKUP(BD7,Holes,2) -> 4 | BF7: 4 | BG7: =IF((BF7-BE7)>3,BE7+3,BF7) -> 4 | BH7: 0.5 | BJ7: =VLOOKUP(BK5,Week,6) -> 1 | BK7: =VLOOKUP(BJ7,Holes,2) -> 4 | BL7: 4 | BM7: =IF((BL7-BK7)>3,BK7+3,BL7) -> 4 | BN7: 1 | BP7: =VLOOKUP(BQ5,Week,6) -> 10 | BQ7: =VLOOKUP(BP7,Holes,2) -> 4 | BR7: 5 | BS7: =IF((BR7-BQ7)>3,BQ7+3,BR7) -> 5 | BT7: 0.5 | BV7: =VLOOKUP(BW5,Week,6) -> 1 | BW7: =VLOOKUP(BV7,Holes,2) -> 4 | BX7: 4 | BY7: =IF((BX7-BW7)>3,BW7+3,BX7) -> 4 | BZ7: 1 | CB7: =VLOOKUP(CC5,Week,6) -> 1 | CC7: =VLOOKUP(CB7,Holes,2) -> 4 | CD7: 6 | CE7: =IF((CD7-CC7)>3,CC7+3,CD7) -> 6 | CF7: 0 | CH7: =VLOOKUP(CI5,Week,6) -> 10 | CI7: =VLOOKUP(CH7,Holes,2) -> 4 | CJ7: 4 | CK7: =IF((CJ7-CI7)>3,CI7+3,CJ7) -> 4 | CL7: 0.5
B8: =+B7+1 -> 2 | C8: 4 | D8: 6 | E8: 6 | F8: 0 | H8: =+H7+1 -> 11 | I8: 4 | J8: 6 | K8: 6 | L8: 1 | N8: =+N7+1 -> 2 | O8: 4 | P8: 5 | Q8: 5 | R8: 0.5 | T8: =+T7+1 -> 11 | U8: 4 | V8: 5 | W8: 5 | X8: 1 | Z8: =+Z7+1 -> 2 | AA8: 4 | AB8: 5 | AC8: 5 | AD8: 1 | AF8: =+AF7+1 -> 11 | AG8: 4 | AH8: 5 | AI8: 5 | AJ8: 1 | AL8: =+AL7+1 -> 2 | AM8: 4 | AN8: 4 | AO8: 4 | AP8: 1 | AR8: =+AR7+1 -> 11 | AS8: 4 | AT8: 4 | AU8: 4 | AV8: 0.5 | AX8: =+AX7+1 -> 2 | AY8: 4 | AZ8: 5 | BA8: 5 | BB8: 0 | BD8: =+BD7+1 -> 11 | BE8: 4 | BF8: 4 | BG8: 4 | BH8: 0.5 | BJ8: =+BJ7+1 -> 2 | BK8: 4 | BL8: 5 | BM8: 5 | BN8: 0 | BP8: =+BP7+1 -> 11 | BQ8: 4 | BR8: 5 | BS8: 5 | BT8: 0.5 | BV8: =+BV7+1 -> 2 | BW8: 4 | BX8: 5 | BY8: 5 | BZ8: 1 | CB8: =+CB7+1 -> 2 | CC8: 4 | CD8: 4 | CE8: 4 | CF8: 1 | CH8: =+CH7+1 -> 11 | CI8: 4 | CJ8: 5 | CK8: 5 | CL8: 0.5
B9: 3 | C9: 3 | D9: 4 | E9: 4 | F9: 0 | H9: 12 | I9: 4 | J9: 6 | K9: 6 | L9: 0 | N9: 3 | O9: 3 | P9: 3 | Q9: 3 | R9: 1 | T9: 12 | U9: 4 | V9: 5 | W9: 5 | X9: 0.5 | Z9: 3 | AA9: 3 | AB9: 4 | AC9: 4 | AD9: 1 | AF9: 12 | AG9: 4 | AH9: 6 | AI9: 6 | AJ9: 0 | AL9: 3 | AM9: 3 | AN9: 3 | AO9: 3 | AP9: 1 | AR9: 12 | AS9: 4 | AT9: 5 | AU9: 5 | AV9: 0 | AX9: 3 | AY9: 3 | AZ9: 4 | BA9: 4 | BB9: 0.5 | BD9: 12 | BE9: 4 | BF9: 5 | BG9: 5 | BH9: 1 | BJ9: 3 | BK9: 3 | BL9: 4 | BM9: 4 | BN9: 0.5 | BP9: 12 | BQ9: 4 | BR9: 6 | BS9: 6 | BT9: 1 | BV9: 3 | BW9: 3 | BX9: 3 | BY9: 3 | BZ9: 1 | CB9: 3 | CC9: 3 | CD9: 4 | CE9: 4 | CF9: 0.5 | CH9: 12 | CI9: 4 | CJ9: 5 | CK9: 5 | CL9: 0.5
B10: 4 | C10: 4 | D10: 6 | E10: 6 | F10: 0 | H10: 13 | I10: 5 | J10: 7 | K10: 7 | L10: 0 | N10: 4 | O10: 4 | P10: 4 | Q10: 4 | R10: 0.5 | T10: 13 | U10: 5 | V10: 6 | W10: 6 | X10: 1 | Z10: 4 | AA10: 4 | AB10: 5 | AC10: 5 | AD10: 0.5 | AF10: 13 | AG10: 5 | AH10: 6 | AI10: 6 | AJ10: 1 | AL10: 4 | AM10: 4 | AN10: 5 | AO10: 5 | AP10: 0.5 | AR10: 13 | AS10: 5 | AT10: 7 | AU10: 7 | AV10: 1 | AX10: 4 | AY10: 4 | AZ10: 4 | BA10: 4 | BB10: 0 | BD10: 13 | BE10: 5 | BF10: 8 | BG10: 8 | BH10: 0 | BJ10: 4 | BK10: 4 | BL10: 5 | BM10: 5 | BN10: 0 | BP10: 13 | BQ10: 5 | BR10: 5 | BS10: 5 | BT10: 1 | BV10: 4 | BW10: 4 | BX10: 5 | BY10: 5 | BZ10: 0 | CB10: 4 | CC10: 4 | CD10: 5 | CE10: 5 | CF10: 1 | CH10: 13 | CI10: 5 | CJ10: 8 | CK10: 8 | CL10: 0
B11: 5 | C11: 5 | D11: 7 | E11: 7 | F11: 0 | H11: 14 | I11: 3 | J11: 4 | K11: 4 | L11: 0.5 | N11: 5 | O11: 5 | P11: 6 | Q11: 6 | R11: 0 | T11: 14 | U11: 3 | V11: 3 | W11: 3 | X11: 1 | Z11: 5 | AA11: 5 | AB11: 6 | AC11: 6 | AD11: 0.5 | AF11: 14 | AG11: 3 | AH11: 4 | AI11: 4 | AJ11: 1 | AL11: 5 | AM11: 5 | AN11: 6 | AO11: 6 | AP11: 0 | AR11: 14 | AS11: 3 | AT11: 4 | AU11: 4 | AV11: 1 | AX11: 5 | AY11: 5 | AZ11: 5 | BA11: 5 | BB11: 1 | BD11: 14 | BE11: 3 | BF11: 3 | BG11: 3 | BH11: 1 | BJ11: 5 | BK11: 5 | BL11: 6 | BM11: 6 | BN11: 0.5 | BP11: 14 | BQ11: 3 | BR11: 4 | BS11: 4 | BT11: 0.5 | BV11: 5 | BW11: 5 | BX11: 5 | BY11: 5 | BZ11: 0.5 | CB11: 5 | CC11: 5 | CD11: 5 | CE11: 5 | CF11: 1 | CH11: 14 | CI11: 3 | CJ11: 4 | CK11: 4 | CL11: 0.5
B12: 6 | C12: 3 | D12: 4 | E12: 4 | F12: 0 | H12: 15 | I12: 4 | J12: 4 | K12: 4 | L12: 1 | N12: 6 | O12: 3 | P12: 4 | Q12: 4 | R12: 0 | T12: 15 | U12: 4 | V12: 5 | W12: 5 | X12: 0.5 | Z12: 6 | AA12: 3 | AB12: 3 | AC12: 3 | AD12: 1 | AF12: 15 | AG12: 4 | AH12: 4 | AI12: 4 | AJ12: 0.5 | AL12: 6 | AM12: 3 | AN12: 4 | AO12: 4 | AP12: 0 | AR12: 15 | AS12: 4 | AT12: 5 | AU12: 5 | AV12: 1 | AX12: 6 | AY12: 3 | AZ12: 3 | BA12: 3 | BB12: 0 | BD12: 15 | BE12: 4 | BF12: 4 | BG12: 4 | BH12: 0 | BJ12: 6 | BK12: 3 | BL12: 3 | BM12: 3 | BN12: 0.5 | BP12: 15 | BQ12: 4 | BR12: 5 | BS12: 5 | BT12: 0 | BV12: 6 | BW12: 3 | BX12: 4 | BY12: 4 | BZ12: 0 | CB12: 6 | CC12: 3 | CD12: 3 | CE12: 3 | CF12: 1 | CH12: 15 | CI12: 4 | CJ12: 4 | CK12: 4 | CL12: 1
B13: 7 | C13: 4 | D13: 4 | E13: 4 | F13: 0.5 | H13: 16 | I13: 4 | J13: 6 | K13: 6 | L13: 0 | N13: 7 | O13: 4 | P13: 5 | Q13: 5 | R13: 0 | T13: 16 | U13: 4 | V13: 5 | W13: 5 | X13: 0 | Z13: 7 | AA13: 4 | AB13: 5 | AC13: 5 | AD13: 1 | AF13: 16 | AG13: 4 | AH13: 4 | AI13: 4 | AJ13: 0 | AL13: 7 | AM13: 4 | AN13: 4 | AO13: 4 | AP13: 0.5 | AR13: 16 | AS13: 4 | AT13: 4 | AU13: 4 | AV13: 1 | AX13: 7 | AY13: 4 | AZ13: 4 | BA13: 4 | BB13: 0.5 | BD13: 16 | BE13: 4 | BF13: 5 | BG13: 5 | BH13: 0 | BJ13: 7 | BK13: 4 | BL13: 5 | BM13: 5 | BN13: 0 | BP13: 16 | BQ13: 4 | BR13: 4 | BS13: 4 | BT13: 1 | BV13: 7 | BW13: 4 | BX13: 4 | BY13: 4 | BZ13: 0.5 | CB13: 7 | CC13: 4 | CD13: 4 | CE13: 4 | CF13: 0.5 | CH13: 16 | CI13: 4 | CJ13: 4 | CK13: 4 | CL13: 1
B14: 8 | C14: 4 | D14: 5 | E14: 5 | F14: 0 | H14: 17 | I14: 3 | J14: 4 | K14: 4 | L14: 0.5 | N14: 8 | O14: 4 | P14: 4 | Q14: 4 | R14: 1 | T14: 17 | U14: 3 | V14: 5 | W14: 5 | X14: 1 | Z14: 8 | AA14: 4 | AB14: 5 | AC14: 5 | AD14: 1 | AF14: 17 | AG14: 3 | AH14: 3 | AI14: 3 | AJ14: 0 | AL14: 8 | AM14: 4 | AN14: 5 | AO14: 5 | AP14: 1 | AR14: 17 | AS14: 3 | AT14: 3 | AU14: 3 | AV14: 1 | AX14: 8 | AY14: 4 | AZ14: 4 | BA14: 4 | BB14: 0.5 | BD14: 17 | BE14: 3 | BF14: 5 | BG14: 5 | BH14: 0.5 | BJ14: 8 | BK14: 4 | BL14: 4 | BM14: 4 | BN14: 0 | BP14: 17 | BQ14: 3 | BR14: 4 | BS14: 4 | BT14: 0.5 | BV14: 8 | BW14: 4 | BX14: 4 | BY14: 4 | BZ14: 0.5 | CB14: 8 | CC14: 4 | CD14: 5 | CE14: 5 | CF14: 0 | CH14: 17 | CI14: 3 | CJ14: 3 | CK14: 3 | CL14: 0.5
B15: 9 | C15: 5 | D15: 7 | E15: 7 | F15: 0 | H15: 18 | I15: 5 | J15: 7 | K15: 7 | L15: 0 | N15: 9 | O15: 5 | P15: 5 | Q15: 5 | R15: 0.5 | T15: 18 | U15: 5 | V15: 5 | W15: 5 | X15: 1 | Z15: 9 | AA15: 5 | AB15: 5 | AC15: 5 | AD15: 0.5 | AF15: 18 | AG15: 5 | AH15: 5 | AI15: 5 | AJ15: 0.5 | AL15: 9 | AM15: 5 | AN15: 4 | AO15: 4 | AP15: 1 | AR15: 18 | AS15: 5 | AT15: 6 | AU15: 6 | AV15: 0.5 | AX15: 9 | AY15: 5 | AZ15: 5 | BA15: 5 | BB15: 1 | BD15: 18 | BE15: 5 | BF15: 6 | BG15: 6 | BH15: 0 | BJ15: 9 | BK15: 5 | BL15: 5 | BM15: 5 | BN15: 0 | BP15: 18 | BQ15: 5 | BR15: 5 | BS15: 5 | BT15: 0 | BV15: 9 | BW15: 5 | BX15: 6 | BY15: 6 | BZ15: 0.5 | CB15: 9 | CC15: 5 | CD15: 6 | CE15: 6 | CF15: 1 | CH15: 18 | CI15: 5 | CJ15: 5 | CK15: 5 | CL15: 0.5
B16: Total | C16: =SUM(C7:C15) -> 36 | D16: =SUM(D7:D15) -> 48 | E16: =SUM(E7:E15) -> 48 | F16: =SUM(F7:F15) -> 0.5 | H16: Total | I16: =SUM(I7:I15) -> 36 | J16: =SUM(J7:J15) -> 48 | K16: =SUM(K7:K15) -> 48 | L16: =SUM(L7:L15) -> 4 | N16: Total | O16: =SUM(O7:O15) -> 36 | P16: =SUM(P7:P15) -> 41 | Q16: =SUM(Q7:Q15) -> 41 | R16: =SUM(R7:R15) -> 3.5 | T16: Total | U16: =SUM(U7:U15) -> 36 | V16: =SUM(V7:V15) -> 46 | W16: =SUM(W7:W15) -> 46 | X16: =SUM(X7:X15) -> 6 | Z16: Total | AA16: =SUM(AA7:AA15) -> 36 | AB16: =SUM(AB7:AB15) -> 43 | AC16: =SUM(AC7:AC15) -> 43 | AD16: =SUM(AD7:AD15) -> 6.5 | AF16: Total | AG16: =SUM(AG7:AG15) -> 36 | AH16: =SUM(AH7:AH15) -> 41 | AI16: =SUM(AI7:AI15) -> 41 | AJ16: =SUM(AJ7:AJ15) -> 5 | AL16: Total | AM16: =SUM(AM7:AM15) -> 36 | AN16: =SUM(AN7:AN15) -> 41 | AO16: =SUM(AO7:AO15) -> 41 | AP16: =SUM(AP7:AP15) -> 5 | AR16: Total | AS16: =SUM(AS7:AS15) -> 36 | AT16: =SUM(AT7:AT15) -> 42 | AU16: =SUM(AU7:AU15) -> 42 | AV16: =SUM(AV7:AV15) -> 7 | AX16: Total | AY16: =SUM(AY7:AY15) -> 36 | AZ16: =SUM(AZ7:AZ15) -> 38 | BA16: =SUM(BA7:BA15) -> 38 | BB16: =SUM(BB7:BB15) -> 4.5 | BD16: Total | BE16: =SUM(BE7:BE15) -> 36 | BF16: =SUM(BF7:BF15) -> 44 | BG16: =SUM(BG7:BG15) -> 44 | BH16: =SUM(BH7:BH15) -> 3.5 | BJ16: Total | BK16: =SUM(BK7:BK15) -> 36 | BL16: =SUM(BL7:BL15) -> 41 | BM16: =SUM(BM7:BM15) -> 41 | BN16: =SUM(BN7:BN15) -> 2.5 | BP16: Total | BQ16: =SUM(BQ7:BQ15) -> 36 | BR16: =SUM(BR7:BR15) -> 43 | BS16: =SUM(BS7:BS15) -> 43 | BT16: =SUM(BT7:BT15) -> 5 | BV16: Total | BW16: =SUM(BW7:BW15) -> 36 | BX16: =SUM(BX7:BX15) -> 40 | BY16: =SUM(BY7:BY15) -> 40 | BZ16: =SUM(BZ7:BZ15) -> 5 | CB16: Total | CC16: =SUM(CC7:CC15) -> 36 | CD16: =SUM(CD7:CD15) -> 42 | CE16: =SUM(CE7:CE15) -> 42 | CF16: =SUM(CF7:CF15) -> 6 | CH16: Total | CI16: =SUM(CI7:CI15) -> 36 | CJ16: =SUM(CJ7:CJ15) -> 42 | CK16: =SUM(CK7:CK15) -> 42 | CL16: =SUM(CL7:CL15) -> 5
E18: Low Net | F18: 0 | K18: Low Net | L18: 0 | Q18: Low Net | R18: 0.5 | W18: Low Net | X18: 1 | AC18: Low Net | AD18: 1 | AI18: Low Net | AJ18: 1 | AO18: Low Net | AP18: 1 | AU18: Low Net | AV18: 1 | BA18: Low Net | BB18: 1 | BG18: Low Net | BH18: 0 | BM18: Low Net | BN18: 0 | BS18: Low Net | BT18: 1 | BY18: Low Net | BZ18: 0.5 | CE18: Low Net | CF18: 1 | CK18: Low Net | CL18: 0
E20: Total Points | F20: =SUM(F16:F19) -> 0.5 | K20: Total Points | L20: =SUM(L16:L19) -> 4 | Q20: Total Points | R20: =SUM(R16:R19) -> 4 | W20: Total Points | X20: =SUM(X16:X19) -> 7 | AC20: Total Points | AD20: =SUM(AD16:AD19) -> 7.5 | AI20: Total Points | AJ20: =SUM(AJ16:AJ19) -> 6 | AO20: Total Points | AP20: =SUM(AP16:AP19) -> 6 | AU20: Total Points | AV20: =SUM(AV16:AV19) -> 8 | BA20: Total Points | BB20: =SUM(BB16:BB19) -> 5.5 | BG20: Total Points | BH20: =SUM(BH16:BH19) -> 3.5 | BM20: Total Points | BN20: =SUM(BN16:BN19) -> 2.5 | BS20: Total Points | BT20: =SUM(BT16:BT19) -> 6 | BY20: Total Points | BZ20: =SUM(BZ16:BZ19) -> 5.5 | CE20: Total Points | CF20: =SUM(CF16:CF19) -> 7 | CK20: Total Points | CL20: =SUM(CL16:CL19) -> 5
E22: Handicap | F22: =IF(D16=0,0,E16-C16) -> 12 | K22: Handicap | L22: =IF(J16=0,0,K16-I16) -> 12 | Q22: Handicap | R22: =IF(P16=0,0,Q16-O16) -> 5 | W22: Handicap | X22: =IF(V16=0,0,W16-U16) -> 10 | AC22: Handicap | AD22: =IF(AB16=0,0,AC16-AA16) -> 7 | AI22: Handicap | AJ22: =IF(AH16=0,0,AI16-AG16) -> 5 | AO22: Handicap | AP22: =IF(AN16=0,0,AO16-AM16) -> 5 | AU22: Handicap | AV22: =IF(AT16=0,0,AU16-AS16) -> 6 | BA22: Handicap | BB22: =IF(AZ16=0,0,BA16-AY16) -> 2 | BG22: Handicap | BH22: =IF(BF16=0,0,BG16-BE16) -> 8 | BM22: Handicap | BN22: =IF(BL16=0,0,BM16-BK16) -> 5 | BS22: Handicap | BT22: =IF(BR16=0,0,BS16-BQ16) -> 7 | BY22: Handicap | BZ22: =IF(BX16=0,0,BY16-BW16) -> 4 | CE22: Handicap | CF22: =IF(CD16=0,0,CE16-CC16) -> 6 | CK22: Handicap | CL22: =IF(CJ16=0,0,CK16-CI16) -> 6
F24: =IF(D16<>0,IF(F16>4.5,"W",IF(F16=4.5,"T",IF(F16<4.5,"L"))),0) -> L | L24: =IF(J16<>0,IF(L16>4.5,"W",IF(L16=4.5,"T",IF(L16<4.5,"L"))),0) -> L | R24: =IF(P16<>0,IF(R16>4.5,"W",IF(R16=4.5,"T",IF(R16<4.5,"L"))),0) -> L | X24: =IF(V16<>0,IF(X16>4.5,"W",IF(X16=4.5,"T",IF(X16<4.5,"L"))),0) -> W | AD24: =IF(AB16<>0,IF(AD16>4.5,"W",IF(AD16=4.5,"T",IF(AD16<4.5,"L"))),0) -> W | AJ24: =IF(AH16<>0,IF(AJ16>4.5,"W",IF(AJ16=4.5,"T",IF(AJ16<4.5,"L"))),0) -> W | AP24: =IF(AN16<>0,IF(AP16>4.5,"W",IF(AP16=4.5,"T",IF(AP16<4.5,"L"))),0) -> W | AV24: =IF(AT16<>0,IF(AV16>4.5,"W",IF(AV16=4.5,"T",IF(AV16<4.5,"L"))),0) -> W | BB24: =IF(AZ16<>0,IF(BB16>4.5,"W",IF(BB16=4.5,"T",IF(BB16<4.5,"L"))),0) -> T | BH24: =IF(BF16<>0,IF(BH16>4.5,"W",IF(BH16=4.5,"T",IF(BH16<4.5,"L"))),0) -> L | BN24: =IF(BL16<>0,IF(BN16>4.5,"W",IF(BN16=4.5,"T",IF(BN16<4.5,"L"))),0) -> L | BT24: =IF(BR16<>0,IF(BT16>4.5,"W",IF(BT16=4.5,"T",IF(BT16<4.5,"L"))),0) -> W | BZ24: =IF(BX16<>0,IF(BZ16>4.5,"W",IF(BZ16=4.5,"T",IF(BZ16<4.5,"L"))),0) -> W | CF24: =IF(CD16<>0,IF(CF16>4.5,"W",IF(CF16=4.5,"T",IF(CF16<4.5,"L"))),0) -> W | CL24: =IF(CJ16<>0,IF(CL16>4.5,"W",IF(CL16=4.5,"T",IF(CL16<4.5,"L"))),0) -> W
B26: Summary | D26: =COUNT(D29:D43) -> 10
D27: Adj | F27: Adj | J27: Avg Score
C28: Points | D28: Points | E28: Matches | F28: Matches | I28: Hole # | J28: by Hole | K28: Best | L28: Worst
B29: Week #1 | C29: =F20 -> 0.5 | E29: 1 | F29: =E29 -> 1 | I29: 1 | J29: =IFERROR(AVERAGE(D7,P7,AB7,AN7,AZ7,BL7,BX7,CD7),0) -> 4.875 | K29: =IFERROR(MIN(D7,P7,AB7,AN7,AZ7,BL7,BX7,CD7),0) -> 4 | L29: =IFERROR(MAX(D7,P7,AB7,AN7,AZ7,BL7,BX7,CD7),0) -> 6
B30: Week #2 | C30: =L20 -> 4 | E30: =IF(J16>0,1,0) -> 1 | F30: 1 | I30: 2 | J30: =IFERROR(AVERAGE(D8,P8,AB8,AN8,AZ8,BL8,BX8,CD8),0) -> 4.875 | K30: =IFERROR(MIN(D8,P8,AB8,AN8,AZ8,BL8,BX8,CD8),0) -> 4 | L30: =IFERROR(MAX(D8,P8,AB8,AN8,AZ8,BL8,BX8,CD8),0) -> 6
B31: Week #3 | C31: =R20 -> 4 | E31: =IF(P16>0,1,0) -> 1 | F31: 1 | I31: 3 | J31: 3.625 | K31: 3 | L31: 4
B32: Week #4 | C32: =X20 -> 7 | D32: =C32 -> 7 | E32: =IF(V16>0,1,0) -> 1 | F32: 1 | I32: 4 | J32: 4.875 | K32: 4 | L32: 6
B33: Week #5 | C33: =AD20 -> 7.5 | D33: 7.5 | E33: =IF(AB16>0,1,0) -> 1 | F33: 1 | I33: 5 | J33: 5.75 | K33: 5 | L33: 7
B34: Week #6 | C34: =AJ20 -> 6 | D34: 6 | E34: =IF(AH16>0,1,0) -> 1 | F34: 1 | I34: 6 | J34: 3.5 | K34: 3 | L34: 4
B35: Week #7 | C35: =AP20 -> 6 | D35: 6 | E35: =IF(AN16>0,1,0) -> 1 | F35: 1 | I35: 7 | J35: 4.375 | K35: 4 | L35: 5
B36: Week #8 | C36: =AV20 -> 8 | D36: 8 | E36: =IF(AT16>0,1,0) -> 1 | F36: 1 | I36: 8 | J36: 4.5 | K36: 4 | L36: 5
B37: Week #9 | C37: =BB20 -> 5.5 | D37: 5.5 | E37: =IF(AZ16>0,1,0) -> 1 | F37: 1 | I37: 9 | J37: 5.375 | K37: 4 | L37: 7
B38: Week #10 | C38: =BH20 -> 3.5 | E38: =IF(BF16>0,1,0) -> 1 | F38: 1 | I38: Front | J38: =SUM(J29:J37) -> 41.75 | K38: =SUM(K29:K37) -> 35 | L38: 50
B39: Week #11 | C39: =BN20 -> 2.5 | E39: =IF(BL16>0,1,0) -> 1 | F39: 1
B40: Week #12 | C40: =BT20 -> 6 | D40: 6 | E40: =IF(BR16>0,1,0) -> 1 | F40: 1 | I40: 10 | J40: =IFERROR(AVERAGE(J7,V7,AH7,AT7,BF7,BR7,CJ7),0) -> 4.571428571 | K40: =IFERROR(MIN(J7,V7,AH7,AT7,BF7,BR7,CJ7),0) -> 4 | L40: =IFERROR(MAX(J7,V7,AH7,AT7,BF7,BR7,CJ7),0) -> 7
B41: Week #13 | C41: =BZ20 -> 5.5 | D41: 5.5 | E41: =IF(BX16>0,1,0) -> 1 | F41: 1 | I41: 11 | J41: =IFERROR(AVERAGE(J8,V8,AH8,AT8,BF8,BR8,CJ8),0) -> 4.857142857 | K41: =IFERROR(MIN(J8,V8,AH8,AT8,BF8,BR8,CJ8),0) -> 4 | L41: =IFERROR(MAX(J8,V8,AH8,AT8,BF8,BR8,CJ8),0) -> 6
B42: Week #14 | C42: =CF20 -> 7 | D42: 7 | E42: =IF(CD16>0,1,0) -> 1 | F42: 1 | I42: 12 | J42: 5.428571429 | K42: 5 | L42: 6
B43: Week #15 | C43: =CL20 -> 5 | D43: 5 | E43: =IF(CJ16>0,1,0) -> 1 | F43: 1 | I43: 13 | J43: 6.714285714 | K43: 5 | L43: 8
B44: Total | C44: =SUM(C29:C43) -> 78 | D44: =SUM(D29:D43) -> 63.5 | E44: =SUM(E29:E43) -> 15 | F44: =SUM(F29:F43) -> 15 | I44: 14 | J44: 3.714285714 | K44: 3 | L44: 4
I45: 15 | J45: 4.428571429 | K45: 4 | L45: 5
B46: Summary | I46: 16 | J46: 4.571428571 | K46: 4 | L46: 6
B47: Eagles | C47: =I57+I68+I79+I90+I101+I112+I123+I134+I145+I156+I167+I178+I189+I200+I211 -> 0 | I47: 17 | J47: 3.857142857 | K47: 3 | L47: 5
B48: Birdies | C48: 1 | I48: 18 | J48: 5.571428571 | K48: 5 | L48: 7
B49: Pars | C49: 55 | I49: Back | J49: =SUM(J40:J48) -> 43.71428571 | K49: =SUM(K40:K48) -> 37 | L49: 54
B50: bogeys | C50: 60
B51: Double bogeys | C51: 16
B52: Other | C52: 3
B53: Total | C53: =SUM(C47:C52) -> 135
B55: =D4 -> 2024-04-26 | C55: Par | D55: Score
B56: =B7 -> 1 | C56: 4 | D56: 5 | E56: =IF(D56<>0,IF((D56-C56)=-1,"Birdie",IF((D56-C56)=-2,"Eagle",IF((D56-C56)=0,"Par",IF((D56-C56)=1,"bogey",IF((D56-C56)=2,"Double bogey","Other")))))," ") -> bogey | H56: Count
B57: 2 | C57: 4 | D57: 6 | E57: Double bogey | H57: Eagle | I57: =COUNTIF(E56:E64,"Eagle") -> 0
B58: 3 | C58: 3 | D58: 4 | E58: bogey | H58: Birdie | I58: =COUNTIF(E56:E64,"Birdie") -> 0
B59: 4 | C59: 4 | D59: 6 | E59: Double bogey | H59: Par | I59: =COUNTIF(E56:E64,"Par") -> 1
B60: 5 | C60: 5 | D60: 7 | E60: Double bogey | H60: bogey | I60: =COUNTIF(E56:E64,"bogey") -> 4
B61: 6 | C61: 3 | D61: 4 | E61: bogey | H61: Double bogey | I61: =COUNTIF(E56:E64,"Double bogey") -> 4
B62: 7 | C62: 4 | D62: 4 | E62: Par | H62: Other | I62: =COUNTIF(E56:E64,"Other") -> 0
B63: 8 | C63: 4 | D63: 5 | E63: bogey
B64: 9 | C64: 5 | D64: 7 | E64: Double bogey
B66: =J4 -> 2024-05-03
B67: =H7 -> 10 | C67: 4 | D67: 4 | E67: =IF(D67<>0,IF((D67-C67)=-1,"Birdie",IF((D67-C67)=-2,"Eagle",IF((D67-C67)=0,"Par",IF((D67-C67)=1,"bogey",IF((D67-C67)=2,"Double bogey","Other")))))," ") -> Par | H67: Count
B68: 11 | C68: 4 | D68: 6 | E68: Double bogey | H68: Eagle | I68: =COUNTIF(E67:E75,"Eagle") -> 0
B69: 12 | C69: 4 | D69: 6 | E69: Double bogey | H69: Birdie | I69: =COUNTIF(E67:E75,"Birdie") -> 0
B70: 13 | C70: 5 | D70: 7 | E70: Double bogey | H70: Par | I70: =COUNTIF(E67:E75,"Par") -> 2
B71: 14 | C71: 3 | D71: 4 | E71: bogey | H71: bogey | I71: =COUNTIF(E67:E75,"bogey") -> 2
B72: 15 | C72: 4 | D72: 4 | E72: Par | H72: Double bogey | I72: =COUNTIF(E67:E75,"Double bogey") -> 5
B73: 16 | C73: 4 | D73: 6 | E73: Double bogey | H73: Other | I73: =COUNTIF(E67:E75,"Other") -> 0
B74: 17 | C74: 3 | D74: 4 | E74: bogey
B75: 18 | C75: 5 | D75: 7 | E75: Double bogey
B77: =P4 -> 2024-05-10
B78: =N7 -> 1 | C78: 4 | D78: 5 | E78: =IF(D78<>0,IF((D78-C78)=-1,"Birdie",IF((D78-C78)=-2,"Eagle",IF((D78-C78)=0,"Par",IF((D78-C78)=1,"bogey",IF((D78-C78)=2,"Double bogey","Other")))))," ") -> bogey | H78: Count
B79: 2 | C79: 4 | D79: 5 | E79: bogey | H79: Eagle | I79: =COUNTIF(E78:E86,"Eagle") -> 0
B80: 3 | C80: 3 | D80: 3 | E80: Par | H80: Birdie | I80: =COUNTIF(E78:E86,"Birdie") -> 0
B81: 4 | C81: 4 | D81: 4 | E81: Par | H81: Par | I81: =COUNTIF(E78:E86,"Par") -> 4
B82: 5 | C82: 5 | D82: 6 | E82: bogey | H82: bogey | I82: =COUNTIF(E78:E86,"bogey") -> 5
B83: 6 | C83: 3 | D83: 4 | E83: bogey | H83: Double bogey | I83: =COUNTIF(E78:E86,"Double bogey") -> 0
B84: 7 | C84: 4 | D84: 5 | E84: bogey | H84: Other | I84: =COUNTIF(E78:E86,"Other") -> 0
B85: 8 | C85: 4 | D85: 4 | E85: Par
B86: 9 | C86: 5 | D86: 5 | E86: Par
B88: =V4 -> 2024-05-17
B89: =T7 -> 10 | C89: 4 | D89: 7 | E89: =IF(D89<>0,IF((D89-C89)=-1,"Birdie",IF((D89-C89)=-2,"Eagle",IF((D89-C89)=0,"Par",IF((D89-C89)=1,"bogey",IF((D89-C89)=2,"Double bogey","Other")))))," ") -> Other | H89: Count
B90: 11 | C90: 4 | D90: 5 | E90: bogey | H90: Eagle | I90: =COUNTIF(E89:E97,"Eagle") -> 0
B91: 12 | C91: 4 | D91: 5 | E91: bogey | H91: Birdie | I91: =COUNTIF(E89:E97,"Birdie") -> 0
B92: 13 | C92: 5 | D92: 6 | E92: bogey | H92: Par | I92: =COUNTIF(E89:E97,"Par") -> 2
B93: 14 | C93: 3 | D93: 3 | E93: Par | H93: bogey | I93: =COUNTIF(E89:E97,"bogey") -> 5
B94: 15 | C94: 4 | D94: 5 | E94: bogey | H94: Double bogey | I94: =COUNTIF(E89:E97,"Double bogey") -> 1
B95: 16 | C95: 4 | D95: 5 | E95: bogey | H95: Other | I95: =COUNTIF(E89:E97,"Other") -> 1
B96: 17 | C96: 3 | D96: 5 | E96: Double bogey
B97: 18 | C97: 5 | D97: 5 | E97: Par
B99: =AB4 -> 2024-05-24
B100: =Z7 -> 1 | C100: 4 | D100: 5 | E100: =IF(D100<>0,IF((D100-C100)=-1,"Birdie",IF((D100-C100)=-2,"Eagle",IF((D100-C100)=0,"Par",IF((D100-C100)=1,"bogey",IF((D100-C100)=2,"Double bogey","Other")))))," ") -> bogey | H100: Count
B101: 2 | C101: 4 | D101: 5 | E101: bogey | H101: Eagle | I101: =COUNTIF(E100:E108,"Eagle") -> 0
B102: 3 | C102: 3 | D102: 4 | E102: bogey | H102: Birdie | I102: =COUNTIF(E100:E108,"Birdie") -> 0
B103: 4 | C103: 4 | D103: 5 | E103: bogey | H103: Par | I103: =COUNTIF(E100:E108,"Par") -> 2
B104: 5 | C104: 5 | D104: 6 | E104: bogey | H104: bogey | I104: =COUNTIF(E100:E108,"bogey") -> 7
B105: 6 | C105: 3 | D105: 3 | E105: Par | H105: Double bogey | I105: =COUNTIF(E100:E108,"Double bogey") -> 0
B106: 7 | C106: 4 | D106: 5 | E106: bogey | H106: Other | I106: =COUNTIF(E100:E108,"Other") -> 0
B107: 8 | C107: 4 | D107: 5 | E107: bogey
B108: 9 | C108: 5 | D108: 5 | E108: Par
B110: =AH4 -> 2024-05-31
B111: =AF7 -> 10 | C111: 4 | D111: 4 | E111: =IF(D111<>0,IF((D111-C111)=-1,"Birdie",IF((D111-C111)=-2,"Eagle",IF((D111-C111)=0,"Par",IF((D111-C111)=1,"bogey",IF((D111-C111)=2,"Double bogey","Other")))))," ") -> Par | H111: Count
B112: 11 | C112: 4 | D112: 5 | E112: bogey | H112: Eagle | I112: =COUNTIF(E111:E119,"Eagle") -> 0
B113: 12 | C113: 4 | D113: 6 | E113: Double bogey | H113: Birdie | I113: =COUNTIF(E111:E119,"Birdie") -> 0
B114: 13 | C114: 5 | D114: 6 | E114: bogey | H114: Par | I114: =COUNTIF(E111:E119,"Par") -> 5
B115: 14 | C115: 3 | D115: 4 | E115: bogey | H115: bogey | I115: =COUNTIF(E111:E119,"bogey") -> 3
B116: 15 | C116: 4 | D116: 4 | E116: Par | H116: Double bogey | I116: =COUNTIF(E111:E119,"Double bogey") -> 1
B117: 16 | C117: 4 | D117: 4 | E117: Par | H117: Other | I117: =COUNTIF(E111:E119,"Other") -> 0
B118: 17 | C118: 3 | D118: 3 | E118: Par
B119: 18 | C119: 5 | D119: 5 | E119: Par
B121: =AN4 -> 2024-06-07
B122: =AL7 -> 1 | C122: 4 | D122: 6 | E122: =IF(D122<>0,IF((D122-C122)=-1,"Birdie",IF((D122-C122)=-2,"Eagle",IF((D122-C122)=0,"Par",IF((D122-C122)=1,"bogey",IF((D122-C122)=2,"Double bogey","Other")))))," ") -> Double bogey | H122: Count
B123: 2 | C123: 4 | D123: 4 | E123: Par | H123: Eagle | I123: =COUNTIF(E122:E130,"Eagle") -> 0
B124: 3 | C124: 3 | D124: 3 | E124: Par | H124: Birdie | I124: =COUNTIF(E122:E130,"Birdie") -> 1
B125: 4 | C125: 4 | D125: 5 | E125: bogey | H125: Par | I125: =COUNTIF(E122:E130,"Par") -> 3
B126: 5 | C126: 5 | D126: 6 | E126: bogey | H126: bogey | I126: =COUNTIF(E122:E130,"bogey") -> 4
B127: 6 | C127: 3 | D127: 4 | E127: bogey | H127: Double bogey | I127: =COUNTIF(E122:E130,"Double bogey") -> 1
B128: 7 | C128: 4 | D128: 4 | E128: Par | H128: Other | I128: =COUNTIF(E122:E130,"Other") -> 0
B129: 8 | C129: 4 | D129: 5 | E129: bogey
B130: 9 | C130: 5 | D130: 4 | E130: Birdie
B132: =AT4 -> 2024-06-14
B133: =AR7 -> 10 | C133: 4 | D133: 4 | E133: =IF(D133<>0,IF((D133-C133)=-1,"Birdie",IF((D133-C133)=-2,"Eagle",IF((D133-C133)=0,"Par",IF((D133-C133)=1,"bogey",IF((D133-C133)=2,"Double bogey","Other")))))," ") -> Par | H133: Count
B134: 11 | C134: 4 | D134: 4 | E134: Par | H134: Eagle | I134: =COUNTIF(E133:E141,"Eagle") -> 0
B135: 12 | C135: 4 | D135: 5 | E135: bogey | H135: Birdie | I135: =COUNTIF(E133:E141,"Birdie") -> 0
B136: 13 | C136: 5 | D136: 7 | E136: Double bogey | H136: Par | I136: =COUNTIF(E133:E141,"Par") -> 4
B137: 14 | C137: 3 | D137: 4 | E137: bogey | H137: bogey | I137: =COUNTIF(E133:E141,"bogey") -> 4
B138: 15 | C138: 4 | D138: 5 | E138: bogey | H138: Double bogey | I138: =COUNTIF(E133:E141,"Double bogey") -> 1
B139: 16 | C139: 4 | D139: 4 | E139: Par | H139: Other | I139: =COUNTIF(E133:E141,"Other") -> 0
B140: 17 | C140: 3 | D140: 3 | E140: Par
B141: 18 | C141: 5 | D141: 6 | E141: bogey
B143: =AZ4 -> 2024-07-05
B144: =AX7 -> 1 | C144: 4 | D144: 4 | E144: =IF(D144<>0,IF((D144-C144)=-1,"Birdie",IF((D144-C144)=-2,"Eagle",IF((D144-C144)=0,"Par",IF((D144-C144)=1,"bogey",IF((D144-C144)=2,"Double bogey","Other")))))," ") -> Par | H144: Count
B145: 2 | C145: 4 | D145: 5 | E145: bogey | H145: Eagle | I145: =COUNTIF(E144:E152,"Eagle") -> 0
B146: 3 | C146: 3 | D146: 4 | E146: bogey | H146: Birdie | I146: =COUNTIF(E144:E152,"Birdie") -> 0
B147: 4 | C147: 4 | D147: 4 | E147: Par | H147: Par | I147: =COUNTIF(E144:E152,"Par") -> 7
B148: 5 | C148: 5 | D148: 5 | E148: Par | H148: bogey | I148: =COUNTIF(E144:E152,"bogey") -> 2
B149: 6 | C149: 3 | D149: 3 | E149: Par | H149: Double bogey | I149: =COUNTIF(E144:E152,"Double bogey") -> 0
B150: 7 | C150: 4 | D150: 4 | E150: Par | H150: Other | I150: =COUNTIF(E144:E152,"Other") -> 0
B151: 8 | C151: 4 | D151: 4 | E151: Par
B152: 9 | C152: 5 | D152: 5 | E152: Par
B154: =BF4 -> 2024-07-12
B155: =BD7 -> 10 | C155: 4 | D155: 4 | E155: =IF(D155<>0,IF((D155-C155)=-1,"Birdie",IF((D155-C155)=-2,"Eagle",IF((D155-C155)=0,"Par",IF((D155-C155)=1,"bogey",IF((D155-C155)=2,"Double bogey","Other")))))," ") -> Par | H155: Count
B156: 11 | C156: 4 | D156: 4 | E156: Par | H156: Eagle | I156: =COUNTIF(E155:E163,"Eagle") -> 0
B157: 12 | C157: 4 | D157: 5 | E157: bogey | H157: Birdie | I157: =COUNTIF(E155:E163,"Birdie") -> 0
B158: 13 | C158: 5 | D158: 8 | E158: Other | H158: Par | I158: =COUNTIF(E155:E163,"Par") -> 4
B159: 14 | C159: 3 | D159: 3 | E159: Par | H159: bogey | I159: =COUNTIF(E155:E163,"bogey") -> 3
B160: 15 | C160: 4 | D160: 4 | E160: Par | H160: Double bogey | I160: =COUNTIF(E155:E163,"Double bogey") -> 1
B161: 16 | C161: 4 | D161: 5 | E161: bogey | H161: Other | I161: =COUNTIF(E155:E163,"Other") -> 1
B162: 17 | C162: 3 | D162: 5 | E162: Double bogey
B163: 18 | C163: 5 | D163: 6 | E163: bogey
B165: =BL4 -> 2024-07-19
B166: =BJ7 -> 1 | C166: 4 | D166: 4 | E166: =IF(D166<>0,IF((D166-C166)=-1,"Birdie",IF((D166-C166)=-2,"Eagle",IF((D166-C166)=0,"Par",IF((D166-C166)=1,"bogey",IF((D166-C166)=2,"Double bogey","Other")))))," ") -> Par | H166: Count
B167: 2 | C167: 4 | D167: 5 | E167: bogey | H167: Eagle | I167: =COUNTIF(E166:E174,"Eagle") -> 0
B168: 3 | C168: 3 | D168: 4 | E168: bogey | H168: Birdie | I168: =COUNTIF(E166:E174,"Birdie") -> 0
B169: 4 | C169: 4 | D169: 5 | E169: bogey | H169: Par | I169: =COUNTIF(E166:E174,"Par") -> 4
B170: 5 | C170: 5 | D170: 6 | E170: bogey | H170: bogey | I170: =COUNTIF(E166:E174,"bogey") -> 5
B171: 6 | C171: 3 | D171: 3 | E171: Par | H171: Double bogey | I171: =COUNTIF(E166:E174,"Double bogey") -> 0
B172: 7 | C172: 4 | D172: 5 | E172: bogey | H172: Other | I172: =COUNTIF(E166:E174,"Other") -> 0
B173: 8 | C173: 4 | D173: 4 | E173: Par
B174: 9 | C174: 5 | D174: 5 | E174: Par
B176: =BR4 -> 2024-07-26
B177: =BP7 -> 10 | C177: 4 | D177: 5 | E177: =IF(D177<>0,IF((D177-C177)=-1,"Birdie",IF((D177-C177)=-2,"Eagle",IF((D177-C177)=0,"Par",IF((D177-C177)=1,"bogey",IF((D177-C177)=2,"Double bogey","Other")))))," ") -> bogey | H177: Count
B178: 11 | C178: 4 | D178: 5 | E178: bogey | H178: Eagle | I178: =COUNTIF(E177:E185,"Eagle") -> 0
B179: 12 | C179: 4 | D179: 6 | E179: Double bogey | H179: Birdie | I179: =COUNTIF(E177:E185,"Birdie") -> 0
B180: 13 | C180: 5 | D180: 5 | E180: Par | H180: Par | I180: =COUNTIF(E177:E185,"Par") -> 3
B181: 14 | C181: 3 | D181: 4 | E181: bogey | H181: bogey | I181: =COUNTIF(E177:E185,"bogey") -> 5
B182: 15 | C182: 4 | D182: 5 | E182: bogey | H182: Double bogey | I182: =COUNTIF(E177:E185,"Double bogey") -> 1
B183: 16 | C183: 4 | D183: 4 | E183: Par | H183: Other | I183: =COUNTIF(E177:E185,"Other") -> 0
B184: 17 | C184: 3 | D184: 4 | E184: bogey
B185: 18 | C185: 5 | D185: 5 | E185: Par
B187: =BX4 -> 2024-08-02
B188: =BV7 -> 1 | C188: 4 | D188: 4 | E188: =IF(D188<>0,IF((D188-C188)=-1,"Birdie",IF((D188-C188)=-2,"Eagle",IF((D188-C188)=0,"Par",IF((D188-C188)=1,"bogey",IF((D188-C188)=2,"Double bogey","Other")))))," ") -> Par | H188: Count
B189: 2 | C189: 4 | D189: 5 | E189: bogey | H189: Eagle | I189: =COUNTIF(E188:E196,"Eagle") -> 0
B190: 3 | C190: 3 | D190: 3 | E190: Par | H190: Birdie | I190: =COUNTIF(E188:E196,"Birdie") -> 0
B191: 4 | C191: 4 | D191: 5 | E191: bogey | H191: Par | I191: =COUNTIF(E188:E196,"Par") -> 5
B192: 5 | C192: 5 | D192: 5 | E192: Par | H192: bogey | I192: =COUNTIF(E188:E196,"bogey") -> 4
B193: 6 | C193: 3 | D193: 4 | E193: bogey | H193: Double bogey | I193: =COUNTIF(E188:E196,"Double bogey") -> 0
B194: 7 | C194: 4 | D194: 4 | E194: Par | H194: Other | I194: =COUNTIF(E188:E196,"Other") -> 0
B195: 8 | C195: 4 | D195: 4 | E195: Par
B196: 9 | C196: 5 | D196: 6 | E196: bogey
B198: =CD4 -> 2024-08-16
B199: =CB7 -> 1 | C199: 4 | D199: 6 | E199: =IF(D199<>0,IF((D199-C199)=-1,"Birdie",IF((D199-C199)=-2,"Eagle",IF((D199-C199)=0,"Par",IF((D199-C199)=1,"bogey",IF((D199-C199)=2,"Double bogey","Other")))))," ") -> Double bogey | H199: Count
B200: 2 | C200: 4 | D200: 4 | E200: Par | H200: Eagle | I200: =COUNTIF(E199:E207,"Eagle") -> 0
B201: 3 | C201: 3 | D201: 4 | E201: bogey | H201: Birdie | I201: =COUNTIF(E199:E207,"Birdie") -> 0
B202: 4 | C202: 4 | D202: 5 | E202: bogey | H202: Par | I202: =COUNTIF(E199:E207,"Par") -> 4
B203: 5 | C203: 5 | D203: 5 | E203: Par | H203: bogey | I203: =COUNTIF(E199:E207,"bogey") -> 4
B204: 6 | C204: 3 | D204: 3 | E204: Par | H204: Double bogey | I204: =COUNTIF(E199:E207,"Double bogey") -> 1
B205: 7 | C205: 4 | D205: 4 | E205: Par | H205: Other | I205: =COUNTIF(E199:E207,"Other") -> 0
B206: 8 | C206: 4 | D206: 5 | E206: bogey
B207: 9 | C207: 5 | D207: 6 | E207: bogey
B209: =CJ4 -> 2024-08-23
B210: =CH7 -> 10 | C210: 4 | D210: 4 | E210: =IF(D210<>0,IF((D210-C210)=-1,"Birdie",IF((D210-C210)=-2,"Eagle",IF((D210-C210)=0,"Par",IF((D210-C210)=1,"bogey",IF((D210-C210)=2,"Double bogey","Other")))))," ") -> Par | H210: Count
B211: 11 | C211: 4 | D211: 5 | E211: bogey | H211: Eagle | I211: =COUNTIF(E210:E218,"Eagle") -> 0
B212: 12 | C212: 4 | D212: 5 | E212: bogey | H212: Birdie | I212: =COUNTIF(E210:E218,"Birdie") -> 0
B213: 13 | C213: 5 | D213: 8 | E213: Other | H213: Par | I213: =COUNTIF(E210:E218,"Par") -> 5
B214: 14 | C214: 3 | D214: 4 | E214: bogey | H214: bogey | I214: =COUNTIF(E210:E218,"bogey") -> 3
B215: 15 | C215: 4 | D215: 4 | E215: Par | H215: Double bogey | I215: =COUNTIF(E210:E218,"Double bogey") -> 0
B216: 16 | C216: 4 | D216: 4 | E216: Par | H216: Other | I216: =COUNTIF(E210:E218,"Other") -> 1
B217: 17 | C217: 3 | D217: 3 | E217: Par
B218: 18 | C218: 5 | D218: 5 | E218: Par

Sheet McLaughlin
A1: Brian McLaughlin
C4: Date: | D4: =VLOOKUP(C5,Week,2) -> 2024-04-26 | I4: Date: | J4: =VLOOKUP(I5,Week,2) -> 2024-05-03 | O4: Date: | P4: =VLOOKUP(O5,Week,2) -> 2024-05-10 | U4: Date: | V4: =VLOOKUP(U5,Week,2) -> 2024-05-17 | AA4: Date: | AB4: =VLOOKUP(AA5,Week,2) -> 2024-05-24 | AG4: Date: | AH4: =VLOOKUP(AG5,Week,2) -> 2024-05-31 | AM4: Date: | AN4: =VLOOKUP(AM5,Week,2) -> 2024-06-07 | AS4: Date: | AT4: =VLOOKUP(AS5,Week,2) -> 2024-06-14 | AY4: Date: | AZ4: =VLOOKUP(AY5,Week,2) -> 2024-07-05 | BE4: Date: | BF4: =VLOOKUP(BE5,Week,2) -> 2024-07-12 | BK4: Date: | BL4: =VLOOKUP(BK5,Week,2) -> 2024-07-19 | BQ4: Date: | BR4: =VLOOKUP(BQ5,Week,2) -> 2024-07-26 | BW4: Date: | BX4: =VLOOKUP(BW5,Week,2) -> 2024-08-02 | CC4: Date: | CD4: =VLOOKUP(CC5,Week,2) -> 2024-08-16 | CI4: Date: | CJ4: =VLOOKUP(CI5,Week,2) -> 2024-08-23
B5: Week | C5: 1 | H5: Week | I5: 2 | N5: Week | O5: 3 | T5: Week | U5: 4 | Z5: Week | AA5: 5 | AF5: Week | AG5: 6 | AL5: Week | AM5: 7 | AR5: Week | AS5: 8 | AX5: Week | AY5: 9 | BD5: Week | BE5: 10 | BJ5: Week | BK5: 11 | BP5: Week | BQ5: 12 | BV5: Week | BW5: 13 | CB5: Week | CC5: 14 | CH5: Week | CI5: 15
B6: Hole # | C6: Par | D6: Score | E6: Net | F6: Win Hole | H6: Hole # | I6: Par | J6: Score | K6: Net | L6: Win Hole | N6: Hole # | O6: Par | P6: Score | Q6: Net | R6: Win Hole | T6: Hole # | U6: Par | V6: Score | W6: Net | X6: Win Hole | Z6: Hole # | AA6: Par | AB6: Score | AC6: Net | AD6: Win Hole | AF6: Hole # | AG6: Par | AH6: Score | AI6: Net | AJ6: Win Hole | AL6: Hole # | AM6: Par | AN6: Score | AO6: Net | AP6: Win Hole | AR6: Hole # | AS6: Par | AT6: Score | AU6: Net | AV6: Win Hole | AX6: Hole # | AY6: Par | AZ6: Score | BA6: Net | BB6: Win Hole | BD6: Hole # | BE6: Par | BF6: Score | BG6: Net | BH6: Win Hole | BJ6: Hole # | BK6: Par | BL6: Score | BM6: Net | BN6: Win Hole | BP6: Hole # | BQ6: Par | BR6: Score | BS6: Net | BT6: Win Hole | BV6: Hole # | BW6: Par | BX6: Score | BY6: Net | BZ6: Win Hole | CB6: Hole # | CC6: Par | CD6: Score | CE6: Net | CF6: Win Hole | CH6: Hole # | CI6: Par | CJ6: Score | CK6: Net | CL6: Win Hole
B7: =VLOOKUP(C5,Week,6) -> 1 | C7: =VLOOKUP(B7,Holes,2) -> 4 | D7: 6 | E7: =IF((D7-C7)>3,C7+3,D7) -> 6 | F7: 1 | H7: =VLOOKUP(I5,Week,6) -> 10 | I7: =VLOOKUP(H7,Holes,2) -> 4 | J7: 6 | K7: =IF((J7-I7)>3,I7+3,J7) -> 6 | L7: 0.5 | N7: =VLOOKUP(O5,Week,6) -> 1 | O7: =VLOOKUP(N7,Holes,2) -> 4 | P7: 7 | Q7: =IF((P7-O7)>3,O7+3,P7) -> 7 | R7: 0 | T7: =VLOOKUP(U5,Week,6) -> 10 | U7: =VLOOKUP(T7,Holes,2) -> 4 | W7: =IF((V7-U7)>3,U7+3,V7) -> 0 | Z7: =VLOOKUP(AA5,Week,6) -> 1 | AA7: =VLOOKUP(Z7,Holes,2) -> 4 | AB7: 5 | AC7: =IF((AB7-AA7)>3,AA7+3,AB7) -> 5 | AD7: 0.5 | AF7: =VLOOKUP(AG5,Week,6) -> 10 | AG7: =VLOOKUP(AF7,Holes,2) -> 4 | AH7: 6 | AI7: =IF((AH7-AG7)>3,AG7+3,AH7) -> 6 | AJ7: 0.5 | AL7: =VLOOKUP(AM5,Week,6) -> 1 | AM7: =VLOOKUP(AL7,Holes,2) -> 4 | AN7: 5 | AO7: =IF((AN7-AM7)>3,AM7+3,AN7) -> 5 | AP7: 1 | AR7: =VLOOKUP(AS5,Week,6) -> 10 | AS7: =VLOOKUP(AR7,Holes,2) -> 4 | AT7: 5 | AU7: =IF((AT7-AS7)>3,AS7+3,AT7) -> 5 | AV7: 1 | AX7: =VLOOKUP(AY5,Week,6) -> 1 | AY7: =VLOOKUP(AX7,Holes,2) -> 4 | AZ7: 5 | BA7: =IF((AZ7-AY7)>3,AY7+3,AZ7) -> 5 | BB7: 1 | BD7: =VLOOKUP(BE5,Week,6) -> 10 | BE7: =VLOOKUP(BD7,Holes,2) -> 4 | BF7: 5 | BG7: =IF((BF7-BE7)>3,BE7+3,BF7) -> 5 | BH7: 0.5 | BJ7: =VLOOKUP(BK5,Week,6) -> 1 | BK7: =VLOOKUP(BJ7,Holes,2) -> 4 | BL7: 8 | BM7: =IF((BL7-BK7)>3,BK7+3,BL7) -> 7 | BN7: 0 | BP7: =VLOOKUP(BQ5,Week,6) -> 10 | BQ7: =VLOOKUP(BP7,Holes,2) -> 4 | BS7: =IF((BR7-BQ7)>3,BQ7+3,BR7) -> 0 | BV7: =VLOOKUP(BW5,Week,6) -> 1 | BW7: =VLOOKUP(BV7,Holes,2) -> 4 | BY7: =IF((BX7-BW7)>3,BW7+3,BX7) -> 0 | CB7: =VLOOKUP(CC5,Week,6) -> 1 | CC7: =VLOOKUP(CB7,Holes,2) -> 4 | CD7: 5 | CE7: =IF((CD7-CC7)>3,CC7+3,CD7) -> 5 | CF7: 1 | CH7: =VLOOKUP(CI5,Week,6) -> 10 | CI7: =VLOOKUP(CH7,Holes,2) -> 4 | CJ7: 6 | CK7: =IF((CJ7-CI7)>3,CI7+3,CJ7) -> 6 | CL7: 0
B8: =+B7+1 -> 2 | C8: 4 | D8: 8 | E8: 7 | F8: 0 | H8: =+H7+1 -> 11 | I8: 4 | J8: 7 | K8: 7 | L8: 0.5 | N8: =+N7+1 -> 2 | O8: 4 | P8: 6 | Q8: 6 | R8: 1 | T8: =+T7+1 -> 11 | U8: 4 | W8: 0 | Z8: =+Z7+1 -> 2 | AA8: 4 | AB8: 5 | AC8: 5 | AD8: 1 | AF8: =+AF7+1 -> 11 | AG8: 4 | AH8: 6 | AI8: 6 | AJ8: 0.5 | AL8: =+AL7+1 -> 2 | AM8: 4 | AN8: 7 | AO8: 7 | AP8: 0 | AR8: =+AR7+1 -> 11 | AS8: 4 | AT8: 5 | AU8: 5 | AV8: 1 | AX8: =+AX7+1 -> 2 | AY8: 4 | AZ8: 7 | BA8: 7 | BB8: 0 | BD8: =+BD7+1 -> 11 | BE8: 4 | BF8: 5 | BG8: 5 | BH8: 1 | BJ8: =+BJ7+1 -> 2 | BK8: 4 | BL8: 6 | BM8: 6 | BN8: 0 | BP8: =+BP7+1 -> 11 | BQ8: 4 | BS8: 0 | BV8: =+BV7+1 -> 2 | BW8: 4 | BY8: 0 | CB8: =+CB7+1 -> 2 | CC8: 4 | CD8: 5 | CE8: 5 | CF8: 1 | CH8: =+CH7+1 -> 11 | CI8: 4 | CJ8: 5 | CK8: 5 | CL8: 0
B9: 3 | C9: 3 | D9: 4 | E9: 4 | F9: 0.5 | H9: 12 | I9: 4 | J9: 5 | K9: 5 | L9: 0.5 | N9: 3 | O9: 3 | P9: 4 | Q9: 4 | R9: 1 | T9: 12 | U9: 4 | W9: 0 | Z9: 3 | AA9: 3 | AB9: 4 | AC9: 4 | AD9: 1 | AF9: 12 | AG9: 4 | AH9: 6 | AI9: 6 | AJ9: 0.5 | AL9: 3 | AM9: 3 | AN9: 5 | AO9: 5 | AP9: 0 | AR9: 12 | AS9: 4 | AT9: 6 | AU9: 6 | AV9: 0.5 | AX9: 3 | AY9: 3 | AZ9: 4 | BA9: 4 | BB9: 1 | BD9: 12 | BE9: 4 | BF9: 4 | BG9: 4 | BH9: 1 | BJ9: 3 | BK9: 3 | BL9: 4 | BM9: 4 | BN9: 1 | BP9: 12 | BQ9: 4 | BS9: 0 | BV9: 3 | BW9: 3 | BY9: 0 | CB9: 3 | CC9: 3 | CD9: 4 | CE9: 4 | CF9: 0.5 | CH9: 12 | CI9: 4 | CJ9: 6 | CK9: 6 | CL9: 0.5
B10: 4 | C10: 4 | D10: 6 | E10: 6 | F10: 0 | H10: 13 | I10: 5 | J10: 6 | K10: 6 | L10: 1 | N10: 4 | O10: 4 | P10: 5 | Q10: 5 | R10: 0 | T10: 13 | U10: 5 | W10: 0 | Z10: 4 | AA10: 4 | AB10: 8 | AC10: 7 | AD10: 0 | AF10: 13 | AG10: 5 | AH10: 9 | AI10: 8 | AJ10: 0 | AL10: 4 | AM10: 4 | AN10: 6 | AO10: 6 | AP10: 0.5 | AR10: 13 | AS10: 5 | AT10: 6 | AU10: 6 | AV10: 1 | AX10: 4 | AY10: 4 | AZ10: 6 | BA10: 6 | BB10: 1 | BD10: 13 | BE10: 5 | BF10: 8 | BG10: 8 | BH10: 0 | BJ10: 4 | BK10: 4 | BL10: 6 | BM10: 6 | BN10: 0.5 | BP10: 13 | BQ10: 5 | BS10: 0 | BV10: 4 | BW10: 4 | BY10: 0 | CB10: 4 | CC10: 4 | CD10: 5 | CE10: 5 | CF10: 1 | CH10: 13 | CI10: 5 | CJ10: 7 | CK10: 7 | CL10: 0
B11: 5 | C11: 5 | D11: 6 | E11: 6 | F11: 1 | H11: 14 | I11: 3 | J11: 4 | K11: 4 | L11: 1 | N11: 5 | O11: 5 | P11: 8 | Q11: 8 | R11: 0 | T11: 14 | U11: 3 | W11: 0 | Z11: 5 | AA11: 5 | AB11: 7 | AC11: 7 | AD11: 0 | AF11: 14 | AG11: 3 | AH11: 5 | AI11: 5 | AJ11: 0 | AL11: 5 | AM11: 5 | AN11: 6 | AO11: 6 | AP11: 1 | AR11: 14 | AS11: 3 | AT11: 5 | AU11: 5 | AV11: 0.5 | AX11: 5 | AY11: 5 | AZ11: 6 | BA11: 6 | BB11: 1 | BD11: 14 | BE11: 3 | BF11: 4 | BG11: 4 | BH11: 0.5 | BJ11: 5 | BK11: 5 | BL11: 6 | BM11: 6 | BN11: 1 | BP11: 14 | BQ11: 3 | BS11: 0 | BV11: 5 | BW11: 5 | BY11: 0 | CB11: 5 | CC11: 5 | CD11: 7 | CE11: 7 | CF11: 0 | CH11: 14 | CI11: 3 | CJ11: 5 | CK11: 5 | CL11: 0
B12: 6 | C12: 3 | D12: 4 | E12: 4 | F12: 0.5 | H12: 15 | I12: 4 | J12: 6 | K12: 6 | L12: 1 | N12: 6 | O12: 3 | P12: 5 | Q12: 5 | R12: 0 | T12: 15 | U12: 4 | W12: 0 | Z12: 6 | AA12: 3 | AB12: 5 | AC12: 5 | AD12: 0 | AF12: 15 | AG12: 4 | AH12: 7 | AI12: 7 | AJ12: 0 | AL12: 6 | AM12: 3 | AN12: 4 | AO12: 4 | AP12: 1 | AR12: 15 | AS12: 4 | AT12: 6 | AU12: 6 | AV12: 0.5 | AX12: 6 | AY12: 3 | AZ12: 4 | BA12: 4 | BB12: 0 | BD12: 15 | BE12: 4 | BF12: 5 | BG12: 5 | BH12: 0.5 | BJ12: 6 | BK12: 3 | BL12: 6 | BM12: 6 | BN12: 0 | BP12: 15 | BQ12: 4 | BS12: 0 | BV12: 6 | BW12: 3 | BY12: 0 | CB12: 6 | CC12: 3 | CD12: 4 | CE12: 4 | CF12: 0.5 | CH12: 15 | CI12: 4 | CJ12: 5 | CK12: 5 | CL12: 1
B13: 7 | C13: 4 | D13: 6 | E13: 6 | F13: 0 | H13: 16 | I13: 4 | J13: 6 | K13: 6 | L13: 0 | N13: 7 | O13: 4 | P13: 5 | Q13: 5 | R13: 0.5 | T13: 16 | U13: 4 | W13: 0 | Z13: 7 | AA13: 4 | AB13: 7 | AC13: 7 | AD13: 0 | AF13: 16 | AG13: 4 | AH13: 6 | AI13: 6 | AJ13: 0.5 | AL13: 7 | AM13: 4 | AN13: 5 | AO13: 5 | AP13: 0.5 | AR13: 16 | AS13: 4 | AT13: 6 | AU13: 6 | AV13: 1 | AX13: 7 | AY13: 4 | AZ13: 5 | BA13: 5 | BB13: 0 | BD13: 16 | BE13: 4 | BF13: 5 | BG13: 5 | BH13: 1 | BJ13: 7 | BK13: 4 | BL13: 6 | BM13: 6 | BN13: 0 | BP13: 16 | BQ13: 4 | BS13: 0 | BV13: 7 | BW13: 4 | BY13: 0 | CB13: 7 | CC13: 4 | CD13: 4 | CE13: 4 | CF13: 1 | CH13: 16 | CI13: 4 | CJ13: 4 | CK13: 4 | CL13: 1
B14: 8 | C14: 4 | D14: 6 | E14: 6 | F14: 1 | H14: 17 | I14: 3 | J14: 4 | K14: 4 | L14: 0.5 | N14: 8 | O14: 4 | P14: 7 | Q14: 7 | R14: 0.5 | T14: 17 | U14: 3 | W14: 0 | Z14: 8 | AA14: 4 | AB14: 9 | AC14: 7 | AD14: 0 | AF14: 17 | AG14: 3 | AH14: 4 | AI14: 4 | AJ14: 0 | AL14: 8 | AM14: 4 | AN14: 7 | AO14: 7 | AP14: 0 | AR14: 17 | AS14: 3 | AT14: 5 | AU14: 5 | AV14: 0.5 | AX14: 8 | AY14: 4 | AZ14: 5 | BA14: 5 | BB14: 0 | BD14: 17 | BE14: 3 | BF14: 4 | BG14: 4 | BH14: 1 | BJ14: 8 | BK14: 4 | BL14: 6 | BM14: 6 | BN14: 0 | BP14: 17 | BQ14: 3 | BS14: 0 | BV14: 8 | BW14: 4 | BY14: 0 | CB14: 8 | CC14: 4 | CD14: 6 | CE14: 6 | CF14: 0.5 | CH14: 17 | CI14: 3 | CJ14: 6 | CK14: 6 | CL14: 0
B15: 9 | C15: 5 | D15: 8 | E15: 8 | F15: 0 | H15: 18 | I15: 5 | J15: 7 | K15: 7 | L15: 1 | N15: 9 | O15: 5 | P15: 7 | Q15: 7 | R15: 0 | T15: 18 | U15: 5 | W15: 0 | Z15: 9 | AA15: 5 | AB15: 6 | AC15: 6 | AD15: 0.5 | AF15: 18 | AG15: 5 | AH15: 9 | AI15: 8 | AJ15: 0 | AL15: 9 | AM15: 5 | AN15: 6 | AO15: 6 | AP15: 0 | AR15: 18 | AS15: 5 | AT15: 8 | AU15: 8 | AV15: 0.5 | AX15: 9 | AY15: 5 | AZ15: 6 | BA15: 6 | BB15: 1 | BD15: 18 | BE15: 5 | BF15: 7 | BG15: 7 | BH15: 0 | BJ15: 9 | BK15: 5 | BL15: 7 | BM15: 7 | BN15: 0 | BP15: 18 | BQ15: 5 | BS15: 0 | BV15: 9 | BW15: 5 | BY15: 0 | CB15: 9 | CC15: 5 | CD15: 7 | CE15: 7 | CF15: 1 | CH15: 18 | CI15: 5 | CJ15: 6 | CK15: 6 | CL15: 1
B16: Total | C16: =SUM(C7:C15) -> 36 | D16: =SUM(D7:D15) -> 54 | E16: =SUM(E7:E15) -> 53 | F16: =SUM(F7:F15) -> 4 | H16: Total | I16: =SUM(I7:I15) -> 36 | J16: =SUM(J7:J15) -> 51 | K16: =SUM(K7:K15) -> 51 | L16: =SUM(L7:L15) -> 6 | N16: Total | O16: =SUM(O7:O15) -> 36 | P16: =SUM(P7:P15) -> 54 | Q16: =SUM(Q7:Q15) -> 54 | R16: =SUM(R7:R15) -> 3 | T16: Total | U16: =SUM(U7:U15) -> 36 | V16: =SUM(V7:V15) -> 0 | W16: =SUM(W7:W15) -> 0 | X16: =SUM(X7:X15) -> 0 | Z16: Total | AA16: =SUM(AA7:AA15) -> 36 | AB16: =SUM(AB7:AB15) -> 56 | AC16: =SUM(AC7:AC15) -> 53 | AD16: =SUM(AD7:AD15) -> 3 | AF16: Total | AG16: =SUM(AG7:AG15) -> 36 | AH16: =SUM(AH7:AH15) -> 58 | AI16: =SUM(AI7:AI15) -> 56 | AJ16: =SUM(AJ7:AJ15) -> 2 | AL16: Total | AM16: =SUM(AM7:AM15) -> 36 | AN16: =SUM(AN7:AN15) -> 51 | AO16: =SUM(AO7:AO15) -> 51 | AP16: =SUM(AP7:AP15) -> 4 | AR16: Total | AS16: =SUM(AS7:AS15) -> 36 | AT16: =SUM(AT7:AT15) -> 52 | AU16: =SUM(AU7:AU15) -> 52 | AV16: =SUM(AV7:AV15) -> 6.5 | AX16: Total | AY16: =SUM(AY7:AY15) -> 36 | AZ16: =SUM(AZ7:AZ15) -> 48 | BA16: =SUM(BA7:BA15) -> 48 | BB16: =SUM(BB7:BB15) -> 5 | BD16: Total | BE16: =SUM(BE7:BE15) -> 36 | BF16: =SUM(BF7:BF15) -> 47 | BG16: =SUM(BG7:BG15) -> 47 | BH16: =SUM(BH7:BH15) -> 5.5 | BJ16: Total | BK16: =SUM(BK7:BK15) -> 36 | BL16: =SUM(BL7:BL15) -> 55 | BM16: =SUM(BM7:BM15) -> 54 | BN16: =SUM(BN7:BN15) -> 2.5 | BP16: Total | BQ16: =SUM(BQ7:BQ15) -> 36 | BR16: =SUM(BR7:BR15) -> 0 | BS16: =SUM(BS7:BS15) -> 0 | BT16: =SUM(BT7:BT15) -> 0 | BV16: Total | BW16: =SUM(BW7:BW15) -> 36 | BX16: =SUM(BX7:BX15) -> 0 | BY16: =SUM(BY7:BY15) -> 0 | BZ16: =SUM(BZ7:BZ15) -> 0 | CB16: Total | CC16: =SUM(CC7:CC15) -> 36 | CD16: =SUM(CD7:CD15) -> 47 | CE16: =SUM(CE7:CE15) -> 47 | CF16: =SUM(CF7:CF15) -> 6.5 | CH16: Total | CI16: =SUM(CI7:CI15) -> 36 | CJ16: =SUM(CJ7:CJ15) -> 50 | CK16: =SUM(CK7:CK15) -> 50 | CL16: =SUM(CL7:CL15) -> 3.5
E18: Low Net | F18: 1 | K18: Low Net | L18: 1 | Q18: Low Net | R18: 0 | W18: Low Net | AC18: Low Net | AD18: 0 | AI18: Low Net | AJ18: 0 | AO18: Low Net | AP18: 0 | AU18: Low Net | AV18: 1 | BA18: Low Net | BB18: 1 | BG18: Low Net | BH18: 1 | BM18: Low Net | BN18: 0 | BS18: Low Net | BY18: Low Net | CE18: Low Net | CF18: 1 | CK18: Low Net | CL18: 0.5
E20: Total Points | F20: =SUM(F16:F19) -> 5 | K20: Total Points | L20: =SUM(L16:L19) -> 7 | Q20: Total Points | R20: =SUM(R16:R19) -> 3 | W20: Total Points | X20: =SUM(X16:X19) -> 0 | AC20: Total Points | AD20: =SUM(AD16:AD19) -> 3 | AI20: Total Points | AJ20: =SUM(AJ16:AJ19) -> 2 | AO20: Total Points | AP20: =SUM(AP16:AP19) -> 4 | AU20: Total Points | AV20: =SUM(AV16:AV19) -> 7.5 | BA20: Total Points | BB20: =SUM(BB16:BB19) -> 6 | BG20: Total Points | BH20: =SUM(BH16:BH19) -> 6.5 | BM20: Total Points | BN20: =SUM(BN16:BN19) -> 2.5 | BS20: Total Points | BT20: =SUM(BT16:BT19) -> 0 | BY20: Total Points | BZ20: =SUM(BZ16:BZ19) -> 0 | CE20: Total Points | CF20: =SUM(CF16:CF19) -> 7.5 | CK20: Total Points | CL20: =SUM(CL16:CL19) -> 4
E22: Handicap | F22: =IF(D16=0,0,E16-C16) -> 17 | K22: Handicap | L22: =IF(J16=0,0,K16-I16) -> 15 | Q22: Handicap | R22: =IF(P16=0,0,Q16-O16) -> 18 | W22: Handicap | X22: =IF(V16=0,0,W16-U16) -> 0 | AC22: Handicap | AD22: =IF(AB16=0,0,AC16-AA16) -> 17 | AI22: Handicap | AJ22: =IF(AH16=0,0,AI16-AG16) -> 20 | AO22: Handicap | AP22: =IF(AN16=0,0,AO16-AM16) -> 15 | AU22: Handicap | AV22: =IF(AT16=0,0,AU16-AS16) -> 16 | BA22: Handicap | BB22: =IF(AZ16=0,0,BA16-AY16) -> 12 | BG22: Handicap | BH22: =IF(BF16=0,0,BG16-BE16) -> 11 | BM22: Handicap | BN22: =IF(BL16=0,0,BM16-BK16) -> 18 | BS22: Handicap | BT22: =IF(BR16=0,0,BS16-BQ16) -> 0 | BY22: Handicap | BZ22: =IF(BX16=0,0,BY16-BW16) -> 0 | CE22: Handicap | CF22: =IF(CD16=0,0,CE16-CC16) -> 11 | CK22: Handicap | CL22: =IF(CJ16=0,0,CK16-CI16) -> 14
F24: =IF(D16<>0,IF(F16>4.5,"W",IF(F16=4.5,"T",IF(F16<4.5,"L"))),0) -> L | L24: =IF(J16<>0,IF(L16>4.5,"W",IF(L16=4.5,"T",IF(L16<4.5,"L"))),0) -> W | R24: =IF(P16<>0,IF(R16>4.5,"W",IF(R16=4.5,"T",IF(R16<4.5,"L"))),0) -> L | X24: =IF(V16<>0,IF(X16>4.5,"W",IF(X16=4.5,"T",IF(X16<4.5,"L"))),0) -> 0 | AD24: =IF(AB16<>0,IF(AD16>4.5,"W",IF(AD16=4.5,"T",IF(AD16<4.5,"L"))),0) -> L | AJ24: =IF(AH16<>0,IF(AJ16>4.5,"W",IF(AJ16=4.5,"T",IF(AJ16<4.5,"L"))),0) -> L | AP24: =IF(AN16<>0,IF(AP16>4.5,"W",IF(AP16=4.5,"T",IF(AP16<4.5,"L"))),0) -> L | AV24: =IF(AT16<>0,IF(AV16>4.5,"W",IF(AV16=4.5,"T",IF(AV16<4.5,"L"))),0) -> W | BB24: =IF(AZ16<>0,IF(BB16>4.5,"W",IF(BB16=4.5,"T",IF(BB16<4.5,"L"))),0) -> W | BH24: =IF(BF16<>0,IF(BH16>4.5,"W",IF(BH16=4.5,"T",IF(BH16<4.5,"L"))),0) -> W | BN24: =IF(BL16<>0,IF(BN16>4.5,"W",IF(BN16=4.5,"T",IF(BN16<4.5,"L"))),0) -> L | BT24: =IF(BR16<>0,IF(BT16>4.5,"W",IF(BT16=4.5,"T",IF(BT16<4.5,"L"))),0) -> 0 | BZ24: =IF(BX16<>0,IF(BZ16>4.5,"W",IF(BZ16=4.5,"T",IF(BZ16<4.5,"L"))),0) -> 0 | CF24: =IF(CD16<>0,IF(CF16>4.5,"W",IF(CF16=4.5,"T",IF(CF16<4.5,"L"))),0) -> W | CL24: =IF(CJ16<>0,IF(CL16>4.5,"W",IF(CL16=4.5,"T",IF(CL16<4.5,"L"))),0) -> L
B26: Summary | D26: =COUNT(D29:D43) -> 10
D27: Adj | F27: Adj | J27: Avg Score
C28: Points | D28: Points | E28: Matches | F28: Matches | I28: Hole # | J28: by Hole | K28: Best | L28: Worst
B29: Week #1 | C29: =F20 -> 5 | D29: =C29 -> 5 | E29: =IF(D16>0,1,0) -> 1 | F29: =E29 -> 1 | I29: 1 | J29: =IFERROR(AVERAGE(D7,P7,AB7,AN7,AZ7,BL7,BX7,CD7),0) -> 5.857142857 | K29: =IFERROR(MIN(D7,P7,AB7,AN7,AZ7,BL7,BX7,CD7),0) -> 5 | L29: =IFERROR(MAX(D7,P7,AB7,AN7,AZ7,BL7,BX7,CD7),0) -> 8
B30: Week #2 | C30: =L20 -> 7 | D30: 7 | E30: =IF(J16>0,1,0) -> 1 | F30: 1 | I30: 2 | J30: =IFERROR(AVERAGE(D8,P8,AB8,AN8,AZ8,BL8,BX8,CD8),0) -> 6.285714286 | K30: =IFERROR(MIN(D8,P8,AB8,AN8,AZ8,BL8,BX8,CD8),0) -> 5 | L30: =IFERROR(MAX(D8,P8,AB8,AN8,AZ8,BL8,BX8,CD8),0) -> 8
B31: Week #3 | C31: =R20 -> 3 | D31: 3 | E31: =IF(P16>0,1,0) -> 1 | F31: 1 | I31: 3 | J31: 4.142857143 | K31: 4 | L31: 5
B32: Week #4 | C32: =X20 -> 0 | E32: =IF(V16>0,1,0) -> 0 | F32: 0 | I32: 4 | J32: 6 | K32: 5 | L32: 8
B33: Week #5 | C33: =AD20 -> 3 | D33: 3 | E33: =IF(AB16>0,1,0) -> 1 | F33: 1 | I33: 5 | J33: 6.571428571 | K33: 6 | L33: 8
B34: Week #6 | C34: =AJ20 -> 2 | E34: =IF(AH16>0,1,0) -> 1 | F34: 1 | I34: 6 | J34: 4.571428571 | K34: 4 | L34: 6
B35: Week #7 | C35: =AP20 -> 4 | D35: 4 | E35: =IF(AN16>0,1,0) -> 1 | F35: 1 | I35: 7 | J35: 5.428571429 | K35: 4 | L35: 7
B36: Week #8 | C36: =AV20 -> 7.5 | D36: 7.5 | E36: =IF(AT16>0,1,0) -> 1 | F36: 1 | I36: 8 | J36: 6.571428571 | K36: 5 | L36: 9
B37: Week #9 | C37: =BB20 -> 6 | D37: 6 | E37: =IF(AZ16>0,1,0) -> 1 | F37: 1 | I37: 9 | J37: 6.714285714 | K37: 6 | L37: 8
B38: Week #10 | C38: =BH20 -> 6.5 | D38: 6.5 | E38: =IF(BF16>0,1,0) -> 1 | F38: 1 | I38: Front | J38: =SUM(J29:J37) -> 52.14285714 | K38: =SUM(K29:K37) -> 44 | L38: 67
B39: Week #11 | C39: =BN20 -> 2.5 | E39: =IF(BL16>0,1,0) -> 1 | F39: 1
B40: Week #12 | C40: =BT20 -> 0 | E40: =IF(BR16>0,1,0) -> 0 | F40: 0 | I40: 10 | J40: =IFERROR(AVERAGE(J7,V7,AH7,AT7,BF7,BR7,CJ7),0) -> 5.6 | K40: =IFERROR(MIN(J7,V7,AH7,AT7,BF7,BR7,CJ7),0) -> 5 | L40: =IFERROR(MAX(J7,V7,AH7,AT7,BF7,BR7,CJ7),0) -> 6
B41: Week #13 | C41: =BZ20 -> 0 | E41: =IF(BX16>0,1,0) -> 0 | F41: 0 | I41: 11 | J41: =IFERROR(AVERAGE(J8,V8,AH8,AT8,BF8,BR8,CJ8),0) -> 5.6 | K41: =IFERROR(MIN(J8,V8,AH8,AT8,BF8,BR8,CJ8),0) -> 5 | L41: =IFERROR(MAX(J8,V8,AH8,AT8,BF8,BR8,CJ8),0) -> 7
B42: Week #14 | C42: =CF20 -> 7.5 | D42: 7.5 | E42: =IF(CD16>0,1,0) -> 1 | F42: 1 | I42: 12 | J42: 5.4 | K42: 4 | L42: 6
B43: Week #15 | C43: =CL20 -> 4 | D43: 4 | E43: =IF(CJ16>0,1,0) -> 1 | F43: 1 | I43: 13 | J43: 7.2 | K43: 6 | L43: 9
B44: Total | C44: =SUM(C29:C43) -> 58 | D44: =SUM(D29:D43) -> 53.5 | E44: =SUM(E29:E43) -> 12 | F44: =SUM(F29:F43) -> 12 | I44: 14 | J44: 4.6 | K44: 4 | L44: 5
I45: 15 | J45: 5.8 | K45: 5 | L45: 7
B46: Summary | I46: 16 | J46: 5.4 | K46: 4 | L46: 6
B47: Eagles | C47: =I57+I68+I79+I90+I101+I112+I123+I134+I145+I156+I167+I178+I189+I200+I211 -> 0 | I47: 17 | J47: 4.6 | K47: 4 | L47: 6
B48: Birdies | C48: 0 | I48: 18 | J48: 7.4 | K48: 6 | L48: 9
B49: Pars | C49: =I59+I70+I81+I92+I103+I114+I125+I136+I147+I158+I169+I180+I191+I202+I213 -> 3 | I49: Back | J49: =SUM(J40:J48) -> 51.6 | K49: =SUM(K40:K48) -> 43 | L49: 61
B50: bogeys | C50: 46
B51: Double bogeys | C51: 39
B52: Other | C52: 20
B53: Total | C53: =SUM(C47:C52) -> 108
B55: =D4 -> 2024-04-26 | C55: Par | D55: Score
B56: =B7 -> 1 | C56: 4 | D56: 6 | E56: =IF(D56<>0,IF((D56-C56)=-1,"Birdie",IF((D56-C56)=-2,"Eagle",IF((D56-C56)=0,"Par",IF((D56-C56)=1,"bogey",IF((D56-C56)=2,"Double bogey","Other")))))," ") -> Double bogey | H56: Count
B57: 2 | C57: 4 | D57: 8 | E57: Other | H57: Eagle | I57: =COUNTIF(E56:E64,"Eagle") -> 0
B58: 3 | C58: 3 | D58: 4 | E58: bogey | H58: Birdie | I58: =COUNTIF(E56:E64,"Birdie") -> 0
B59: 4 | C59: 4 | D59: 6 | E59: Double bogey | H59: Par | I59: =COUNTIF(E56:E64,"Par") -> 0
B60: 5 | C60: 5 | D60: 6 | E60: bogey | H60: bogey | I60: =COUNTIF(E56:E64,"bogey") -> 3
B61: 6 | C61: 3 | D61: 4 | E61: bogey | H61: Double bogey | I61: =COUNTIF(E56:E64,"Double bogey") -> 4
B62: 7 | C62: 4 | D62: 6 | E62: Double bogey | H62: Other | I62: =COUNTIF(E56:E64,"Other") -> 2
B63: 8 | C63: 4 | D63: 6 | E63: Double bogey
B64: 9 | C64: 5 | D64: 8 | E64: Other
B66: =J4 -> 2024-05-03
B67: =H7 -> 10 | C67: 4 | D67: 6 | E67: =IF(D67<>0,IF((D67-C67)=-1,"Birdie",IF((D67-C67)=-2,"Eagle",IF((D67-C67)=0,"Par",IF((D67-C67)=1,"bogey",IF((D67-C67)=2,"Double bogey","Other")))))," ") -> Double bogey | H67: Count
B68: 11 | C68: 4 | D68: 7 | E68: Other | H68: Eagle | I68: =COUNTIF(E67:E75,"Eagle") -> 0
B69: 12 | C69: 4 | D69: 5 | E69: bogey | H69: Birdie | I69: =COUNTIF(E67:E75,"Birdie") -> 0
B70: 13 | C70: 5 | D70: 6 | E70: bogey | H70: Par | I70: =COUNTIF(E67:E75,"Par") -> 0
B71: 14 | C71: 3 | D71: 4 | E71: bogey | H71: bogey | I71: =COUNTIF(E67:E75,"bogey") -> 4
B72: 15 | C72: 4 | D72: 6 | E72: Double bogey | H72: Double bogey | I72: =COUNTIF(E67:E75,"Double bogey") -> 4
B73: 16 | C73: 4 | D73: 6 | E73: Double bogey | H73: Other | I73: =COUNTIF(E67:E75,"Other") -> 1
B74: 17 | C74: 3 | D74: 4 | E74: bogey
B75: 18 | C75: 5 | D75: 7 | E75: Double bogey
B77: =P4 -> 2024-05-10
B78: =N7 -> 1 | C78: 4 | D78: 7 | E78: =IF(D78<>0,IF((D78-C78)=-1,"Birdie",IF((D78-C78)=-2,"Eagle",IF((D78-C78)=0,"Par",IF((D78-C78)=1,"bogey",IF((D78-C78)=2,"Double bogey","Other")))))," ") -> Other | H78: Count
B79: 2 | C79: 4 | D79: 6 | E79: Double bogey | H79: Eagle | I79: =COUNTIF(E78:E86,"Eagle") -> 0
B80: 3 | C80: 3 | D80: 4 | E80: bogey | H80: Birdie | I80: =COUNTIF(E78:E86,"Birdie") -> 0
B81: 4 | C81: 4 | D81: 5 | E81: bogey | H81: Par | I81: =COUNTIF(E78:E86,"Par") -> 0
B82: 5 | C82: 5 | D82: 8 | E82: Other | H82: bogey | I82: =COUNTIF(E78:E86,"bogey") -> 3
B83: 6 | C83: 3 | D83: 5 | E83: Double bogey | H83: Double bogey | I83: =COUNTIF(E78:E86,"Double bogey") -> 3
B84: 7 | C84: 4 | D84: 5 | E84: bogey | H84: Other | I84: =COUNTIF(E78:E86,"Other") -> 3
B85: 8 | C85: 4 | D85: 7 | E85: Other
B86: 9 | C86: 5 | D86: 7 | E86: Double bogey
B88: =V4 -> 2024-05-17
B89: =T7 -> 10 | C89: 4 | D89: 0 | E89: =IF(D89<>0,IF((D89-C89)=-1,"Birdie",IF((D89-C89)=-2,"Eagle",IF((D89-C89)=0,"Par",IF((D89-C89)=1,"bogey",IF((D89-C89)=2,"Double bogey","Other")))))," ") ->  | H89: Count
B90: 11 | C90: 4 | D90: 0 | H90: Eagle | I90: =COUNTIF(E89:E97,"Eagle") -> 0
B91: 12 | C91: 4 | D91: 0 | H91: Birdie | I91: =COUNTIF(E89:E97,"Birdie") -> 0
B92: 13 | C92: 5 | D92: 0 | H92: Par | I92: =COUNTIF(E89:E97,"Par") -> 0
B93: 14 | C93: 3 | D93: 0 | H93: bogey | I93: =COUNTIF(E89:E97,"bogey") -> 0
B94: 15 | C94: 4 | D94: 0 | H94: Double bogey | I94: =COUNTIF(E89:E97,"Double bogey") -> 0
B95: 16 | C95: 4 | D95: 0 | H95: Other | I95: =COUNTIF(E89:E97,"Other") -> 0
B96: 17 | C96: 3 | D96: 0
B97: 18 | C97: 5 | D97: 0
B99: =AB4 -> 2024-05-24
B100: =Z7 -> 1 | C100: 4 | D100: 5 | E100: =IF(D100<>0,IF((D100-C100)=-1,"Birdie",IF((D100-C100)=-2,"Eagle",IF((D100-C100)=0,"Par",IF((D100-C100)=1,"bogey",IF((D100-C100)=2,"Double bogey","Other")))))," ") -> bogey | H100: Count
B101: 2 | C101: 4 | D101: 5 | E101: bogey | H101: Eagle | I101: =COUNTIF(E100:E108,"Eagle") -> 0
B102: 3 | C102: 3 | D102: 4 | E102: bogey | H102: Birdie | I102: =COUNTIF(E100:E108,"Birdie") -> 0
B103: 4 | C103: 4 | D103: 8 | E103: Other | H103: Par | I103: =COUNTIF(E100:E108,"Par") -> 0
B104: 5 | C104: 5 | D104: 7 | E104: Double bogey | H104: bogey | I104: =COUNTIF(E100:E108,"bogey") -> 4
B105: 6 | C105: 3 | D105: 5 | E105: Double bogey | H105: Double bogey | I105: =COUNTIF(E100:E108,"Double bogey") -> 2
B106: 7 | C106: 4 | D106: 7 | E106: Other | H106: Other | I106: =COUNTIF(E100:E108,"Other") -> 3
B107: 8 | C107: 4 | D107: 9 | E107: Other
B108: 9 | C108: 5 | D108: 6 | E108: bogey
B110: =AH4 -> 2024-05-31
B111: =AF7 -> 10 | C111: 4 | D111: 6 | E111: =IF(D111<>0,IF((D111-C111)=-1,"Birdie",IF((D111-C111)=-2,"Eagle",IF((D111-C111)=0,"Par",IF((D111-C111)=1,"bogey",IF((D111-C111)=2,"Double bogey","Other")))))," ") -> Double bogey | H111: Count
B112: 11 | C112: 4 | D112: 6 | E112: Double bogey | H112: Eagle | I112: =COUNTIF(E111:E119,"Eagle") -> 0
B113: 12 | C113: 4 | D113: 6 | E113: Double bogey | H113: Birdie | I113: =COUNTIF(E111:E119,"Birdie") -> 0
B114: 13 | C114: 5 | D114: 9 | E114: Other | H114: Par | I114: =COUNTIF(E111:E119,"Par") -> 0
B115: 14 | C115: 3 | D115: 5 | E115: Double bogey | H115: bogey | I115: =COUNTIF(E111:E119,"bogey") -> 1
B116: 15 | C116: 4 | D116: 7 | E116: Other | H116: Double bogey | I116: =COUNTIF(E111:E119,"Double bogey") -> 5
B117: 16 | C117: 4 | D117: 6 | E117: Double bogey | H117: Other | I117: =COUNTIF(E111:E119,"Other") -> 3
B118: 17 | C118: 3 | D118: 4 | E118: bogey
B119: 18 | C119: 5 | D119: 9 | E119: Other
B121: =AN4 -> 2024-06-07
B122: =AL7 -> 1 | C122: 4 | D122: 5 | E122: =IF(D122<>0,IF((D122-C122)=-1,"Birdie",IF((D122-C122)=-2,"Eagle",IF((D122-C122)=0,"Par",IF((D122-C122)=1,"bogey",IF((D122-C122)=2,"Double bogey","Other")))))," ") -> bogey | H122: Count
B123: 2 | C123: 4 | D123: 7 | E123: Other | H123: Eagle | I123: =COUNTIF(E122:E130,"Eagle") -> 0
B124: 3 | C124: 3 | D124: 5 | E124: Double bogey | H124: Birdie | I124: =COUNTIF(E122:E130,"Birdie") -> 0
B125: 4 | C125: 4 | D125: 6 | E125: Double bogey | H125: Par | I125: =COUNTIF(E122:E130,"Par") -> 0
B126: 5 | C126: 5 | D126: 6 | E126: bogey | H126: bogey | I126: =COUNTIF(E122:E130,"bogey") -> 5
B127: 6 | C127: 3 | D127: 4 | E127: bogey | H127: Double bogey | I127: =COUNTIF(E122:E130,"Double bogey") -> 2
B128: 7 | C128: 4 | D128: 5 | E128: bogey | H128: Other | I128: =COUNTIF(E122:E130,"Other") -> 2
B129: 8 | C129: 4 | D129: 7 | E129: Other
B130: 9 | C130: 5 | D130: 6 | E130: bogey
B132: =AT4 -> 2024-06-14
B133: =AR7 -> 10 | C133: 4 | D133: 5 | E133: =IF(D133<>0,IF((D133-C133)=-1,"Birdie",IF((D133-C133)=-2,"Eagle",IF((D133-C133)=0,"Par",IF((D133-C133)=1,"bogey",IF((D133-C133)=2,"Double bogey","Other")))))," ") -> bogey | H133: Count
B134: 11 | C134: 4 | D134: 5 | E134: bogey | H134: Eagle | I134: =COUNTIF(E133:E141,"Eagle") -> 0
B135: 12 | C135: 4 | D135: 6 | E135: Double bogey | H135: Birdie | I135: =COUNTIF(E133:E141,"Birdie") -> 0
B136: 13 | C136: 5 | D136: 6 | E136: bogey | H136: Par | I136: =COUNTIF(E133:E141,"Par") -> 0
B137: 14 | C137: 3 | D137: 5 | E137: Double bogey | H137: bogey | I137: =COUNTIF(E133:E141,"bogey") -> 3
B138: 15 | C138: 4 | D138: 6 | E138: Double bogey | H138: Double bogey | I138: =COUNTIF(E133:E141,"Double bogey") -> 5
B139: 16 | C139: 4 | D139: 6 | E139: Double bogey | H139: Other | I139: =COUNTIF(E133:E141,"Other") -> 1
B140: 17 | C140: 3 | D140: 5 | E140: Double bogey
B141: 18 | C141: 5 | D141: 8 | E141: Other
B143: =AZ4 -> 2024-07-05
B144: =AX7 -> 1 | C144: 4 | D144: 5 | E144: =IF(D144<>0,IF((D144-C144)=-1,"Birdie",IF((D144-C144)=-2,"Eagle",IF((D144-C144)=0,"Par",IF((D144-C144)=1,"bogey",IF((D144-C144)=2,"Double bogey","Other")))))," ") -> bogey | H144: Count
B145: 2 | C145: 4 | D145: 7 | E145: Other | H145: Eagle | I145: =COUNTIF(E144:E152,"Eagle") -> 0
B146: 3 | C146: 3 | D146: 4 | E146: bogey | H146: Birdie | I146: =COUNTIF(E144:E152,"Birdie") -> 0
B147: 4 | C147: 4 | D147: 6 | E147: Double bogey | H147: Par | I147: =COUNTIF(E144:E152,"Par") -> 0
B148: 5 | C148: 5 | D148: 6 | E148: bogey | H148: bogey | I148: =COUNTIF(E144:E152,"bogey") -> 7
B149: 6 | C149: 3 | D149: 4 | E149: bogey | H149: Double bogey | I149: =COUNTIF(E144:E152,"Double bogey") -> 1
B150: 7 | C150: 4 | D150: 5 | E150: bogey | H150: Other | I150: =COUNTIF(E144:E152,"Other") -> 1
B151: 8 | C151: 4 | D151: 5 | E151: bogey
B152: 9 | C152: 5 | D152: 6 | E152: bogey
B154: =BF4 -> 2024-07-12
B155: =BD7 -> 10 | C155: 4 | D155: 5 | E155: =IF(D155<>0,IF((D155-C155)=-1,"Birdie",IF((D155-C155)=-2,"Eagle",IF((D155-C155)=0,"Par",IF((D155-C155)=1,"bogey",IF((D155-C155)=2,"Double bogey","Other")))))," ") -> bogey | H155: Count
B156: 11 | C156: 4 | D156: 5 | E156: bogey | H156: Eagle | I156: =COUNTIF(E155:E163,"Eagle") -> 0
B157: 12 | C157: 4 | D157: 4 | E157: Par | H157: Birdie | I157: =COUNTIF(E155:E163,"Birdie") -> 0
B158: 13 | C158: 5 | D158: 8 | E158: Other | H158: Par | I158: =COUNTIF(E155:E163,"Par") -> 1
B159: 14 | C159: 3 | D159: 4 | E159: bogey | H159: bogey | I159: =COUNTIF(E155:E163,"bogey") -> 6
B160: 15 | C160: 4 | D160: 5 | E160: bogey | H160: Double bogey | I160: =COUNTIF(E155:E163,"Double bogey") -> 1
B161: 16 | C161: 4 | D161: 5 | E161: bogey | H161: Other | I161: =COUNTIF(E155:E163,"Other") -> 1
B162: 17 | C162: 3 | D162: 4 | E162: bogey
B163: 18 | C163: 5 | D163: 7 | E163: Double bogey
B165: =BL4 -> 2024-07-19
B166: =BJ7 -> 1 | C166: 4 | D166: 8 | E166: =IF(D166<>0,IF((D166-C166)=-1,"Birdie",IF((D166-C166)=-2,"Eagle",IF((D166-C166)=0,"Par",IF((D166-C166)=1,"bogey",IF((D166-C166)=2,"Double bogey","Other")))))," ") -> Other | H166: Count
B167: 2 | C167: 4 | D167: 6 | E167: Double bogey | H167: Eagle | I167: =COUNTIF(E166:E174,"Eagle") -> 0
B168: 3 | C168: 3 | D168: 4 | E168: bogey | H168: Birdie | I168: =COUNTIF(E166:E174,"Birdie") -> 0
B169: 4 | C169: 4 | D169: 6 | E169: Double bogey | H169: Par | I169: =COUNTIF(E166:E174,"Par") -> 0
B170: 5 | C170: 5 | D170: 6 | E170: bogey | H170: bogey | I170: =COUNTIF(E166:E174,"bogey") -> 2
B171: 6 | C171: 3 | D171: 6 | E171: Other | H171: Double bogey | I171: =COUNTIF(E166:E174,"Double bogey") -> 5
B172: 7 | C172: 4 | D172: 6 | E172: Double bogey | H172: Other | I172: =COUNTIF(E166:E174,"Other") -> 2
B173: 8 | C173: 4 | D173: 6 | E173: Double bogey
B174: 9 | C174: 5 | D174: 7 | E174: Double bogey
B176: =BR4 -> 2024-07-26
B177: =BP7 -> 10 | C177: 4 | D177: 0 | E177: =IF(D177<>0,IF((D177-C177)=-1,"Birdie",IF((D177-C177)=-2,"Eagle",IF((D177-C177)=0,"Par",IF((D177-C177)=1,"bogey",IF((D177-C177)=2,"Double bogey","Other")))))," ") ->  | H177: Count
B178: 11 | C178: 4 | D178: 0 | H178: Eagle | I178: =COUNTIF(E177:E185,"Eagle") -> 0
B179: 12 | C179: 4 | D179: 0 | H179: Birdie | I179: =COUNTIF(E177:E185,"Birdie") -> 0
B180: 13 | C180: 5 | D180: 0 | H180: Par | I180: =COUNTIF(E177:E185,"Par") -> 0
B181: 14 | C181: 3 | D181: 0 | H181: bogey | I181: =COUNTIF(E177:E185,"bogey") -> 0
B182: 15 | C182: 4 | D182: 0 | H182: Double bogey | I182: =COUNTIF(E177:E185,"Double bogey") -> 0
B183: 16 | C183: 4 | D183: 0 | H183: Other | I183: =COUNTIF(E177:E185,"Other") -> 0
B184: 17 | C184: 3 | D184: 0
B185: 18 | C185: 5 | D185: 0
B187: =BX4 -> 2024-08-02
B188: =BV7 -> 1 | C188: 4 | D188: 0 | E188: =IF(D188<>0,IF((D188-C188)=-1,"Birdie",IF((D188-C188)=-2,"Eagle",IF((D188-C188)=0,"Par",IF((D188-C188)=1,"bogey",IF((D188-C188)=2,"Double bogey","Other")))))," ") ->  | H188: Count
B189: 2 | C189: 4 | D189: 0 | H189: Eagle | I189: =COUNTIF(E188:E196,"Eagle") -> 0
B190: 3 | C190: 3 | D190: 0 | H190: Birdie | I190: =COUNTIF(E188:E196,"Birdie") -> 0
B191: 4 | C191: 4 | D191: 0 | H191: Par | I191: =COUNTIF(E188:E196,"Par") -> 0
B192: 5 | C192: 5 | D192: 0 | H192: bogey | I192: =COUNTIF(E188:E196,"bogey") -> 0
B193: 6 | C193: 3 | D193: 0 | H193: Double bogey | I193: =COUNTIF(E188:E196,"Double bogey") -> 0
B194: 7 | C194: 4 | D194: 0 | H194: Other | I194: =COUNTIF(E188:E196,"Other") -> 0
B195: 8 | C195: 4 | D195: 0
B196: 9 | C196: 5 | D196: 0
B198: =CD4 -> 2024-08-16
B199: =CB7 -> 1 | C199: 4 | D199: 5 | E199: =IF(D199<>0,IF((D199-C199)=-1,"Birdie",IF((D199-C199)=-2,"Eagle",IF((D199-C199)=0,"Par",IF((D199-C199)=1,"bogey",IF((D199-C199)=2,"Double bogey","Other")))))," ") -> bogey | H199: Count
B200: 2 | C200: 4 | D200: 5 | E200: bogey | H200: Eagle | I200: =COUNTIF(E199:E207,"Eagle") -> 0
B201: 3 | C201: 3 | D201: 4 | E201: bogey | H201: Birdie | I201: =COUNTIF(E199:E207,"Birdie") -> 0
B202: 4 | C202: 4 | D202: 5 | E202: bogey | H202: Par | I202: =COUNTIF(E199:E207,"Par") -> 1
B203: 5 | C203: 5 | D203: 7 | E203: Double bogey | H203: bogey | I203: =COUNTIF(E199:E207,"bogey") -> 5
B204: 6 | C204: 3 | D204: 4 | E204: bogey | H204: Double bogey | I204: =COUNTIF(E199:E207,"Double bogey") -> 3
B205: 7 | C205: 4 | D205: 4 | E205: Par | H205: Other | I205: =COUNTIF(E199:E207,"Other") -> 0
B206: 8 | C206: 4 | D206: 6 | E206: Double bogey
B207: 9 | C207: 5 | D207: 7 | E207: Double bogey
B209: =CJ4 -> 2024-08-23
B210: =CH7 -> 10 | C210: 4 | D210: 6 | E210: =IF(D210<>0,IF((D210-C210)=-1,"Birdie",IF((D210-C210)=-2,"Eagle",IF((D210-C210)=0,"Par",IF((D210-C210)=1,"bogey",IF((D210-C210)=2,"Double bogey","Other")))))," ") -> Double bogey | H210: Count
B211: 11 | C211: 4 | D211: 5 | E211: bogey | H211: Eagle | I211: =COUNTIF(E210:E218,"Eagle") -> 0
B212: 12 | C212: 4 | D212: 6 | E212: Double bogey | H212: Birdie | I212: =COUNTIF(E210:E218,"Birdie") -> 0
B213: 13 | C213: 5 | D213: 7 | E213: Double bogey | H213: Par | I213: =COUNTIF(E210:E218,"Par") -> 1
B214: 14 | C214: 3 | D214: 5 | E214: Double bogey | H214: bogey | I214: =COUNTIF(E210:E218,"bogey") -> 3
B215: 15 | C215: 4 | D215: 5 | E215: bogey | H215: Double bogey | I215: =COUNTIF(E210:E218,"Double bogey") -> 4
B216: 16 | C216: 4 | D216: 4 | E216: Par | H216: Other | I216: =COUNTIF(E210:E218,"Other") -> 1
B217: 17 | C217: 3 | D217: 6 | E217: Other
B218: 18 | C218: 5 | D218: 6 | E218: bogey

Sheet Michalski_P
A1: Pete Michalski
C4: Date: | D4: =VLOOKUP(C5,Week,2) -> 2024-04-26 | I4: Date: | J4: =VLOOKUP(I5,Week,2) -> 2024-05-03 | O4: Date: | P4: =VLOOKUP(O5,Week,2) -> 2024-05-10 | U4: Date: | V4: =VLOOKUP(U5,Week,2) -> 2024-05-17 | AA4: Date: | AB4: =VLOOKUP(AA5,Week,2) -> 2024-05-24 | AG4: Date: | AH4: =VLOOKUP(AG5,Week,2) -> 2024-05-31 | AM4: Date: | AN4: =VLOOKUP(AM5,Week,2) -> 2024-06-07 | AS4: Date: | AT4: =VLOOKUP(AS5,Week,2) -> 2024-06-14 | AY4: Date: | AZ4: =VLOOKUP(AY5,Week,2) -> 2024-07-05 | BE4: Date: | BF4: =VLOOKUP(BE5,Week,2) -> 2024-07-12 | BK4: Date: | BL4: =VLOOKUP(BK5,Week,2) -> 2024-07-19 | BQ4: Date: | BR4: =VLOOKUP(BQ5,Week,2) -> 2024-07-26 | BW4: Date: | BX4: =VLOOKUP(BW5,Week,2) -> 2024-08-02 | CC4: Date: | CD4: =VLOOKUP(CC5,Week,2) -> 2024-08-16 | CI4: Date: | CJ4: =VLOOKUP(CI5,Week,2) -> 2024-08-23
B5: Week | C5: 1 | H5: Week | I5: 2 | N5: Week | O5: 3 | T5: Week | U5: 4 | Z5: Week | AA5: 5 | AF5: Week | AG5: 6 | AL5: Week | AM5: 7 | AR5: Week | AS5: 8 | AX5: Week | AY5: 9 | BD5: Week | BE5: 10 | BJ5: Week | BK5: 11 | BP5: Week | BQ5: 12 | BV5: Week | BW5: 13 | CB5: Week | CC5: 14 | CH5: Week | CI5: 15
B6: Hole # | C6: Par | D6: Score | E6: Net | F6: Win Hole | H6: Hole # | I6: Par | J6: Score | K6: Net | L6: Win Hole | N6: Hole # | O6: Par | P6: Score | Q6: Net | R6: Win Hole | T6: Hole # | U6: Par | V6: Score | W6: Net | X6: Win Hole | Z6: Hole # | AA6: Par | AB6: Score | AC6: Net | AD6: Win Hole | AF6: Hole # | AG6: Par | AH6: Score | AI6: Net | AJ6: Win Hole | AL6: Hole # | AM6: Par | AN6: Score | AO6: Net | AP6: Win Hole | AR6: Hole # | AS6: Par | AT6: Score | AU6: Net | AV6: Win Hole | AX6: Hole # | AY6: Par | AZ6: Score | BA6: Net | BB6: Win Hole | BD6: Hole # | BE6: Par | BF6: Score | BG6: Net | BH6: Win Hole | BJ6: Hole # | BK6: Par | BL6: Score | BM6: Net | BN6: Win Hole | BP6: Hole # | BQ6: Par | BR6: Score | BS6: Net | BT6: Win Hole | BV6: Hole # | BW6: Par | BX6: Score | BY6: Net | BZ6: Win Hole | CB6: Hole # | CC6: Par | CD6: Score | CE6: Net | CF6: Win Hole | CH6: Hole # | CI6: Par | CJ6: Score | CK6: Net | CL6: Win Hole
B7: =VLOOKUP(C5,Week,6) -> 1 | C7: =VLOOKUP(B7,Holes,2) -> 4 | D7: 6 | E7: =IF((D7-C7)>3,C7+3,D7) -> 6 | F7: 0 | H7: =VLOOKUP(I5,Week,6) -> 10 | I7: =VLOOKUP(H7,Holes,2) -> 4 | J7: 5 | K7: =IF((J7-I7)>3,I7+3,J7) -> 5 | L7: 1 | N7: =VLOOKUP(O5,Week,6) -> 1 | O7: =VLOOKUP(N7,Holes,2) -> 4 | P7: 5 | Q7: =IF((P7-O7)>3,O7+3,P7) -> 5 | R7: 1 | T7: =VLOOKUP(U5,Week,6) -> 10 | U7: =VLOOKUP(T7,Holes,2) -> 4 | V7: 7 | W7: =IF((V7-U7)>3,U7+3,V7) -> 7 | X7: 1 | Z7: =VLOOKUP(AA5,Week,6) -> 1 | AA7: =VLOOKUP(Z7,Holes,2) -> 4 | AC7: =IF((AB7-AA7)>3,AA7+3,AB7) -> 0 | AF7: =VLOOKUP(AG5,Week,6) -> 10 | AG7: =VLOOKUP(AF7,Holes,2) -> 4 | AH7: 9 | AI7: =IF((AH7-AG7)>3,AG7+3,AH7) -> 7 | AJ7: 0 | AL7: =VLOOKUP(AM5,Week,6) -> 1 | AM7: =VLOOKUP(AL7,Holes,2) -> 4 | AN7: 8 | AO7: =IF((AN7-AM7)>3,AM7+3,AN7) -> 7 | AP7: 0 | AR7: =VLOOKUP(AS5,Week,6) -> 10 | AS7: =VLOOKUP(AR7,Holes,2) -> 4 | AT7: 7 | AU7: =IF((AT7-AS7)>3,AS7+3,AT7) -> 7 | AV7: 0.5 | AX7: =VLOOKUP(AY5,Week,6) -> 1 | AY7: =VLOOKUP(AX7,Holes,2) -> 4 | AZ7: 8 | BA7: =IF((AZ7-AY7)>3,AY7+3,AZ7) -> 7 | BB7: 0 | BD7: =VLOOKUP(BE5,Week,6) -> 10 | BE7: =VLOOKUP(BD7,Holes,2) -> 4 | BF7: 6 | BG7: =IF((BF7-BE7)>3,BE7+3,BF7) -> 6 | BH7: 1 | BJ7: =VLOOKUP(BK5,Week,6) -> 1 | BK7: =VLOOKUP(BJ7,Holes,2) -> 4 | BL7: 6 | BM7: =IF((BL7-BK7)>3,BK7+3,BL7) -> 6 | BN7: 0.5 | BP7: =VLOOKUP(BQ5,Week,6) -> 10 | BQ7: =VLOOKUP(BP7,Holes,2) -> 4 | BR7: 6 | BS7: =IF((BR7-BQ7)>3,BQ7+3,BR7) -> 6 | BT7: 1 | BV7: =VLOOKUP(BW5,Week,6) -> 1 | BW7: =VLOOKUP(BV7,Holes,2) -> 4 | BY7: =IF((BX7-BW7)>3,BW7+3,BX7) -> 0 | CB7: =VLOOKUP(CC5,Week,6) -> 1 | CC7: =VLOOKUP(CB7,Holes,2) -> 4 | CD7: 5 | CE7: =IF((CD7-CC7)>3,CC7+3,CD7) -> 5 | CF7: 0.5 | CH7: =VLOOKUP(CI5,Week,6) -> 10 | CI7: =VLOOKUP(CH7,Holes,2) -> 4 | CJ7: 7 | CK7: =IF((CJ7-CI7)>3,CI7+3,CJ7) -> 7 | CL7: 0
B8: =+B7+1 -> 2 | C8: 4 | D8: 9 | E8: 7 | F8: 0 | H8: =+H7+1 -> 11 | I8: 4 | J8: 5 | K8: 5 | L8: 1 | N8: =+N7+1 -> 2 | O8: 4 | P8: 9 | Q8: 7 | R8: 0 | T8: =+T7+1 -> 11 | U8: 4 | V8: 9 | W8: 7 | X8: 0 | Z8: =+Z7+1 -> 2 | AA8: 4 | AC8: 0 | AF8: =+AF7+1 -> 11 | AG8: 4 | AH8: 8 | AI8: 7 | AJ8: 0 | AL8: =+AL7+1 -> 2 | AM8: 4 | AN8: 5 | AO8: 5 | AP8: 1 | AR8: =+AR7+1 -> 11 | AS8: 4 | AT8: 7 | AU8: 7 | AV8: 0 | AX8: =+AX7+1 -> 2 | AY8: 4 | AZ8: 6 | BA8: 6 | BB8: 1 | BD8: =+BD7+1 -> 11 | BE8: 4 | BF8: 6 | BG8: 6 | BH8: 1 | BJ8: =+BJ7+1 -> 2 | BK8: 4 | BL8: 5 | BM8: 5 | BN8: 1 | BP8: =+BP7+1 -> 11 | BQ8: 4 | BR8: 5 | BS8: 5 | BT8: 1 | BV8: =+BV7+1 -> 2 | BW8: 4 | BY8: 0 | CB8: =+CB7+1 -> 2 | CC8: 4 | CD8: 8 | CE8: 7 | CF8: 0 | CH8: =+CH7+1 -> 11 | CI8: 4 | CJ8: 9 | CK8: 7 | CL8: 0
B9: 3 | C9: 3 | D9: 5 | E9: 5 | F9: 0 | H9: 12 | I9: 4 | J9: 5 | K9: 5 | L9: 1 | N9: 3 | O9: 3 | P9: 6 | Q9: 6 | R9: 0 | T9: 12 | U9: 4 | V9: 7 | W9: 7 | X9: 0.5 | Z9: 3 | AA9: 3 | AC9: 0 | AF9: 12 | AG9: 4 | AH9: 9 | AI9: 7 | AJ9: 0 | AL9: 3 | AM9: 3 | AN9: 5 | AO9: 5 | AP9: 0 | AR9: 12 | AS9: 4 | AT9: 6 | AU9: 6 | AV9: 0.5 | AX9: 3 | AY9: 3 | AZ9: 6 | BA9: 6 | BB9: 0 | BD9: 12 | BE9: 4 | BF9: 5 | BG9: 5 | BH9: 0.5 | BJ9: 3 | BK9: 3 | BL9: 4 | BM9: 4 | BN9: 1 | BP9: 12 | BQ9: 4 | BR9: 6 | BS9: 6 | BT9: 0.5 | BV9: 3 | BW9: 3 | BY9: 0 | CB9: 3 | CC9: 3 | CD9: 6 | CE9: 6 | CF9: 0 | CH9: 12 | CI9: 4 | CJ9: 9 | CK9: 7 | CL9: 0
B10: 4 | C10: 4 | D10: 7 | E10: 7 | F10: 1 | H10: 13 | I10: 5 | J10: 8 | K10: 8 | L10: 0.5 | N10: 4 | O10: 4 | P10: 8 | Q10: 7 | R10: 0 | T10: 13 | U10: 5 | V10: 11 | W10: 8 | X10: 0 | Z10: 4 | AA10: 4 | AC10: 0 | AF10: 13 | AG10: 5 | AH10: 9 | AI10: 8 | AJ10: 0 | AL10: 4 | AM10: 4 | AN10: 6 | AO10: 6 | AP10: 1 | AR10: 13 | AS10: 5 | AT10: 10 | AU10: 8 | AV10: 0 | AX10: 4 | AY10: 4 | AZ10: 8 | BA10: 7 | BB10: 0 | BD10: 13 | BE10: 5 | BF10: 9 | BG10: 8 | BH10: 0 | BJ10: 4 | BK10: 4 | BL10: 5 | BM10: 5 | BN10: 0.5 | BP10: 13 | BQ10: 5 | BR10: 8 | BS10: 8 | BT10: 0 | BV10: 4 | BW10: 4 | BY10: 0 | CB10: 4 | CC10: 4 | CD10: 6 | CE10: 6 | CF10: 0.5 | CH10: 13 | CI10: 5 | CJ10: 6 | CK10: 6 | CL10: 1
B11: 5 | C11: 5 | D11: 7 | E11: 7 | F11: 0.5 | H11: 14 | I11: 3 | J11: 6 | K11: 6 | L11: 0 | N11: 5 | O11: 5 | P11: 8 | Q11: 8 | R11: 0 | T11: 14 | U11: 3 | V11: 6 | W11: 6 | X11: 0 | Z11: 5 | AA11: 5 | AC11: 0 | AF11: 14 | AG11: 3 | AH11: 4 | AI11: 4 | AJ11: 1 | AL11: 5 | AM11: 5 | AN11: 11 | AO11: 8 | AP11: 0 | AR11: 14 | AS11: 3 | AT11: 6 | AU11: 6 | AV11: 0.5 | AX11: 5 | AY11: 5 | AZ11: 8 | BA11: 8 | BB11: 0 | BD11: 14 | BE11: 3 | BF11: 5 | BG11: 5 | BH11: 1 | BJ11: 5 | BK11: 5 | BL11: 8 | BM11: 8 | BN11: 0 | BP11: 14 | BQ11: 3 | BR11: 6 | BS11: 6 | BT11: 0.5 | BV11: 5 | BW11: 5 | BY11: 0 | CB11: 5 | CC11: 5 | CD11: 7 | CE11: 7 | CF11: 0.5 | CH11: 14 | CI11: 3 | CJ11: 6 | CK11: 6 | CL11: 0
B12: 6 | C12: 3 | D12: 6 | E12: 6 | F12: 0 | H12: 15 | I12: 4 | J12: 9 | K12: 7 | L12: 0 | N12: 6 | O12: 3 | P12: 6 | Q12: 6 | R12: 0 | T12: 15 | U12: 4 | V12: 7 | W12: 7 | X12: 0.5 | Z12: 6 | AA12: 3 | AC12: 0 | AF12: 15 | AG12: 4 | AH12: 7 | AI12: 7 | AJ12: 0 | AL12: 6 | AM12: 3 | AN12: 5 | AO12: 5 | AP12: 0.5 | AR12: 15 | AS12: 4 | AT12: 9 | AU12: 7 | AV12: 0 | AX12: 6 | AY12: 3 | AZ12: 3 | BA12: 3 | BB12: 1 | BD12: 15 | BE12: 4 | BF12: 9 | BG12: 7 | BH12: 0.5 | BJ12: 6 | BK12: 3 | BL12: 5 | BM12: 5 | BN12: 1 | BP12: 15 | BQ12: 4 | BR12: 6 | BS12: 6 | BT12: 1 | BV12: 6 | BW12: 3 | BY12: 0 | CB12: 6 | CC12: 3 | CD12: 4 | CE12: 4 | CF12: 1 | CH12: 15 | CI12: 4 | CJ12: 7 | CK12: 7 | CL12: 0.5
B13: 7 | C13: 4 | D13: 5 | E13: 5 | F13: 1 | H13: 16 | I13: 4 | J13: 8 | K13: 7 | L13: 0 | N13: 7 | O13: 4 | P13: 6 | Q13: 6 | R13: 1 | T13: 16 | U13: 4 | V13: 6 | W13: 6 | X13: 1 | Z13: 7 | AA13: 4 | AC13: 0 | AF13: 16 | AG13: 4 | AH13: 7 | AI13: 7 | AJ13: 0.5 | AL13: 7 | AM13: 4 | AN13: 6 | AO13: 6 | AP13: 1 | AR13: 16 | AS13: 4 | AT13: 6 | AU13: 6 | AV13: 1 | AX13: 7 | AY13: 4 | AZ13: 5 | BA13: 5 | BB13: 1 | BD13: 16 | BE13: 4 | BF13: 7 | BG13: 7 | BH13: 0 | BJ13: 7 | BK13: 4 | BL13: 6 | BM13: 6 | BN13: 1 | BP13: 16 | BQ13: 4 | BR13: 7 | BS13: 7 | BT13: 0 | BV13: 7 | BW13: 4 | BY13: 0 | CB13: 7 | CC13: 4 | CD13: 7 | CE13: 7 | CF13: 0.5 | CH13: 16 | CI13: 4 | CJ13: 7 | CK13: 7 | CL13: 0.5
B14: 8 | C14: 4 | D14: 6 | E14: 6 | F14: 1 | H14: 17 | I14: 3 | J14: 5 | K14: 5 | L14: 0.5 | N14: 8 | O14: 4 | P14: 8 | Q14: 7 | R14: 0.5 | T14: 17 | U14: 3 | V14: 7 | W14: 6 | X14: 0 | Z14: 8 | AA14: 4 | AC14: 0 | AF14: 17 | AG14: 3 | AH14: 4 | AI14: 4 | AJ14: 1 | AL14: 8 | AM14: 4 | AN14: 9 | AO14: 7 | AP14: 0 | AR14: 17 | AS14: 3 | AT14: 5 | AU14: 5 | AV14: 0.5 | AX14: 8 | AY14: 4 | AZ14: 5 | BA14: 5 | BB14: 1 | BD14: 17 | BE14: 3 | BF14: 4 | BG14: 4 | BH14: 1 | BJ14: 8 | BK14: 4 | BL14: 9 | BM14: 7 | BN14: 0 | BP14: 17 | BQ14: 3 | BR14: 5 | BS14: 5 | BT14: 0.5 | BV14: 8 | BW14: 4 | BY14: 0 | CB14: 8 | CC14: 4 | CD14: 6 | CE14: 6 | CF14: 1 | CH14: 17 | CI14: 3 | CJ14: 6 | CK14: 6 | CL14: 0
B15: 9 | C15: 5 | D15: 9 | E15: 8 | F15: 1 | H15: 18 | I15: 5 | J15: 9 | K15: 8 | L15: 0 | N15: 9 | O15: 5 | P15: 11 | Q15: 8 | R15: 0 | T15: 18 | U15: 5 | V15: 10 | W15: 8 | X15: 0 | Z15: 9 | AA15: 5 | AC15: 0 | AF15: 18 | AG15: 5 | AH15: 8 | AI15: 8 | AJ15: 0.5 | AL15: 9 | AM15: 5 | AN15: 10 | AO15: 8 | AP15: 0 | AR15: 18 | AS15: 5 | AT15: 8 | AU15: 8 | AV15: 0.5 | AX15: 9 | AY15: 5 | AZ15: 8 | BA15: 8 | BB15: 0 | BD15: 18 | BE15: 5 | BF15: 8 | BG15: 8 | BH15: 0 | BJ15: 9 | BK15: 5 | BL15: 8 | BM15: 8 | BN15: 0 | BP15: 18 | BQ15: 5 | BR15: 6 | BS15: 6 | BT15: 1 | BV15: 9 | BW15: 5 | BY15: 0 | CB15: 9 | CC15: 5 | CD15: 7 | CE15: 7 | CF15: 1 | CH15: 18 | CI15: 5 | CJ15: 8 | CK15: 8 | CL15: 0
B16: Total | C16: =SUM(C7:C15) -> 36 | D16: =SUM(D7:D15) -> 60 | E16: =SUM(E7:E15) -> 57 | F16: =SUM(F7:F15) -> 4.5 | H16: Total | I16: =SUM(I7:I15) -> 36 | J16: =SUM(J7:J15) -> 60 | K16: =SUM(K7:K15) -> 56 | L16: =SUM(L7:L15) -> 4 | N16: Total | O16: =SUM(O7:O15) -> 36 | P16: =SUM(P7:P15) -> 67 | Q16: =SUM(Q7:Q15) -> 60 | R16: =SUM(R7:R15) -> 2.5 | T16: Total | U16: =SUM(U7:U15) -> 36 | V16: =SUM(V7:V15) -> 70 | W16: =SUM(W7:W15) -> 62 | X16: =SUM(X7:X15) -> 3 | Z16: Total | AA16: =SUM(AA7:AA15) -> 36 | AB16: =SUM(AB7:AB15) -> 0 | AC16: =SUM(AC7:AC15) -> 0 | AD16: =SUM(AD7:AD15) -> 0 | AF16: Total | AG16: =SUM(AG7:AG15) -> 36 | AH16: =SUM(AH7:AH15) -> 65 | AI16: =SUM(AI7:AI15) -> 59 | AJ16: =SUM(AJ7:AJ15) -> 3 | AL16: Total | AM16: =SUM(AM7:AM15) -> 36 | AN16: =SUM(AN7:AN15) -> 65 | AO16: =SUM(AO7:AO15) -> 57 | AP16: =SUM(AP7:AP15) -> 3.5 | AR16: Total | AS16: =SUM(AS7:AS15) -> 36 | AT16: =SUM(AT7:AT15) -> 64 | AU16: =SUM(AU7:AU15) -> 60 | AV16: =SUM(AV7:AV15) -> 3.5 | AX16: Total | AY16: =SUM(AY7:AY15) -> 36 | AZ16: =SUM(AZ7:AZ15) -> 57 | BA16: =SUM(BA7:BA15) -> 55 | BB16: =SUM(BB7:BB15) -> 4 | BD16: Total | BE16: =SUM(BE7:BE15) -> 36 | BF16: =SUM(BF7:BF15) -> 59 | BG16: =SUM(BG7:BG15) -> 56 | BH16: =SUM(BH7:BH15) -> 5 | BJ16: Total | BK16: =SUM(BK7:BK15) -> 36 | BL16: =SUM(BL7:BL15) -> 56 | BM16: =SUM(BM7:BM15) -> 54 | BN16: =SUM(BN7:BN15) -> 5 | BP16: Total | BQ16: =SUM(BQ7:BQ15) -> 36 | BR16: =SUM(BR7:BR15) -> 55 | BS16: =SUM(BS7:BS15) -> 55 | BT16: =SUM(BT7:BT15) -> 5.5 | BV16: Total | BW16: =SUM(BW7:BW15) -> 36 | BX16: =SUM(BX7:BX15) -> 0 | BY16: =SUM(BY7:BY15) -> 0 | BZ16: =SUM(BZ7:BZ15) -> 0 | CB16: Total | CC16: =SUM(CC7:CC15) -> 36 | CD16: =SUM(CD7:CD15) -> 56 | CE16: =SUM(CE7:CE15) -> 55 | CF16: =SUM(CF7:CF15) -> 5 | CH16: Total | CI16: =SUM(CI7:CI15) -> 36 | CJ16: =SUM(CJ7:CJ15) -> 65 | CK16: =SUM(CK7:CK15) -> 61 | CL16: =SUM(CL7:CL15) -> 2
E18: Low Net | F18: 1 | K18: Low Net | L18: 0 | Q18: Low Net | R18: 0 | W18: Low Net | X18: 0 | AC18: Low Net | AI18: Low Net | AJ18: 0 | AO18: Low Net | AP18: 0.5 | AU18: Low Net | AV18: 0 | BA18: Low Net | BB18: 0 | BG18: Low Net | BH18: 1 | BM18: Low Net | BN18: 1 | BS18: Low Net | BT18: 1 | BY18: Low Net | CE18: Low Net | CF18: 1 | CK18: Low Net | CL18: 0
E20: Total Points | F20: =SUM(F16:F19) -> 5.5 | K20: Total Points | L20: =SUM(L16:L19) -> 4 | Q20: Total Points | R20: =SUM(R16:R19) -> 2.5 | W20: Total Points | X20: =SUM(X16:X19) -> 3 | AC20: Total Points | AD20: =SUM(AD16:AD19) -> 0 | AI20: Total Points | AJ20: =SUM(AJ16:AJ19) -> 3 | AO20: Total Points | AP20: =SUM(AP16:AP19) -> 4 | AU20: Total Points | AV20: =SUM(AV16:AV19) -> 3.5 | BA20: Total Points | BB20: =SUM(BB16:BB19) -> 4 | BG20: Total Points | BH20: =SUM(BH16:BH19) -> 6 | BM20: Total Points | BN20: =SUM(BN16:BN19) -> 6 | BS20: Total Points | BT20: =SUM(BT16:BT19) -> 6.5 | BY20: Total Points | BZ20: =SUM(BZ16:BZ19) -> 0 | CE20: Total Points | CF20: =SUM(CF16:CF19) -> 6 | CK20: Total Points | CL20: =SUM(CL16:CL19) -> 2
E22: Handicap | F22: =IF(D16=0,0,E16-C16) -> 21 | K22: Handicap | L22: =IF(J16=0,0,K16-I16) -> 20 | Q22: Handicap | R22: =IF(P16=0,0,Q16-O16) -> 24 | W22: Handicap | X22: =IF(V16=0,0,W16-U16) -> 26 | AC22: Handicap | AD22: =IF(AB16=0,0,AC16-AA16) -> 0 | AI22: Handicap | AJ22: =IF(AH16=0,0,AI16-AG16) -> 23 | AO22: Handicap | AP22: =IF(AN16=0,0,AO16-AM16) -> 21 | AU22: Handicap | AV22: =IF(AT16=0,0,AU16-AS16) -> 24 | BA22: Handicap | BB22: =IF(AZ16=0,0,BA16-AY16) -> 19 | BG22: Handicap | BH22: =IF(BF16=0,0,BG16-BE16) -> 20 | BM22: Handicap | BN22: =IF(BL16=0,0,BM16-BK16) -> 18 | BS22: Handicap | BT22: =IF(BR16=0,0,BS16-BQ16) -> 19 | BY22: Handicap | BZ22: =IF(BX16=0,0,BY16-BW16) -> 0 | CE22: Handicap | CF22: =IF(CD16=0,0,CE16-CC16) -> 19 | CK22: Handicap | CL22: =IF(CJ16=0,0,CK16-CI16) -> 25
F24: =IF(D16<>0,IF(F16>4.5,"W",IF(F16=4.5,"T",IF(F16<4.5,"L"))),0) -> T | L24: =IF(J16<>0,IF(L16>4.5,"W",IF(L16=4.5,"T",IF(L16<4.5,"L"))),0) -> L | R24: =IF(P16<>0,IF(R16>4.5,"W",IF(R16=4.5,"T",IF(R16<4.5,"L"))),0) -> L | X24: =IF(V16<>0,IF(X16>4.5,"W",IF(X16=4.5,"T",IF(X16<4.5,"L"))),0) -> L | AD24: =IF(AB16<>0,IF(AD16>4.5,"W",IF(AD16=4.5,"T",IF(AD16<4.5,"L"))),0) -> 0 | AJ24: =IF(AH16<>0,IF(AJ16>4.5,"W",IF(AJ16=4.5,"T",IF(AJ16<4.5,"L"))),0) -> L | AP24: =IF(AN16<>0,IF(AP16>4.5,"W",IF(AP16=4.5,"T",IF(AP16<4.5,"L"))),0) -> L | AV24: =IF(AT16<>0,IF(AV16>4.5,"W",IF(AV16=4.5,"T",IF(AV16<4.5,"L"))),0) -> L | BB24: =IF(AZ16<>0,IF(BB16>4.5,"W",IF(BB16=4.5,"T",IF(BB16<4.5,"L"))),0) -> L | BH24: =IF(BF16<>0,IF(BH16>4.5,"W",IF(BH16=4.5,"T",IF(BH16<4.5,"L"))),0) -> W | BN24: =IF(BL16<>0,IF(BN16>4.5,"W",IF(BN16=4.5,"T",IF(BN16<4.5,"L"))),0) -> W | BT24: =IF(BR16<>0,IF(BT16>4.5,"W",IF(BT16=4.5,"T",IF(BT16<4.5,"L"))),0) -> W | BZ24: =IF(BX16<>0,IF(BZ16>4.5,"W",IF(BZ16=4.5,"T",IF(BZ16<4.5,"L"))),0) -> 0 | CF24: =IF(CD16<>0,IF(CF16>4.5,"W",IF(CF16=4.5,"T",IF(CF16<4.5,"L"))),0) -> W | CL24: =IF(CJ16<>0,IF(CL16>4.5,"W",IF(CL16=4.5,"T",IF(CL16<4.5,"L"))),0) -> L
B26: Summary | D26: =COUNT(D29:D43) -> 10
D27: Adj | F27: Adj | J27: Avg Score
C28: Points | D28: Points | E28: Matches | F28: Matches | I28: Hole # | J28: by Hole | K28: Best | L28: Worst
B29: Week #1 | C29: =F20 -> 5.5 | D29: =C29 -> 5.5 | E29: =IF(D16>0,1,0) -> 1 | F29: =E29 -> 1 | I29: 1 | J29: =IFERROR(AVERAGE(D7,P7,AB7,AN7,AZ7,BL7,BX7,CD7),0) -> 6.333333333 | K29: =IFERROR(MIN(D7,P7,AB7,AN7,AZ7,BL7,BX7,CD7),0) -> 5 | L29: =IFERROR(MAX(D7,P7,AB7,AN7,AZ7,BL7,BX7,CD7),0) -> 8
B30: Week #2 | C30: =L20 -> 4 | D30: 4 | E30: =IF(J16>0,1,0) -> 1 | F30: 1 | I30: 2 | J30: =IFERROR(AVERAGE(D8,P8,AB8,AN8,AZ8,BL8,BX8,CD8),0) -> 7 | K30: =IFERROR(MIN(D8,P8,AB8,AN8,AZ8,BL8,BX8,CD8),0) -> 5 | L30: =IFERROR(MAX(D8,P8,AB8,AN8,AZ8,BL8,BX8,CD8),0) -> 9
B31: Week #3 | C31: =R20 -> 2.5 | E31: =IF(P16>0,1,0) -> 1 | F31: 1 | I31: 3 | J31: 5.333333333 | K31: 4 | L31: 6
B32: Week #4 | C32: =X20 -> 3 | E32: =IF(V16>0,1,0) -> 1 | F32: 1 | I32: 4 | J32: 6.666666667 | K32: 5 | L32: 8
B33: Week #5 | C33: =AD20 -> 0 | E33: =IF(AB16>0,1,0) -> 0 | F33: 0 | I33: 5 | J33: 8.166666667 | K33: 7 | L33: 11
B34: Week #6 | C34: =AJ20 -> 3 | D34: 3 | E34: =IF(AH16>0,1,0) -> 1 | F34: 1 | I34: 6 | J34: 4.833333333 | K34: 3 | L34: 6
B35: Week #7 | C35: =AP20 -> 4 | D35: 4 | E35: =IF(AN16>0,1,0) -> 1 | F35: 1 | I35: 7 | J35: 5.833333333 | K35: 5 | L35: 7
B36: Week #8 | C36: =AV20 -> 3.5 | D36: 3.5 | E36: =IF(AT16>0,1,0) -> 1 | F36: 1 | I36: 8 | J36: 7.166666667 | K36: 5 | L36: 9
B37: Week #9 | C37: =BB20 -> 4 | D37: 4 | E37: =IF(AZ16>0,1,0) -> 1 | F37: 1 | I37: 9 | J37: 8.833333333 | K37: 7 | L37: 11
B38: Week #10 | C38: =BH20 -> 6 | D38: 6 | E38: =IF(BF16>0,1,0) -> 1 | F38: 1 | I38: Front | J38: =SUM(J29:J37) -> 60.16666667 | K38: =SUM(K29:K37) -> 46 | L38: 75
B39: Week #11 | C39: =BN20 -> 6 | D39: 6 | E39: =IF(BL16>0,1,0) -> 1 | F39: 1
B40: Week #12 | C40: =BT20 -> 6.5 | D40: 6.5 | E40: =IF(BR16>0,1,0) -> 1 | F40: 1 | I40: 10 | J40: =IFERROR(AVERAGE(J7,V7,AH7,AT7,BF7,BR7,CJ7),0) -> 6.714285714 | K40: =IFERROR(MIN(J7,V7,AH7,AT7,BF7,BR7,CJ7),0) -> 5 | L40: =IFERROR(MAX(J7,V7,AH7,AT7,BF7,BR7,CJ7),0) -> 9
B41: Week #13 | C41: =BZ20 -> 0 | E41: =IF(BX16>0,1,0) -> 0 | F41: 0 | I41: 11 | J41: =IFERROR(AVERAGE(J8,V8,AH8,AT8,BF8,BR8,CJ8),0) -> 7 | K41: =IFERROR(MIN(J8,V8,AH8,AT8,BF8,BR8,CJ8),0) -> 5 | L41: =IFERROR(MAX(J8,V8,AH8,AT8,BF8,BR8,CJ8),0) -> 9
B42: Week #14 | C42: =CF20 -> 6 | D42: 6 | E42: =IF(CD16>0,1,0) -> 1 | F42: 1 | I42: 12 | J42: 6.714285714 | K42: 5 | L42: 9
B43: Week #15 | C43: =CL20 -> 2 | E43: =IF(CJ16>0,1,0) -> 1 | F43: 1 | I43: 13 | J43: 8.714285714 | K43: 6 | L43: 11
B44: Total | C44: =SUM(C29:C43) -> 56 | D44: =SUM(D29:D43) -> 48.5 | E44: =SUM(E29:E43) -> 13 | F44: =SUM(F29:F43) -> 13 | I44: 14 | J44: 5.571428571 | K44: 4 | L44: 6
I45: 15 | J45: 7.714285714 | K45: 6 | L45: 9
B46: Summary | I46: 16 | J46: 6.857142857 | K46: 6 | L46: 8
B47: Eagles | C47: =I57+I68+I79+I90+I101+I112+I123+I134+I145+I156+I167+I178+I189+I200+I211 -> 0 | I47: 17 | J47: 5.142857143 | K47: 4 | L47: 7
B48: Birdies | C48: 0 | I48: 18 | J48: 8.142857143 | K48: 6 | L48: 10
B49: Pars | C49: =I59+I70+I81+I92+I103+I114+I125+I136+I147+I158+I169+I180+I191+I202+I213 -> 1 | I49: Back | J49: =SUM(J40:J48) -> 62.57142857 | K49: =SUM(K40:K48) -> 47 | L49: 78
B50: bogeys | C50: 20
B51: Double bogeys | C51: 29
B52: Other | C52: 67
B53: Total | C53: =SUM(C47:C52) -> 117
B55: =D4 -> 2024-04-26 | C55: Par | D55: Score
B56: =B7 -> 1 | C56: 4 | D56: 6 | E56: =IF(D56<>0,IF((D56-C56)=-1,"Birdie",IF((D56-C56)=-2,"Eagle",IF((D56-C56)=0,"Par",IF((D56-C56)=1,"bogey",IF((D56-C56)=2,"Double bogey","Other")))))," ") -> Double bogey | H56: Count
B57: 2 | C57: 4 | D57: 9 | E57: Other | H57: Eagle | I57: =COUNTIF(E56:E64,"Eagle") -> 0
B58: 3 | C58: 3 | D58: 5 | E58: Double bogey | H58: Birdie | I58: =COUNTIF(E56:E64,"Birdie") -> 0
B59: 4 | C59: 4 | D59: 7 | E59: Other | H59: Par | I59: =COUNTIF(E56:E64,"Par") -> 0
B60: 5 | C60: 5 | D60: 7 | E60: Double bogey | H60: bogey | I60: =COUNTIF(E56:E64,"bogey") -> 1
B61: 6 | C61: 3 | D61: 6 | E61: Other | H61: Double bogey | I61: =COUNTIF(E56:E64,"Double bogey") -> 4
B62: 7 | C62: 4 | D62: 5 | E62: bogey | H62: Other | I62: =COUNTIF(E56:E64,"Other") -> 4
B63: 8 | C63: 4 | D63: 6 | E63: Double bogey
B64: 9 | C64: 5 | D64: 9 | E64: Other
B66: =J4 -> 2024-05-03
B67: =H7 -> 10 | C67: 4 | D67: 5 | E67: =IF(D67<>0,IF((D67-C67)=-1,"Birdie",IF((D67-C67)=-2,"Eagle",IF((D67-C67)=0,"Par",IF((D67-C67)=1,"bogey",IF((D67-C67)=2,"Double bogey","Other")))))," ") -> bogey | H67: Count
B68: 11 | C68: 4 | D68: 5 | E68: bogey | H68: Eagle | I68: =COUNTIF(E67:E75,"Eagle") -> 0
B69: 12 | C69: 4 | D69: 5 | E69: bogey | H69: Birdie | I69: =COUNTIF(E67:E75,"Birdie") -> 0
B70: 13 | C70: 5 | D70: 8 | E70: Other | H70: Par | I70: =COUNTIF(E67:E75,"Par") -> 0
B71: 14 | C71: 3 | D71: 6 | E71: Other | H71: bogey | I71: =COUNTIF(E67:E75,"bogey") -> 3
B72: 15 | C72: 4 | D72: 9 | E72: Other | H72: Double bogey | I72: =COUNTIF(E67:E75,"Double bogey") -> 1
B73: 16 | C73: 4 | D73: 8 | E73: Other | H73: Other | I73: =COUNTIF(E67:E75,"Other") -> 5
B74: 17 | C74: 3 | D74: 5 | E74: Double bogey
B75: 18 | C75: 5 | D75: 9 | E75: Other
B77: =P4 -> 2024-05-10
B78: =N7 -> 1 | C78: 4 | D78: 5 | E78: =IF(D78<>0,IF((D78-C78)=-1,"Birdie",IF((D78-C78)=-2,"Eagle",IF((D78-C78)=0,"Par",IF((D78-C78)=1,"bogey",IF((D78-C78)=2,"Double bogey","Other")))))," ") -> bogey | H78: Count
B79: 2 | C79: 4 | D79: 9 | E79: Other | H79: Eagle | I79: =COUNTIF(E78:E86,"Eagle") -> 0
B80: 3 | C80: 3 | D80: 6 | E80: Other | H80: Birdie | I80: =COUNTIF(E78:E86,"Birdie") -> 0
B81: 4 | C81: 4 | D81: 8 | E81: Other | H81: Par | I81: =COUNTIF(E78:E86,"Par") -> 0
B82: 5 | C82: 5 | D82: 8 | E82: Other | H82: bogey | I82: =COUNTIF(E78:E86,"bogey") -> 1
B83: 6 | C83: 3 | D83: 6 | E83: Other | H83: Double bogey | I83: =COUNTIF(E78:E86,"Double bogey") -> 1
B84: 7 | C84: 4 | D84: 6 | E84: Double bogey | H84: Other | I84: =COUNTIF(E78:E86,"Other") -> 7
B85: 8 | C85: 4 | D85: 8 | E85: Other
B86: 9 | C86: 5 | D86: 11 | E86: Other
B88: =V4 -> 2024-05-17
B89: =T7 -> 10 | C89: 4 | D89: 7 | E89: =IF(D89<>0,IF((D89-C89)=-1,"Birdie",IF((D89-C89)=-2,"Eagle",IF((D89-C89)=0,"Par",IF((D89-C89)=1,"bogey",IF((D89-C89)=2,"Double bogey","Other")))))," ") -> Other | H89: Count
B90: 11 | C90: 4 | D90: 9 | E90: Other | H90: Eagle | I90: =COUNTIF(E89:E97,"Eagle") -> 0
B91: 12 | C91: 4 | D91: 7 | E91: Other | H91: Birdie | I91: =COUNTIF(E89:E97,"Birdie") -> 0
B92: 13 | C92: 5 | D92: 11 | E92: Other | H92: Par | I92: =COUNTIF(E89:E97,"Par") -> 0
B93: 14 | C93: 3 | D93: 6 | E93: Other | H93: bogey | I93: =COUNTIF(E89:E97,"bogey") -> 0
B94: 15 | C94: 4 | D94: 7 | E94: Other | H94: Double bogey | I94: =COUNTIF(E89:E97,"Double bogey") -> 1
B95: 16 | C95: 4 | D95: 6 | E95: Double bogey | H95: Other | I95: =COUNTIF(E89:E97,"Other") -> 8
B96: 17 | C96: 3 | D96: 7 | E96: Other
B97: 18 | C97: 5 | D97: 10 | E97: Other
B99: =AB4 -> 2024-05-24
B100: =Z7 -> 1 | C100: 4 | D100: 0 | E100: =IF(D100<>0,IF((D100-C100)=-1,"Birdie",IF((D100-C100)=-2,"Eagle",IF((D100-C100)=0,"Par",IF((D100-C100)=1,"bogey",IF((D100-C100)=2,"Double bogey","Other")))))," ") ->  | H100: Count
B101: 2 | C101: 4 | D101: 0 | H101: Eagle | I101: =COUNTIF(E100:E108,"Eagle") -> 0
B102: 3 | C102: 3 | D102: 0 | H102: Birdie | I102: =COUNTIF(E100:E108,"Birdie") -> 0
B103: 4 | C103: 4 | D103: 0 | H103: Par | I103: =COUNTIF(E100:E108,"Par") -> 0
B104: 5 | C104: 5 | D104: 0 | H104: bogey | I104: =COUNTIF(E100:E108,"bogey") -> 0
B105: 6 | C105: 3 | D105: 0 | H105: Double bogey | I105: =COUNTIF(E100:E108,"Double bogey") -> 0
B106: 7 | C106: 4 | D106: 0 | H106: Other | I106: =COUNTIF(E100:E108,"Other") -> 0
B107: 8 | C107: 4 | D107: 0
B108: 9 | C108: 5 | D108: 0
B110: =AH4 -> 2024-05-31
B111: =AF7 -> 10 | C111: 4 | D111: 9 | E111: =IF(D111<>0,IF((D111-C111)=-1,"Birdie",IF((D111-C111)=-2,"Eagle",IF((D111-C111)=0,"Par",IF((D111-C111)=1,"bogey",IF((D111-C111)=2,"Double bogey","Other")))))," ") -> Other | H111: Count
B112: 11 | C112: 4 | D112: 8 | E112: Other | H112: Eagle | I112: =COUNTIF(E111:E119,"Eagle") -> 0
B113: 12 | C113: 4 | D113: 9 | E113: Other | H113: Birdie | I113: =COUNTIF(E111:E119,"Birdie") -> 0
B114: 13 | C114: 5 | D114: 9 | E114: Other | H114: Par | I114: =COUNTIF(E111:E119,"Par") -> 0
B115: 14 | C115: 3 | D115: 4 | E115: bogey | H115: bogey | I115: =COUNTIF(E111:E119,"bogey") -> 2
B116: 15 | C116: 4 | D116: 7 | E116: Other | H116: Double bogey | I116: =COUNTIF(E111:E119,"Double bogey") -> 0
